{"text_format":"3","workbook":"xlsx","n_sheets":1,"sheets":["Kalkulator Pinjaman"],"not_rendered":{"charts":1,"images":1,"defined_names":23,"pivot_tables":1},"read":"whole","date_system":"1900"}

{"sheet":"Kalkulator Pinjaman","index":0,"n_rows":376,"n_cols":14,"rows_kept":376,"merged":[[1,1,1,7],[3,1,3,3],[4,1,4,2],[5,1,5,2],[6,1,6,2],[7,1,7,2],[9,1,9,3],[10,1,10,2],[11,1,11,2],[12,1,12,2],[13,1,13,2]]}
[{"$nulls":8}," "]
[null,"Kalkulator Pinjaman Sederhana"]
[{"$nulls":10},"Label Baris","Pembayaran Pinjaman Pokok","Pembayaran Bunga","Saldo Pinjaman"]
[null,"Detail Pinjaman",{"$nulls":8},"2019",{"v":316.3513498451523,"d":"Rp316"},{"v":226.28003995725135,"d":"Rp226"},{"v":9937.307055372852,"d":"Rp9,937"}]
[null,"Jumlah pinjaman",null,{"v":10000,"d":"Rp10,000.00"},{"$nulls":6},"2020",{"v":1105.7687510242613,"d":"Rp1,106"},{"v":739.1779743039109,"d":"Rp739"},{"v":9619.505761840908,"d":"Rp9,620"}]
[null,"Suku bunga tahunan",null,{"v":0.055,"d":"5.50%"},{"$nulls":6},"2021",{"v":1939.7154987549939,"d":"Rp1,940"},{"v":1207.546562098947,"d":"Rp1,208"},{"v":8826.47019757306,"d":"Rp8,826"}]
[null,"Periode pinjaman (tahun)",null,10,{"$nulls":6},"2022",{"v":2820.703398200693,"d":"Rp2,821"},{"v":1628.8739981790168,"d":"Rp1,629"},{"v":7988.701193915229,"d":"Rp7,989"}]
[null,"Tanggal mulai pinjaman",null,{"$f":"TODAY()","v":"2019-07-18"},{"$nulls":6},"2023",{"v":3751.385940079671,"d":"Rp3,751"},{"v":2000.5067918258076,"d":"Rp2,001"},{"v":7103.675433263734,"d":"Rp7,104"}]
[{"$nulls":10},"2024",{"v":4734.566292844213,"d":"Rp4,735"},{"v":2319.641774587034,"d":"Rp2,320"},{"v":6168.727263067806,"d":"Rp6,169"}]
[null,"Ringkasan Pinjaman",{"$nulls":8},"2025",{"v":5773.2057456813,"d":"Rp5,773"},{"v":2583.3176572757166,"d":"Rp2,583"},{"v":5181.040667019757,"d":"Rp5,181"}]
[null,"Angsuran bulanan",null,{"$f":"IFERROR(IF(PinjamanAman,AngsuranBulanan,\"\"), \"\")","v":{"v":108.52627796048073,"d":"Rp108.53"}},{"$nulls":6},"2026",{"v":6870.432627764929,"d":"Rp6,870"},{"v":2788.406110717856,"d":"Rp2,788"},{"v":4137.640783357165,"d":"Rp4,138"}]
[null,"Jumlah pembayaran",null,{"$f":"IFERROR(IF(PinjamanAman,TahunPinjaman*12,\"\"), \"\")","v":120},{"$nulls":6},"2027",{"v":8029.551730624387,"d":"Rp8,030"},{"v":2931.6023433841656,"d":"Rp2,932"},{"v":3035.384944730651,"d":"Rp3,035"}]
[null,"Total bunga",null,{"$f":"IFERROR(IF(PinjamanAman,TotalPinjaman-JumlahPinjaman,\"\"), \"\")","v":{"v":3023.1533552576875,"d":"Rp3,023.15"}},{"$nulls":6},"2028",{"v":9254.05426200815,"d":"Rp9,254"},{"v":3009.415147526172,"d":"Rp3,009"},{"v":1870.9532126497452,"d":"Rp1,871"}]
[null,"Total biaya pinjaman",null,{"$f":"IFERROR(IF(PinjamanAman,AngsuranBulanan*JumlahPembayaran,\"\"), \"\")","v":{"v":13023.153355257688,"d":"Rp13,023.15"}},{"$nulls":6},"2029",{"v":9999.999999999998,"d":"Rp10,000"},{"v":3023.1533552576902,"d":"Rp3,023"},{"v":640.8383779971373,"d":"Rp641"}]
[{"$nulls":10},"Total Keseluruhan",null,null,{"v":9937.307055372852,"d":"Rp9,937"}]
[null,"No. Pmbyrn","Tanggal Pembayaran","Saldo Awal","Pembayaran","Pinjaman Pokok","Bunga","Saldo Akhir"]
[null,{"$f":"IFERROR(IF(PinjamanBelumDibayar*PinjamanAman,NomorPembayaran,\"\"), \"\")","v":1},{"$f":"IFERROR(IF(PinjamanBelumDibayar*PinjamanAman,TanggalPembayaran,TanggalMulaiPinjaman), TanggalMulaiPinjaman)","v":"2019-08-18"},{"$f":"IFERROR(IF(PinjamanBelumDibayar*PinjamanAman,NilaiPinjaman,\"\"), \"\")","v":{"v":10000,"d":"Rp10,000.00"}},{"$f":"IFERROR(IF(PinjamanBelumDibayar*PinjamanAman,AngsuranBulanan,0), 0)","v":{"v":108.52627796048073,"d":"Rp108.53"}},{"$f":"IFERROR(IF(PinjamanBelumDibayar*PinjamanAman,Pinjaman_Pokok,0), 0)","v":{"v":62.69294462714739,"d":"Rp62.69"}},{"$f":"IFERROR(IF(PinjamanBelumDibayar*PinjamanAman,JmlBunga,0), 0)","v":{"v":45.833333333333336,"d":"Rp45.83"}},{"$f":"IFERROR(IF(PinjamanBelumDibayar*PinjamanAman,SaldoAkhir,0), 0)","v":{"v":9937.307055372852,"d":"Rp9,937.31"}}]
[null,{"$f":"IFERROR(IF(PinjamanBelumDibayar*PinjamanAman,NomorPembayaran,\"\"), \"\")","v":2},{"$f":"IFERROR(IF(PinjamanBelumDibayar*PinjamanAman,TanggalPembayaran,TanggalMulaiPinjaman), TanggalMulaiPinjaman)","v":"2019-09-18"},{"$f":"IFERROR(IF(PinjamanBelumDibayar*PinjamanAman,NilaiPinjaman,\"\"), \"\")","v":{"v":9937.307055372852,"d":"Rp9,937.31"}},{"$f":"IFERROR(IF(PinjamanBelumDibayar*PinjamanAman,AngsuranBulanan,0), 0)","v":{"v":108.52627796048073,"d":"Rp108.53"}},{"$f":"IFERROR(IF(PinjamanBelumDibayar*PinjamanAman,Pinjaman_Pokok,0), 0)","v":{"v":62.98028729002182,"d":"Rp62.98"}},{"$f":"IFERROR(IF(PinjamanBelumDibayar*PinjamanAman,JmlBunga,0), 0)","v":{"v":45.545990670458906,"d":"Rp45.55"}},{"$f":"IFERROR(IF(PinjamanBelumDibayar*PinjamanAman,SaldoAkhir,0), 0)","v":{"v":9874.32676808283,"d":"Rp9,874.33"}}]
[null,{"$f":"IFERROR(IF(PinjamanBelumDibayar*PinjamanAman,NomorPembayaran,\"\"), \"\")","v":3},{"$f":"IFERROR(IF(PinjamanBelumDibayar*PinjamanAman,TanggalPembayaran,TanggalMulaiPinjaman), TanggalMulaiPinjaman)","v":"2019-10-18"},{"$f":"IFERROR(IF(PinjamanBelumDibayar*PinjamanAman,NilaiPinjaman,\"\"), \"\")","v":{"v":9874.32676808283,"d":"Rp9,874.33"}},{"$f":"IFERROR(IF(PinjamanBelumDibayar*PinjamanAman,AngsuranBulanan,0), 0)","v":{"v":108.52627796048073,"d":"Rp108.53"}},{"$f":"IFERROR(IF(PinjamanBelumDibayar*PinjamanAman,Pinjaman_Pokok,0), 0)","v":{"v":63.268946940101095,"d":"Rp63.27"}},{"$f":"IFERROR(IF(PinjamanBelumDibayar*PinjamanAman,JmlBunga,0), 0)","v":{"v":45.257331020379645,"d":"Rp45.26"}},{"$f":"IFERROR(IF(PinjamanBelumDibayar*PinjamanAman,SaldoAkhir,0), 0)","v":{"v":9811.05782114273,"d":"Rp9,811.06"}}]
[null,{"$f":"IFERROR(IF(PinjamanBelumDibayar*PinjamanAman,NomorPembayaran,\"\"), \"\")","v":4},{"$f":"IFERROR(IF(PinjamanBelumDibayar*PinjamanAman,TanggalPembayaran,TanggalMulaiPinjaman), TanggalMulaiPinjaman)","v":"2019-11-18"},{"$f":"IFERROR(IF(PinjamanBelumDibayar*PinjamanAman,NilaiPinjaman,\"\"), \"\")","v":{"v":9811.05782114273,"d":"Rp9,811.06"}},{"$f":"IFERROR(IF(PinjamanBelumDibayar*PinjamanAman,AngsuranBulanan,0), 0)","v":{"v":108.52627796048073,"d":"Rp108.53"}},{"$f":"IFERROR(IF(PinjamanBelumDibayar*PinjamanAman,Pinjaman_Pokok,0), 0)","v":{"v":63.55892961357656,"d":"Rp63.56"}},{"$f":"IFERROR(IF(PinjamanBelumDibayar*PinjamanAman,JmlBunga,0), 0)","v":{"v":44.96734834690417,"d":"Rp44.97"}},{"$f":"IFERROR(IF(PinjamanBelumDibayar*PinjamanAman,SaldoAkhir,0), 0)","v":{"v":9747.498891529152,"d":"Rp9,747.50"}}]
[null,{"$f":"IFERROR(IF(PinjamanBelumDibayar*PinjamanAman,NomorPembayaran,\"\"), \"\")","v":5},{"$f":"IFERROR(IF(PinjamanBelumDibayar*PinjamanAman,TanggalPembayaran,TanggalMulaiPinjaman), TanggalMulaiPinjaman)","v":"2019-12-18"},{"$f":"IFERROR(IF(PinjamanBelumDibayar*PinjamanAman,NilaiPinjaman,\"\"), \"\")","v":{"v":9747.498891529152,"d":"Rp9,747.50"}},{"$f":"IFERROR(IF(PinjamanBelumDibayar*PinjamanAman,AngsuranBulanan,0), 0)","v":{"v":108.52627796048073,"d":"Rp108.53"}},{"$f":"IFERROR(IF(PinjamanBelumDibayar*PinjamanAman,Pinjaman_Pokok,0), 0)","v":{"v":63.850241374305455,"d":"Rp63.85"}},{"$f":"IFERROR(IF(PinjamanBelumDibayar*PinjamanAman,JmlBunga,0), 0)","v":{"v":44.67603658617527,"d":"Rp44.68"}},{"$f":"IFERROR(IF(PinjamanBelumDibayar*PinjamanAman,SaldoAkhir,0), 0)","v":{"v":9683.648650154846,"d":"Rp9,683.65"}}]
[null,{"$f":"IFERROR(IF(PinjamanBelumDibayar*PinjamanAman,NomorPembayaran,\"\"), \"\")","v":6},{"$f":"IFERROR(IF(PinjamanBelumDibayar*PinjamanAman,TanggalPembayaran,TanggalMulaiPinjaman), TanggalMulaiPinjaman)","v":"2020-01-18"},{"$f":"IFERROR(IF(PinjamanBelumDibayar*PinjamanAman,NilaiPinjaman,\"\"), \"\")","v":{"v":9683.648650154846,"d":"Rp9,683.65"}},{"$f":"IFERROR(IF(PinjamanBelumDibayar*PinjamanAman,AngsuranBulanan,0), 0)","v":{"v":108.52627796048073,"d":"Rp108.53"}},{"$f":"IFERROR(IF(PinjamanBelumDibayar*PinjamanAman,Pinjaman_Pokok,0), 0)","v":{"v":64.14288831393768,"d":"Rp64.14"}},{"$f":"IFERROR(IF(PinjamanBelumDibayar*PinjamanAman,JmlBunga,0), 0)","v":{"v":44.383389646543044,"d":"Rp44.38"}},{"$f":"IFERROR(IF(PinjamanBelumDibayar*PinjamanAman,SaldoAkhir,0), 0)","v":{"v":9619.505761840908,"d":"Rp9,619.51"}}]
[null,{"$f":"IFERROR(IF(PinjamanBelumDibayar*PinjamanAman,NomorPembayaran,\"\"), \"\")","v":7},{"$f":"IFERROR(IF(PinjamanBelumDibayar*PinjamanAman,TanggalPembayaran,TanggalMulaiPinjaman), TanggalMulaiPinjaman)","v":"2020-02-18"},{"$f":"IFERROR(IF(PinjamanBelumDibayar*PinjamanAman,NilaiPinjaman,\"\"), \"\")","v":{"v":9619.505761840908,"d":"Rp9,619.51"}},{"$f":"IFERROR(IF(PinjamanBelumDibayar*PinjamanAman,AngsuranBulanan,0), 0)","v":{"v":108.52627796048073,"d":"Rp108.53"}},{"$f":"IFERROR(IF(PinjamanBelumDibayar*PinjamanAman,Pinjaman_Pokok,0), 0)","v":{"v":64.43687655204323,"d":"Rp64.44"}},{"$f":"IFERROR(IF(PinjamanBelumDibayar*PinjamanAman,JmlBunga,0), 0)","v":{"v":44.089401408437496,"d":"Rp44.09"}},{"$f":"IFERROR(IF(PinjamanBelumDibayar*PinjamanAman,SaldoAkhir,0), 0)","v":{"v":9555.068885288867,"d":"Rp9,555.07"}}]
[null,{"$f":"IFERROR(IF(PinjamanBelumDibayar*PinjamanAman,NomorPembayaran,\"\"), \"\")","v":8},{"$f":"IFERROR(IF(PinjamanBelumDibayar*PinjamanAman,TanggalPembayaran,TanggalMulaiPinjaman), TanggalMulaiPinjaman)","v":"2020-03-18"},{"$f":"IFERROR(IF(PinjamanBelumDibayar*PinjamanAman,NilaiPinjaman,\"\"), \"\")","v":{"v":9555.068885288867,"d":"Rp9,555.07"}},{"$f":"IFERROR(IF(PinjamanBelumDibayar*PinjamanAman,AngsuranBulanan,0), 0)","v":{"v":108.52627796048073,"d":"Rp108.53"}},{"$f":"IFERROR(IF(PinjamanBelumDibayar*PinjamanAman,Pinjaman_Pokok,0), 0)","v":{"v":64.73221223624009,"d":"Rp64.73"}},{"$f":"IFERROR(IF(PinjamanBelumDibayar*PinjamanAman,JmlBunga,0), 0)","v":{"v":43.79406572424063,"d":"Rp43.79"}},{"$f":"IFERROR(IF(PinjamanBelumDibayar*PinjamanAman,SaldoAkhir,0), 0)","v":{"v":9490.336673052625,"d":"Rp9,490.34"}}]
[null,{"$f":"IFERROR(IF(PinjamanBelumDibayar*PinjamanAman,NomorPembayaran,\"\"), \"\")","v":9},{"$f":"IFERROR(IF(PinjamanBelumDibayar*PinjamanAman,TanggalPembayaran,TanggalMulaiPinjaman), TanggalMulaiPinjaman)","v":"2020-04-18"},{"$f":"IFERROR(IF(PinjamanBelumDibayar*PinjamanAman,NilaiPinjaman,\"\"), \"\")","v":{"v":9490.336673052625,"d":"Rp9,490.34"}},{"$f":"IFERROR(IF(PinjamanBelumDibayar*PinjamanAman,AngsuranBulanan,0), 0)","v":{"v":108.52627796048073,"d":"Rp108.53"}},{"$f":"IFERROR(IF(PinjamanBelumDibayar*PinjamanAman,Pinjaman_Pokok,0), 0)","v":{"v":65.02890154232287,"d":"Rp65.03"}},{"$f":"IFERROR(IF(PinjamanBelumDibayar*PinjamanAman,JmlBunga,0), 0)","v":{"v":43.49737641815786,"d":"Rp43.50"}},{"$f":"IFERROR(IF(PinjamanBelumDibayar*PinjamanAman,SaldoAkhir,0), 0)","v":{"v":9425.307771510303,"d":"Rp9,425.31"}}]
[null,{"$f":"IFERROR(IF(PinjamanBelumDibayar*PinjamanAman,NomorPembayaran,\"\"), \"\")","v":10},{"$f":"IFERROR(IF(PinjamanBelumDibayar*PinjamanAman,TanggalPembayaran,TanggalMulaiPinjaman), TanggalMulaiPinjaman)","v":"2020-05-18"},{"$f":"IFERROR(IF(PinjamanBelumDibayar*PinjamanAman,NilaiPinjaman,\"\"), \"\")","v":{"v":9425.307771510303,"d":"Rp9,425.31"}},{"$f":"IFERROR(IF(PinjamanBelumDibayar*PinjamanAman,AngsuranBulanan,0), 0)","v":{"v":108.52627796048073,"d":"Rp108.53"}},{"$f":"IFERROR(IF(PinjamanBelumDibayar*PinjamanAman,Pinjaman_Pokok,0), 0)","v":{"v":65.32695067439184,"d":"Rp65.33"}},{"$f":"IFERROR(IF(PinjamanBelumDibayar*PinjamanAman,JmlBunga,0), 0)","v":{"v":43.19932728608889,"d":"Rp43.20"}},{"$f":"IFERROR(IF(PinjamanBelumDibayar*PinjamanAman,SaldoAkhir,0), 0)","v":{"v":9359.98082083591,"d":"Rp9,359.98"}}]
[null,{"$f":"IFERROR(IF(PinjamanBelumDibayar*PinjamanAman,NomorPembayaran,\"\"), \"\")","v":11},{"$f":"IFERROR(IF(PinjamanBelumDibayar*PinjamanAman,TanggalPembayaran,TanggalMulaiPinjaman), TanggalMulaiPinjaman)","v":"2020-06-18"},{"$f":"IFERROR(IF(PinjamanBelumDibayar*PinjamanAman,NilaiPinjaman,\"\"), \"\")","v":{"v":9359.98082083591,"d":"Rp9,359.98"}},{"$f":"IFERROR(IF(PinjamanBelumDibayar*PinjamanAman,AngsuranBulanan,0), 0)","v":{"v":108.52627796048073,"d":"Rp108.53"}},{"$f":"IFERROR(IF(PinjamanBelumDibayar*PinjamanAman,Pinjaman_Pokok,0), 0)","v":{"v":65.6263658649828,"d":"Rp65.63"}},{"$f":"IFERROR(IF(PinjamanBelumDibayar*PinjamanAman,JmlBunga,0), 0)","v":{"v":42.89991209549792,"d":"Rp42.90"}},{"$f":"IFERROR(IF(PinjamanBelumDibayar*PinjamanAman,SaldoAkhir,0), 0)","v":{"v":9294.354454970928,"d":"Rp9,294.35"}}]
[null,{"$f":"IFERROR(IF(PinjamanBelumDibayar*PinjamanAman,NomorPembayaran,\"\"), \"\")","v":12},{"$f":"IFERROR(IF(PinjamanBelumDibayar*PinjamanAman,TanggalPembayaran,TanggalMulaiPinjaman), TanggalMulaiPinjaman)","v":"2020-07-18"},{"$f":"IFERROR(IF(PinjamanBelumDibayar*PinjamanAman,NilaiPinjaman,\"\"), \"\")","v":{"v":9294.354454970928,"d":"Rp9,294.35"}},{"$f":"IFERROR(IF(PinjamanBelumDibayar*PinjamanAman,AngsuranBulanan,0), 0)","v":{"v":108.52627796048073,"d":"Rp108.53"}},{"$f":"IFERROR(IF(PinjamanBelumDibayar*PinjamanAman,Pinjaman_Pokok,0), 0)","v":{"v":65.92715337519732,"d":"Rp65.93"}},{"$f":"IFERROR(IF(PinjamanBelumDibayar*PinjamanAman,JmlBunga,0), 0)","v":{"v":42.59912458528342,"d":"Rp42.60"}},{"$f":"IFERROR(IF(PinjamanBelumDibayar*PinjamanAman,SaldoAkhir,0), 0)","v":{"v":9228.427301595733,"d":"Rp9,228.43"}}]
[null,{"$f":"IFERROR(IF(PinjamanBelumDibayar*PinjamanAman,NomorPembayaran,\"\"), \"\")","v":13},{"$f":"IFERROR(IF(PinjamanBelumDibayar*PinjamanAman,TanggalPembayaran,TanggalMulaiPinjaman), TanggalMulaiPinjaman)","v":"2020-08-18"},{"$f":"IFERROR(IF(PinjamanBelumDibayar*PinjamanAman,NilaiPinjaman,\"\"), \"\")","v":{"v":9228.427301595733,"d":"Rp9,228.43"}},{"$f":"IFERROR(IF(PinjamanBelumDibayar*PinjamanAman,AngsuranBulanan,0), 0)","v":{"v":108.52627796048073,"d":"Rp108.53"}},{"$f":"IFERROR(IF(PinjamanBelumDibayar*PinjamanAman,Pinjaman_Pokok,0), 0)","v":{"v":66.22931949483362,"d":"Rp66.23"}},{"$f":"IFERROR(IF(PinjamanBelumDibayar*PinjamanAman,JmlBunga,0), 0)","v":{"v":42.296958465647094,"d":"Rp42.30"}},{"$f":"IFERROR(IF(PinjamanBelumDibayar*PinjamanAman,SaldoAkhir,0), 0)","v":{"v":9162.197982100897,"d":"Rp9,162.20"}}]
[null,{"$f":"IFERROR(IF(PinjamanBelumDibayar*PinjamanAman,NomorPembayaran,\"\"), \"\")","v":14},{"$f":"IFERROR(IF(PinjamanBelumDibayar*PinjamanAman,TanggalPembayaran,TanggalMulaiPinjaman), TanggalMulaiPinjaman)","v":"2020-09-18"},{"$f":"IFERROR(IF(PinjamanBelumDibayar*PinjamanAman,NilaiPinjaman,\"\"), \"\")","v":{"v":9162.197982100897,"d":"Rp9,162.20"}},{"$f":"IFERROR(IF(PinjamanBelumDibayar*PinjamanAman,AngsuranBulanan,0), 0)","v":{"v":108.52627796048073,"d":"Rp108.53"}},{"$f":"IFERROR(IF(PinjamanBelumDibayar*PinjamanAman,Pinjaman_Pokok,0), 0)","v":{"v":66.53287054251828,"d":"Rp66.53"}},{"$f":"IFERROR(IF(PinjamanBelumDibayar*PinjamanAman,JmlBunga,0), 0)","v":{"v":41.99340741796244,"d":"Rp41.99"}},{"$f":"IFERROR(IF(PinjamanBelumDibayar*PinjamanAman,SaldoAkhir,0), 0)","v":{"v":9095.665111558377,"d":"Rp9,095.67"}}]
[null,{"$f":"IFERROR(IF(PinjamanBelumDibayar*PinjamanAman,NomorPembayaran,\"\"), \"\")","v":15},{"$f":"IFERROR(IF(PinjamanBelumDibayar*PinjamanAman,TanggalPembayaran,TanggalMulaiPinjaman), TanggalMulaiPinjaman)","v":"2020-10-18"},{"$f":"IFERROR(IF(PinjamanBelumDibayar*PinjamanAman,NilaiPinjaman,\"\"), \"\")","v":{"v":9095.665111558377,"d":"Rp9,095.67"}},{"$f":"IFERROR(IF(PinjamanBelumDibayar*PinjamanAman,AngsuranBulanan,0), 0)","v":{"v":108.52627796048073,"d":"Rp108.53"}},{"$f":"IFERROR(IF(PinjamanBelumDibayar*PinjamanAman,Pinjaman_Pokok,0), 0)","v":{"v":66.83781286583816,"d":"Rp66.84"}},{"$f":"IFERROR(IF(PinjamanBelumDibayar*PinjamanAman,JmlBunga,0), 0)","v":{"v":41.68846509464256,"d":"Rp41.69"}},{"$f":"IFERROR(IF(PinjamanBelumDibayar*PinjamanAman,SaldoAkhir,0), 0)","v":{"v":9028.82729869254,"d":"Rp9,028.83"}}]
[null,{"$f":"IFERROR(IF(PinjamanBelumDibayar*PinjamanAman,NomorPembayaran,\"\"), \"\")","v":16},{"$f":"IFERROR(IF(PinjamanBelumDibayar*PinjamanAman,TanggalPembayaran,TanggalMulaiPinjaman), TanggalMulaiPinjaman)","v":"2020-11-18"},{"$f":"IFERROR(IF(PinjamanBelumDibayar*PinjamanAman,NilaiPinjaman,\"\"), \"\")","v":{"v":9028.82729869254,"d":"Rp9,028.83"}},{"$f":"IFERROR(IF(PinjamanBelumDibayar*PinjamanAman,AngsuranBulanan,0), 0)","v":{"v":108.52627796048073,"d":"Rp108.53"}},{"$f":"IFERROR(IF(PinjamanBelumDibayar*PinjamanAman,Pinjaman_Pokok,0), 0)","v":{"v":67.14415284147324,"d":"Rp67.14"}},{"$f":"IFERROR(IF(PinjamanBelumDibayar*PinjamanAman,JmlBunga,0), 0)","v":{"v":41.382125119007476,"d":"Rp41.38"}},{"$f":"IFERROR(IF(PinjamanBelumDibayar*PinjamanAman,SaldoAkhir,0), 0)","v":{"v":8961.683145851068,"d":"Rp8,961.68"}}]
[null,{"$f":"IFERROR(IF(PinjamanBelumDibayar*PinjamanAman,NomorPembayaran,\"\"), \"\")","v":17},{"$f":"IFERROR(IF(PinjamanBelumDibayar*PinjamanAman,TanggalPembayaran,TanggalMulaiPinjaman), TanggalMulaiPinjaman)","v":"2020-12-18"},{"$f":"IFERROR(IF(PinjamanBelumDibayar*PinjamanAman,NilaiPinjaman,\"\"), \"\")","v":{"v":8961.683145851068,"d":"Rp8,961.68"}},{"$f":"IFERROR(IF(PinjamanBelumDibayar*PinjamanAman,AngsuranBulanan,0), 0)","v":{"v":108.52627796048073,"d":"Rp108.53"}},{"$f":"IFERROR(IF(PinjamanBelumDibayar*PinjamanAman,Pinjaman_Pokok,0), 0)","v":{"v":67.45189687533001,"d":"Rp67.45"}},{"$f":"IFERROR(IF(PinjamanBelumDibayar*PinjamanAman,JmlBunga,0), 0)","v":{"v":41.074381085150726,"d":"Rp41.07"}},{"$f":"IFERROR(IF(PinjamanBelumDibayar*PinjamanAman,SaldoAkhir,0), 0)","v":{"v":8894.231248975735,"d":"Rp8,894.23"}}]
[null,{"$f":"IFERROR(IF(PinjamanBelumDibayar*PinjamanAman,NomorPembayaran,\"\"), \"\")","v":18},{"$f":"IFERROR(IF(PinjamanBelumDibayar*PinjamanAman,TanggalPembayaran,TanggalMulaiPinjaman), TanggalMulaiPinjaman)","v":"2021-01-18"},{"$f":"IFERROR(IF(PinjamanBelumDibayar*PinjamanAman,NilaiPinjaman,\"\"), \"\")","v":{"v":8894.231248975735,"d":"Rp8,894.23"}},{"$f":"IFERROR(IF(PinjamanBelumDibayar*PinjamanAman,AngsuranBulanan,0), 0)","v":{"v":108.52627796048073,"d":"Rp108.53"}},{"$f":"IFERROR(IF(PinjamanBelumDibayar*PinjamanAman,Pinjaman_Pokok,0), 0)","v":{"v":67.76105140267526,"d":"Rp67.76"}},{"$f":"IFERROR(IF(PinjamanBelumDibayar*PinjamanAman,JmlBunga,0), 0)","v":{"v":40.76522655780546,"d":"Rp40.77"}},{"$f":"IFERROR(IF(PinjamanBelumDibayar*PinjamanAman,SaldoAkhir,0), 0)","v":{"v":8826.47019757306,"d":"Rp8,826.47"}}]
[null,{"$f":"IFERROR(IF(PinjamanBelumDibayar*PinjamanAman,NomorPembayaran,\"\"), \"\")","v":19},{"$f":"IFERROR(IF(PinjamanBelumDibayar*PinjamanAman,TanggalPembayaran,TanggalMulaiPinjaman), TanggalMulaiPinjaman)","v":"2021-02-18"},{"$f":"IFERROR(IF(PinjamanBelumDibayar*PinjamanAman,NilaiPinjaman,\"\"), \"\")","v":{"v":8826.47019757306,"d":"Rp8,826.47"}},{"$f":"IFERROR(IF(PinjamanBelumDibayar*PinjamanAman,AngsuranBulanan,0), 0)","v":{"v":108.52627796048073,"d":"Rp108.53"}},{"$f":"IFERROR(IF(PinjamanBelumDibayar*PinjamanAman,Pinjaman_Pokok,0), 0)","v":{"v":68.07162288827085,"d":"Rp68.07"}},{"$f":"IFERROR(IF(PinjamanBelumDibayar*PinjamanAman,JmlBunga,0), 0)","v":{"v":40.45465507220987,"d":"Rp40.45"}},{"$f":"IFERROR(IF(PinjamanBelumDibayar*PinjamanAman,SaldoAkhir,0), 0)","v":{"v":8758.398574684792,"d":"Rp8,758.40"}}]
[null,{"$f":"IFERROR(IF(PinjamanBelumDibayar*PinjamanAman,NomorPembayaran,\"\"), \"\")","v":20},{"$f":"IFERROR(IF(PinjamanBelumDibayar*PinjamanAman,TanggalPembayaran,TanggalMulaiPinjaman), TanggalMulaiPinjaman)","v":"2021-03-18"},{"$f":"IFERROR(IF(PinjamanBelumDibayar*PinjamanAman,NilaiPinjaman,\"\"), \"\")","v":{"v":8758.398574684792,"d":"Rp8,758.40"}},{"$f":"IFERROR(IF(PinjamanBelumDibayar*PinjamanAman,AngsuranBulanan,0), 0)","v":{"v":108.52627796048073,"d":"Rp108.53"}},{"$f":"IFERROR(IF(PinjamanBelumDibayar*PinjamanAman,Pinjaman_Pokok,0), 0)","v":{"v":68.38361782650877,"d":"Rp68.38"}},{"$f":"IFERROR(IF(PinjamanBelumDibayar*PinjamanAman,JmlBunga,0), 0)","v":{"v":40.142660133971965,"d":"Rp40.14"}},{"$f":"IFERROR(IF(PinjamanBelumDibayar*PinjamanAman,SaldoAkhir,0), 0)","v":{"v":8690.014956858282,"d":"Rp8,690.01"}}]
[null,{"$f":"IFERROR(IF(PinjamanBelumDibayar*PinjamanAman,NomorPembayaran,\"\"), \"\")","v":21},{"$f":"IFERROR(IF(PinjamanBelumDibayar*PinjamanAman,TanggalPembayaran,TanggalMulaiPinjaman), TanggalMulaiPinjaman)","v":"2021-04-18"},{"$f":"IFERROR(IF(PinjamanBelumDibayar*PinjamanAman,NilaiPinjaman,\"\"), \"\")","v":{"v":8690.014956858282,"d":"Rp8,690.01"}},{"$f":"IFERROR(IF(PinjamanBelumDibayar*PinjamanAman,AngsuranBulanan,0), 0)","v":{"v":108.52627796048073,"d":"Rp108.53"}},{"$f":"IFERROR(IF(PinjamanBelumDibayar*PinjamanAman,Pinjaman_Pokok,0), 0)","v":{"v":68.69704274154692,"d":"Rp68.70"}},{"$f":"IFERROR(IF(PinjamanBelumDibayar*PinjamanAman,JmlBunga,0), 0)","v":{"v":39.82923521893379,"d":"Rp39.83"}},{"$f":"IFERROR(IF(PinjamanBelumDibayar*PinjamanAman,SaldoAkhir,0), 0)","v":{"v":8621.317914116735,"d":"Rp8,621.32"}}]
[null,{"$f":"IFERROR(IF(PinjamanBelumDibayar*PinjamanAman,NomorPembayaran,\"\"), \"\")","v":22},{"$f":"IFERROR(IF(PinjamanBelumDibayar*PinjamanAman,TanggalPembayaran,TanggalMulaiPinjaman), TanggalMulaiPinjaman)","v":"2021-05-18"},{"$f":"IFERROR(IF(PinjamanBelumDibayar*PinjamanAman,NilaiPinjaman,\"\"), \"\")","v":{"v":8621.317914116735,"d":"Rp8,621.32"}},{"$f":"IFERROR(IF(PinjamanBelumDibayar*PinjamanAman,AngsuranBulanan,0), 0)","v":{"v":108.52627796048073,"d":"Rp108.53"}},{"$f":"IFERROR(IF(PinjamanBelumDibayar*PinjamanAman,Pinjaman_Pokok,0), 0)","v":{"v":69.01190418744568,"d":"Rp69.01"}},{"$f":"IFERROR(IF(PinjamanBelumDibayar*PinjamanAman,JmlBunga,0), 0)","v":{"v":39.51437377303504,"d":"Rp39.51"}},{"$f":"IFERROR(IF(PinjamanBelumDibayar*PinjamanAman,SaldoAkhir,0), 0)","v":{"v":8552.306009929285,"d":"Rp8,552.31"}}]
[null,{"$f":"IFERROR(IF(PinjamanBelumDibayar*PinjamanAman,NomorPembayaran,\"\"), \"\")","v":23},{"$f":"IFERROR(IF(PinjamanBelumDibayar*PinjamanAman,TanggalPembayaran,TanggalMulaiPinjaman), TanggalMulaiPinjaman)","v":"2021-06-18"},{"$f":"IFERROR(IF(PinjamanBelumDibayar*PinjamanAman,NilaiPinjaman,\"\"), \"\")","v":{"v":8552.306009929285,"d":"Rp8,552.31"}},{"$f":"IFERROR(IF(PinjamanBelumDibayar*PinjamanAman,AngsuranBulanan,0), 0)","v":{"v":108.52627796048073,"d":"Rp108.53"}},{"$f":"IFERROR(IF(PinjamanBelumDibayar*PinjamanAman,Pinjaman_Pokok,0), 0)","v":{"v":69.32820874830482,"d":"Rp69.33"}},{"$f":"IFERROR(IF(PinjamanBelumDibayar*PinjamanAman,JmlBunga,0), 0)","v":{"v":39.19806921217591,"d":"Rp39.20"}},{"$f":"IFERROR(IF(PinjamanBelumDibayar*PinjamanAman,SaldoAkhir,0), 0)","v":{"v":8482.977801180983,"d":"Rp8,482.98"}}]
[null,{"$f":"IFERROR(IF(PinjamanBelumDibayar*PinjamanAman,NomorPembayaran,\"\"), \"\")","v":24},{"$f":"IFERROR(IF(PinjamanBelumDibayar*PinjamanAman,TanggalPembayaran,TanggalMulaiPinjaman), TanggalMulaiPinjaman)","v":"2021-07-18"},{"$f":"IFERROR(IF(PinjamanBelumDibayar*PinjamanAman,NilaiPinjaman,\"\"), \"\")","v":{"v":8482.977801180983,"d":"Rp8,482.98"}},{"$f":"IFERROR(IF(PinjamanBelumDibayar*PinjamanAman,AngsuranBulanan,0), 0)","v":{"v":108.52627796048073,"d":"Rp108.53"}},{"$f":"IFERROR(IF(PinjamanBelumDibayar*PinjamanAman,Pinjaman_Pokok,0), 0)","v":{"v":69.6459630384012,"d":"Rp69.65"}},{"$f":"IFERROR(IF(PinjamanBelumDibayar*PinjamanAman,JmlBunga,0), 0)","v":{"v":38.880314922079506,"d":"Rp38.88"}},{"$f":"IFERROR(IF(PinjamanBelumDibayar*PinjamanAman,SaldoAkhir,0), 0)","v":{"v":8413.331838142582,"d":"Rp8,413.33"}}]
[null,{"$f":"IFERROR(IF(PinjamanBelumDibayar*PinjamanAman,NomorPembayaran,\"\"), \"\")","v":25},{"$f":"IFERROR(IF(PinjamanBelumDibayar*PinjamanAman,TanggalPembayaran,TanggalMulaiPinjaman), TanggalMulaiPinjaman)","v":"2021-08-18"},{"$f":"IFERROR(IF(PinjamanBelumDibayar*PinjamanAman,NilaiPinjaman,\"\"), \"\")","v":{"v":8413.331838142582,"d":"Rp8,413.33"}},{"$f":"IFERROR(IF(PinjamanBelumDibayar*PinjamanAman,AngsuranBulanan,0), 0)","v":{"v":108.52627796048073,"d":"Rp108.53"}},{"$f":"IFERROR(IF(PinjamanBelumDibayar*PinjamanAman,Pinjaman_Pokok,0), 0)","v":{"v":69.96517370232722,"d":"Rp69.97"}},{"$f":"IFERROR(IF(PinjamanBelumDibayar*PinjamanAman,JmlBunga,0), 0)","v":{"v":38.561104258153506,"d":"Rp38.56"}},{"$f":"IFERROR(IF(PinjamanBelumDibayar*PinjamanAman,SaldoAkhir,0), 0)","v":{"v":8343.366664440255,"d":"Rp8,343.37"}}]
[null,{"$f":"IFERROR(IF(PinjamanBelumDibayar*PinjamanAman,NomorPembayaran,\"\"), \"\")","v":26},{"$f":"IFERROR(IF(PinjamanBelumDibayar*PinjamanAman,TanggalPembayaran,TanggalMulaiPinjaman), TanggalMulaiPinjaman)","v":"2021-09-18"},{"$f":"IFERROR(IF(PinjamanBelumDibayar*PinjamanAman,NilaiPinjaman,\"\"), \"\")","v":{"v":8343.366664440255,"d":"Rp8,343.37"}},{"$f":"IFERROR(IF(PinjamanBelumDibayar*PinjamanAman,AngsuranBulanan,0), 0)","v":{"v":108.52627796048073,"d":"Rp108.53"}},{"$f":"IFERROR(IF(PinjamanBelumDibayar*PinjamanAman,Pinjaman_Pokok,0), 0)","v":{"v":70.28584741512955,"d":"Rp70.29"}},{"$f":"IFERROR(IF(PinjamanBelumDibayar*PinjamanAman,JmlBunga,0), 0)","v":{"v":38.240430545351174,"d":"Rp38.24"}},{"$f":"IFERROR(IF(PinjamanBelumDibayar*PinjamanAman,SaldoAkhir,0), 0)","v":{"v":8273.080817025126,"d":"Rp8,273.08"}}]
[null,{"$f":"IFERROR(IF(PinjamanBelumDibayar*PinjamanAman,NomorPembayaran,\"\"), \"\")","v":27},{"$f":"IFERROR(IF(PinjamanBelumDibayar*PinjamanAman,TanggalPembayaran,TanggalMulaiPinjaman), TanggalMulaiPinjaman)","v":"2021-10-18"},{"$f":"IFERROR(IF(PinjamanBelumDibayar*PinjamanAman,NilaiPinjaman,\"\"), \"\")","v":{"v":8273.080817025126,"d":"Rp8,273.08"}},{"$f":"IFERROR(IF(PinjamanBelumDibayar*PinjamanAman,AngsuranBulanan,0), 0)","v":{"v":108.52627796048073,"d":"Rp108.53"}},{"$f":"IFERROR(IF(PinjamanBelumDibayar*PinjamanAman,Pinjaman_Pokok,0), 0)","v":{"v":70.6079908824489,"d":"Rp70.61"}},{"$f":"IFERROR(IF(PinjamanBelumDibayar*PinjamanAman,JmlBunga,0), 0)","v":{"v":37.91828707803184,"d":"Rp37.92"}},{"$f":"IFERROR(IF(PinjamanBelumDibayar*PinjamanAman,SaldoAkhir,0), 0)","v":{"v":8202.472826142679,"d":"Rp8,202.47"}}]
[null,{"$f":"IFERROR(IF(PinjamanBelumDibayar*PinjamanAman,NomorPembayaran,\"\"), \"\")","v":28},{"$f":"IFERROR(IF(PinjamanBelumDibayar*PinjamanAman,TanggalPembayaran,TanggalMulaiPinjaman), TanggalMulaiPinjaman)","v":"2021-11-18"},{"$f":"IFERROR(IF(PinjamanBelumDibayar*PinjamanAman,NilaiPinjaman,\"\"), \"\")","v":{"v":8202.472826142679,"d":"Rp8,202.47"}},{"$f":"IFERROR(IF(PinjamanBelumDibayar*PinjamanAman,AngsuranBulanan,0), 0)","v":{"v":108.52627796048073,"d":"Rp108.53"}},{"$f":"IFERROR(IF(PinjamanBelumDibayar*PinjamanAman,Pinjaman_Pokok,0), 0)","v":{"v":70.93161084066011,"d":"Rp70.93"}},{"$f":"IFERROR(IF(PinjamanBelumDibayar*PinjamanAman,JmlBunga,0), 0)","v":{"v":37.59466711982061,"d":"Rp37.59"}},{"$f":"IFERROR(IF(PinjamanBelumDibayar*PinjamanAman,SaldoAkhir,0), 0)","v":{"v":8131.541215302017,"d":"Rp8,131.54"}}]
[null,{"$f":"IFERROR(IF(PinjamanBelumDibayar*PinjamanAman,NomorPembayaran,\"\"), \"\")","v":29},{"$f":"IFERROR(IF(PinjamanBelumDibayar*PinjamanAman,TanggalPembayaran,TanggalMulaiPinjaman), TanggalMulaiPinjaman)","v":"2021-12-18"},{"$f":"IFERROR(IF(PinjamanBelumDibayar*PinjamanAman,NilaiPinjaman,\"\"), \"\")","v":{"v":8131.541215302017,"d":"Rp8,131.54"}},{"$f":"IFERROR(IF(PinjamanBelumDibayar*PinjamanAman,AngsuranBulanan,0), 0)","v":{"v":108.52627796048073,"d":"Rp108.53"}},{"$f":"IFERROR(IF(PinjamanBelumDibayar*PinjamanAman,Pinjaman_Pokok,0), 0)","v":{"v":71.25671405701314,"d":"Rp71.26"}},{"$f":"IFERROR(IF(PinjamanBelumDibayar*PinjamanAman,JmlBunga,0), 0)","v":{"v":37.269563903467585,"d":"Rp37.27"}},{"$f":"IFERROR(IF(PinjamanBelumDibayar*PinjamanAman,SaldoAkhir,0), 0)","v":{"v":8060.284501245003,"d":"Rp8,060.28"}}]
[null,{"$f":"IFERROR(IF(PinjamanBelumDibayar*PinjamanAman,NomorPembayaran,\"\"), \"\")","v":30},{"$f":"IFERROR(IF(PinjamanBelumDibayar*PinjamanAman,TanggalPembayaran,TanggalMulaiPinjaman), TanggalMulaiPinjaman)","v":"2022-01-18"},{"$f":"IFERROR(IF(PinjamanBelumDibayar*PinjamanAman,NilaiPinjaman,\"\"), \"\")","v":{"v":8060.284501245003,"d":"Rp8,060.28"}},{"$f":"IFERROR(IF(PinjamanBelumDibayar*PinjamanAman,AngsuranBulanan,0), 0)","v":{"v":108.52627796048073,"d":"Rp108.53"}},{"$f":"IFERROR(IF(PinjamanBelumDibayar*PinjamanAman,Pinjaman_Pokok,0), 0)","v":{"v":71.58330732977446,"d":"Rp71.58"}},{"$f":"IFERROR(IF(PinjamanBelumDibayar*PinjamanAman,JmlBunga,0), 0)","v":{"v":36.94297063070627,"d":"Rp36.94"}},{"$f":"IFERROR(IF(PinjamanBelumDibayar*PinjamanAman,SaldoAkhir,0), 0)","v":{"v":7988.701193915229,"d":"Rp7,988.70"}}]
[null,{"$f":"IFERROR(IF(PinjamanBelumDibayar*PinjamanAman,NomorPembayaran,\"\"), \"\")","v":31},{"$f":"IFERROR(IF(PinjamanBelumDibayar*PinjamanAman,TanggalPembayaran,TanggalMulaiPinjaman), TanggalMulaiPinjaman)","v":"2022-02-18"},{"$f":"IFERROR(IF(PinjamanBelumDibayar*PinjamanAman,NilaiPinjaman,\"\"), \"\")","v":{"v":7988.701193915229,"d":"Rp7,988.70"}},{"$f":"IFERROR(IF(PinjamanBelumDibayar*PinjamanAman,AngsuranBulanan,0), 0)","v":{"v":108.52627796048073,"d":"Rp108.53"}},{"$f":"IFERROR(IF(PinjamanBelumDibayar*PinjamanAman,Pinjaman_Pokok,0), 0)","v":{"v":71.91139748836926,"d":"Rp71.91"}},{"$f":"IFERROR(IF(PinjamanBelumDibayar*PinjamanAman,JmlBunga,0), 0)","v":{"v":36.61488047211147,"d":"Rp36.61"}},{"$f":"IFERROR(IF(PinjamanBelumDibayar*PinjamanAman,SaldoAkhir,0), 0)","v":{"v":7916.7897964268595,"d":"Rp7,916.79"}}]
[null,{"$f":"IFERROR(IF(PinjamanBelumDibayar*PinjamanAman,NomorPembayaran,\"\"), \"\")","v":32},{"$f":"IFERROR(IF(PinjamanBelumDibayar*PinjamanAman,TanggalPembayaran,TanggalMulaiPinjaman), TanggalMulaiPinjaman)","v":"2022-03-18"},{"$f":"IFERROR(IF(PinjamanBelumDibayar*PinjamanAman,NilaiPinjaman,\"\"), \"\")","v":{"v":7916.7897964268595,"d":"Rp7,916.79"}},{"$f":"IFERROR(IF(PinjamanBelumDibayar*PinjamanAman,AngsuranBulanan,0), 0)","v":{"v":108.52627796048073,"d":"Rp108.53"}},{"$f":"IFERROR(IF(PinjamanBelumDibayar*PinjamanAman,Pinjaman_Pokok,0), 0)","v":{"v":72.24099139352428,"d":"Rp72.24"}},{"$f":"IFERROR(IF(PinjamanBelumDibayar*PinjamanAman,JmlBunga,0), 0)","v":{"v":36.285286566956444,"d":"Rp36.29"}},{"$f":"IFERROR(IF(PinjamanBelumDibayar*PinjamanAman,SaldoAkhir,0), 0)","v":{"v":7844.548805033334,"d":"Rp7,844.55"}}]
[null,{"$f":"IFERROR(IF(PinjamanBelumDibayar*PinjamanAman,NomorPembayaran,\"\"), \"\")","v":33},{"$f":"IFERROR(IF(PinjamanBelumDibayar*PinjamanAman,TanggalPembayaran,TanggalMulaiPinjaman), TanggalMulaiPinjaman)","v":"2022-04-18"},{"$f":"IFERROR(IF(PinjamanBelumDibayar*PinjamanAman,NilaiPinjaman,\"\"), \"\")","v":{"v":7844.548805033334,"d":"Rp7,844.55"}},{"$f":"IFERROR(IF(PinjamanBelumDibayar*PinjamanAman,AngsuranBulanan,0), 0)","v":{"v":108.52627796048073,"d":"Rp108.53"}},{"$f":"IFERROR(IF(PinjamanBelumDibayar*PinjamanAman,Pinjaman_Pokok,0), 0)","v":{"v":72.57209593741128,"d":"Rp72.57"}},{"$f":"IFERROR(IF(PinjamanBelumDibayar*PinjamanAman,JmlBunga,0), 0)","v":{"v":35.95418202306946,"d":"Rp35.95"}},{"$f":"IFERROR(IF(PinjamanBelumDibayar*PinjamanAman,SaldoAkhir,0), 0)","v":{"v":7771.97670909592,"d":"Rp7,771.98"}}]
[null,{"$f":"IFERROR(IF(PinjamanBelumDibayar*PinjamanAman,NomorPembayaran,\"\"), \"\")","v":34},{"$f":"IFERROR(IF(PinjamanBelumDibayar*PinjamanAman,TanggalPembayaran,TanggalMulaiPinjaman), TanggalMulaiPinjaman)","v":"2022-05-18"},{"$f":"IFERROR(IF(PinjamanBelumDibayar*PinjamanAman,NilaiPinjaman,\"\"), \"\")","v":{"v":7771.97670909592,"d":"Rp7,771.98"}},{"$f":"IFERROR(IF(PinjamanBelumDibayar*PinjamanAman,AngsuranBulanan,0), 0)","v":{"v":108.52627796048073,"d":"Rp108.53"}},{"$f":"IFERROR(IF(PinjamanBelumDibayar*PinjamanAman,Pinjaman_Pokok,0), 0)","v":{"v":72.90471804379106,"d":"Rp72.90"}},{"$f":"IFERROR(IF(PinjamanBelumDibayar*PinjamanAman,JmlBunga,0), 0)","v":{"v":35.621559916689655,"d":"Rp35.62"}},{"$f":"IFERROR(IF(PinjamanBelumDibayar*PinjamanAman,SaldoAkhir,0), 0)","v":{"v":7699.07199105213,"d":"Rp7,699.07"}}]
[null,{"$f":"IFERROR(IF(PinjamanBelumDibayar*PinjamanAman,NomorPembayaran,\"\"), \"\")","v":35},{"$f":"IFERROR(IF(PinjamanBelumDibayar*PinjamanAman,TanggalPembayaran,TanggalMulaiPinjaman), TanggalMulaiPinjaman)","v":"2022-06-18"},{"$f":"IFERROR(IF(PinjamanBelumDibayar*PinjamanAman,NilaiPinjaman,\"\"), \"\")","v":{"v":7699.07199105213,"d":"Rp7,699.07"}},{"$f":"IFERROR(IF(PinjamanBelumDibayar*PinjamanAman,AngsuranBulanan,0), 0)","v":{"v":108.52627796048073,"d":"Rp108.53"}},{"$f":"IFERROR(IF(PinjamanBelumDibayar*PinjamanAman,Pinjaman_Pokok,0), 0)","v":{"v":73.23886466815844,"d":"Rp73.24"}},{"$f":"IFERROR(IF(PinjamanBelumDibayar*PinjamanAman,JmlBunga,0), 0)","v":{"v":35.28741329232228,"d":"Rp35.29"}},{"$f":"IFERROR(IF(PinjamanBelumDibayar*PinjamanAman,SaldoAkhir,0), 0)","v":{"v":7625.833126383972,"d":"Rp7,625.83"}}]
[null,{"$f":"IFERROR(IF(PinjamanBelumDibayar*PinjamanAman,NomorPembayaran,\"\"), \"\")","v":36},{"$f":"IFERROR(IF(PinjamanBelumDibayar*PinjamanAman,TanggalPembayaran,TanggalMulaiPinjaman), TanggalMulaiPinjaman)","v":"2022-07-18"},{"$f":"IFERROR(IF(PinjamanBelumDibayar*PinjamanAman,NilaiPinjaman,\"\"), \"\")","v":{"v":7625.833126383972,"d":"Rp7,625.83"}},{"$f":"IFERROR(IF(PinjamanBelumDibayar*PinjamanAman,AngsuranBulanan,0), 0)","v":{"v":108.52627796048073,"d":"Rp108.53"}},{"$f":"IFERROR(IF(PinjamanBelumDibayar*PinjamanAman,Pinjaman_Pokok,0), 0)","v":{"v":73.5745427978875,"d":"Rp73.57"}},{"$f":"IFERROR(IF(PinjamanBelumDibayar*PinjamanAman,JmlBunga,0), 0)","v":{"v":34.95173516259322,"d":"Rp34.95"}},{"$f":"IFERROR(IF(PinjamanBelumDibayar*PinjamanAman,SaldoAkhir,0), 0)","v":{"v":7552.258583586085,"d":"Rp7,552.26"}}]
[null,{"$f":"IFERROR(IF(PinjamanBelumDibayar*PinjamanAman,NomorPembayaran,\"\"), \"\")","v":37},{"$f":"IFERROR(IF(PinjamanBelumDibayar*PinjamanAman,TanggalPembayaran,TanggalMulaiPinjaman), TanggalMulaiPinjaman)","v":"2022-08-18"},{"$f":"IFERROR(IF(PinjamanBelumDibayar*PinjamanAman,NilaiPinjaman,\"\"), \"\")","v":{"v":7552.258583586085,"d":"Rp7,552.26"}},{"$f":"IFERROR(IF(PinjamanBelumDibayar*PinjamanAman,AngsuranBulanan,0), 0)","v":{"v":108.52627796048073,"d":"Rp108.53"}},{"$f":"IFERROR(IF(PinjamanBelumDibayar*PinjamanAman,Pinjaman_Pokok,0), 0)","v":{"v":73.91175945237782,"d":"Rp73.91"}},{"$f":"IFERROR(IF(PinjamanBelumDibayar*PinjamanAman,JmlBunga,0), 0)","v":{"v":34.614518508102904,"d":"Rp34.61"}},{"$f":"IFERROR(IF(PinjamanBelumDibayar*PinjamanAman,SaldoAkhir,0), 0)","v":{"v":7478.346824133705,"d":"Rp7,478.35"}}]
[null,{"$f":"IFERROR(IF(PinjamanBelumDibayar*PinjamanAman,NomorPembayaran,\"\"), \"\")","v":38},{"$f":"IFERROR(IF(PinjamanBelumDibayar*PinjamanAman,TanggalPembayaran,TanggalMulaiPinjaman), TanggalMulaiPinjaman)","v":"2022-09-18"},{"$f":"IFERROR(IF(PinjamanBelumDibayar*PinjamanAman,NilaiPinjaman,\"\"), \"\")","v":{"v":7478.346824133705,"d":"Rp7,478.35"}},{"$f":"IFERROR(IF(PinjamanBelumDibayar*PinjamanAman,AngsuranBulanan,0), 0)","v":{"v":108.52627796048073,"d":"Rp108.53"}},{"$f":"IFERROR(IF(PinjamanBelumDibayar*PinjamanAman,Pinjaman_Pokok,0), 0)","v":{"v":74.25052168320121,"d":"Rp74.25"}},{"$f":"IFERROR(IF(PinjamanBelumDibayar*PinjamanAman,JmlBunga,0), 0)","v":{"v":34.275756277279505,"d":"Rp34.28"}},{"$f":"IFERROR(IF(PinjamanBelumDibayar*PinjamanAman,SaldoAkhir,0), 0)","v":{"v":7404.096302450503,"d":"Rp7,404.10"}}]
[null,{"$f":"IFERROR(IF(PinjamanBelumDibayar*PinjamanAman,NomorPembayaran,\"\"), \"\")","v":39},{"$f":"IFERROR(IF(PinjamanBelumDibayar*PinjamanAman,TanggalPembayaran,TanggalMulaiPinjaman), TanggalMulaiPinjaman)","v":"2022-10-18"},{"$f":"IFERROR(IF(PinjamanBelumDibayar*PinjamanAman,NilaiPinjaman,\"\"), \"\")","v":{"v":7404.096302450503,"d":"Rp7,404.10"}},{"$f":"IFERROR(IF(PinjamanBelumDibayar*PinjamanAman,AngsuranBulanan,0), 0)","v":{"v":108.52627796048073,"d":"Rp108.53"}},{"$f":"IFERROR(IF(PinjamanBelumDibayar*PinjamanAman,Pinjaman_Pokok,0), 0)","v":{"v":74.59083657424922,"d":"Rp74.59"}},{"$f":"IFERROR(IF(PinjamanBelumDibayar*PinjamanAman,JmlBunga,0), 0)","v":{"v":33.9354413862315,"d":"Rp33.94"}},{"$f":"IFERROR(IF(PinjamanBelumDibayar*PinjamanAman,SaldoAkhir,0), 0)","v":{"v":7329.505465876257,"d":"Rp7,329.51"}}]
[null,{"$f":"IFERROR(IF(PinjamanBelumDibayar*PinjamanAman,NomorPembayaran,\"\"), \"\")","v":40},{"$f":"IFERROR(IF(PinjamanBelumDibayar*PinjamanAman,TanggalPembayaran,TanggalMulaiPinjaman), TanggalMulaiPinjaman)","v":"2022-11-18"},{"$f":"IFERROR(IF(PinjamanBelumDibayar*PinjamanAman,NilaiPinjaman,\"\"), \"\")","v":{"v":7329.505465876257,"d":"Rp7,329.51"}},{"$f":"IFERROR(IF(PinjamanBelumDibayar*PinjamanAman,AngsuranBulanan,0), 0)","v":{"v":108.52627796048073,"d":"Rp108.53"}},{"$f":"IFERROR(IF(PinjamanBelumDibayar*PinjamanAman,Pinjaman_Pokok,0), 0)","v":{"v":74.9327112418812,"d":"Rp74.93"}},{"$f":"IFERROR(IF(PinjamanBelumDibayar*PinjamanAman,JmlBunga,0), 0)","v":{"v":33.593566718599526,"d":"Rp33.59"}},{"$f":"IFERROR(IF(PinjamanBelumDibayar*PinjamanAman,SaldoAkhir,0), 0)","v":{"v":7254.572754634376,"d":"Rp7,254.57"}}]
[null,{"$f":"IFERROR(IF(PinjamanBelumDibayar*PinjamanAman,NomorPembayaran,\"\"), \"\")","v":41},{"$f":"IFERROR(IF(PinjamanBelumDibayar*PinjamanAman,TanggalPembayaran,TanggalMulaiPinjaman), TanggalMulaiPinjaman)","v":"2022-12-18"},{"$f":"IFERROR(IF(PinjamanBelumDibayar*PinjamanAman,NilaiPinjaman,\"\"), \"\")","v":{"v":7254.572754634376,"d":"Rp7,254.57"}},{"$f":"IFERROR(IF(PinjamanBelumDibayar*PinjamanAman,AngsuranBulanan,0), 0)","v":{"v":108.52627796048073,"d":"Rp108.53"}},{"$f":"IFERROR(IF(PinjamanBelumDibayar*PinjamanAman,Pinjaman_Pokok,0), 0)","v":{"v":75.27615283507315,"d":"Rp75.28"}},{"$f":"IFERROR(IF(PinjamanBelumDibayar*PinjamanAman,JmlBunga,0), 0)","v":{"v":33.25012512540757,"d":"Rp33.25"}},{"$f":"IFERROR(IF(PinjamanBelumDibayar*PinjamanAman,SaldoAkhir,0), 0)","v":{"v":7179.296601799301,"d":"Rp7,179.30"}}]
[null,{"$f":"IFERROR(IF(PinjamanBelumDibayar*PinjamanAman,NomorPembayaran,\"\"), \"\")","v":42},{"$f":"IFERROR(IF(PinjamanBelumDibayar*PinjamanAman,TanggalPembayaran,TanggalMulaiPinjaman), TanggalMulaiPinjaman)","v":"2023-01-18"},{"$f":"IFERROR(IF(PinjamanBelumDibayar*PinjamanAman,NilaiPinjaman,\"\"), \"\")","v":{"v":7179.296601799301,"d":"Rp7,179.30"}},{"$f":"IFERROR(IF(PinjamanBelumDibayar*PinjamanAman,AngsuranBulanan,0), 0)","v":{"v":108.52627796048073,"d":"Rp108.53"}},{"$f":"IFERROR(IF(PinjamanBelumDibayar*PinjamanAman,Pinjaman_Pokok,0), 0)","v":{"v":75.62116853556724,"d":"Rp75.62"}},{"$f":"IFERROR(IF(PinjamanBelumDibayar*PinjamanAman,JmlBunga,0), 0)","v":{"v":32.90510942491348,"d":"Rp32.91"}},{"$f":"IFERROR(IF(PinjamanBelumDibayar*PinjamanAman,SaldoAkhir,0), 0)","v":{"v":7103.675433263734,"d":"Rp7,103.68"}}]
[null,{"$f":"IFERROR(IF(PinjamanBelumDibayar*PinjamanAman,NomorPembayaran,\"\"), \"\")","v":43},{"$f":"IFERROR(IF(PinjamanBelumDibayar*PinjamanAman,TanggalPembayaran,TanggalMulaiPinjaman), TanggalMulaiPinjaman)","v":"2023-02-18"},{"$f":"IFERROR(IF(PinjamanBelumDibayar*PinjamanAman,NilaiPinjaman,\"\"), \"\")","v":{"v":7103.675433263734,"d":"Rp7,103.68"}},{"$f":"IFERROR(IF(PinjamanBelumDibayar*PinjamanAman,AngsuranBulanan,0), 0)","v":{"v":108.52627796048073,"d":"Rp108.53"}},{"$f":"IFERROR(IF(PinjamanBelumDibayar*PinjamanAman,Pinjaman_Pokok,0), 0)","v":{"v":75.96776555802192,"d":"Rp75.97"}},{"$f":"IFERROR(IF(PinjamanBelumDibayar*PinjamanAman,JmlBunga,0), 0)","v":{"v":32.558512402458796,"d":"Rp32.56"}},{"$f":"IFERROR(IF(PinjamanBelumDibayar*PinjamanAman,SaldoAkhir,0), 0)","v":{"v":7027.707667705709,"d":"Rp7,027.71"}}]
[null,{"$f":"IFERROR(IF(PinjamanBelumDibayar*PinjamanAman,NomorPembayaran,\"\"), \"\")","v":44},{"$f":"IFERROR(IF(PinjamanBelumDibayar*PinjamanAman,TanggalPembayaran,TanggalMulaiPinjaman), TanggalMulaiPinjaman)","v":"2023-03-18"},{"$f":"IFERROR(IF(PinjamanBelumDibayar*PinjamanAman,NilaiPinjaman,\"\"), \"\")","v":{"v":7027.707667705709,"d":"Rp7,027.71"}},{"$f":"IFERROR(IF(PinjamanBelumDibayar*PinjamanAman,AngsuranBulanan,0), 0)","v":{"v":108.52627796048073,"d":"Rp108.53"}},{"$f":"IFERROR(IF(PinjamanBelumDibayar*PinjamanAman,Pinjaman_Pokok,0), 0)","v":{"v":76.31595115016286,"d":"Rp76.32"}},{"$f":"IFERROR(IF(PinjamanBelumDibayar*PinjamanAman,JmlBunga,0), 0)","v":{"v":32.210326810317866,"d":"Rp32.21"}},{"$f":"IFERROR(IF(PinjamanBelumDibayar*PinjamanAman,SaldoAkhir,0), 0)","v":{"v":6951.391716555551,"d":"Rp6,951.39"}}]
[null,{"$f":"IFERROR(IF(PinjamanBelumDibayar*PinjamanAman,NomorPembayaran,\"\"), \"\")","v":45},{"$f":"IFERROR(IF(PinjamanBelumDibayar*PinjamanAman,TanggalPembayaran,TanggalMulaiPinjaman), TanggalMulaiPinjaman)","v":"2023-04-18"},{"$f":"IFERROR(IF(PinjamanBelumDibayar*PinjamanAman,NilaiPinjaman,\"\"), \"\")","v":{"v":6951.391716555551,"d":"Rp6,951.39"}},{"$f":"IFERROR(IF(PinjamanBelumDibayar*PinjamanAman,AngsuranBulanan,0), 0)","v":{"v":108.52627796048073,"d":"Rp108.53"}},{"$f":"IFERROR(IF(PinjamanBelumDibayar*PinjamanAman,Pinjaman_Pokok,0), 0)","v":{"v":76.66573259293443,"d":"Rp76.67"}},{"$f":"IFERROR(IF(PinjamanBelumDibayar*PinjamanAman,JmlBunga,0), 0)","v":{"v":31.860545367546287,"d":"Rp31.86"}},{"$f":"IFERROR(IF(PinjamanBelumDibayar*PinjamanAman,SaldoAkhir,0), 0)","v":{"v":6874.725983962615,"d":"Rp6,874.73"}}]
[null,{"$f":"IFERROR(IF(PinjamanBelumDibayar*PinjamanAman,NomorPembayaran,\"\"), \"\")","v":46},{"$f":"IFERROR(IF(PinjamanBelumDibayar*PinjamanAman,TanggalPembayaran,TanggalMulaiPinjaman), TanggalMulaiPinjaman)","v":"2023-05-18"},{"$f":"IFERROR(IF(PinjamanBelumDibayar*PinjamanAman,NilaiPinjaman,\"\"), \"\")","v":{"v":6874.725983962615,"d":"Rp6,874.73"}},{"$f":"IFERROR(IF(PinjamanBelumDibayar*PinjamanAman,AngsuranBulanan,0), 0)","v":{"v":108.52627796048073,"d":"Rp108.53"}},{"$f":"IFERROR(IF(PinjamanBelumDibayar*PinjamanAman,Pinjaman_Pokok,0), 0)","v":{"v":77.01711720065207,"d":"Rp77.02"}},{"$f":"IFERROR(IF(PinjamanBelumDibayar*PinjamanAman,JmlBunga,0), 0)","v":{"v":31.509160759828674,"d":"Rp31.51"}},{"$f":"IFERROR(IF(PinjamanBelumDibayar*PinjamanAman,SaldoAkhir,0), 0)","v":{"v":6797.70886676196,"d":"Rp6,797.71"}}]
[null,{"$f":"IFERROR(IF(PinjamanBelumDibayar*PinjamanAman,NomorPembayaran,\"\"), \"\")","v":47},{"$f":"IFERROR(IF(PinjamanBelumDibayar*PinjamanAman,TanggalPembayaran,TanggalMulaiPinjaman), TanggalMulaiPinjaman)","v":"2023-06-18"},{"$f":"IFERROR(IF(PinjamanBelumDibayar*PinjamanAman,NilaiPinjaman,\"\"), \"\")","v":{"v":6797.70886676196,"d":"Rp6,797.71"}},{"$f":"IFERROR(IF(PinjamanBelumDibayar*PinjamanAman,AngsuranBulanan,0), 0)","v":{"v":108.52627796048073,"d":"Rp108.53"}},{"$f":"IFERROR(IF(PinjamanBelumDibayar*PinjamanAman,Pinjaman_Pokok,0), 0)","v":{"v":77.37011232115503,"d":"Rp77.37"}},{"$f":"IFERROR(IF(PinjamanBelumDibayar*PinjamanAman,JmlBunga,0), 0)","v":{"v":31.15616563932568,"d":"Rp31.16"}},{"$f":"IFERROR(IF(PinjamanBelumDibayar*PinjamanAman,SaldoAkhir,0), 0)","v":{"v":6720.338754440809,"d":"Rp6,720.34"}}]
[null,{"$f":"IFERROR(IF(PinjamanBelumDibayar*PinjamanAman,NomorPembayaran,\"\"), \"\")","v":48},{"$f":"IFERROR(IF(PinjamanBelumDibayar*PinjamanAman,TanggalPembayaran,TanggalMulaiPinjaman), TanggalMulaiPinjaman)","v":"2023-07-18"},{"$f":"IFERROR(IF(PinjamanBelumDibayar*PinjamanAman,NilaiPinjaman,\"\"), \"\")","v":{"v":6720.338754440809,"d":"Rp6,720.34"}},{"$f":"IFERROR(IF(PinjamanBelumDibayar*PinjamanAman,AngsuranBulanan,0), 0)","v":{"v":108.52627796048073,"d":"Rp108.53"}},{"$f":"IFERROR(IF(PinjamanBelumDibayar*PinjamanAman,Pinjaman_Pokok,0), 0)","v":{"v":77.72472533596034,"d":"Rp77.72"}},{"$f":"IFERROR(IF(PinjamanBelumDibayar*PinjamanAman,JmlBunga,0), 0)","v":{"v":30.80155262452039,"d":"Rp30.80"}},{"$f":"IFERROR(IF(PinjamanBelumDibayar*PinjamanAman,SaldoAkhir,0), 0)","v":{"v":6642.614029104847,"d":"Rp6,642.61"}}]
[null,{"$f":"IFERROR(IF(PinjamanBelumDibayar*PinjamanAman,NomorPembayaran,\"\"), \"\")","v":49},{"$f":"IFERROR(IF(PinjamanBelumDibayar*PinjamanAman,TanggalPembayaran,TanggalMulaiPinjaman), TanggalMulaiPinjaman)","v":"2023-08-18"},{"$f":"IFERROR(IF(PinjamanBelumDibayar*PinjamanAman,NilaiPinjaman,\"\"), \"\")","v":{"v":6642.614029104847,"d":"Rp6,642.61"}},{"$f":"IFERROR(IF(PinjamanBelumDibayar*PinjamanAman,AngsuranBulanan,0), 0)","v":{"v":108.52627796048073,"d":"Rp108.53"}},{"$f":"IFERROR(IF(PinjamanBelumDibayar*PinjamanAman,Pinjaman_Pokok,0), 0)","v":{"v":78.08096366041683,"d":"Rp78.08"}},{"$f":"IFERROR(IF(PinjamanBelumDibayar*PinjamanAman,JmlBunga,0), 0)","v":{"v":30.445314300063902,"d":"Rp30.45"}},{"$f":"IFERROR(IF(PinjamanBelumDibayar*PinjamanAman,SaldoAkhir,0), 0)","v":{"v":6564.53306544443,"d":"Rp6,564.53"}}]
[null,{"$f":"IFERROR(IF(PinjamanBelumDibayar*PinjamanAman,NomorPembayaran,\"\"), \"\")","v":50},{"$f":"IFERROR(IF(PinjamanBelumDibayar*PinjamanAman,TanggalPembayaran,TanggalMulaiPinjaman), TanggalMulaiPinjaman)","v":"2023-09-18"},{"$f":"IFERROR(IF(PinjamanBelumDibayar*PinjamanAman,NilaiPinjaman,\"\"), \"\")","v":{"v":6564.53306544443,"d":"Rp6,564.53"}},{"$f":"IFERROR(IF(PinjamanBelumDibayar*PinjamanAman,AngsuranBulanan,0), 0)","v":{"v":108.52627796048073,"d":"Rp108.53"}},{"$f":"IFERROR(IF(PinjamanBelumDibayar*PinjamanAman,Pinjaman_Pokok,0), 0)","v":{"v":78.43883474386041,"d":"Rp78.44"}},{"$f":"IFERROR(IF(PinjamanBelumDibayar*PinjamanAman,JmlBunga,0), 0)","v":{"v":30.08744321662033,"d":"Rp30.09"}},{"$f":"IFERROR(IF(PinjamanBelumDibayar*PinjamanAman,SaldoAkhir,0), 0)","v":{"v":6486.094230700569,"d":"Rp6,486.09"}}]
[null,{"$f":"IFERROR(IF(PinjamanBelumDibayar*PinjamanAman,NomorPembayaran,\"\"), \"\")","v":51},{"$f":"IFERROR(IF(PinjamanBelumDibayar*PinjamanAman,TanggalPembayaran,TanggalMulaiPinjaman), TanggalMulaiPinjaman)","v":"2023-10-18"},{"$f":"IFERROR(IF(PinjamanBelumDibayar*PinjamanAman,NilaiPinjaman,\"\"), \"\")","v":{"v":6486.094230700569,"d":"Rp6,486.09"}},{"$f":"IFERROR(IF(PinjamanBelumDibayar*PinjamanAman,AngsuranBulanan,0), 0)","v":{"v":108.52627796048073,"d":"Rp108.53"}},{"$f":"IFERROR(IF(PinjamanBelumDibayar*PinjamanAman,Pinjaman_Pokok,0), 0)","v":{"v":78.79834606976975,"d":"Rp78.80"}},{"$f":"IFERROR(IF(PinjamanBelumDibayar*PinjamanAman,JmlBunga,0), 0)","v":{"v":29.727931890710963,"d":"Rp29.73"}},{"$f":"IFERROR(IF(PinjamanBelumDibayar*PinjamanAman,SaldoAkhir,0), 0)","v":{"v":6407.295884630799,"d":"Rp6,407.30"}}]
[null,{"$f":"IFERROR(IF(PinjamanBelumDibayar*PinjamanAman,NomorPembayaran,\"\"), \"\")","v":52},{"$f":"IFERROR(IF(PinjamanBelumDibayar*PinjamanAman,TanggalPembayaran,TanggalMulaiPinjaman), TanggalMulaiPinjaman)","v":"2023-11-18"},{"$f":"IFERROR(IF(PinjamanBelumDibayar*PinjamanAman,NilaiPinjaman,\"\"), \"\")","v":{"v":6407.295884630799,"d":"Rp6,407.30"}},{"$f":"IFERROR(IF(PinjamanBelumDibayar*PinjamanAman,AngsuranBulanan,0), 0)","v":{"v":108.52627796048073,"d":"Rp108.53"}},{"$f":"IFERROR(IF(PinjamanBelumDibayar*PinjamanAman,Pinjaman_Pokok,0), 0)","v":{"v":79.15950515592287,"d":"Rp79.16"}},{"$f":"IFERROR(IF(PinjamanBelumDibayar*PinjamanAman,JmlBunga,0), 0)","v":{"v":29.36677280455785,"d":"Rp29.37"}},{"$f":"IFERROR(IF(PinjamanBelumDibayar*PinjamanAman,SaldoAkhir,0), 0)","v":{"v":6328.136379474876,"d":"Rp6,328.14"}}]
[null,{"$f":"IFERROR(IF(PinjamanBelumDibayar*PinjamanAman,NomorPembayaran,\"\"), \"\")","v":53},{"$f":"IFERROR(IF(PinjamanBelumDibayar*PinjamanAman,TanggalPembayaran,TanggalMulaiPinjaman), TanggalMulaiPinjaman)","v":"2023-12-18"},{"$f":"IFERROR(IF(PinjamanBelumDibayar*PinjamanAman,NilaiPinjaman,\"\"), \"\")","v":{"v":6328.136379474876,"d":"Rp6,328.14"}},{"$f":"IFERROR(IF(PinjamanBelumDibayar*PinjamanAman,AngsuranBulanan,0), 0)","v":{"v":108.52627796048073,"d":"Rp108.53"}},{"$f":"IFERROR(IF(PinjamanBelumDibayar*PinjamanAman,Pinjaman_Pokok,0), 0)","v":{"v":79.52231955455417,"d":"Rp79.52"}},{"$f":"IFERROR(IF(PinjamanBelumDibayar*PinjamanAman,JmlBunga,0), 0)","v":{"v":29.003958405926536,"d":"Rp29.00"}},{"$f":"IFERROR(IF(PinjamanBelumDibayar*PinjamanAman,SaldoAkhir,0), 0)","v":{"v":6248.614059920319,"d":"Rp6,248.61"}}]
[null,{"$f":"IFERROR(IF(PinjamanBelumDibayar*PinjamanAman,NomorPembayaran,\"\"), \"\")","v":54},{"$f":"IFERROR(IF(PinjamanBelumDibayar*PinjamanAman,TanggalPembayaran,TanggalMulaiPinjaman), TanggalMulaiPinjaman)","v":"2024-01-18"},{"$f":"IFERROR(IF(PinjamanBelumDibayar*PinjamanAman,NilaiPinjaman,\"\"), \"\")","v":{"v":6248.614059920319,"d":"Rp6,248.61"}},{"$f":"IFERROR(IF(PinjamanBelumDibayar*PinjamanAman,AngsuranBulanan,0), 0)","v":{"v":108.52627796048073,"d":"Rp108.53"}},{"$f":"IFERROR(IF(PinjamanBelumDibayar*PinjamanAman,Pinjaman_Pokok,0), 0)","v":{"v":79.88679685251256,"d":"Rp79.89"}},{"$f":"IFERROR(IF(PinjamanBelumDibayar*PinjamanAman,JmlBunga,0), 0)","v":{"v":28.639481107968166,"d":"Rp28.64"}},{"$f":"IFERROR(IF(PinjamanBelumDibayar*PinjamanAman,SaldoAkhir,0), 0)","v":{"v":6168.727263067806,"d":"Rp6,168.73"}}]
[null,{"$f":"IFERROR(IF(PinjamanBelumDibayar*PinjamanAman,NomorPembayaran,\"\"), \"\")","v":55},{"$f":"IFERROR(IF(PinjamanBelumDibayar*PinjamanAman,TanggalPembayaran,TanggalMulaiPinjaman), TanggalMulaiPinjaman)","v":"2024-02-18"},{"$f":"IFERROR(IF(PinjamanBelumDibayar*PinjamanAman,NilaiPinjaman,\"\"), \"\")","v":{"v":6168.727263067806,"d":"Rp6,168.73"}},{"$f":"IFERROR(IF(PinjamanBelumDibayar*PinjamanAman,AngsuranBulanan,0), 0)","v":{"v":108.52627796048073,"d":"Rp108.53"}},{"$f":"IFERROR(IF(PinjamanBelumDibayar*PinjamanAman,Pinjaman_Pokok,0), 0)","v":{"v":80.2529446714199,"d":"Rp80.25"}},{"$f":"IFERROR(IF(PinjamanBelumDibayar*PinjamanAman,JmlBunga,0), 0)","v":{"v":28.273333289060815,"d":"Rp28.27"}},{"$f":"IFERROR(IF(PinjamanBelumDibayar*PinjamanAman,SaldoAkhir,0), 0)","v":{"v":6088.474318396387,"d":"Rp6,088.47"}}]
[null,{"$f":"IFERROR(IF(PinjamanBelumDibayar*PinjamanAman,NomorPembayaran,\"\"), \"\")","v":56},{"$f":"IFERROR(IF(PinjamanBelumDibayar*PinjamanAman,TanggalPembayaran,TanggalMulaiPinjaman), TanggalMulaiPinjaman)","v":"2024-03-18"},{"$f":"IFERROR(IF(PinjamanBelumDibayar*PinjamanAman,NilaiPinjaman,\"\"), \"\")","v":{"v":6088.474318396387,"d":"Rp6,088.47"}},{"$f":"IFERROR(IF(PinjamanBelumDibayar*PinjamanAman,AngsuranBulanan,0), 0)","v":{"v":108.52627796048073,"d":"Rp108.53"}},{"$f":"IFERROR(IF(PinjamanBelumDibayar*PinjamanAman,Pinjaman_Pokok,0), 0)","v":{"v":80.62077066783058,"d":"Rp80.62"}},{"$f":"IFERROR(IF(PinjamanBelumDibayar*PinjamanAman,JmlBunga,0), 0)","v":{"v":27.905507292650142,"d":"Rp27.91"}},{"$f":"IFERROR(IF(PinjamanBelumDibayar*PinjamanAman,SaldoAkhir,0), 0)","v":{"v":6007.853547728558,"d":"Rp6,007.85"}}]
[null,{"$f":"IFERROR(IF(PinjamanBelumDibayar*PinjamanAman,NomorPembayaran,\"\"), \"\")","v":57},{"$f":"IFERROR(IF(PinjamanBelumDibayar*PinjamanAman,TanggalPembayaran,TanggalMulaiPinjaman), TanggalMulaiPinjaman)","v":"2024-04-18"},{"$f":"IFERROR(IF(PinjamanBelumDibayar*PinjamanAman,NilaiPinjaman,\"\"), \"\")","v":{"v":6007.853547728558,"d":"Rp6,007.85"}},{"$f":"IFERROR(IF(PinjamanBelumDibayar*PinjamanAman,AngsuranBulanan,0), 0)","v":{"v":108.52627796048073,"d":"Rp108.53"}},{"$f":"IFERROR(IF(PinjamanBelumDibayar*PinjamanAman,Pinjaman_Pokok,0), 0)","v":{"v":80.99028253339146,"d":"Rp80.99"}},{"$f":"IFERROR(IF(PinjamanBelumDibayar*PinjamanAman,JmlBunga,0), 0)","v":{"v":27.53599542708925,"d":"Rp27.54"}},{"$f":"IFERROR(IF(PinjamanBelumDibayar*PinjamanAman,SaldoAkhir,0), 0)","v":{"v":5926.863265195167,"d":"Rp5,926.86"}}]
[null,{"$f":"IFERROR(IF(PinjamanBelumDibayar*PinjamanAman,NomorPembayaran,\"\"), \"\")","v":58},{"$f":"IFERROR(IF(PinjamanBelumDibayar*PinjamanAman,TanggalPembayaran,TanggalMulaiPinjaman), TanggalMulaiPinjaman)","v":"2024-05-18"},{"$f":"IFERROR(IF(PinjamanBelumDibayar*PinjamanAman,NilaiPinjaman,\"\"), \"\")","v":{"v":5926.863265195167,"d":"Rp5,926.86"}},{"$f":"IFERROR(IF(PinjamanBelumDibayar*PinjamanAman,AngsuranBulanan,0), 0)","v":{"v":108.52627796048073,"d":"Rp108.53"}},{"$f":"IFERROR(IF(PinjamanBelumDibayar*PinjamanAman,Pinjaman_Pokok,0), 0)","v":{"v":81.36148799500285,"d":"Rp81.36"}},{"$f":"IFERROR(IF(PinjamanBelumDibayar*PinjamanAman,JmlBunga,0), 0)","v":{"v":27.164789965477876,"d":"Rp27.16"}},{"$f":"IFERROR(IF(PinjamanBelumDibayar*PinjamanAman,SaldoAkhir,0), 0)","v":{"v":5845.501777200164,"d":"Rp5,845.50"}}]
[null,{"$f":"IFERROR(IF(PinjamanBelumDibayar*PinjamanAman,NomorPembayaran,\"\"), \"\")","v":59},{"$f":"IFERROR(IF(PinjamanBelumDibayar*PinjamanAman,TanggalPembayaran,TanggalMulaiPinjaman), TanggalMulaiPinjaman)","v":"2024-06-18"},{"$f":"IFERROR(IF(PinjamanBelumDibayar*PinjamanAman,NilaiPinjaman,\"\"), \"\")","v":{"v":5845.501777200164,"d":"Rp5,845.50"}},{"$f":"IFERROR(IF(PinjamanBelumDibayar*PinjamanAman,AngsuranBulanan,0), 0)","v":{"v":108.52627796048073,"d":"Rp108.53"}},{"$f":"IFERROR(IF(PinjamanBelumDibayar*PinjamanAman,Pinjaman_Pokok,0), 0)","v":{"v":81.73439481497995,"d":"Rp81.73"}},{"$f":"IFERROR(IF(PinjamanBelumDibayar*PinjamanAman,JmlBunga,0), 0)","v":{"v":26.79188314550078,"d":"Rp26.79"}},{"$f":"IFERROR(IF(PinjamanBelumDibayar*PinjamanAman,SaldoAkhir,0), 0)","v":{"v":5763.767382385183,"d":"Rp5,763.77"}}]
[null,{"$f":"IFERROR(IF(PinjamanBelumDibayar*PinjamanAman,NomorPembayaran,\"\"), \"\")","v":60},{"$f":"IFERROR(IF(PinjamanBelumDibayar*PinjamanAman,TanggalPembayaran,TanggalMulaiPinjaman), TanggalMulaiPinjaman)","v":"2024-07-18"},{"$f":"IFERROR(IF(PinjamanBelumDibayar*PinjamanAman,NilaiPinjaman,\"\"), \"\")","v":{"v":5763.767382385183,"d":"Rp5,763.77"}},{"$f":"IFERROR(IF(PinjamanBelumDibayar*PinjamanAman,AngsuranBulanan,0), 0)","v":{"v":108.52627796048073,"d":"Rp108.53"}},{"$f":"IFERROR(IF(PinjamanBelumDibayar*PinjamanAman,Pinjaman_Pokok,0), 0)","v":{"v":82.10901079121527,"d":"Rp82.11"}},{"$f":"IFERROR(IF(PinjamanBelumDibayar*PinjamanAman,JmlBunga,0), 0)","v":{"v":26.417267169265454,"d":"Rp26.42"}},{"$f":"IFERROR(IF(PinjamanBelumDibayar*PinjamanAman,SaldoAkhir,0), 0)","v":{"v":5681.658371593968,"d":"Rp5,681.66"}}]
[null,{"$f":"IFERROR(IF(PinjamanBelumDibayar*PinjamanAman,NomorPembayaran,\"\"), \"\")","v":61},{"$f":"IFERROR(IF(PinjamanBelumDibayar*PinjamanAman,TanggalPembayaran,TanggalMulaiPinjaman), TanggalMulaiPinjaman)","v":"2024-08-18"},{"$f":"IFERROR(IF(PinjamanBelumDibayar*PinjamanAman,NilaiPinjaman,\"\"), \"\")","v":{"v":5681.658371593968,"d":"Rp5,681.66"}},{"$f":"IFERROR(IF(PinjamanBelumDibayar*PinjamanAman,AngsuranBulanan,0), 0)","v":{"v":108.52627796048073,"d":"Rp108.53"}},{"$f":"IFERROR(IF(PinjamanBelumDibayar*PinjamanAman,Pinjaman_Pokok,0), 0)","v":{"v":82.48534375734167,"d":"Rp82.49"}},{"$f":"IFERROR(IF(PinjamanBelumDibayar*PinjamanAman,JmlBunga,0), 0)","v":{"v":26.040934203139052,"d":"Rp26.04"}},{"$f":"IFERROR(IF(PinjamanBelumDibayar*PinjamanAman,SaldoAkhir,0), 0)","v":{"v":5599.173027836623,"d":"Rp5,599.17"}}]
[null,{"$f":"IFERROR(IF(PinjamanBelumDibayar*PinjamanAman,NomorPembayaran,\"\"), \"\")","v":62},{"$f":"IFERROR(IF(PinjamanBelumDibayar*PinjamanAman,TanggalPembayaran,TanggalMulaiPinjaman), TanggalMulaiPinjaman)","v":"2024-09-18"},{"$f":"IFERROR(IF(PinjamanBelumDibayar*PinjamanAman,NilaiPinjaman,\"\"), \"\")","v":{"v":5599.173027836623,"d":"Rp5,599.17"}},{"$f":"IFERROR(IF(PinjamanBelumDibayar*PinjamanAman,AngsuranBulanan,0), 0)","v":{"v":108.52627796048073,"d":"Rp108.53"}},{"$f":"IFERROR(IF(PinjamanBelumDibayar*PinjamanAman,Pinjaman_Pokok,0), 0)","v":{"v":82.86340158289616,"d":"Rp82.86"}},{"$f":"IFERROR(IF(PinjamanBelumDibayar*PinjamanAman,JmlBunga,0), 0)","v":{"v":25.662876377584567,"d":"Rp25.66"}},{"$f":"IFERROR(IF(PinjamanBelumDibayar*PinjamanAman,SaldoAkhir,0), 0)","v":{"v":5516.309626253729,"d":"Rp5,516.31"}}]
[null,{"$f":"IFERROR(IF(PinjamanBelumDibayar*PinjamanAman,NomorPembayaran,\"\"), \"\")","v":63},{"$f":"IFERROR(IF(PinjamanBelumDibayar*PinjamanAman,TanggalPembayaran,TanggalMulaiPinjaman), TanggalMulaiPinjaman)","v":"2024-10-18"},{"$f":"IFERROR(IF(PinjamanBelumDibayar*PinjamanAman,NilaiPinjaman,\"\"), \"\")","v":{"v":5516.309626253729,"d":"Rp5,516.31"}},{"$f":"IFERROR(IF(PinjamanBelumDibayar*PinjamanAman,AngsuranBulanan,0), 0)","v":{"v":108.52627796048073,"d":"Rp108.53"}},{"$f":"IFERROR(IF(PinjamanBelumDibayar*PinjamanAman,Pinjaman_Pokok,0), 0)","v":{"v":83.24319217348443,"d":"Rp83.24"}},{"$f":"IFERROR(IF(PinjamanBelumDibayar*PinjamanAman,JmlBunga,0), 0)","v":{"v":25.28308578699629,"d":"Rp25.28"}},{"$f":"IFERROR(IF(PinjamanBelumDibayar*PinjamanAman,SaldoAkhir,0), 0)","v":{"v":5433.066434080246,"d":"Rp5,433.07"}}]
[null,{"$f":"IFERROR(IF(PinjamanBelumDibayar*PinjamanAman,NomorPembayaran,\"\"), \"\")","v":64},{"$f":"IFERROR(IF(PinjamanBelumDibayar*PinjamanAman,TanggalPembayaran,TanggalMulaiPinjaman), TanggalMulaiPinjaman)","v":"2024-11-18"},{"$f":"IFERROR(IF(PinjamanBelumDibayar*PinjamanAman,NilaiPinjaman,\"\"), \"\")","v":{"v":5433.066434080246,"d":"Rp5,433.07"}},{"$f":"IFERROR(IF(PinjamanBelumDibayar*PinjamanAman,AngsuranBulanan,0), 0)","v":{"v":108.52627796048073,"d":"Rp108.53"}},{"$f":"IFERROR(IF(PinjamanBelumDibayar*PinjamanAman,Pinjaman_Pokok,0), 0)","v":{"v":83.62472347094625,"d":"Rp83.62"}},{"$f":"IFERROR(IF(PinjamanBelumDibayar*PinjamanAman,JmlBunga,0), 0)","v":{"v":24.90155448953449,"d":"Rp24.90"}},{"$f":"IFERROR(IF(PinjamanBelumDibayar*PinjamanAman,SaldoAkhir,0), 0)","v":{"v":5349.441710609297,"d":"Rp5,349.44"}}]
[null,{"$f":"IFERROR(IF(PinjamanBelumDibayar*PinjamanAman,NomorPembayaran,\"\"), \"\")","v":65},{"$f":"IFERROR(IF(PinjamanBelumDibayar*PinjamanAman,TanggalPembayaran,TanggalMulaiPinjaman), TanggalMulaiPinjaman)","v":"2024-12-18"},{"$f":"IFERROR(IF(PinjamanBelumDibayar*PinjamanAman,NilaiPinjaman,\"\"), \"\")","v":{"v":5349.441710609297,"d":"Rp5,349.44"}},{"$f":"IFERROR(IF(PinjamanBelumDibayar*PinjamanAman,AngsuranBulanan,0), 0)","v":{"v":108.52627796048073,"d":"Rp108.53"}},{"$f":"IFERROR(IF(PinjamanBelumDibayar*PinjamanAman,Pinjaman_Pokok,0), 0)","v":{"v":84.00800345352141,"d":"Rp84.01"}},{"$f":"IFERROR(IF(PinjamanBelumDibayar*PinjamanAman,JmlBunga,0), 0)","v":{"v":24.51827450695932,"d":"Rp24.52"}},{"$f":"IFERROR(IF(PinjamanBelumDibayar*PinjamanAman,SaldoAkhir,0), 0)","v":{"v":5265.433707155773,"d":"Rp5,265.43"}}]
[null,{"$f":"IFERROR(IF(PinjamanBelumDibayar*PinjamanAman,NomorPembayaran,\"\"), \"\")","v":66},{"$f":"IFERROR(IF(PinjamanBelumDibayar*PinjamanAman,TanggalPembayaran,TanggalMulaiPinjaman), TanggalMulaiPinjaman)","v":"2025-01-18"},{"$f":"IFERROR(IF(PinjamanBelumDibayar*PinjamanAman,NilaiPinjaman,\"\"), \"\")","v":{"v":5265.433707155773,"d":"Rp5,265.43"}},{"$f":"IFERROR(IF(PinjamanBelumDibayar*PinjamanAman,AngsuranBulanan,0), 0)","v":{"v":108.52627796048073,"d":"Rp108.53"}},{"$f":"IFERROR(IF(PinjamanBelumDibayar*PinjamanAman,Pinjaman_Pokok,0), 0)","v":{"v":84.39304013601671,"d":"Rp84.39"}},{"$f":"IFERROR(IF(PinjamanBelumDibayar*PinjamanAman,JmlBunga,0), 0)","v":{"v":24.13323782446401,"d":"Rp24.13"}},{"$f":"IFERROR(IF(PinjamanBelumDibayar*PinjamanAman,SaldoAkhir,0), 0)","v":{"v":5181.040667019757,"d":"Rp5,181.04"}}]
[null,{"$f":"IFERROR(IF(PinjamanBelumDibayar*PinjamanAman,NomorPembayaran,\"\"), \"\")","v":67},{"$f":"IFERROR(IF(PinjamanBelumDibayar*PinjamanAman,TanggalPembayaran,TanggalMulaiPinjaman), TanggalMulaiPinjaman)","v":"2025-02-18"},{"$f":"IFERROR(IF(PinjamanBelumDibayar*PinjamanAman,NilaiPinjaman,\"\"), \"\")","v":{"v":5181.040667019757,"d":"Rp5,181.04"}},{"$f":"IFERROR(IF(PinjamanBelumDibayar*PinjamanAman,AngsuranBulanan,0), 0)","v":{"v":108.52627796048073,"d":"Rp108.53"}},{"$f":"IFERROR(IF(PinjamanBelumDibayar*PinjamanAman,Pinjaman_Pokok,0), 0)","v":{"v":84.77984156997344,"d":"Rp84.78"}},{"$f":"IFERROR(IF(PinjamanBelumDibayar*PinjamanAman,JmlBunga,0), 0)","v":{"v":23.74643639050727,"d":"Rp23.75"}},{"$f":"IFERROR(IF(PinjamanBelumDibayar*PinjamanAman,SaldoAkhir,0), 0)","v":{"v":5096.2608254497845,"d":"Rp5,096.26"}}]
[null,{"$f":"IFERROR(IF(PinjamanBelumDibayar*PinjamanAman,NomorPembayaran,\"\"), \"\")","v":68},{"$f":"IFERROR(IF(PinjamanBelumDibayar*PinjamanAman,TanggalPembayaran,TanggalMulaiPinjaman), TanggalMulaiPinjaman)","v":"2025-03-18"},{"$f":"IFERROR(IF(PinjamanBelumDibayar*PinjamanAman,NilaiPinjaman,\"\"), \"\")","v":{"v":5096.2608254497845,"d":"Rp5,096.26"}},{"$f":"IFERROR(IF(PinjamanBelumDibayar*PinjamanAman,AngsuranBulanan,0), 0)","v":{"v":108.52627796048073,"d":"Rp108.53"}},{"$f":"IFERROR(IF(PinjamanBelumDibayar*PinjamanAman,Pinjaman_Pokok,0), 0)","v":{"v":85.16841584383582,"d":"Rp85.17"}},{"$f":"IFERROR(IF(PinjamanBelumDibayar*PinjamanAman,JmlBunga,0), 0)","v":{"v":23.357862116644892,"d":"Rp23.36"}},{"$f":"IFERROR(IF(PinjamanBelumDibayar*PinjamanAman,SaldoAkhir,0), 0)","v":{"v":5011.092409605948,"d":"Rp5,011.09"}}]
[null,{"$f":"IFERROR(IF(PinjamanBelumDibayar*PinjamanAman,NomorPembayaran,\"\"), \"\")","v":69},{"$f":"IFERROR(IF(PinjamanBelumDibayar*PinjamanAman,TanggalPembayaran,TanggalMulaiPinjaman), TanggalMulaiPinjaman)","v":"2025-04-18"},{"$f":"IFERROR(IF(PinjamanBelumDibayar*PinjamanAman,NilaiPinjaman,\"\"), \"\")","v":{"v":5011.092409605948,"d":"Rp5,011.09"}},{"$f":"IFERROR(IF(PinjamanBelumDibayar*PinjamanAman,AngsuranBulanan,0), 0)","v":{"v":108.52627796048073,"d":"Rp108.53"}},{"$f":"IFERROR(IF(PinjamanBelumDibayar*PinjamanAman,Pinjaman_Pokok,0), 0)","v":{"v":85.55877108312008,"d":"Rp85.56"}},{"$f":"IFERROR(IF(PinjamanBelumDibayar*PinjamanAman,JmlBunga,0), 0)","v":{"v":22.96750687736064,"d":"Rp22.97"}},{"$f":"IFERROR(IF(PinjamanBelumDibayar*PinjamanAman,SaldoAkhir,0), 0)","v":{"v":4925.533638522824,"d":"Rp4,925.53"}}]
[null,{"$f":"IFERROR(IF(PinjamanBelumDibayar*PinjamanAman,NomorPembayaran,\"\"), \"\")","v":70},{"$f":"IFERROR(IF(PinjamanBelumDibayar*PinjamanAman,TanggalPembayaran,TanggalMulaiPinjaman), TanggalMulaiPinjaman)","v":"2025-05-18"},{"$f":"IFERROR(IF(PinjamanBelumDibayar*PinjamanAman,NilaiPinjaman,\"\"), \"\")","v":{"v":4925.533638522824,"d":"Rp4,925.53"}},{"$f":"IFERROR(IF(PinjamanBelumDibayar*PinjamanAman,AngsuranBulanan,0), 0)","v":{"v":108.52627796048073,"d":"Rp108.53"}},{"$f":"IFERROR(IF(PinjamanBelumDibayar*PinjamanAman,Pinjaman_Pokok,0), 0)","v":{"v":85.95091545058438,"d":"Rp85.95"}},{"$f":"IFERROR(IF(PinjamanBelumDibayar*PinjamanAman,JmlBunga,0), 0)","v":{"v":22.575362509896344,"d":"Rp22.58"}},{"$f":"IFERROR(IF(PinjamanBelumDibayar*PinjamanAman,SaldoAkhir,0), 0)","v":{"v":4839.582723072239,"d":"Rp4,839.58"}}]
[null,{"$f":"IFERROR(IF(PinjamanBelumDibayar*PinjamanAman,NomorPembayaran,\"\"), \"\")","v":71},{"$f":"IFERROR(IF(PinjamanBelumDibayar*PinjamanAman,TanggalPembayaran,TanggalMulaiPinjaman), TanggalMulaiPinjaman)","v":"2025-06-18"},{"$f":"IFERROR(IF(PinjamanBelumDibayar*PinjamanAman,NilaiPinjaman,\"\"), \"\")","v":{"v":4839.582723072239,"d":"Rp4,839.58"}},{"$f":"IFERROR(IF(PinjamanBelumDibayar*PinjamanAman,AngsuranBulanan,0), 0)","v":{"v":108.52627796048073,"d":"Rp108.53"}},{"$f":"IFERROR(IF(PinjamanBelumDibayar*PinjamanAman,Pinjaman_Pokok,0), 0)","v":{"v":86.34485714639956,"d":"Rp86.34"}},{"$f":"IFERROR(IF(PinjamanBelumDibayar*PinjamanAman,JmlBunga,0), 0)","v":{"v":22.18142081408116,"d":"Rp22.18"}},{"$f":"IFERROR(IF(PinjamanBelumDibayar*PinjamanAman,SaldoAkhir,0), 0)","v":{"v":4753.237865925843,"d":"Rp4,753.24"}}]
[null,{"$f":"IFERROR(IF(PinjamanBelumDibayar*PinjamanAman,NomorPembayaran,\"\"), \"\")","v":72},{"$f":"IFERROR(IF(PinjamanBelumDibayar*PinjamanAman,TanggalPembayaran,TanggalMulaiPinjaman), TanggalMulaiPinjaman)","v":"2025-07-18"},{"$f":"IFERROR(IF(PinjamanBelumDibayar*PinjamanAman,NilaiPinjaman,\"\"), \"\")","v":{"v":4753.237865925843,"d":"Rp4,753.24"}},{"$f":"IFERROR(IF(PinjamanBelumDibayar*PinjamanAman,AngsuranBulanan,0), 0)","v":{"v":108.52627796048073,"d":"Rp108.53"}},{"$f":"IFERROR(IF(PinjamanBelumDibayar*PinjamanAman,Pinjaman_Pokok,0), 0)","v":{"v":86.74060440832056,"d":"Rp86.74"}},{"$f":"IFERROR(IF(PinjamanBelumDibayar*PinjamanAman,JmlBunga,0), 0)","v":{"v":21.785673552160162,"d":"Rp21.79"}},{"$f":"IFERROR(IF(PinjamanBelumDibayar*PinjamanAman,SaldoAkhir,0), 0)","v":{"v":4666.497261517523,"d":"Rp4,666.50"}}]
[null,{"$f":"IFERROR(IF(PinjamanBelumDibayar*PinjamanAman,NomorPembayaran,\"\"), \"\")","v":73},{"$f":"IFERROR(IF(PinjamanBelumDibayar*PinjamanAman,TanggalPembayaran,TanggalMulaiPinjaman), TanggalMulaiPinjaman)","v":"2025-08-18"},{"$f":"IFERROR(IF(PinjamanBelumDibayar*PinjamanAman,NilaiPinjaman,\"\"), \"\")","v":{"v":4666.497261517523,"d":"Rp4,666.50"}},{"$f":"IFERROR(IF(PinjamanBelumDibayar*PinjamanAman,AngsuranBulanan,0), 0)","v":{"v":108.52627796048073,"d":"Rp108.53"}},{"$f":"IFERROR(IF(PinjamanBelumDibayar*PinjamanAman,Pinjaman_Pokok,0), 0)","v":{"v":87.1381655118587,"d":"Rp87.14"}},{"$f":"IFERROR(IF(PinjamanBelumDibayar*PinjamanAman,JmlBunga,0), 0)","v":{"v":21.38811244862203,"d":"Rp21.39"}},{"$f":"IFERROR(IF(PinjamanBelumDibayar*PinjamanAman,SaldoAkhir,0), 0)","v":{"v":4579.3590960056645,"d":"Rp4,579.36"}}]
[null,{"$f":"IFERROR(IF(PinjamanBelumDibayar*PinjamanAman,NomorPembayaran,\"\"), \"\")","v":74},{"$f":"IFERROR(IF(PinjamanBelumDibayar*PinjamanAman,TanggalPembayaran,TanggalMulaiPinjaman), TanggalMulaiPinjaman)","v":"2025-09-18"},{"$f":"IFERROR(IF(PinjamanBelumDibayar*PinjamanAman,NilaiPinjaman,\"\"), \"\")","v":{"v":4579.3590960056645,"d":"Rp4,579.36"}},{"$f":"IFERROR(IF(PinjamanBelumDibayar*PinjamanAman,AngsuranBulanan,0), 0)","v":{"v":108.52627796048073,"d":"Rp108.53"}},{"$f":"IFERROR(IF(PinjamanBelumDibayar*PinjamanAman,Pinjaman_Pokok,0), 0)","v":{"v":87.53754877045472,"d":"Rp87.54"}},{"$f":"IFERROR(IF(PinjamanBelumDibayar*PinjamanAman,JmlBunga,0), 0)","v":{"v":20.988729190026014,"d":"Rp20.99"}},{"$f":"IFERROR(IF(PinjamanBelumDibayar*PinjamanAman,SaldoAkhir,0), 0)","v":{"v":4491.821547235208,"d":"Rp4,491.82"}}]
[null,{"$f":"IFERROR(IF(PinjamanBelumDibayar*PinjamanAman,NomorPembayaran,\"\"), \"\")","v":75},{"$f":"IFERROR(IF(PinjamanBelumDibayar*PinjamanAman,TanggalPembayaran,TanggalMulaiPinjaman), TanggalMulaiPinjaman)","v":"2025-10-18"},{"$f":"IFERROR(IF(PinjamanBelumDibayar*PinjamanAman,NilaiPinjaman,\"\"), \"\")","v":{"v":4491.821547235208,"d":"Rp4,491.82"}},{"$f":"IFERROR(IF(PinjamanBelumDibayar*PinjamanAman,AngsuranBulanan,0), 0)","v":{"v":108.52627796048073,"d":"Rp108.53"}},{"$f":"IFERROR(IF(PinjamanBelumDibayar*PinjamanAman,Pinjaman_Pokok,0), 0)","v":{"v":87.93876253565263,"d":"Rp87.94"}},{"$f":"IFERROR(IF(PinjamanBelumDibayar*PinjamanAman,JmlBunga,0), 0)","v":{"v":20.587515424828098,"d":"Rp20.59"}},{"$f":"IFERROR(IF(PinjamanBelumDibayar*PinjamanAman,SaldoAkhir,0), 0)","v":{"v":4403.8827846995555,"d":"Rp4,403.88"}}]
[null,{"$f":"IFERROR(IF(PinjamanBelumDibayar*PinjamanAman,NomorPembayaran,\"\"), \"\")","v":76},{"$f":"IFERROR(IF(PinjamanBelumDibayar*PinjamanAman,TanggalPembayaran,TanggalMulaiPinjaman), TanggalMulaiPinjaman)","v":"2025-11-18"},{"$f":"IFERROR(IF(PinjamanBelumDibayar*PinjamanAman,NilaiPinjaman,\"\"), \"\")","v":{"v":4403.8827846995555,"d":"Rp4,403.88"}},{"$f":"IFERROR(IF(PinjamanBelumDibayar*PinjamanAman,AngsuranBulanan,0), 0)","v":{"v":108.52627796048073,"d":"Rp108.53"}},{"$f":"IFERROR(IF(PinjamanBelumDibayar*PinjamanAman,Pinjaman_Pokok,0), 0)","v":{"v":88.34181519727439,"d":"Rp88.34"}},{"$f":"IFERROR(IF(PinjamanBelumDibayar*PinjamanAman,JmlBunga,0), 0)","v":{"v":20.184462763206355,"d":"Rp20.18"}},{"$f":"IFERROR(IF(PinjamanBelumDibayar*PinjamanAman,SaldoAkhir,0), 0)","v":{"v":4315.540969502281,"d":"Rp4,315.54"}}]
[null,{"$f":"IFERROR(IF(PinjamanBelumDibayar*PinjamanAman,NomorPembayaran,\"\"), \"\")","v":77},{"$f":"IFERROR(IF(PinjamanBelumDibayar*PinjamanAman,TanggalPembayaran,TanggalMulaiPinjaman), TanggalMulaiPinjaman)","v":"2025-12-18"},{"$f":"IFERROR(IF(PinjamanBelumDibayar*PinjamanAman,NilaiPinjaman,\"\"), \"\")","v":{"v":4315.540969502281,"d":"Rp4,315.54"}},{"$f":"IFERROR(IF(PinjamanBelumDibayar*PinjamanAman,AngsuranBulanan,0), 0)","v":{"v":108.52627796048073,"d":"Rp108.53"}},{"$f":"IFERROR(IF(PinjamanBelumDibayar*PinjamanAman,Pinjaman_Pokok,0), 0)","v":{"v":88.74671518359521,"d":"Rp88.75"}},{"$f":"IFERROR(IF(PinjamanBelumDibayar*PinjamanAman,JmlBunga,0), 0)","v":{"v":19.779562776885513,"d":"Rp19.78"}},{"$f":"IFERROR(IF(PinjamanBelumDibayar*PinjamanAman,SaldoAkhir,0), 0)","v":{"v":4226.794254318684,"d":"Rp4,226.79"}}]
[null,{"$f":"IFERROR(IF(PinjamanBelumDibayar*PinjamanAman,NomorPembayaran,\"\"), \"\")","v":78},{"$f":"IFERROR(IF(PinjamanBelumDibayar*PinjamanAman,TanggalPembayaran,TanggalMulaiPinjaman), TanggalMulaiPinjaman)","v":"2026-01-18"},{"$f":"IFERROR(IF(PinjamanBelumDibayar*PinjamanAman,NilaiPinjaman,\"\"), \"\")","v":{"v":4226.794254318684,"d":"Rp4,226.79"}},{"$f":"IFERROR(IF(PinjamanBelumDibayar*PinjamanAman,AngsuranBulanan,0), 0)","v":{"v":108.52627796048073,"d":"Rp108.53"}},{"$f":"IFERROR(IF(PinjamanBelumDibayar*PinjamanAman,Pinjaman_Pokok,0), 0)","v":{"v":89.15347096152003,"d":"Rp89.15"}},{"$f":"IFERROR(IF(PinjamanBelumDibayar*PinjamanAman,JmlBunga,0), 0)","v":{"v":19.3728069989607,"d":"Rp19.37"}},{"$f":"IFERROR(IF(PinjamanBelumDibayar*PinjamanAman,SaldoAkhir,0), 0)","v":{"v":4137.640783357165,"d":"Rp4,137.64"}}]
[null,{"$f":"IFERROR(IF(PinjamanBelumDibayar*PinjamanAman,NomorPembayaran,\"\"), \"\")","v":79},{"$f":"IFERROR(IF(PinjamanBelumDibayar*PinjamanAman,TanggalPembayaran,TanggalMulaiPinjaman), TanggalMulaiPinjaman)","v":"2026-02-18"},{"$f":"IFERROR(IF(PinjamanBelumDibayar*PinjamanAman,NilaiPinjaman,\"\"), \"\")","v":{"v":4137.640783357165,"d":"Rp4,137.64"}},{"$f":"IFERROR(IF(PinjamanBelumDibayar*PinjamanAman,AngsuranBulanan,0), 0)","v":{"v":108.52627796048073,"d":"Rp108.53"}},{"$f":"IFERROR(IF(PinjamanBelumDibayar*PinjamanAman,Pinjaman_Pokok,0), 0)","v":{"v":89.56209103676032,"d":"Rp89.56"}},{"$f":"IFERROR(IF(PinjamanBelumDibayar*PinjamanAman,JmlBunga,0), 0)","v":{"v":18.9641869237204,"d":"Rp18.96"}},{"$f":"IFERROR(IF(PinjamanBelumDibayar*PinjamanAman,SaldoAkhir,0), 0)","v":{"v":4048.078692320407,"d":"Rp4,048.08"}}]
[null,{"$f":"IFERROR(IF(PinjamanBelumDibayar*PinjamanAman,NomorPembayaran,\"\"), \"\")","v":80},{"$f":"IFERROR(IF(PinjamanBelumDibayar*PinjamanAman,TanggalPembayaran,TanggalMulaiPinjaman), TanggalMulaiPinjaman)","v":"2026-03-18"},{"$f":"IFERROR(IF(PinjamanBelumDibayar*PinjamanAman,NilaiPinjaman,\"\"), \"\")","v":{"v":4048.078692320407,"d":"Rp4,048.08"}},{"$f":"IFERROR(IF(PinjamanBelumDibayar*PinjamanAman,AngsuranBulanan,0), 0)","v":{"v":108.52627796048073,"d":"Rp108.53"}},{"$f":"IFERROR(IF(PinjamanBelumDibayar*PinjamanAman,Pinjaman_Pokok,0), 0)","v":{"v":89.97258395401214,"d":"Rp89.97"}},{"$f":"IFERROR(IF(PinjamanBelumDibayar*PinjamanAman,JmlBunga,0), 0)","v":{"v":18.553694006468582,"d":"Rp18.55"}},{"$f":"IFERROR(IF(PinjamanBelumDibayar*PinjamanAman,SaldoAkhir,0), 0)","v":{"v":3958.1061083663935,"d":"Rp3,958.11"}}]
[null,{"$f":"IFERROR(IF(PinjamanBelumDibayar*PinjamanAman,NomorPembayaran,\"\"), \"\")","v":81},{"$f":"IFERROR(IF(PinjamanBelumDibayar*PinjamanAman,TanggalPembayaran,TanggalMulaiPinjaman), TanggalMulaiPinjaman)","v":"2026-04-18"},{"$f":"IFERROR(IF(PinjamanBelumDibayar*PinjamanAman,NilaiPinjaman,\"\"), \"\")","v":{"v":3958.1061083663935,"d":"Rp3,958.11"}},{"$f":"IFERROR(IF(PinjamanBelumDibayar*PinjamanAman,AngsuranBulanan,0), 0)","v":{"v":108.52627796048073,"d":"Rp108.53"}},{"$f":"IFERROR(IF(PinjamanBelumDibayar*PinjamanAman,Pinjaman_Pokok,0), 0)","v":{"v":90.3849582971347,"d":"Rp90.38"}},{"$f":"IFERROR(IF(PinjamanBelumDibayar*PinjamanAman,JmlBunga,0), 0)","v":{"v":18.141319663346028,"d":"Rp18.14"}},{"$f":"IFERROR(IF(PinjamanBelumDibayar*PinjamanAman,SaldoAkhir,0), 0)","v":{"v":3867.7211500692556,"d":"Rp3,867.72"}}]
[null,{"$f":"IFERROR(IF(PinjamanBelumDibayar*PinjamanAman,NomorPembayaran,\"\"), \"\")","v":82},{"$f":"IFERROR(IF(PinjamanBelumDibayar*PinjamanAman,TanggalPembayaran,TanggalMulaiPinjaman), TanggalMulaiPinjaman)","v":"2026-05-18"},{"$f":"IFERROR(IF(PinjamanBelumDibayar*PinjamanAman,NilaiPinjaman,\"\"), \"\")","v":{"v":3867.7211500692556,"d":"Rp3,867.72"}},{"$f":"IFERROR(IF(PinjamanBelumDibayar*PinjamanAman,AngsuranBulanan,0), 0)","v":{"v":108.52627796048073,"d":"Rp108.53"}},{"$f":"IFERROR(IF(PinjamanBelumDibayar*PinjamanAman,Pinjaman_Pokok,0), 0)","v":{"v":90.79922268932991,"d":"Rp90.80"}},{"$f":"IFERROR(IF(PinjamanBelumDibayar*PinjamanAman,JmlBunga,0), 0)","v":{"v":17.727055271150828,"d":"Rp17.73"}},{"$f":"IFERROR(IF(PinjamanBelumDibayar*PinjamanAman,SaldoAkhir,0), 0)","v":{"v":3776.9219273799263,"d":"Rp3,776.92"}}]
[null,{"$f":"IFERROR(IF(PinjamanBelumDibayar*PinjamanAman,NomorPembayaran,\"\"), \"\")","v":83},{"$f":"IFERROR(IF(PinjamanBelumDibayar*PinjamanAman,TanggalPembayaran,TanggalMulaiPinjaman), TanggalMulaiPinjaman)","v":"2026-06-18"},{"$f":"IFERROR(IF(PinjamanBelumDibayar*PinjamanAman,NilaiPinjaman,\"\"), \"\")","v":{"v":3776.9219273799263,"d":"Rp3,776.92"}},{"$f":"IFERROR(IF(PinjamanBelumDibayar*PinjamanAman,AngsuranBulanan,0), 0)","v":{"v":108.52627796048073,"d":"Rp108.53"}},{"$f":"IFERROR(IF(PinjamanBelumDibayar*PinjamanAman,Pinjaman_Pokok,0), 0)","v":{"v":91.21538579332265,"d":"Rp91.22"}},{"$f":"IFERROR(IF(PinjamanBelumDibayar*PinjamanAman,JmlBunga,0), 0)","v":{"v":17.310892167158062,"d":"Rp17.31"}},{"$f":"IFERROR(IF(PinjamanBelumDibayar*PinjamanAman,SaldoAkhir,0), 0)","v":{"v":3685.7065415866073,"d":"Rp3,685.71"}}]
[null,{"$f":"IFERROR(IF(PinjamanBelumDibayar*PinjamanAman,NomorPembayaran,\"\"), \"\")","v":84},{"$f":"IFERROR(IF(PinjamanBelumDibayar*PinjamanAman,TanggalPembayaran,TanggalMulaiPinjaman), TanggalMulaiPinjaman)","v":"2026-07-18"},{"$f":"IFERROR(IF(PinjamanBelumDibayar*PinjamanAman,NilaiPinjaman,\"\"), \"\")","v":{"v":3685.7065415866073,"d":"Rp3,685.71"}},{"$f":"IFERROR(IF(PinjamanBelumDibayar*PinjamanAman,AngsuranBulanan,0), 0)","v":{"v":108.52627796048073,"d":"Rp108.53"}},{"$f":"IFERROR(IF(PinjamanBelumDibayar*PinjamanAman,Pinjaman_Pokok,0), 0)","v":{"v":91.63345631154205,"d":"Rp91.63"}},{"$f":"IFERROR(IF(PinjamanBelumDibayar*PinjamanAman,JmlBunga,0), 0)","v":{"v":16.892821648938668,"d":"Rp16.89"}},{"$f":"IFERROR(IF(PinjamanBelumDibayar*PinjamanAman,SaldoAkhir,0), 0)","v":{"v":3594.073085275062,"d":"Rp3,594.07"}}]
[null,{"$f":"IFERROR(IF(PinjamanBelumDibayar*PinjamanAman,NomorPembayaran,\"\"), \"\")","v":85},{"$f":"IFERROR(IF(PinjamanBelumDibayar*PinjamanAman,TanggalPembayaran,TanggalMulaiPinjaman), TanggalMulaiPinjaman)","v":"2026-08-18"},{"$f":"IFERROR(IF(PinjamanBelumDibayar*PinjamanAman,NilaiPinjaman,\"\"), \"\")","v":{"v":3594.073085275062,"d":"Rp3,594.07"}},{"$f":"IFERROR(IF(PinjamanBelumDibayar*PinjamanAman,AngsuranBulanan,0), 0)","v":{"v":108.52627796048073,"d":"Rp108.53"}},{"$f":"IFERROR(IF(PinjamanBelumDibayar*PinjamanAman,Pinjaman_Pokok,0), 0)","v":{"v":92.0534429863033,"d":"Rp92.05"}},{"$f":"IFERROR(IF(PinjamanBelumDibayar*PinjamanAman,JmlBunga,0), 0)","v":{"v":16.472834974177438,"d":"Rp16.47"}},{"$f":"IFERROR(IF(PinjamanBelumDibayar*PinjamanAman,SaldoAkhir,0), 0)","v":{"v":3502.0196422887584,"d":"Rp3,502.02"}}]
[null,{"$f":"IFERROR(IF(PinjamanBelumDibayar*PinjamanAman,NomorPembayaran,\"\"), \"\")","v":86},{"$f":"IFERROR(IF(PinjamanBelumDibayar*PinjamanAman,TanggalPembayaran,TanggalMulaiPinjaman), TanggalMulaiPinjaman)","v":"2026-09-18"},{"$f":"IFERROR(IF(PinjamanBelumDibayar*PinjamanAman,NilaiPinjaman,\"\"), \"\")","v":{"v":3502.0196422887584,"d":"Rp3,502.02"}},{"$f":"IFERROR(IF(PinjamanBelumDibayar*PinjamanAman,AngsuranBulanan,0), 0)","v":{"v":108.52627796048073,"d":"Rp108.53"}},{"$f":"IFERROR(IF(PinjamanBelumDibayar*PinjamanAman,Pinjaman_Pokok,0), 0)","v":{"v":92.47535459999051,"d":"Rp92.48"}},{"$f":"IFERROR(IF(PinjamanBelumDibayar*PinjamanAman,JmlBunga,0), 0)","v":{"v":16.050923360490213,"d":"Rp16.05"}},{"$f":"IFERROR(IF(PinjamanBelumDibayar*PinjamanAman,SaldoAkhir,0), 0)","v":{"v":3409.5442876887664,"d":"Rp3,409.54"}}]
[null,{"$f":"IFERROR(IF(PinjamanBelumDibayar*PinjamanAman,NomorPembayaran,\"\"), \"\")","v":87},{"$f":"IFERROR(IF(PinjamanBelumDibayar*PinjamanAman,TanggalPembayaran,TanggalMulaiPinjaman), TanggalMulaiPinjaman)","v":"2026-10-18"},{"$f":"IFERROR(IF(PinjamanBelumDibayar*PinjamanAman,NilaiPinjaman,\"\"), \"\")","v":{"v":3409.5442876887664,"d":"Rp3,409.54"}},{"$f":"IFERROR(IF(PinjamanBelumDibayar*PinjamanAman,AngsuranBulanan,0), 0)","v":{"v":108.52627796048073,"d":"Rp108.53"}},{"$f":"IFERROR(IF(PinjamanBelumDibayar*PinjamanAman,Pinjaman_Pokok,0), 0)","v":{"v":92.89919997524046,"d":"Rp92.90"}},{"$f":"IFERROR(IF(PinjamanBelumDibayar*PinjamanAman,JmlBunga,0), 0)","v":{"v":15.627077985240252,"d":"Rp15.63"}},{"$f":"IFERROR(IF(PinjamanBelumDibayar*PinjamanAman,SaldoAkhir,0), 0)","v":{"v":3316.6450877135267,"d":"Rp3,316.65"}}]
[null,{"$f":"IFERROR(IF(PinjamanBelumDibayar*PinjamanAman,NomorPembayaran,\"\"), \"\")","v":88},{"$f":"IFERROR(IF(PinjamanBelumDibayar*PinjamanAman,TanggalPembayaran,TanggalMulaiPinjaman), TanggalMulaiPinjaman)","v":"2026-11-18"},{"$f":"IFERROR(IF(PinjamanBelumDibayar*PinjamanAman,NilaiPinjaman,\"\"), \"\")","v":{"v":3316.6450877135267,"d":"Rp3,316.65"}},{"$f":"IFERROR(IF(PinjamanBelumDibayar*PinjamanAman,AngsuranBulanan,0), 0)","v":{"v":108.52627796048073,"d":"Rp108.53"}},{"$f":"IFERROR(IF(PinjamanBelumDibayar*PinjamanAman,Pinjaman_Pokok,0), 0)","v":{"v":93.32498797512699,"d":"Rp93.32"}},{"$f":"IFERROR(IF(PinjamanBelumDibayar*PinjamanAman,JmlBunga,0), 0)","v":{"v":15.201289985353732,"d":"Rp15.20"}},{"$f":"IFERROR(IF(PinjamanBelumDibayar*PinjamanAman,SaldoAkhir,0), 0)","v":{"v":3223.320099738399,"d":"Rp3,223.32"}}]
[null,{"$f":"IFERROR(IF(PinjamanBelumDibayar*PinjamanAman,NomorPembayaran,\"\"), \"\")","v":89},{"$f":"IFERROR(IF(PinjamanBelumDibayar*PinjamanAman,TanggalPembayaran,TanggalMulaiPinjaman), TanggalMulaiPinjaman)","v":"2026-12-18"},{"$f":"IFERROR(IF(PinjamanBelumDibayar*PinjamanAman,NilaiPinjaman,\"\"), \"\")","v":{"v":3223.320099738399,"d":"Rp3,223.32"}},{"$f":"IFERROR(IF(PinjamanBelumDibayar*PinjamanAman,AngsuranBulanan,0), 0)","v":{"v":108.52627796048073,"d":"Rp108.53"}},{"$f":"IFERROR(IF(PinjamanBelumDibayar*PinjamanAman,Pinjaman_Pokok,0), 0)","v":{"v":93.75272750334632,"d":"Rp93.75"}},{"$f":"IFERROR(IF(PinjamanBelumDibayar*PinjamanAman,JmlBunga,0), 0)","v":{"v":14.7735504571344,"d":"Rp14.77"}},{"$f":"IFERROR(IF(PinjamanBelumDibayar*PinjamanAman,SaldoAkhir,0), 0)","v":{"v":3129.567372235055,"d":"Rp3,129.57"}}]
[null,{"$f":"IFERROR(IF(PinjamanBelumDibayar*PinjamanAman,NomorPembayaran,\"\"), \"\")","v":90},{"$f":"IFERROR(IF(PinjamanBelumDibayar*PinjamanAman,TanggalPembayaran,TanggalMulaiPinjaman), TanggalMulaiPinjaman)","v":"2027-01-18"},{"$f":"IFERROR(IF(PinjamanBelumDibayar*PinjamanAman,NilaiPinjaman,\"\"), \"\")","v":{"v":3129.567372235055,"d":"Rp3,129.57"}},{"$f":"IFERROR(IF(PinjamanBelumDibayar*PinjamanAman,AngsuranBulanan,0), 0)","v":{"v":108.52627796048073,"d":"Rp108.53"}},{"$f":"IFERROR(IF(PinjamanBelumDibayar*PinjamanAman,Pinjaman_Pokok,0), 0)","v":{"v":94.18242750440332,"d":"Rp94.18"}},{"$f":"IFERROR(IF(PinjamanBelumDibayar*PinjamanAman,JmlBunga,0), 0)","v":{"v":14.343850456077401,"d":"Rp14.34"}},{"$f":"IFERROR(IF(PinjamanBelumDibayar*PinjamanAman,SaldoAkhir,0), 0)","v":{"v":3035.384944730651,"d":"Rp3,035.38"}}]
[null,{"$f":"IFERROR(IF(PinjamanBelumDibayar*PinjamanAman,NomorPembayaran,\"\"), \"\")","v":91},{"$f":"IFERROR(IF(PinjamanBelumDibayar*PinjamanAman,TanggalPembayaran,TanggalMulaiPinjaman), TanggalMulaiPinjaman)","v":"2027-02-18"},{"$f":"IFERROR(IF(PinjamanBelumDibayar*PinjamanAman,NilaiPinjaman,\"\"), \"\")","v":{"v":3035.384944730651,"d":"Rp3,035.38"}},{"$f":"IFERROR(IF(PinjamanBelumDibayar*PinjamanAman,AngsuranBulanan,0), 0)","v":{"v":108.52627796048073,"d":"Rp108.53"}},{"$f":"IFERROR(IF(PinjamanBelumDibayar*PinjamanAman,Pinjaman_Pokok,0), 0)","v":{"v":94.61409696379852,"d":"Rp94.61"}},{"$f":"IFERROR(IF(PinjamanBelumDibayar*PinjamanAman,JmlBunga,0), 0)","v":{"v":13.912180996682217,"d":"Rp13.91"}},{"$f":"IFERROR(IF(PinjamanBelumDibayar*PinjamanAman,SaldoAkhir,0), 0)","v":{"v":2940.770847766853,"d":"Rp2,940.77"}}]
[null,{"$f":"IFERROR(IF(PinjamanBelumDibayar*PinjamanAman,NomorPembayaran,\"\"), \"\")","v":92},{"$f":"IFERROR(IF(PinjamanBelumDibayar*PinjamanAman,TanggalPembayaran,TanggalMulaiPinjaman), TanggalMulaiPinjaman)","v":"2027-03-18"},{"$f":"IFERROR(IF(PinjamanBelumDibayar*PinjamanAman,NilaiPinjaman,\"\"), \"\")","v":{"v":2940.770847766853,"d":"Rp2,940.77"}},{"$f":"IFERROR(IF(PinjamanBelumDibayar*PinjamanAman,AngsuranBulanan,0), 0)","v":{"v":108.52627796048073,"d":"Rp108.53"}},{"$f":"IFERROR(IF(PinjamanBelumDibayar*PinjamanAman,Pinjaman_Pokok,0), 0)","v":{"v":95.04774490821592,"d":"Rp95.05"}},{"$f":"IFERROR(IF(PinjamanBelumDibayar*PinjamanAman,JmlBunga,0), 0)","v":{"v":13.478533052264805,"d":"Rp13.48"}},{"$f":"IFERROR(IF(PinjamanBelumDibayar*PinjamanAman,SaldoAkhir,0), 0)","v":{"v":2845.7231028586375,"d":"Rp2,845.72"}}]
[null,{"$f":"IFERROR(IF(PinjamanBelumDibayar*PinjamanAman,NomorPembayaran,\"\"), \"\")","v":93},{"$f":"IFERROR(IF(PinjamanBelumDibayar*PinjamanAman,TanggalPembayaran,TanggalMulaiPinjaman), TanggalMulaiPinjaman)","v":"2027-04-18"},{"$f":"IFERROR(IF(PinjamanBelumDibayar*PinjamanAman,NilaiPinjaman,\"\"), \"\")","v":{"v":2845.7231028586375,"d":"Rp2,845.72"}},{"$f":"IFERROR(IF(PinjamanBelumDibayar*PinjamanAman,AngsuranBulanan,0), 0)","v":{"v":108.52627796048073,"d":"Rp108.53"}},{"$f":"IFERROR(IF(PinjamanBelumDibayar*PinjamanAman,Pinjaman_Pokok,0), 0)","v":{"v":95.48338040571191,"d":"Rp95.48"}},{"$f":"IFERROR(IF(PinjamanBelumDibayar*PinjamanAman,JmlBunga,0), 0)","v":{"v":13.042897554768816,"d":"Rp13.04"}},{"$f":"IFERROR(IF(PinjamanBelumDibayar*PinjamanAman,SaldoAkhir,0), 0)","v":{"v":2750.239722452923,"d":"Rp2,750.24"}}]
[null,{"$f":"IFERROR(IF(PinjamanBelumDibayar*PinjamanAman,NomorPembayaran,\"\"), \"\")","v":94},{"$f":"IFERROR(IF(PinjamanBelumDibayar*PinjamanAman,TanggalPembayaran,TanggalMulaiPinjaman), TanggalMulaiPinjaman)","v":"2027-05-18"},{"$f":"IFERROR(IF(PinjamanBelumDibayar*PinjamanAman,NilaiPinjaman,\"\"), \"\")","v":{"v":2750.239722452923,"d":"Rp2,750.24"}},{"$f":"IFERROR(IF(PinjamanBelumDibayar*PinjamanAman,AngsuranBulanan,0), 0)","v":{"v":108.52627796048073,"d":"Rp108.53"}},{"$f":"IFERROR(IF(PinjamanBelumDibayar*PinjamanAman,Pinjaman_Pokok,0), 0)","v":{"v":95.92101256590476,"d":"Rp95.92"}},{"$f":"IFERROR(IF(PinjamanBelumDibayar*PinjamanAman,JmlBunga,0), 0)","v":{"v":12.605265394575971,"d":"Rp12.61"}},{"$f":"IFERROR(IF(PinjamanBelumDibayar*PinjamanAman,SaldoAkhir,0), 0)","v":{"v":2654.3187098870203,"d":"Rp2,654.32"}}]
[null,{"$f":"IFERROR(IF(PinjamanBelumDibayar*PinjamanAman,NomorPembayaran,\"\"), \"\")","v":95},{"$f":"IFERROR(IF(PinjamanBelumDibayar*PinjamanAman,TanggalPembayaran,TanggalMulaiPinjaman), TanggalMulaiPinjaman)","v":"2027-06-18"},{"$f":"IFERROR(IF(PinjamanBelumDibayar*PinjamanAman,NilaiPinjaman,\"\"), \"\")","v":{"v":2654.3187098870203,"d":"Rp2,654.32"}},{"$f":"IFERROR(IF(PinjamanBelumDibayar*PinjamanAman,AngsuranBulanan,0), 0)","v":{"v":108.52627796048073,"d":"Rp108.53"}},{"$f":"IFERROR(IF(PinjamanBelumDibayar*PinjamanAman,Pinjaman_Pokok,0), 0)","v":{"v":96.36065054016515,"d":"Rp96.36"}},{"$f":"IFERROR(IF(PinjamanBelumDibayar*PinjamanAman,JmlBunga,0), 0)","v":{"v":12.165627420315575,"d":"Rp12.17"}},{"$f":"IFERROR(IF(PinjamanBelumDibayar*PinjamanAman,SaldoAkhir,0), 0)","v":{"v":2557.9580593468545,"d":"Rp2,557.96"}}]
[null,{"$f":"IFERROR(IF(PinjamanBelumDibayar*PinjamanAman,NomorPembayaran,\"\"), \"\")","v":96},{"$f":"IFERROR(IF(PinjamanBelumDibayar*PinjamanAman,TanggalPembayaran,TanggalMulaiPinjaman), TanggalMulaiPinjaman)","v":"2027-07-18"},{"$f":"IFERROR(IF(PinjamanBelumDibayar*PinjamanAman,NilaiPinjaman,\"\"), \"\")","v":{"v":2557.9580593468545,"d":"Rp2,557.96"}},{"$f":"IFERROR(IF(PinjamanBelumDibayar*PinjamanAman,AngsuranBulanan,0), 0)","v":{"v":108.52627796048073,"d":"Rp108.53"}},{"$f":"IFERROR(IF(PinjamanBelumDibayar*PinjamanAman,Pinjaman_Pokok,0), 0)","v":{"v":96.80230352180759,"d":"Rp96.80"}},{"$f":"IFERROR(IF(PinjamanBelumDibayar*PinjamanAman,JmlBunga,0), 0)","v":{"v":11.72397443867315,"d":"Rp11.72"}},{"$f":"IFERROR(IF(PinjamanBelumDibayar*PinjamanAman,SaldoAkhir,0), 0)","v":{"v":2461.1557558250443,"d":"Rp2,461.16"}}]
[null,{"$f":"IFERROR(IF(PinjamanBelumDibayar*PinjamanAman,NomorPembayaran,\"\"), \"\")","v":97},{"$f":"IFERROR(IF(PinjamanBelumDibayar*PinjamanAman,TanggalPembayaran,TanggalMulaiPinjaman), TanggalMulaiPinjaman)","v":"2027-08-18"},{"$f":"IFERROR(IF(PinjamanBelumDibayar*PinjamanAman,NilaiPinjaman,\"\"), \"\")","v":{"v":2461.1557558250443,"d":"Rp2,461.16"}},{"$f":"IFERROR(IF(PinjamanBelumDibayar*PinjamanAman,AngsuranBulanan,0), 0)","v":{"v":108.52627796048073,"d":"Rp108.53"}},{"$f":"IFERROR(IF(PinjamanBelumDibayar*PinjamanAman,Pinjaman_Pokok,0), 0)","v":{"v":97.24598074628253,"d":"Rp97.25"}},{"$f":"IFERROR(IF(PinjamanBelumDibayar*PinjamanAman,JmlBunga,0), 0)","v":{"v":11.280297214198198,"d":"Rp11.28"}},{"$f":"IFERROR(IF(PinjamanBelumDibayar*PinjamanAman,SaldoAkhir,0), 0)","v":{"v":2363.9097750787605,"d":"Rp2,363.91"}}]
[null,{"$f":"IFERROR(IF(PinjamanBelumDibayar*PinjamanAman,NomorPembayaran,\"\"), \"\")","v":98},{"$f":"IFERROR(IF(PinjamanBelumDibayar*PinjamanAman,TanggalPembayaran,TanggalMulaiPinjaman), TanggalMulaiPinjaman)","v":"2027-09-18"},{"$f":"IFERROR(IF(PinjamanBelumDibayar*PinjamanAman,NilaiPinjaman,\"\"), \"\")","v":{"v":2363.9097750787605,"d":"Rp2,363.91"}},{"$f":"IFERROR(IF(PinjamanBelumDibayar*PinjamanAman,AngsuranBulanan,0), 0)","v":{"v":108.52627796048073,"d":"Rp108.53"}},{"$f":"IFERROR(IF(PinjamanBelumDibayar*PinjamanAman,Pinjaman_Pokok,0), 0)","v":{"v":97.69169149136965,"d":"Rp97.69"}},{"$f":"IFERROR(IF(PinjamanBelumDibayar*PinjamanAman,JmlBunga,0), 0)","v":{"v":10.834586469111072,"d":"Rp10.83"}},{"$f":"IFERROR(IF(PinjamanBelumDibayar*PinjamanAman,SaldoAkhir,0), 0)","v":{"v":2266.2180835873896,"d":"Rp2,266.22"}}]
[null,{"$f":"IFERROR(IF(PinjamanBelumDibayar*PinjamanAman,NomorPembayaran,\"\"), \"\")","v":99},{"$f":"IFERROR(IF(PinjamanBelumDibayar*PinjamanAman,TanggalPembayaran,TanggalMulaiPinjaman), TanggalMulaiPinjaman)","v":"2027-10-18"},{"$f":"IFERROR(IF(PinjamanBelumDibayar*PinjamanAman,NilaiPinjaman,\"\"), \"\")","v":{"v":2266.2180835873896,"d":"Rp2,266.22"}},{"$f":"IFERROR(IF(PinjamanBelumDibayar*PinjamanAman,AngsuranBulanan,0), 0)","v":{"v":108.52627796048073,"d":"Rp108.53"}},{"$f":"IFERROR(IF(PinjamanBelumDibayar*PinjamanAman,Pinjaman_Pokok,0), 0)","v":{"v":98.13944507737176,"d":"Rp98.14"}},{"$f":"IFERROR(IF(PinjamanBelumDibayar*PinjamanAman,JmlBunga,0), 0)","v":{"v":10.386832883108958,"d":"Rp10.39"}},{"$f":"IFERROR(IF(PinjamanBelumDibayar*PinjamanAman,SaldoAkhir,0), 0)","v":{"v":2168.07863851002,"d":"Rp2,168.08"}}]
[null,{"$f":"IFERROR(IF(PinjamanBelumDibayar*PinjamanAman,NomorPembayaran,\"\"), \"\")","v":100},{"$f":"IFERROR(IF(PinjamanBelumDibayar*PinjamanAman,TanggalPembayaran,TanggalMulaiPinjaman), TanggalMulaiPinjaman)","v":"2027-11-18"},{"$f":"IFERROR(IF(PinjamanBelumDibayar*PinjamanAman,NilaiPinjaman,\"\"), \"\")","v":{"v":2168.07863851002,"d":"Rp2,168.08"}},{"$f":"IFERROR(IF(PinjamanBelumDibayar*PinjamanAman,AngsuranBulanan,0), 0)","v":{"v":108.52627796048073,"d":"Rp108.53"}},{"$f":"IFERROR(IF(PinjamanBelumDibayar*PinjamanAman,Pinjaman_Pokok,0), 0)","v":{"v":98.58925086730973,"d":"Rp98.59"}},{"$f":"IFERROR(IF(PinjamanBelumDibayar*PinjamanAman,JmlBunga,0), 0)","v":{"v":9.937027093171004,"d":"Rp9.94"}},{"$f":"IFERROR(IF(PinjamanBelumDibayar*PinjamanAman,SaldoAkhir,0), 0)","v":{"v":2069.4893876427104,"d":"Rp2,069.49"}}]
[null,{"$f":"IFERROR(IF(PinjamanBelumDibayar*PinjamanAman,NomorPembayaran,\"\"), \"\")","v":101},{"$f":"IFERROR(IF(PinjamanBelumDibayar*PinjamanAman,TanggalPembayaran,TanggalMulaiPinjaman), TanggalMulaiPinjaman)","v":"2027-12-18"},{"$f":"IFERROR(IF(PinjamanBelumDibayar*PinjamanAman,NilaiPinjaman,\"\"), \"\")","v":{"v":2069.4893876427104,"d":"Rp2,069.49"}},{"$f":"IFERROR(IF(PinjamanBelumDibayar*PinjamanAman,AngsuranBulanan,0), 0)","v":{"v":108.52627796048073,"d":"Rp108.53"}},{"$f":"IFERROR(IF(PinjamanBelumDibayar*PinjamanAman,Pinjaman_Pokok,0), 0)","v":{"v":99.04111826711822,"d":"Rp99.04"}},{"$f":"IFERROR(IF(PinjamanBelumDibayar*PinjamanAman,JmlBunga,0), 0)","v":{"v":9.485159693362503,"d":"Rp9.49"}},{"$f":"IFERROR(IF(PinjamanBelumDibayar*PinjamanAman,SaldoAkhir,0), 0)","v":{"v":1970.4482693755872,"d":"Rp1,970.45"}}]
[null,{"$f":"IFERROR(IF(PinjamanBelumDibayar*PinjamanAman,NomorPembayaran,\"\"), \"\")","v":102},{"$f":"IFERROR(IF(PinjamanBelumDibayar*PinjamanAman,TanggalPembayaran,TanggalMulaiPinjaman), TanggalMulaiPinjaman)","v":"2028-01-18"},{"$f":"IFERROR(IF(PinjamanBelumDibayar*PinjamanAman,NilaiPinjaman,\"\"), \"\")","v":{"v":1970.4482693755872,"d":"Rp1,970.45"}},{"$f":"IFERROR(IF(PinjamanBelumDibayar*PinjamanAman,AngsuranBulanan,0), 0)","v":{"v":108.52627796048073,"d":"Rp108.53"}},{"$f":"IFERROR(IF(PinjamanBelumDibayar*PinjamanAman,Pinjaman_Pokok,0), 0)","v":{"v":99.49505672584253,"d":"Rp99.50"}},{"$f":"IFERROR(IF(PinjamanBelumDibayar*PinjamanAman,JmlBunga,0), 0)","v":{"v":9.03122123463821,"d":"Rp9.03"}},{"$f":"IFERROR(IF(PinjamanBelumDibayar*PinjamanAman,SaldoAkhir,0), 0)","v":{"v":1870.9532126497452,"d":"Rp1,870.95"}}]
[null,{"$f":"IFERROR(IF(PinjamanBelumDibayar*PinjamanAman,NomorPembayaran,\"\"), \"\")","v":103},{"$f":"IFERROR(IF(PinjamanBelumDibayar*PinjamanAman,TanggalPembayaran,TanggalMulaiPinjaman), TanggalMulaiPinjaman)","v":"2028-02-18"},{"$f":"IFERROR(IF(PinjamanBelumDibayar*PinjamanAman,NilaiPinjaman,\"\"), \"\")","v":{"v":1870.9532126497452,"d":"Rp1,870.95"}},{"$f":"IFERROR(IF(PinjamanBelumDibayar*PinjamanAman,AngsuranBulanan,0), 0)","v":{"v":108.52627796048073,"d":"Rp108.53"}},{"$f":"IFERROR(IF(PinjamanBelumDibayar*PinjamanAman,Pinjaman_Pokok,0), 0)","v":{"v":99.95107573583596,"d":"Rp99.95"}},{"$f":"IFERROR(IF(PinjamanBelumDibayar*PinjamanAman,JmlBunga,0), 0)","v":{"v":8.575202224644766,"d":"Rp8.58"}},{"$f":"IFERROR(IF(PinjamanBelumDibayar*PinjamanAman,SaldoAkhir,0), 0)","v":{"v":1771.0021369139104,"d":"Rp1,771.00"}}]
[null,{"$f":"IFERROR(IF(PinjamanBelumDibayar*PinjamanAman,NomorPembayaran,\"\"), \"\")","v":104},{"$f":"IFERROR(IF(PinjamanBelumDibayar*PinjamanAman,TanggalPembayaran,TanggalMulaiPinjaman), TanggalMulaiPinjaman)","v":"2028-03-18"},{"$f":"IFERROR(IF(PinjamanBelumDibayar*PinjamanAman,NilaiPinjaman,\"\"), \"\")","v":{"v":1771.0021369139104,"d":"Rp1,771.00"}},{"$f":"IFERROR(IF(PinjamanBelumDibayar*PinjamanAman,AngsuranBulanan,0), 0)","v":{"v":108.52627796048073,"d":"Rp108.53"}},{"$f":"IFERROR(IF(PinjamanBelumDibayar*PinjamanAman,Pinjaman_Pokok,0), 0)","v":{"v":100.40918483295853,"d":"Rp100.41"}},{"$f":"IFERROR(IF(PinjamanBelumDibayar*PinjamanAman,JmlBunga,0), 0)","v":{"v":8.117093127522184,"d":"Rp8.12"}},{"$f":"IFERROR(IF(PinjamanBelumDibayar*PinjamanAman,SaldoAkhir,0), 0)","v":{"v":1670.5929520809568,"d":"Rp1,670.59"}}]
[null,{"$f":"IFERROR(IF(PinjamanBelumDibayar*PinjamanAman,NomorPembayaran,\"\"), \"\")","v":105},{"$f":"IFERROR(IF(PinjamanBelumDibayar*PinjamanAman,TanggalPembayaran,TanggalMulaiPinjaman), TanggalMulaiPinjaman)","v":"2028-04-18"},{"$f":"IFERROR(IF(PinjamanBelumDibayar*PinjamanAman,NilaiPinjaman,\"\"), \"\")","v":{"v":1670.5929520809568,"d":"Rp1,670.59"}},{"$f":"IFERROR(IF(PinjamanBelumDibayar*PinjamanAman,AngsuranBulanan,0), 0)","v":{"v":108.52627796048073,"d":"Rp108.53"}},{"$f":"IFERROR(IF(PinjamanBelumDibayar*PinjamanAman,Pinjaman_Pokok,0), 0)","v":{"v":100.86939359677626,"d":"Rp100.87"}},{"$f":"IFERROR(IF(PinjamanBelumDibayar*PinjamanAman,JmlBunga,0), 0)","v":{"v":7.656884363704458,"d":"Rp7.66"}},{"$f":"IFERROR(IF(PinjamanBelumDibayar*PinjamanAman,SaldoAkhir,0), 0)","v":{"v":1569.7235584841746,"d":"Rp1,569.72"}}]
[null,{"$f":"IFERROR(IF(PinjamanBelumDibayar*PinjamanAman,NomorPembayaran,\"\"), \"\")","v":106},{"$f":"IFERROR(IF(PinjamanBelumDibayar*PinjamanAman,TanggalPembayaran,TanggalMulaiPinjaman), TanggalMulaiPinjaman)","v":"2028-05-18"},{"$f":"IFERROR(IF(PinjamanBelumDibayar*PinjamanAman,NilaiPinjaman,\"\"), \"\")","v":{"v":1569.7235584841746,"d":"Rp1,569.72"}},{"$f":"IFERROR(IF(PinjamanBelumDibayar*PinjamanAman,AngsuranBulanan,0), 0)","v":{"v":108.52627796048073,"d":"Rp108.53"}},{"$f":"IFERROR(IF(PinjamanBelumDibayar*PinjamanAman,Pinjaman_Pokok,0), 0)","v":{"v":101.3317116507615,"d":"Rp101.33"}},{"$f":"IFERROR(IF(PinjamanBelumDibayar*PinjamanAman,JmlBunga,0), 0)","v":{"v":7.1945663097192325,"d":"Rp7.19"}},{"$f":"IFERROR(IF(PinjamanBelumDibayar*PinjamanAman,SaldoAkhir,0), 0)","v":{"v":1468.3918468334177,"d":"Rp1,468.39"}}]
[null,{"$f":"IFERROR(IF(PinjamanBelumDibayar*PinjamanAman,NomorPembayaran,\"\"), \"\")","v":107},{"$f":"IFERROR(IF(PinjamanBelumDibayar*PinjamanAman,TanggalPembayaran,TanggalMulaiPinjaman), TanggalMulaiPinjaman)","v":"2028-06-18"},{"$f":"IFERROR(IF(PinjamanBelumDibayar*PinjamanAman,NilaiPinjaman,\"\"), \"\")","v":{"v":1468.3918468334177,"d":"Rp1,468.39"}},{"$f":"IFERROR(IF(PinjamanBelumDibayar*PinjamanAman,AngsuranBulanan,0), 0)","v":{"v":108.52627796048073,"d":"Rp108.53"}},{"$f":"IFERROR(IF(PinjamanBelumDibayar*PinjamanAman,Pinjaman_Pokok,0), 0)","v":{"v":101.79614866249415,"d":"Rp101.80"}},{"$f":"IFERROR(IF(PinjamanBelumDibayar*PinjamanAman,JmlBunga,0), 0)","v":{"v":6.730129297986575,"d":"Rp6.73"}},{"$f":"IFERROR(IF(PinjamanBelumDibayar*PinjamanAman,SaldoAkhir,0), 0)","v":{"v":1366.5956981709169,"d":"Rp1,366.60"}}]
[null,{"$f":"IFERROR(IF(PinjamanBelumDibayar*PinjamanAman,NomorPembayaran,\"\"), \"\")","v":108},{"$f":"IFERROR(IF(PinjamanBelumDibayar*PinjamanAman,TanggalPembayaran,TanggalMulaiPinjaman), TanggalMulaiPinjaman)","v":"2028-07-18"},{"$f":"IFERROR(IF(PinjamanBelumDibayar*PinjamanAman,NilaiPinjaman,\"\"), \"\")","v":{"v":1366.5956981709169,"d":"Rp1,366.60"}},{"$f":"IFERROR(IF(PinjamanBelumDibayar*PinjamanAman,AngsuranBulanan,0), 0)","v":{"v":108.52627796048073,"d":"Rp108.53"}},{"$f":"IFERROR(IF(PinjamanBelumDibayar*PinjamanAman,Pinjaman_Pokok,0), 0)","v":{"v":102.2627143438639,"d":"Rp102.26"}},{"$f":"IFERROR(IF(PinjamanBelumDibayar*PinjamanAman,JmlBunga,0), 0)","v":{"v":6.2635636166168105,"d":"Rp6.26"}},{"$f":"IFERROR(IF(PinjamanBelumDibayar*PinjamanAman,SaldoAkhir,0), 0)","v":{"v":1264.3329838270583,"d":"Rp1,264.33"}}]
[null,{"$f":"IFERROR(IF(PinjamanBelumDibayar*PinjamanAman,NomorPembayaran,\"\"), \"\")","v":109},{"$f":"IFERROR(IF(PinjamanBelumDibayar*PinjamanAman,TanggalPembayaran,TanggalMulaiPinjaman), TanggalMulaiPinjaman)","v":"2028-08-18"},{"$f":"IFERROR(IF(PinjamanBelumDibayar*PinjamanAman,NilaiPinjaman,\"\"), \"\")","v":{"v":1264.3329838270583,"d":"Rp1,264.33"}},{"$f":"IFERROR(IF(PinjamanBelumDibayar*PinjamanAman,AngsuranBulanan,0), 0)","v":{"v":108.52627796048073,"d":"Rp108.53"}},{"$f":"IFERROR(IF(PinjamanBelumDibayar*PinjamanAman,Pinjaman_Pokok,0), 0)","v":{"v":102.73141845127329,"d":"Rp102.73"}},{"$f":"IFERROR(IF(PinjamanBelumDibayar*PinjamanAman,JmlBunga,0), 0)","v":{"v":5.794859509207435,"d":"Rp5.79"}},{"$f":"IFERROR(IF(PinjamanBelumDibayar*PinjamanAman,SaldoAkhir,0), 0)","v":{"v":1161.6015653757859,"d":"Rp1,161.60"}}]
[null,{"$f":"IFERROR(IF(PinjamanBelumDibayar*PinjamanAman,NomorPembayaran,\"\"), \"\")","v":110},{"$f":"IFERROR(IF(PinjamanBelumDibayar*PinjamanAman,TanggalPembayaran,TanggalMulaiPinjaman), TanggalMulaiPinjaman)","v":"2028-09-18"},{"$f":"IFERROR(IF(PinjamanBelumDibayar*PinjamanAman,NilaiPinjaman,\"\"), \"\")","v":{"v":1161.6015653757859,"d":"Rp1,161.60"}},{"$f":"IFERROR(IF(PinjamanBelumDibayar*PinjamanAman,AngsuranBulanan,0), 0)","v":{"v":108.52627796048073,"d":"Rp108.53"}},{"$f":"IFERROR(IF(PinjamanBelumDibayar*PinjamanAman,Pinjaman_Pokok,0), 0)","v":{"v":103.20227078584162,"d":"Rp103.20"}},{"$f":"IFERROR(IF(PinjamanBelumDibayar*PinjamanAman,JmlBunga,0), 0)","v":{"v":5.324007174639099,"d":"Rp5.32"}},{"$f":"IFERROR(IF(PinjamanBelumDibayar*PinjamanAman,SaldoAkhir,0), 0)","v":{"v":1058.3992945899427,"d":"Rp1,058.40"}}]
[null,{"$f":"IFERROR(IF(PinjamanBelumDibayar*PinjamanAman,NomorPembayaran,\"\"), \"\")","v":111},{"$f":"IFERROR(IF(PinjamanBelumDibayar*PinjamanAman,TanggalPembayaran,TanggalMulaiPinjaman), TanggalMulaiPinjaman)","v":"2028-10-18"},{"$f":"IFERROR(IF(PinjamanBelumDibayar*PinjamanAman,NilaiPinjaman,\"\"), \"\")","v":{"v":1058.3992945899427,"d":"Rp1,058.40"}},{"$f":"IFERROR(IF(PinjamanBelumDibayar*PinjamanAman,AngsuranBulanan,0), 0)","v":{"v":108.52627796048073,"d":"Rp108.53"}},{"$f":"IFERROR(IF(PinjamanBelumDibayar*PinjamanAman,Pinjaman_Pokok,0), 0)","v":{"v":103.67528119361006,"d":"Rp103.68"}},{"$f":"IFERROR(IF(PinjamanBelumDibayar*PinjamanAman,JmlBunga,0), 0)","v":{"v":4.850996766870658,"d":"Rp4.85"}},{"$f":"IFERROR(IF(PinjamanBelumDibayar*PinjamanAman,SaldoAkhir,0), 0)","v":{"v":954.7240133963332,"d":"Rp954.72"}}]
[null,{"$f":"IFERROR(IF(PinjamanBelumDibayar*PinjamanAman,NomorPembayaran,\"\"), \"\")","v":112},{"$f":"IFERROR(IF(PinjamanBelumDibayar*PinjamanAman,TanggalPembayaran,TanggalMulaiPinjaman), TanggalMulaiPinjaman)","v":"2028-11-18"},{"$f":"IFERROR(IF(PinjamanBelumDibayar*PinjamanAman,NilaiPinjaman,\"\"), \"\")","v":{"v":954.7240133963332,"d":"Rp954.72"}},{"$f":"IFERROR(IF(PinjamanBelumDibayar*PinjamanAman,AngsuranBulanan,0), 0)","v":{"v":108.52627796048073,"d":"Rp108.53"}},{"$f":"IFERROR(IF(PinjamanBelumDibayar*PinjamanAman,Pinjaman_Pokok,0), 0)","v":{"v":104.15045956574744,"d":"Rp104.15"}},{"$f":"IFERROR(IF(PinjamanBelumDibayar*PinjamanAman,JmlBunga,0), 0)","v":{"v":4.375818394733279,"d":"Rp4.38"}},{"$f":"IFERROR(IF(PinjamanBelumDibayar*PinjamanAman,SaldoAkhir,0), 0)","v":{"v":850.5735538305817,"d":"Rp850.57"}}]
[null,{"$f":"IFERROR(IF(PinjamanBelumDibayar*PinjamanAman,NomorPembayaran,\"\"), \"\")","v":113},{"$f":"IFERROR(IF(PinjamanBelumDibayar*PinjamanAman,TanggalPembayaran,TanggalMulaiPinjaman), TanggalMulaiPinjaman)","v":"2028-12-18"},{"$f":"IFERROR(IF(PinjamanBelumDibayar*PinjamanAman,NilaiPinjaman,\"\"), \"\")","v":{"v":850.5735538305817,"d":"Rp850.57"}},{"$f":"IFERROR(IF(PinjamanBelumDibayar*PinjamanAman,AngsuranBulanan,0), 0)","v":{"v":108.52627796048073,"d":"Rp108.53"}},{"$f":"IFERROR(IF(PinjamanBelumDibayar*PinjamanAman,Pinjaman_Pokok,0), 0)","v":{"v":104.62781583875713,"d":"Rp104.63"}},{"$f":"IFERROR(IF(PinjamanBelumDibayar*PinjamanAman,JmlBunga,0), 0)","v":{"v":3.8984621217236026,"d":"Rp3.90"}},{"$f":"IFERROR(IF(PinjamanBelumDibayar*PinjamanAman,SaldoAkhir,0), 0)","v":{"v":745.945737991824,"d":"Rp745.95"}}]
[null,{"$f":"IFERROR(IF(PinjamanBelumDibayar*PinjamanAman,NomorPembayaran,\"\"), \"\")","v":114},{"$f":"IFERROR(IF(PinjamanBelumDibayar*PinjamanAman,TanggalPembayaran,TanggalMulaiPinjaman), TanggalMulaiPinjaman)","v":"2029-01-18"},{"$f":"IFERROR(IF(PinjamanBelumDibayar*PinjamanAman,NilaiPinjaman,\"\"), \"\")","v":{"v":745.945737991824,"d":"Rp745.95"}},{"$f":"IFERROR(IF(PinjamanBelumDibayar*PinjamanAman,AngsuranBulanan,0), 0)","v":{"v":108.52627796048073,"d":"Rp108.53"}},{"$f":"IFERROR(IF(PinjamanBelumDibayar*PinjamanAman,Pinjaman_Pokok,0), 0)","v":{"v":105.10735999468474,"d":"Rp105.11"}},{"$f":"IFERROR(IF(PinjamanBelumDibayar*PinjamanAman,JmlBunga,0), 0)","v":{"v":3.4189179657959654,"d":"Rp3.42"}},{"$f":"IFERROR(IF(PinjamanBelumDibayar*PinjamanAman,SaldoAkhir,0), 0)","v":{"v":640.8383779971373,"d":"Rp640.84"}}]
[null,{"$f":"IFERROR(IF(PinjamanBelumDibayar*PinjamanAman,NomorPembayaran,\"\"), \"\")","v":115},{"$f":"IFERROR(IF(PinjamanBelumDibayar*PinjamanAman,TanggalPembayaran,TanggalMulaiPinjaman), TanggalMulaiPinjaman)","v":"2029-02-18"},{"$f":"IFERROR(IF(PinjamanBelumDibayar*PinjamanAman,NilaiPinjaman,\"\"), \"\")","v":{"v":640.8383779971373,"d":"Rp640.84"}},{"$f":"IFERROR(IF(PinjamanBelumDibayar*PinjamanAman,AngsuranBulanan,0), 0)","v":{"v":108.52627796048073,"d":"Rp108.53"}},{"$f":"IFERROR(IF(PinjamanBelumDibayar*PinjamanAman,Pinjaman_Pokok,0), 0)","v":{"v":105.58910206132707,"d":"Rp105.59"}},{"$f":"IFERROR(IF(PinjamanBelumDibayar*PinjamanAman,JmlBunga,0), 0)","v":{"v":2.9371758991536607,"d":"Rp2.94"}},{"$f":"IFERROR(IF(PinjamanBelumDibayar*PinjamanAman,SaldoAkhir,0), 0)","v":{"v":535.2492759358101,"d":"Rp535.25"}}]
[null,{"$f":"IFERROR(IF(PinjamanBelumDibayar*PinjamanAman,NomorPembayaran,\"\"), \"\")","v":116},{"$f":"IFERROR(IF(PinjamanBelumDibayar*PinjamanAman,TanggalPembayaran,TanggalMulaiPinjaman), TanggalMulaiPinjaman)","v":"2029-03-18"},{"$f":"IFERROR(IF(PinjamanBelumDibayar*PinjamanAman,NilaiPinjaman,\"\"), \"\")","v":{"v":535.2492759358101,"d":"Rp535.25"}},{"$f":"IFERROR(IF(PinjamanBelumDibayar*PinjamanAman,AngsuranBulanan,0), 0)","v":{"v":108.52627796048073,"d":"Rp108.53"}},{"$f":"IFERROR(IF(PinjamanBelumDibayar*PinjamanAman,Pinjaman_Pokok,0), 0)","v":{"v":106.07305211244147,"d":"Rp106.07"}},{"$f":"IFERROR(IF(PinjamanBelumDibayar*PinjamanAman,JmlBunga,0), 0)","v":{"v":2.4532258480392444,"d":"Rp2.45"}},{"$f":"IFERROR(IF(PinjamanBelumDibayar*PinjamanAman,SaldoAkhir,0), 0)","v":{"v":429.1762238233714,"d":"Rp429.18"}}]
[null,{"$f":"IFERROR(IF(PinjamanBelumDibayar*PinjamanAman,NomorPembayaran,\"\"), \"\")","v":117},{"$f":"IFERROR(IF(PinjamanBelumDibayar*PinjamanAman,TanggalPembayaran,TanggalMulaiPinjaman), TanggalMulaiPinjaman)","v":"2029-04-18"},{"$f":"IFERROR(IF(PinjamanBelumDibayar*PinjamanAman,NilaiPinjaman,\"\"), \"\")","v":{"v":429.1762238233714,"d":"Rp429.18"}},{"$f":"IFERROR(IF(PinjamanBelumDibayar*PinjamanAman,AngsuranBulanan,0), 0)","v":{"v":108.52627796048073,"d":"Rp108.53"}},{"$f":"IFERROR(IF(PinjamanBelumDibayar*PinjamanAman,Pinjaman_Pokok,0), 0)","v":{"v":106.55922026795685,"d":"Rp106.56"}},{"$f":"IFERROR(IF(PinjamanBelumDibayar*PinjamanAman,JmlBunga,0), 0)","v":{"v":1.9670576925238876,"d":"Rp1.97"}},{"$f":"IFERROR(IF(PinjamanBelumDibayar*PinjamanAman,SaldoAkhir,0), 0)","v":{"v":322.61700355541325,"d":"Rp322.62"}}]
[null,{"$f":"IFERROR(IF(PinjamanBelumDibayar*PinjamanAman,NomorPembayaran,\"\"), \"\")","v":118},{"$f":"IFERROR(IF(PinjamanBelumDibayar*PinjamanAman,TanggalPembayaran,TanggalMulaiPinjaman), TanggalMulaiPinjaman)","v":"2029-05-18"},{"$f":"IFERROR(IF(PinjamanBelumDibayar*PinjamanAman,NilaiPinjaman,\"\"), \"\")","v":{"v":322.61700355541325,"d":"Rp322.62"}},{"$f":"IFERROR(IF(PinjamanBelumDibayar*PinjamanAman,AngsuranBulanan,0), 0)","v":{"v":108.52627796048073,"d":"Rp108.53"}},{"$f":"IFERROR(IF(PinjamanBelumDibayar*PinjamanAman,Pinjaman_Pokok,0), 0)","v":{"v":107.04761669418498,"d":"Rp107.05"}},{"$f":"IFERROR(IF(PinjamanBelumDibayar*PinjamanAman,JmlBunga,0), 0)","v":{"v":1.4786612662957521,"d":"Rp1.48"}},{"$f":"IFERROR(IF(PinjamanBelumDibayar*PinjamanAman,SaldoAkhir,0), 0)","v":{"v":215.5693868612252,"d":"Rp215.57"}}]
[null,{"$f":"IFERROR(IF(PinjamanBelumDibayar*PinjamanAman,NomorPembayaran,\"\"), \"\")","v":119},{"$f":"IFERROR(IF(PinjamanBelumDibayar*PinjamanAman,TanggalPembayaran,TanggalMulaiPinjaman), TanggalMulaiPinjaman)","v":"2029-06-18"},{"$f":"IFERROR(IF(PinjamanBelumDibayar*PinjamanAman,NilaiPinjaman,\"\"), \"\")","v":{"v":215.5693868612252,"d":"Rp215.57"}},{"$f":"IFERROR(IF(PinjamanBelumDibayar*PinjamanAman,AngsuranBulanan,0), 0)","v":{"v":108.52627796048073,"d":"Rp108.53"}},{"$f":"IFERROR(IF(PinjamanBelumDibayar*PinjamanAman,Pinjaman_Pokok,0), 0)","v":{"v":107.5382516040333,"d":"Rp107.54"}},{"$f":"IFERROR(IF(PinjamanBelumDibayar*PinjamanAman,JmlBunga,0), 0)","v":{"v":0.9880263564474041,"d":"Rp0.99"}},{"$f":"IFERROR(IF(PinjamanBelumDibayar*PinjamanAman,SaldoAkhir,0), 0)","v":{"v":108.03113525719527,"d":"Rp108.03"}}]
[null,{"$f":"IFERROR(IF(PinjamanBelumDibayar*PinjamanAman,NomorPembayaran,\"\"), \"\")","v":120},{"$f":"IFERROR(IF(PinjamanBelumDibayar*PinjamanAman,TanggalPembayaran,TanggalMulaiPinjaman), TanggalMulaiPinjaman)","v":"2029-07-18"},{"$f":"IFERROR(IF(PinjamanBelumDibayar*PinjamanAman,NilaiPinjaman,\"\"), \"\")","v":{"v":108.03113525719527,"d":"Rp108.03"}},{"$f":"IFERROR(IF(PinjamanBelumDibayar*PinjamanAman,AngsuranBulanan,0), 0)","v":{"v":108.52627796048073,"d":"Rp108.53"}},{"$f":"IFERROR(IF(PinjamanBelumDibayar*PinjamanAman,Pinjaman_Pokok,0), 0)","v":{"v":108.03113525721848,"d":"Rp108.03"}},{"$f":"IFERROR(IF(PinjamanBelumDibayar*PinjamanAman,JmlBunga,0), 0)","v":{"v":0.49514270326225146,"d":"Rp0.50"}},{"$f":"IFERROR(IF(PinjamanBelumDibayar*PinjamanAman,SaldoAkhir,0), 0)","v":{"v":-2.546585164964199e-11,"d":"-Rp0.00"}}]
[null,{"$f":"IFERROR(IF(PinjamanBelumDibayar*PinjamanAman,NomorPembayaran,\"\"), \"\")","v":""},{"$f":"IFERROR(IF(PinjamanBelumDibayar*PinjamanAman,TanggalPembayaran,TanggalMulaiPinjaman), TanggalMulaiPinjaman)","v":"2019-07-18"},{"$f":"IFERROR(IF(PinjamanBelumDibayar*PinjamanAman,NilaiPinjaman,\"\"), \"\")","v":""},{"$f":"IFERROR(IF(PinjamanBelumDibayar*PinjamanAman,AngsuranBulanan,0), 0)","v":{"v":0,"d":"Rp0.00"}},{"$f":"IFERROR(IF(PinjamanBelumDibayar*PinjamanAman,Pinjaman_Pokok,0), 0)","v":{"v":0,"d":"Rp0.00"}},{"$f":"IFERROR(IF(PinjamanBelumDibayar*PinjamanAman,JmlBunga,0), 0)","v":{"v":0,"d":"Rp0.00"}},{"$f":"IFERROR(IF(PinjamanBelumDibayar*PinjamanAman,SaldoAkhir,0), 0)","v":{"v":0,"d":"Rp0.00"}}]
[null,{"$f":"IFERROR(IF(PinjamanBelumDibayar*PinjamanAman,NomorPembayaran,\"\"), \"\")","v":""},{"$f":"IFERROR(IF(PinjamanBelumDibayar*PinjamanAman,TanggalPembayaran,TanggalMulaiPinjaman), TanggalMulaiPinjaman)","v":"2019-07-18"},{"$f":"IFERROR(IF(PinjamanBelumDibayar*PinjamanAman,NilaiPinjaman,\"\"), \"\")","v":""},{"$f":"IFERROR(IF(PinjamanBelumDibayar*PinjamanAman,AngsuranBulanan,0), 0)","v":{"v":0,"d":"Rp0.00"}},{"$f":"IFERROR(IF(PinjamanBelumDibayar*PinjamanAman,Pinjaman_Pokok,0), 0)","v":{"v":0,"d":"Rp0.00"}},{"$f":"IFERROR(IF(PinjamanBelumDibayar*PinjamanAman,JmlBunga,0), 0)","v":{"v":0,"d":"Rp0.00"}},{"$f":"IFERROR(IF(PinjamanBelumDibayar*PinjamanAman,SaldoAkhir,0), 0)","v":{"v":0,"d":"Rp0.00"}}]
[null,{"$f":"IFERROR(IF(PinjamanBelumDibayar*PinjamanAman,NomorPembayaran,\"\"), \"\")","v":""},{"$f":"IFERROR(IF(PinjamanBelumDibayar*PinjamanAman,TanggalPembayaran,TanggalMulaiPinjaman), TanggalMulaiPinjaman)","v":"2019-07-18"},{"$f":"IFERROR(IF(PinjamanBelumDibayar*PinjamanAman,NilaiPinjaman,\"\"), \"\")","v":""},{"$f":"IFERROR(IF(PinjamanBelumDibayar*PinjamanAman,AngsuranBulanan,0), 0)","v":{"v":0,"d":"Rp0.00"}},{"$f":"IFERROR(IF(PinjamanBelumDibayar*PinjamanAman,Pinjaman_Pokok,0), 0)","v":{"v":0,"d":"Rp0.00"}},{"$f":"IFERROR(IF(PinjamanBelumDibayar*PinjamanAman,JmlBunga,0), 0)","v":{"v":0,"d":"Rp0.00"}},{"$f":"IFERROR(IF(PinjamanBelumDibayar*PinjamanAman,SaldoAkhir,0), 0)","v":{"v":0,"d":"Rp0.00"}}]
[null,{"$f":"IFERROR(IF(PinjamanBelumDibayar*PinjamanAman,NomorPembayaran,\"\"), \"\")","v":""},{"$f":"IFERROR(IF(PinjamanBelumDibayar*PinjamanAman,TanggalPembayaran,TanggalMulaiPinjaman), TanggalMulaiPinjaman)","v":"2019-07-18"},{"$f":"IFERROR(IF(PinjamanBelumDibayar*PinjamanAman,NilaiPinjaman,\"\"), \"\")","v":""},{"$f":"IFERROR(IF(PinjamanBelumDibayar*PinjamanAman,AngsuranBulanan,0), 0)","v":{"v":0,"d":"Rp0.00"}},{"$f":"IFERROR(IF(PinjamanBelumDibayar*PinjamanAman,Pinjaman_Pokok,0), 0)","v":{"v":0,"d":"Rp0.00"}},{"$f":"IFERROR(IF(PinjamanBelumDibayar*PinjamanAman,JmlBunga,0), 0)","v":{"v":0,"d":"Rp0.00"}},{"$f":"IFERROR(IF(PinjamanBelumDibayar*PinjamanAman,SaldoAkhir,0), 0)","v":{"v":0,"d":"Rp0.00"}}]
[null,{"$f":"IFERROR(IF(PinjamanBelumDibayar*PinjamanAman,NomorPembayaran,\"\"), \"\")","v":""},{"$f":"IFERROR(IF(PinjamanBelumDibayar*PinjamanAman,TanggalPembayaran,TanggalMulaiPinjaman), TanggalMulaiPinjaman)","v":"2019-07-18"},{"$f":"IFERROR(IF(PinjamanBelumDibayar*PinjamanAman,NilaiPinjaman,\"\"), \"\")","v":""},{"$f":"IFERROR(IF(PinjamanBelumDibayar*PinjamanAman,AngsuranBulanan,0), 0)","v":{"v":0,"d":"Rp0.00"}},{"$f":"IFERROR(IF(PinjamanBelumDibayar*PinjamanAman,Pinjaman_Pokok,0), 0)","v":{"v":0,"d":"Rp0.00"}},{"$f":"IFERROR(IF(PinjamanBelumDibayar*PinjamanAman,JmlBunga,0), 0)","v":{"v":0,"d":"Rp0.00"}},{"$f":"IFERROR(IF(PinjamanBelumDibayar*PinjamanAman,SaldoAkhir,0), 0)","v":{"v":0,"d":"Rp0.00"}}]
[null,{"$f":"IFERROR(IF(PinjamanBelumDibayar*PinjamanAman,NomorPembayaran,\"\"), \"\")","v":""},{"$f":"IFERROR(IF(PinjamanBelumDibayar*PinjamanAman,TanggalPembayaran,TanggalMulaiPinjaman), TanggalMulaiPinjaman)","v":"2019-07-18"},{"$f":"IFERROR(IF(PinjamanBelumDibayar*PinjamanAman,NilaiPinjaman,\"\"), \"\")","v":""},{"$f":"IFERROR(IF(PinjamanBelumDibayar*PinjamanAman,AngsuranBulanan,0), 0)","v":{"v":0,"d":"Rp0.00"}},{"$f":"IFERROR(IF(PinjamanBelumDibayar*PinjamanAman,Pinjaman_Pokok,0), 0)","v":{"v":0,"d":"Rp0.00"}},{"$f":"IFERROR(IF(PinjamanBelumDibayar*PinjamanAman,JmlBunga,0), 0)","v":{"v":0,"d":"Rp0.00"}},{"$f":"IFERROR(IF(PinjamanBelumDibayar*PinjamanAman,SaldoAkhir,0), 0)","v":{"v":0,"d":"Rp0.00"}}]
[null,{"$f":"IFERROR(IF(PinjamanBelumDibayar*PinjamanAman,NomorPembayaran,\"\"), \"\")","v":""},{"$f":"IFERROR(IF(PinjamanBelumDibayar*PinjamanAman,TanggalPembayaran,TanggalMulaiPinjaman), TanggalMulaiPinjaman)","v":"2019-07-18"},{"$f":"IFERROR(IF(PinjamanBelumDibayar*PinjamanAman,NilaiPinjaman,\"\"), \"\")","v":""},{"$f":"IFERROR(IF(PinjamanBelumDibayar*PinjamanAman,AngsuranBulanan,0), 0)","v":{"v":0,"d":"Rp0.00"}},{"$f":"IFERROR(IF(PinjamanBelumDibayar*PinjamanAman,Pinjaman_Pokok,0), 0)","v":{"v":0,"d":"Rp0.00"}},{"$f":"IFERROR(IF(PinjamanBelumDibayar*PinjamanAman,JmlBunga,0), 0)","v":{"v":0,"d":"Rp0.00"}},{"$f":"IFERROR(IF(PinjamanBelumDibayar*PinjamanAman,SaldoAkhir,0), 0)","v":{"v":0,"d":"Rp0.00"}}]
[null,{"$f":"IFERROR(IF(PinjamanBelumDibayar*PinjamanAman,NomorPembayaran,\"\"), \"\")","v":""},{"$f":"IFERROR(IF(PinjamanBelumDibayar*PinjamanAman,TanggalPembayaran,TanggalMulaiPinjaman), TanggalMulaiPinjaman)","v":"2019-07-18"},{"$f":"IFERROR(IF(PinjamanBelumDibayar*PinjamanAman,NilaiPinjaman,\"\"), \"\")","v":""},{"$f":"IFERROR(IF(PinjamanBelumDibayar*PinjamanAman,AngsuranBulanan,0), 0)","v":{"v":0,"d":"Rp0.00"}},{"$f":"IFERROR(IF(PinjamanBelumDibayar*PinjamanAman,Pinjaman_Pokok,0), 0)","v":{"v":0,"d":"Rp0.00"}},{"$f":"IFERROR(IF(PinjamanBelumDibayar*PinjamanAman,JmlBunga,0), 0)","v":{"v":0,"d":"Rp0.00"}},{"$f":"IFERROR(IF(PinjamanBelumDibayar*PinjamanAman,SaldoAkhir,0), 0)","v":{"v":0,"d":"Rp0.00"}}]
[null,{"$f":"IFERROR(IF(PinjamanBelumDibayar*PinjamanAman,NomorPembayaran,\"\"), \"\")","v":""},{"$f":"IFERROR(IF(PinjamanBelumDibayar*PinjamanAman,TanggalPembayaran,TanggalMulaiPinjaman), TanggalMulaiPinjaman)","v":"2019-07-18"},{"$f":"IFERROR(IF(PinjamanBelumDibayar*PinjamanAman,NilaiPinjaman,\"\"), \"\")","v":""},{"$f":"IFERROR(IF(PinjamanBelumDibayar*PinjamanAman,AngsuranBulanan,0), 0)","v":{"v":0,"d":"Rp0.00"}},{"$f":"IFERROR(IF(PinjamanBelumDibayar*PinjamanAman,Pinjaman_Pokok,0), 0)","v":{"v":0,"d":"Rp0.00"}},{"$f":"IFERROR(IF(PinjamanBelumDibayar*PinjamanAman,JmlBunga,0), 0)","v":{"v":0,"d":"Rp0.00"}},{"$f":"IFERROR(IF(PinjamanBelumDibayar*PinjamanAman,SaldoAkhir,0), 0)","v":{"v":0,"d":"Rp0.00"}}]
[null,{"$f":"IFERROR(IF(PinjamanBelumDibayar*PinjamanAman,NomorPembayaran,\"\"), \"\")","v":""},{"$f":"IFERROR(IF(PinjamanBelumDibayar*PinjamanAman,TanggalPembayaran,TanggalMulaiPinjaman), TanggalMulaiPinjaman)","v":"2019-07-18"},{"$f":"IFERROR(IF(PinjamanBelumDibayar*PinjamanAman,NilaiPinjaman,\"\"), \"\")","v":""},{"$f":"IFERROR(IF(PinjamanBelumDibayar*PinjamanAman,AngsuranBulanan,0), 0)","v":{"v":0,"d":"Rp0.00"}},{"$f":"IFERROR(IF(PinjamanBelumDibayar*PinjamanAman,Pinjaman_Pokok,0), 0)","v":{"v":0,"d":"Rp0.00"}},{"$f":"IFERROR(IF(PinjamanBelumDibayar*PinjamanAman,JmlBunga,0), 0)","v":{"v":0,"d":"Rp0.00"}},{"$f":"IFERROR(IF(PinjamanBelumDibayar*PinjamanAman,SaldoAkhir,0), 0)","v":{"v":0,"d":"Rp0.00"}}]
[null,{"$f":"IFERROR(IF(PinjamanBelumDibayar*PinjamanAman,NomorPembayaran,\"\"), \"\")","v":""},{"$f":"IFERROR(IF(PinjamanBelumDibayar*PinjamanAman,TanggalPembayaran,TanggalMulaiPinjaman), TanggalMulaiPinjaman)","v":"2019-07-18"},{"$f":"IFERROR(IF(PinjamanBelumDibayar*PinjamanAman,NilaiPinjaman,\"\"), \"\")","v":""},{"$f":"IFERROR(IF(PinjamanBelumDibayar*PinjamanAman,AngsuranBulanan,0), 0)","v":{"v":0,"d":"Rp0.00"}},{"$f":"IFERROR(IF(PinjamanBelumDibayar*PinjamanAman,Pinjaman_Pokok,0), 0)","v":{"v":0,"d":"Rp0.00"}},{"$f":"IFERROR(IF(PinjamanBelumDibayar*PinjamanAman,JmlBunga,0), 0)","v":{"v":0,"d":"Rp0.00"}},{"$f":"IFERROR(IF(PinjamanBelumDibayar*PinjamanAman,SaldoAkhir,0), 0)","v":{"v":0,"d":"Rp0.00"}}]
[null,{"$f":"IFERROR(IF(PinjamanBelumDibayar*PinjamanAman,NomorPembayaran,\"\"), \"\")","v":""},{"$f":"IFERROR(IF(PinjamanBelumDibayar*PinjamanAman,TanggalPembayaran,TanggalMulaiPinjaman), TanggalMulaiPinjaman)","v":"2019-07-18"},{"$f":"IFERROR(IF(PinjamanBelumDibayar*PinjamanAman,NilaiPinjaman,\"\"), \"\")","v":""},{"$f":"IFERROR(IF(PinjamanBelumDibayar*PinjamanAman,AngsuranBulanan,0), 0)","v":{"v":0,"d":"Rp0.00"}},{"$f":"IFERROR(IF(PinjamanBelumDibayar*PinjamanAman,Pinjaman_Pokok,0), 0)","v":{"v":0,"d":"Rp0.00"}},{"$f":"IFERROR(IF(PinjamanBelumDibayar*PinjamanAman,JmlBunga,0), 0)","v":{"v":0,"d":"Rp0.00"}},{"$f":"IFERROR(IF(PinjamanBelumDibayar*PinjamanAman,SaldoAkhir,0), 0)","v":{"v":0,"d":"Rp0.00"}}]
[null,{"$f":"IFERROR(IF(PinjamanBelumDibayar*PinjamanAman,NomorPembayaran,\"\"), \"\")","v":""},{"$f":"IFERROR(IF(PinjamanBelumDibayar*PinjamanAman,TanggalPembayaran,TanggalMulaiPinjaman), TanggalMulaiPinjaman)","v":"2019-07-18"},{"$f":"IFERROR(IF(PinjamanBelumDibayar*PinjamanAman,NilaiPinjaman,\"\"), \"\")","v":""},{"$f":"IFERROR(IF(PinjamanBelumDibayar*PinjamanAman,AngsuranBulanan,0), 0)","v":{"v":0,"d":"Rp0.00"}},{"$f":"IFERROR(IF(PinjamanBelumDibayar*PinjamanAman,Pinjaman_Pokok,0), 0)","v":{"v":0,"d":"Rp0.00"}},{"$f":"IFERROR(IF(PinjamanBelumDibayar*PinjamanAman,JmlBunga,0), 0)","v":{"v":0,"d":"Rp0.00"}},{"$f":"IFERROR(IF(PinjamanBelumDibayar*PinjamanAman,SaldoAkhir,0), 0)","v":{"v":0,"d":"Rp0.00"}}]
[null,{"$f":"IFERROR(IF(PinjamanBelumDibayar*PinjamanAman,NomorPembayaran,\"\"), \"\")","v":""},{"$f":"IFERROR(IF(PinjamanBelumDibayar*PinjamanAman,TanggalPembayaran,TanggalMulaiPinjaman), TanggalMulaiPinjaman)","v":"2019-07-18"},{"$f":"IFERROR(IF(PinjamanBelumDibayar*PinjamanAman,NilaiPinjaman,\"\"), \"\")","v":""},{"$f":"IFERROR(IF(PinjamanBelumDibayar*PinjamanAman,AngsuranBulanan,0), 0)","v":{"v":0,"d":"Rp0.00"}},{"$f":"IFERROR(IF(PinjamanBelumDibayar*PinjamanAman,Pinjaman_Pokok,0), 0)","v":{"v":0,"d":"Rp0.00"}},{"$f":"IFERROR(IF(PinjamanBelumDibayar*PinjamanAman,JmlBunga,0), 0)","v":{"v":0,"d":"Rp0.00"}},{"$f":"IFERROR(IF(PinjamanBelumDibayar*PinjamanAman,SaldoAkhir,0), 0)","v":{"v":0,"d":"Rp0.00"}}]
[null,{"$f":"IFERROR(IF(PinjamanBelumDibayar*PinjamanAman,NomorPembayaran,\"\"), \"\")","v":""},{"$f":"IFERROR(IF(PinjamanBelumDibayar*PinjamanAman,TanggalPembayaran,TanggalMulaiPinjaman), TanggalMulaiPinjaman)","v":"2019-07-18"},{"$f":"IFERROR(IF(PinjamanBelumDibayar*PinjamanAman,NilaiPinjaman,\"\"), \"\")","v":""},{"$f":"IFERROR(IF(PinjamanBelumDibayar*PinjamanAman,AngsuranBulanan,0), 0)","v":{"v":0,"d":"Rp0.00"}},{"$f":"IFERROR(IF(PinjamanBelumDibayar*PinjamanAman,Pinjaman_Pokok,0), 0)","v":{"v":0,"d":"Rp0.00"}},{"$f":"IFERROR(IF(PinjamanBelumDibayar*PinjamanAman,JmlBunga,0), 0)","v":{"v":0,"d":"Rp0.00"}},{"$f":"IFERROR(IF(PinjamanBelumDibayar*PinjamanAman,SaldoAkhir,0), 0)","v":{"v":0,"d":"Rp0.00"}}]
[null,{"$f":"IFERROR(IF(PinjamanBelumDibayar*PinjamanAman,NomorPembayaran,\"\"), \"\")","v":""},{"$f":"IFERROR(IF(PinjamanBelumDibayar*PinjamanAman,TanggalPembayaran,TanggalMulaiPinjaman), TanggalMulaiPinjaman)","v":"2019-07-18"},{"$f":"IFERROR(IF(PinjamanBelumDibayar*PinjamanAman,NilaiPinjaman,\"\"), \"\")","v":""},{"$f":"IFERROR(IF(PinjamanBelumDibayar*PinjamanAman,AngsuranBulanan,0), 0)","v":{"v":0,"d":"Rp0.00"}},{"$f":"IFERROR(IF(PinjamanBelumDibayar*PinjamanAman,Pinjaman_Pokok,0), 0)","v":{"v":0,"d":"Rp0.00"}},{"$f":"IFERROR(IF(PinjamanBelumDibayar*PinjamanAman,JmlBunga,0), 0)","v":{"v":0,"d":"Rp0.00"}},{"$f":"IFERROR(IF(PinjamanBelumDibayar*PinjamanAman,SaldoAkhir,0), 0)","v":{"v":0,"d":"Rp0.00"}}]
[null,{"$f":"IFERROR(IF(PinjamanBelumDibayar*PinjamanAman,NomorPembayaran,\"\"), \"\")","v":""},{"$f":"IFERROR(IF(PinjamanBelumDibayar*PinjamanAman,TanggalPembayaran,TanggalMulaiPinjaman), TanggalMulaiPinjaman)","v":"2019-07-18"},{"$f":"IFERROR(IF(PinjamanBelumDibayar*PinjamanAman,NilaiPinjaman,\"\"), \"\")","v":""},{"$f":"IFERROR(IF(PinjamanBelumDibayar*PinjamanAman,AngsuranBulanan,0), 0)","v":{"v":0,"d":"Rp0.00"}},{"$f":"IFERROR(IF(PinjamanBelumDibayar*PinjamanAman,Pinjaman_Pokok,0), 0)","v":{"v":0,"d":"Rp0.00"}},{"$f":"IFERROR(IF(PinjamanBelumDibayar*PinjamanAman,JmlBunga,0), 0)","v":{"v":0,"d":"Rp0.00"}},{"$f":"IFERROR(IF(PinjamanBelumDibayar*PinjamanAman,SaldoAkhir,0), 0)","v":{"v":0,"d":"Rp0.00"}}]
[null,{"$f":"IFERROR(IF(PinjamanBelumDibayar*PinjamanAman,NomorPembayaran,\"\"), \"\")","v":""},{"$f":"IFERROR(IF(PinjamanBelumDibayar*PinjamanAman,TanggalPembayaran,TanggalMulaiPinjaman), TanggalMulaiPinjaman)","v":"2019-07-18"},{"$f":"IFERROR(IF(PinjamanBelumDibayar*PinjamanAman,NilaiPinjaman,\"\"), \"\")","v":""},{"$f":"IFERROR(IF(PinjamanBelumDibayar*PinjamanAman,AngsuranBulanan,0), 0)","v":{"v":0,"d":"Rp0.00"}},{"$f":"IFERROR(IF(PinjamanBelumDibayar*PinjamanAman,Pinjaman_Pokok,0), 0)","v":{"v":0,"d":"Rp0.00"}},{"$f":"IFERROR(IF(PinjamanBelumDibayar*PinjamanAman,JmlBunga,0), 0)","v":{"v":0,"d":"Rp0.00"}},{"$f":"IFERROR(IF(PinjamanBelumDibayar*PinjamanAman,SaldoAkhir,0), 0)","v":{"v":0,"d":"Rp0.00"}}]
[null,{"$f":"IFERROR(IF(PinjamanBelumDibayar*PinjamanAman,NomorPembayaran,\"\"), \"\")","v":""},{"$f":"IFERROR(IF(PinjamanBelumDibayar*PinjamanAman,TanggalPembayaran,TanggalMulaiPinjaman), TanggalMulaiPinjaman)","v":"2019-07-18"},{"$f":"IFERROR(IF(PinjamanBelumDibayar*PinjamanAman,NilaiPinjaman,\"\"), \"\")","v":""},{"$f":"IFERROR(IF(PinjamanBelumDibayar*PinjamanAman,AngsuranBulanan,0), 0)","v":{"v":0,"d":"Rp0.00"}},{"$f":"IFERROR(IF(PinjamanBelumDibayar*PinjamanAman,Pinjaman_Pokok,0), 0)","v":{"v":0,"d":"Rp0.00"}},{"$f":"IFERROR(IF(PinjamanBelumDibayar*PinjamanAman,JmlBunga,0), 0)","v":{"v":0,"d":"Rp0.00"}},{"$f":"IFERROR(IF(PinjamanBelumDibayar*PinjamanAman,SaldoAkhir,0), 0)","v":{"v":0,"d":"Rp0.00"}}]
[null,{"$f":"IFERROR(IF(PinjamanBelumDibayar*PinjamanAman,NomorPembayaran,\"\"), \"\")","v":""},{"$f":"IFERROR(IF(PinjamanBelumDibayar*PinjamanAman,TanggalPembayaran,TanggalMulaiPinjaman), TanggalMulaiPinjaman)","v":"2019-07-18"},{"$f":"IFERROR(IF(PinjamanBelumDibayar*PinjamanAman,NilaiPinjaman,\"\"), \"\")","v":""},{"$f":"IFERROR(IF(PinjamanBelumDibayar*PinjamanAman,AngsuranBulanan,0), 0)","v":{"v":0,"d":"Rp0.00"}},{"$f":"IFERROR(IF(PinjamanBelumDibayar*PinjamanAman,Pinjaman_Pokok,0), 0)","v":{"v":0,"d":"Rp0.00"}},{"$f":"IFERROR(IF(PinjamanBelumDibayar*PinjamanAman,JmlBunga,0), 0)","v":{"v":0,"d":"Rp0.00"}},{"$f":"IFERROR(IF(PinjamanBelumDibayar*PinjamanAman,SaldoAkhir,0), 0)","v":{"v":0,"d":"Rp0.00"}}]
[null,{"$f":"IFERROR(IF(PinjamanBelumDibayar*PinjamanAman,NomorPembayaran,\"\"), \"\")","v":""},{"$f":"IFERROR(IF(PinjamanBelumDibayar*PinjamanAman,TanggalPembayaran,TanggalMulaiPinjaman), TanggalMulaiPinjaman)","v":"2019-07-18"},{"$f":"IFERROR(IF(PinjamanBelumDibayar*PinjamanAman,NilaiPinjaman,\"\"), \"\")","v":""},{"$f":"IFERROR(IF(PinjamanBelumDibayar*PinjamanAman,AngsuranBulanan,0), 0)","v":{"v":0,"d":"Rp0.00"}},{"$f":"IFERROR(IF(PinjamanBelumDibayar*PinjamanAman,Pinjaman_Pokok,0), 0)","v":{"v":0,"d":"Rp0.00"}},{"$f":"IFERROR(IF(PinjamanBelumDibayar*PinjamanAman,JmlBunga,0), 0)","v":{"v":0,"d":"Rp0.00"}},{"$f":"IFERROR(IF(PinjamanBelumDibayar*PinjamanAman,SaldoAkhir,0), 0)","v":{"v":0,"d":"Rp0.00"}}]
[null,{"$f":"IFERROR(IF(PinjamanBelumDibayar*PinjamanAman,NomorPembayaran,\"\"), \"\")","v":""},{"$f":"IFERROR(IF(PinjamanBelumDibayar*PinjamanAman,TanggalPembayaran,TanggalMulaiPinjaman), TanggalMulaiPinjaman)","v":"2019-07-18"},{"$f":"IFERROR(IF(PinjamanBelumDibayar*PinjamanAman,NilaiPinjaman,\"\"), \"\")","v":""},{"$f":"IFERROR(IF(PinjamanBelumDibayar*PinjamanAman,AngsuranBulanan,0), 0)","v":{"v":0,"d":"Rp0.00"}},{"$f":"IFERROR(IF(PinjamanBelumDibayar*PinjamanAman,Pinjaman_Pokok,0), 0)","v":{"v":0,"d":"Rp0.00"}},{"$f":"IFERROR(IF(PinjamanBelumDibayar*PinjamanAman,JmlBunga,0), 0)","v":{"v":0,"d":"Rp0.00"}},{"$f":"IFERROR(IF(PinjamanBelumDibayar*PinjamanAman,SaldoAkhir,0), 0)","v":{"v":0,"d":"Rp0.00"}}]
[null,{"$f":"IFERROR(IF(PinjamanBelumDibayar*PinjamanAman,NomorPembayaran,\"\"), \"\")","v":""},{"$f":"IFERROR(IF(PinjamanBelumDibayar*PinjamanAman,TanggalPembayaran,TanggalMulaiPinjaman), TanggalMulaiPinjaman)","v":"2019-07-18"},{"$f":"IFERROR(IF(PinjamanBelumDibayar*PinjamanAman,NilaiPinjaman,\"\"), \"\")","v":""},{"$f":"IFERROR(IF(PinjamanBelumDibayar*PinjamanAman,AngsuranBulanan,0), 0)","v":{"v":0,"d":"Rp0.00"}},{"$f":"IFERROR(IF(PinjamanBelumDibayar*PinjamanAman,Pinjaman_Pokok,0), 0)","v":{"v":0,"d":"Rp0.00"}},{"$f":"IFERROR(IF(PinjamanBelumDibayar*PinjamanAman,JmlBunga,0), 0)","v":{"v":0,"d":"Rp0.00"}},{"$f":"IFERROR(IF(PinjamanBelumDibayar*PinjamanAman,SaldoAkhir,0), 0)","v":{"v":0,"d":"Rp0.00"}}]
[null,{"$f":"IFERROR(IF(PinjamanBelumDibayar*PinjamanAman,NomorPembayaran,\"\"), \"\")","v":""},{"$f":"IFERROR(IF(PinjamanBelumDibayar*PinjamanAman,TanggalPembayaran,TanggalMulaiPinjaman), TanggalMulaiPinjaman)","v":"2019-07-18"},{"$f":"IFERROR(IF(PinjamanBelumDibayar*PinjamanAman,NilaiPinjaman,\"\"), \"\")","v":""},{"$f":"IFERROR(IF(PinjamanBelumDibayar*PinjamanAman,AngsuranBulanan,0), 0)","v":{"v":0,"d":"Rp0.00"}},{"$f":"IFERROR(IF(PinjamanBelumDibayar*PinjamanAman,Pinjaman_Pokok,0), 0)","v":{"v":0,"d":"Rp0.00"}},{"$f":"IFERROR(IF(PinjamanBelumDibayar*PinjamanAman,JmlBunga,0), 0)","v":{"v":0,"d":"Rp0.00"}},{"$f":"IFERROR(IF(PinjamanBelumDibayar*PinjamanAman,SaldoAkhir,0), 0)","v":{"v":0,"d":"Rp0.00"}}]
[null,{"$f":"IFERROR(IF(PinjamanBelumDibayar*PinjamanAman,NomorPembayaran,\"\"), \"\")","v":""},{"$f":"IFERROR(IF(PinjamanBelumDibayar*PinjamanAman,TanggalPembayaran,TanggalMulaiPinjaman), TanggalMulaiPinjaman)","v":"2019-07-18"},{"$f":"IFERROR(IF(PinjamanBelumDibayar*PinjamanAman,NilaiPinjaman,\"\"), \"\")","v":""},{"$f":"IFERROR(IF(PinjamanBelumDibayar*PinjamanAman,AngsuranBulanan,0), 0)","v":{"v":0,"d":"Rp0.00"}},{"$f":"IFERROR(IF(PinjamanBelumDibayar*PinjamanAman,Pinjaman_Pokok,0), 0)","v":{"v":0,"d":"Rp0.00"}},{"$f":"IFERROR(IF(PinjamanBelumDibayar*PinjamanAman,JmlBunga,0), 0)","v":{"v":0,"d":"Rp0.00"}},{"$f":"IFERROR(IF(PinjamanBelumDibayar*PinjamanAman,SaldoAkhir,0), 0)","v":{"v":0,"d":"Rp0.00"}}]
[null,{"$f":"IFERROR(IF(PinjamanBelumDibayar*PinjamanAman,NomorPembayaran,\"\"), \"\")","v":""},{"$f":"IFERROR(IF(PinjamanBelumDibayar*PinjamanAman,TanggalPembayaran,TanggalMulaiPinjaman), TanggalMulaiPinjaman)","v":"2019-07-18"},{"$f":"IFERROR(IF(PinjamanBelumDibayar*PinjamanAman,NilaiPinjaman,\"\"), \"\")","v":""},{"$f":"IFERROR(IF(PinjamanBelumDibayar*PinjamanAman,AngsuranBulanan,0), 0)","v":{"v":0,"d":"Rp0.00"}},{"$f":"IFERROR(IF(PinjamanBelumDibayar*PinjamanAman,Pinjaman_Pokok,0), 0)","v":{"v":0,"d":"Rp0.00"}},{"$f":"IFERROR(IF(PinjamanBelumDibayar*PinjamanAman,JmlBunga,0), 0)","v":{"v":0,"d":"Rp0.00"}},{"$f":"IFERROR(IF(PinjamanBelumDibayar*PinjamanAman,SaldoAkhir,0), 0)","v":{"v":0,"d":"Rp0.00"}}]
[null,{"$f":"IFERROR(IF(PinjamanBelumDibayar*PinjamanAman,NomorPembayaran,\"\"), \"\")","v":""},{"$f":"IFERROR(IF(PinjamanBelumDibayar*PinjamanAman,TanggalPembayaran,TanggalMulaiPinjaman), TanggalMulaiPinjaman)","v":"2019-07-18"},{"$f":"IFERROR(IF(PinjamanBelumDibayar*PinjamanAman,NilaiPinjaman,\"\"), \"\")","v":""},{"$f":"IFERROR(IF(PinjamanBelumDibayar*PinjamanAman,AngsuranBulanan,0), 0)","v":{"v":0,"d":"Rp0.00"}},{"$f":"IFERROR(IF(PinjamanBelumDibayar*PinjamanAman,Pinjaman_Pokok,0), 0)","v":{"v":0,"d":"Rp0.00"}},{"$f":"IFERROR(IF(PinjamanBelumDibayar*PinjamanAman,JmlBunga,0), 0)","v":{"v":0,"d":"Rp0.00"}},{"$f":"IFERROR(IF(PinjamanBelumDibayar*PinjamanAman,SaldoAkhir,0), 0)","v":{"v":0,"d":"Rp0.00"}}]
[null,{"$f":"IFERROR(IF(PinjamanBelumDibayar*PinjamanAman,NomorPembayaran,\"\"), \"\")","v":""},{"$f":"IFERROR(IF(PinjamanBelumDibayar*PinjamanAman,TanggalPembayaran,TanggalMulaiPinjaman), TanggalMulaiPinjaman)","v":"2019-07-18"},{"$f":"IFERROR(IF(PinjamanBelumDibayar*PinjamanAman,NilaiPinjaman,\"\"), \"\")","v":""},{"$f":"IFERROR(IF(PinjamanBelumDibayar*PinjamanAman,AngsuranBulanan,0), 0)","v":{"v":0,"d":"Rp0.00"}},{"$f":"IFERROR(IF(PinjamanBelumDibayar*PinjamanAman,Pinjaman_Pokok,0), 0)","v":{"v":0,"d":"Rp0.00"}},{"$f":"IFERROR(IF(PinjamanBelumDibayar*PinjamanAman,JmlBunga,0), 0)","v":{"v":0,"d":"Rp0.00"}},{"$f":"IFERROR(IF(PinjamanBelumDibayar*PinjamanAman,SaldoAkhir,0), 0)","v":{"v":0,"d":"Rp0.00"}}]
[null,{"$f":"IFERROR(IF(PinjamanBelumDibayar*PinjamanAman,NomorPembayaran,\"\"), \"\")","v":""},{"$f":"IFERROR(IF(PinjamanBelumDibayar*PinjamanAman,TanggalPembayaran,TanggalMulaiPinjaman), TanggalMulaiPinjaman)","v":"2019-07-18"},{"$f":"IFERROR(IF(PinjamanBelumDibayar*PinjamanAman,NilaiPinjaman,\"\"), \"\")","v":""},{"$f":"IFERROR(IF(PinjamanBelumDibayar*PinjamanAman,AngsuranBulanan,0), 0)","v":{"v":0,"d":"Rp0.00"}},{"$f":"IFERROR(IF(PinjamanBelumDibayar*PinjamanAman,Pinjaman_Pokok,0), 0)","v":{"v":0,"d":"Rp0.00"}},{"$f":"IFERROR(IF(PinjamanBelumDibayar*PinjamanAman,JmlBunga,0), 0)","v":{"v":0,"d":"Rp0.00"}},{"$f":"IFERROR(IF(PinjamanBelumDibayar*PinjamanAman,SaldoAkhir,0), 0)","v":{"v":0,"d":"Rp0.00"}}]
[null,{"$f":"IFERROR(IF(PinjamanBelumDibayar*PinjamanAman,NomorPembayaran,\"\"), \"\")","v":""},{"$f":"IFERROR(IF(PinjamanBelumDibayar*PinjamanAman,TanggalPembayaran,TanggalMulaiPinjaman), TanggalMulaiPinjaman)","v":"2019-07-18"},{"$f":"IFERROR(IF(PinjamanBelumDibayar*PinjamanAman,NilaiPinjaman,\"\"), \"\")","v":""},{"$f":"IFERROR(IF(PinjamanBelumDibayar*PinjamanAman,AngsuranBulanan,0), 0)","v":{"v":0,"d":"Rp0.00"}},{"$f":"IFERROR(IF(PinjamanBelumDibayar*PinjamanAman,Pinjaman_Pokok,0), 0)","v":{"v":0,"d":"Rp0.00"}},{"$f":"IFERROR(IF(PinjamanBelumDibayar*PinjamanAman,JmlBunga,0), 0)","v":{"v":0,"d":"Rp0.00"}},{"$f":"IFERROR(IF(PinjamanBelumDibayar*PinjamanAman,SaldoAkhir,0), 0)","v":{"v":0,"d":"Rp0.00"}}]
[null,{"$f":"IFERROR(IF(PinjamanBelumDibayar*PinjamanAman,NomorPembayaran,\"\"), \"\")","v":""},{"$f":"IFERROR(IF(PinjamanBelumDibayar*PinjamanAman,TanggalPembayaran,TanggalMulaiPinjaman), TanggalMulaiPinjaman)","v":"2019-07-18"},{"$f":"IFERROR(IF(PinjamanBelumDibayar*PinjamanAman,NilaiPinjaman,\"\"), \"\")","v":""},{"$f":"IFERROR(IF(PinjamanBelumDibayar*PinjamanAman,AngsuranBulanan,0), 0)","v":{"v":0,"d":"Rp0.00"}},{"$f":"IFERROR(IF(PinjamanBelumDibayar*PinjamanAman,Pinjaman_Pokok,0), 0)","v":{"v":0,"d":"Rp0.00"}},{"$f":"IFERROR(IF(PinjamanBelumDibayar*PinjamanAman,JmlBunga,0), 0)","v":{"v":0,"d":"Rp0.00"}},{"$f":"IFERROR(IF(PinjamanBelumDibayar*PinjamanAman,SaldoAkhir,0), 0)","v":{"v":0,"d":"Rp0.00"}}]
[null,{"$f":"IFERROR(IF(PinjamanBelumDibayar*PinjamanAman,NomorPembayaran,\"\"), \"\")","v":""},{"$f":"IFERROR(IF(PinjamanBelumDibayar*PinjamanAman,TanggalPembayaran,TanggalMulaiPinjaman), TanggalMulaiPinjaman)","v":"2019-07-18"},{"$f":"IFERROR(IF(PinjamanBelumDibayar*PinjamanAman,NilaiPinjaman,\"\"), \"\")","v":""},{"$f":"IFERROR(IF(PinjamanBelumDibayar*PinjamanAman,AngsuranBulanan,0), 0)","v":{"v":0,"d":"Rp0.00"}},{"$f":"IFERROR(IF(PinjamanBelumDibayar*PinjamanAman,Pinjaman_Pokok,0), 0)","v":{"v":0,"d":"Rp0.00"}},{"$f":"IFERROR(IF(PinjamanBelumDibayar*PinjamanAman,JmlBunga,0), 0)","v":{"v":0,"d":"Rp0.00"}},{"$f":"IFERROR(IF(PinjamanBelumDibayar*PinjamanAman,SaldoAkhir,0), 0)","v":{"v":0,"d":"Rp0.00"}}]
[null,{"$f":"IFERROR(IF(PinjamanBelumDibayar*PinjamanAman,NomorPembayaran,\"\"), \"\")","v":""},{"$f":"IFERROR(IF(PinjamanBelumDibayar*PinjamanAman,TanggalPembayaran,TanggalMulaiPinjaman), TanggalMulaiPinjaman)","v":"2019-07-18"},{"$f":"IFERROR(IF(PinjamanBelumDibayar*PinjamanAman,NilaiPinjaman,\"\"), \"\")","v":""},{"$f":"IFERROR(IF(PinjamanBelumDibayar*PinjamanAman,AngsuranBulanan,0), 0)","v":{"v":0,"d":"Rp0.00"}},{"$f":"IFERROR(IF(PinjamanBelumDibayar*PinjamanAman,Pinjaman_Pokok,0), 0)","v":{"v":0,"d":"Rp0.00"}},{"$f":"IFERROR(IF(PinjamanBelumDibayar*PinjamanAman,JmlBunga,0), 0)","v":{"v":0,"d":"Rp0.00"}},{"$f":"IFERROR(IF(PinjamanBelumDibayar*PinjamanAman,SaldoAkhir,0), 0)","v":{"v":0,"d":"Rp0.00"}}]
[null,{"$f":"IFERROR(IF(PinjamanBelumDibayar*PinjamanAman,NomorPembayaran,\"\"), \"\")","v":""},{"$f":"IFERROR(IF(PinjamanBelumDibayar*PinjamanAman,TanggalPembayaran,TanggalMulaiPinjaman), TanggalMulaiPinjaman)","v":"2019-07-18"},{"$f":"IFERROR(IF(PinjamanBelumDibayar*PinjamanAman,NilaiPinjaman,\"\"), \"\")","v":""},{"$f":"IFERROR(IF(PinjamanBelumDibayar*PinjamanAman,AngsuranBulanan,0), 0)","v":{"v":0,"d":"Rp0.00"}},{"$f":"IFERROR(IF(PinjamanBelumDibayar*PinjamanAman,Pinjaman_Pokok,0), 0)","v":{"v":0,"d":"Rp0.00"}},{"$f":"IFERROR(IF(PinjamanBelumDibayar*PinjamanAman,JmlBunga,0), 0)","v":{"v":0,"d":"Rp0.00"}},{"$f":"IFERROR(IF(PinjamanBelumDibayar*PinjamanAman,SaldoAkhir,0), 0)","v":{"v":0,"d":"Rp0.00"}}]
[null,{"$f":"IFERROR(IF(PinjamanBelumDibayar*PinjamanAman,NomorPembayaran,\"\"), \"\")","v":""},{"$f":"IFERROR(IF(PinjamanBelumDibayar*PinjamanAman,TanggalPembayaran,TanggalMulaiPinjaman), TanggalMulaiPinjaman)","v":"2019-07-18"},{"$f":"IFERROR(IF(PinjamanBelumDibayar*PinjamanAman,NilaiPinjaman,\"\"), \"\")","v":""},{"$f":"IFERROR(IF(PinjamanBelumDibayar*PinjamanAman,AngsuranBulanan,0), 0)","v":{"v":0,"d":"Rp0.00"}},{"$f":"IFERROR(IF(PinjamanBelumDibayar*PinjamanAman,Pinjaman_Pokok,0), 0)","v":{"v":0,"d":"Rp0.00"}},{"$f":"IFERROR(IF(PinjamanBelumDibayar*PinjamanAman,JmlBunga,0), 0)","v":{"v":0,"d":"Rp0.00"}},{"$f":"IFERROR(IF(PinjamanBelumDibayar*PinjamanAman,SaldoAkhir,0), 0)","v":{"v":0,"d":"Rp0.00"}}]
[null,{"$f":"IFERROR(IF(PinjamanBelumDibayar*PinjamanAman,NomorPembayaran,\"\"), \"\")","v":""},{"$f":"IFERROR(IF(PinjamanBelumDibayar*PinjamanAman,TanggalPembayaran,TanggalMulaiPinjaman), TanggalMulaiPinjaman)","v":"2019-07-18"},{"$f":"IFERROR(IF(PinjamanBelumDibayar*PinjamanAman,NilaiPinjaman,\"\"), \"\")","v":""},{"$f":"IFERROR(IF(PinjamanBelumDibayar*PinjamanAman,AngsuranBulanan,0), 0)","v":{"v":0,"d":"Rp0.00"}},{"$f":"IFERROR(IF(PinjamanBelumDibayar*PinjamanAman,Pinjaman_Pokok,0), 0)","v":{"v":0,"d":"Rp0.00"}},{"$f":"IFERROR(IF(PinjamanBelumDibayar*PinjamanAman,JmlBunga,0), 0)","v":{"v":0,"d":"Rp0.00"}},{"$f":"IFERROR(IF(PinjamanBelumDibayar*PinjamanAman,SaldoAkhir,0), 0)","v":{"v":0,"d":"Rp0.00"}}]
[null,{"$f":"IFERROR(IF(PinjamanBelumDibayar*PinjamanAman,NomorPembayaran,\"\"), \"\")","v":""},{"$f":"IFERROR(IF(PinjamanBelumDibayar*PinjamanAman,TanggalPembayaran,TanggalMulaiPinjaman), TanggalMulaiPinjaman)","v":"2019-07-18"},{"$f":"IFERROR(IF(PinjamanBelumDibayar*PinjamanAman,NilaiPinjaman,\"\"), \"\")","v":""},{"$f":"IFERROR(IF(PinjamanBelumDibayar*PinjamanAman,AngsuranBulanan,0), 0)","v":{"v":0,"d":"Rp0.00"}},{"$f":"IFERROR(IF(PinjamanBelumDibayar*PinjamanAman,Pinjaman_Pokok,0), 0)","v":{"v":0,"d":"Rp0.00"}},{"$f":"IFERROR(IF(PinjamanBelumDibayar*PinjamanAman,JmlBunga,0), 0)","v":{"v":0,"d":"Rp0.00"}},{"$f":"IFERROR(IF(PinjamanBelumDibayar*PinjamanAman,SaldoAkhir,0), 0)","v":{"v":0,"d":"Rp0.00"}}]
[null,{"$f":"IFERROR(IF(PinjamanBelumDibayar*PinjamanAman,NomorPembayaran,\"\"), \"\")","v":""},{"$f":"IFERROR(IF(PinjamanBelumDibayar*PinjamanAman,TanggalPembayaran,TanggalMulaiPinjaman), TanggalMulaiPinjaman)","v":"2019-07-18"},{"$f":"IFERROR(IF(PinjamanBelumDibayar*PinjamanAman,NilaiPinjaman,\"\"), \"\")","v":""},{"$f":"IFERROR(IF(PinjamanBelumDibayar*PinjamanAman,AngsuranBulanan,0), 0)","v":{"v":0,"d":"Rp0.00"}},{"$f":"IFERROR(IF(PinjamanBelumDibayar*PinjamanAman,Pinjaman_Pokok,0), 0)","v":{"v":0,"d":"Rp0.00"}},{"$f":"IFERROR(IF(PinjamanBelumDibayar*PinjamanAman,JmlBunga,0), 0)","v":{"v":0,"d":"Rp0.00"}},{"$f":"IFERROR(IF(PinjamanBelumDibayar*PinjamanAman,SaldoAkhir,0), 0)","v":{"v":0,"d":"Rp0.00"}}]
[null,{"$f":"IFERROR(IF(PinjamanBelumDibayar*PinjamanAman,NomorPembayaran,\"\"), \"\")","v":""},{"$f":"IFERROR(IF(PinjamanBelumDibayar*PinjamanAman,TanggalPembayaran,TanggalMulaiPinjaman), TanggalMulaiPinjaman)","v":"2019-07-18"},{"$f":"IFERROR(IF(PinjamanBelumDibayar*PinjamanAman,NilaiPinjaman,\"\"), \"\")","v":""},{"$f":"IFERROR(IF(PinjamanBelumDibayar*PinjamanAman,AngsuranBulanan,0), 0)","v":{"v":0,"d":"Rp0.00"}},{"$f":"IFERROR(IF(PinjamanBelumDibayar*PinjamanAman,Pinjaman_Pokok,0), 0)","v":{"v":0,"d":"Rp0.00"}},{"$f":"IFERROR(IF(PinjamanBelumDibayar*PinjamanAman,JmlBunga,0), 0)","v":{"v":0,"d":"Rp0.00"}},{"$f":"IFERROR(IF(PinjamanBelumDibayar*PinjamanAman,SaldoAkhir,0), 0)","v":{"v":0,"d":"Rp0.00"}}]
[null,{"$f":"IFERROR(IF(PinjamanBelumDibayar*PinjamanAman,NomorPembayaran,\"\"), \"\")","v":""},{"$f":"IFERROR(IF(PinjamanBelumDibayar*PinjamanAman,TanggalPembayaran,TanggalMulaiPinjaman), TanggalMulaiPinjaman)","v":"2019-07-18"},{"$f":"IFERROR(IF(PinjamanBelumDibayar*PinjamanAman,NilaiPinjaman,\"\"), \"\")","v":""},{"$f":"IFERROR(IF(PinjamanBelumDibayar*PinjamanAman,AngsuranBulanan,0), 0)","v":{"v":0,"d":"Rp0.00"}},{"$f":"IFERROR(IF(PinjamanBelumDibayar*PinjamanAman,Pinjaman_Pokok,0), 0)","v":{"v":0,"d":"Rp0.00"}},{"$f":"IFERROR(IF(PinjamanBelumDibayar*PinjamanAman,JmlBunga,0), 0)","v":{"v":0,"d":"Rp0.00"}},{"$f":"IFERROR(IF(PinjamanBelumDibayar*PinjamanAman,SaldoAkhir,0), 0)","v":{"v":0,"d":"Rp0.00"}}]
[null,{"$f":"IFERROR(IF(PinjamanBelumDibayar*PinjamanAman,NomorPembayaran,\"\"), \"\")","v":""},{"$f":"IFERROR(IF(PinjamanBelumDibayar*PinjamanAman,TanggalPembayaran,TanggalMulaiPinjaman), TanggalMulaiPinjaman)","v":"2019-07-18"},{"$f":"IFERROR(IF(PinjamanBelumDibayar*PinjamanAman,NilaiPinjaman,\"\"), \"\")","v":""},{"$f":"IFERROR(IF(PinjamanBelumDibayar*PinjamanAman,AngsuranBulanan,0), 0)","v":{"v":0,"d":"Rp0.00"}},{"$f":"IFERROR(IF(PinjamanBelumDibayar*PinjamanAman,Pinjaman_Pokok,0), 0)","v":{"v":0,"d":"Rp0.00"}},{"$f":"IFERROR(IF(PinjamanBelumDibayar*PinjamanAman,JmlBunga,0), 0)","v":{"v":0,"d":"Rp0.00"}},{"$f":"IFERROR(IF(PinjamanBelumDibayar*PinjamanAman,SaldoAkhir,0), 0)","v":{"v":0,"d":"Rp0.00"}}]
[null,{"$f":"IFERROR(IF(PinjamanBelumDibayar*PinjamanAman,NomorPembayaran,\"\"), \"\")","v":""},{"$f":"IFERROR(IF(PinjamanBelumDibayar*PinjamanAman,TanggalPembayaran,TanggalMulaiPinjaman), TanggalMulaiPinjaman)","v":"2019-07-18"},{"$f":"IFERROR(IF(PinjamanBelumDibayar*PinjamanAman,NilaiPinjaman,\"\"), \"\")","v":""},{"$f":"IFERROR(IF(PinjamanBelumDibayar*PinjamanAman,AngsuranBulanan,0), 0)","v":{"v":0,"d":"Rp0.00"}},{"$f":"IFERROR(IF(PinjamanBelumDibayar*PinjamanAman,Pinjaman_Pokok,0), 0)","v":{"v":0,"d":"Rp0.00"}},{"$f":"IFERROR(IF(PinjamanBelumDibayar*PinjamanAman,JmlBunga,0), 0)","v":{"v":0,"d":"Rp0.00"}},{"$f":"IFERROR(IF(PinjamanBelumDibayar*PinjamanAman,SaldoAkhir,0), 0)","v":{"v":0,"d":"Rp0.00"}}]
[null,{"$f":"IFERROR(IF(PinjamanBelumDibayar*PinjamanAman,NomorPembayaran,\"\"), \"\")","v":""},{"$f":"IFERROR(IF(PinjamanBelumDibayar*PinjamanAman,TanggalPembayaran,TanggalMulaiPinjaman), TanggalMulaiPinjaman)","v":"2019-07-18"},{"$f":"IFERROR(IF(PinjamanBelumDibayar*PinjamanAman,NilaiPinjaman,\"\"), \"\")","v":""},{"$f":"IFERROR(IF(PinjamanBelumDibayar*PinjamanAman,AngsuranBulanan,0), 0)","v":{"v":0,"d":"Rp0.00"}},{"$f":"IFERROR(IF(PinjamanBelumDibayar*PinjamanAman,Pinjaman_Pokok,0), 0)","v":{"v":0,"d":"Rp0.00"}},{"$f":"IFERROR(IF(PinjamanBelumDibayar*PinjamanAman,JmlBunga,0), 0)","v":{"v":0,"d":"Rp0.00"}},{"$f":"IFERROR(IF(PinjamanBelumDibayar*PinjamanAman,SaldoAkhir,0), 0)","v":{"v":0,"d":"Rp0.00"}}]
[null,{"$f":"IFERROR(IF(PinjamanBelumDibayar*PinjamanAman,NomorPembayaran,\"\"), \"\")","v":""},{"$f":"IFERROR(IF(PinjamanBelumDibayar*PinjamanAman,TanggalPembayaran,TanggalMulaiPinjaman), TanggalMulaiPinjaman)","v":"2019-07-18"},{"$f":"IFERROR(IF(PinjamanBelumDibayar*PinjamanAman,NilaiPinjaman,\"\"), \"\")","v":""},{"$f":"IFERROR(IF(PinjamanBelumDibayar*PinjamanAman,AngsuranBulanan,0), 0)","v":{"v":0,"d":"Rp0.00"}},{"$f":"IFERROR(IF(PinjamanBelumDibayar*PinjamanAman,Pinjaman_Pokok,0), 0)","v":{"v":0,"d":"Rp0.00"}},{"$f":"IFERROR(IF(PinjamanBelumDibayar*PinjamanAman,JmlBunga,0), 0)","v":{"v":0,"d":"Rp0.00"}},{"$f":"IFERROR(IF(PinjamanBelumDibayar*PinjamanAman,SaldoAkhir,0), 0)","v":{"v":0,"d":"Rp0.00"}}]
[null,{"$f":"IFERROR(IF(PinjamanBelumDibayar*PinjamanAman,NomorPembayaran,\"\"), \"\")","v":""},{"$f":"IFERROR(IF(PinjamanBelumDibayar*PinjamanAman,TanggalPembayaran,TanggalMulaiPinjaman), TanggalMulaiPinjaman)","v":"2019-07-18"},{"$f":"IFERROR(IF(PinjamanBelumDibayar*PinjamanAman,NilaiPinjaman,\"\"), \"\")","v":""},{"$f":"IFERROR(IF(PinjamanBelumDibayar*PinjamanAman,AngsuranBulanan,0), 0)","v":{"v":0,"d":"Rp0.00"}},{"$f":"IFERROR(IF(PinjamanBelumDibayar*PinjamanAman,Pinjaman_Pokok,0), 0)","v":{"v":0,"d":"Rp0.00"}},{"$f":"IFERROR(IF(PinjamanBelumDibayar*PinjamanAman,JmlBunga,0), 0)","v":{"v":0,"d":"Rp0.00"}},{"$f":"IFERROR(IF(PinjamanBelumDibayar*PinjamanAman,SaldoAkhir,0), 0)","v":{"v":0,"d":"Rp0.00"}}]
[null,{"$f":"IFERROR(IF(PinjamanBelumDibayar*PinjamanAman,NomorPembayaran,\"\"), \"\")","v":""},{"$f":"IFERROR(IF(PinjamanBelumDibayar*PinjamanAman,TanggalPembayaran,TanggalMulaiPinjaman), TanggalMulaiPinjaman)","v":"2019-07-18"},{"$f":"IFERROR(IF(PinjamanBelumDibayar*PinjamanAman,NilaiPinjaman,\"\"), \"\")","v":""},{"$f":"IFERROR(IF(PinjamanBelumDibayar*PinjamanAman,AngsuranBulanan,0), 0)","v":{"v":0,"d":"Rp0.00"}},{"$f":"IFERROR(IF(PinjamanBelumDibayar*PinjamanAman,Pinjaman_Pokok,0), 0)","v":{"v":0,"d":"Rp0.00"}},{"$f":"IFERROR(IF(PinjamanBelumDibayar*PinjamanAman,JmlBunga,0), 0)","v":{"v":0,"d":"Rp0.00"}},{"$f":"IFERROR(IF(PinjamanBelumDibayar*PinjamanAman,SaldoAkhir,0), 0)","v":{"v":0,"d":"Rp0.00"}}]
[null,{"$f":"IFERROR(IF(PinjamanBelumDibayar*PinjamanAman,NomorPembayaran,\"\"), \"\")","v":""},{"$f":"IFERROR(IF(PinjamanBelumDibayar*PinjamanAman,TanggalPembayaran,TanggalMulaiPinjaman), TanggalMulaiPinjaman)","v":"2019-07-18"},{"$f":"IFERROR(IF(PinjamanBelumDibayar*PinjamanAman,NilaiPinjaman,\"\"), \"\")","v":""},{"$f":"IFERROR(IF(PinjamanBelumDibayar*PinjamanAman,AngsuranBulanan,0), 0)","v":{"v":0,"d":"Rp0.00"}},{"$f":"IFERROR(IF(PinjamanBelumDibayar*PinjamanAman,Pinjaman_Pokok,0), 0)","v":{"v":0,"d":"Rp0.00"}},{"$f":"IFERROR(IF(PinjamanBelumDibayar*PinjamanAman,JmlBunga,0), 0)","v":{"v":0,"d":"Rp0.00"}},{"$f":"IFERROR(IF(PinjamanBelumDibayar*PinjamanAman,SaldoAkhir,0), 0)","v":{"v":0,"d":"Rp0.00"}}]
[null,{"$f":"IFERROR(IF(PinjamanBelumDibayar*PinjamanAman,NomorPembayaran,\"\"), \"\")","v":""},{"$f":"IFERROR(IF(PinjamanBelumDibayar*PinjamanAman,TanggalPembayaran,TanggalMulaiPinjaman), TanggalMulaiPinjaman)","v":"2019-07-18"},{"$f":"IFERROR(IF(PinjamanBelumDibayar*PinjamanAman,NilaiPinjaman,\"\"), \"\")","v":""},{"$f":"IFERROR(IF(PinjamanBelumDibayar*PinjamanAman,AngsuranBulanan,0), 0)","v":{"v":0,"d":"Rp0.00"}},{"$f":"IFERROR(IF(PinjamanBelumDibayar*PinjamanAman,Pinjaman_Pokok,0), 0)","v":{"v":0,"d":"Rp0.00"}},{"$f":"IFERROR(IF(PinjamanBelumDibayar*PinjamanAman,JmlBunga,0), 0)","v":{"v":0,"d":"Rp0.00"}},{"$f":"IFERROR(IF(PinjamanBelumDibayar*PinjamanAman,SaldoAkhir,0), 0)","v":{"v":0,"d":"Rp0.00"}}]
[null,{"$f":"IFERROR(IF(PinjamanBelumDibayar*PinjamanAman,NomorPembayaran,\"\"), \"\")","v":""},{"$f":"IFERROR(IF(PinjamanBelumDibayar*PinjamanAman,TanggalPembayaran,TanggalMulaiPinjaman), TanggalMulaiPinjaman)","v":"2019-07-18"},{"$f":"IFERROR(IF(PinjamanBelumDibayar*PinjamanAman,NilaiPinjaman,\"\"), \"\")","v":""},{"$f":"IFERROR(IF(PinjamanBelumDibayar*PinjamanAman,AngsuranBulanan,0), 0)","v":{"v":0,"d":"Rp0.00"}},{"$f":"IFERROR(IF(PinjamanBelumDibayar*PinjamanAman,Pinjaman_Pokok,0), 0)","v":{"v":0,"d":"Rp0.00"}},{"$f":"IFERROR(IF(PinjamanBelumDibayar*PinjamanAman,JmlBunga,0), 0)","v":{"v":0,"d":"Rp0.00"}},{"$f":"IFERROR(IF(PinjamanBelumDibayar*PinjamanAman,SaldoAkhir,0), 0)","v":{"v":0,"d":"Rp0.00"}}]
[null,{"$f":"IFERROR(IF(PinjamanBelumDibayar*PinjamanAman,NomorPembayaran,\"\"), \"\")","v":""},{"$f":"IFERROR(IF(PinjamanBelumDibayar*PinjamanAman,TanggalPembayaran,TanggalMulaiPinjaman), TanggalMulaiPinjaman)","v":"2019-07-18"},{"$f":"IFERROR(IF(PinjamanBelumDibayar*PinjamanAman,NilaiPinjaman,\"\"), \"\")","v":""},{"$f":"IFERROR(IF(PinjamanBelumDibayar*PinjamanAman,AngsuranBulanan,0), 0)","v":{"v":0,"d":"Rp0.00"}},{"$f":"IFERROR(IF(PinjamanBelumDibayar*PinjamanAman,Pinjaman_Pokok,0), 0)","v":{"v":0,"d":"Rp0.00"}},{"$f":"IFERROR(IF(PinjamanBelumDibayar*PinjamanAman,JmlBunga,0), 0)","v":{"v":0,"d":"Rp0.00"}},{"$f":"IFERROR(IF(PinjamanBelumDibayar*PinjamanAman,SaldoAkhir,0), 0)","v":{"v":0,"d":"Rp0.00"}}]
[null,{"$f":"IFERROR(IF(PinjamanBelumDibayar*PinjamanAman,NomorPembayaran,\"\"), \"\")","v":""},{"$f":"IFERROR(IF(PinjamanBelumDibayar*PinjamanAman,TanggalPembayaran,TanggalMulaiPinjaman), TanggalMulaiPinjaman)","v":"2019-07-18"},{"$f":"IFERROR(IF(PinjamanBelumDibayar*PinjamanAman,NilaiPinjaman,\"\"), \"\")","v":""},{"$f":"IFERROR(IF(PinjamanBelumDibayar*PinjamanAman,AngsuranBulanan,0), 0)","v":{"v":0,"d":"Rp0.00"}},{"$f":"IFERROR(IF(PinjamanBelumDibayar*PinjamanAman,Pinjaman_Pokok,0), 0)","v":{"v":0,"d":"Rp0.00"}},{"$f":"IFERROR(IF(PinjamanBelumDibayar*PinjamanAman,JmlBunga,0), 0)","v":{"v":0,"d":"Rp0.00"}},{"$f":"IFERROR(IF(PinjamanBelumDibayar*PinjamanAman,SaldoAkhir,0), 0)","v":{"v":0,"d":"Rp0.00"}}]
[null,{"$f":"IFERROR(IF(PinjamanBelumDibayar*PinjamanAman,NomorPembayaran,\"\"), \"\")","v":""},{"$f":"IFERROR(IF(PinjamanBelumDibayar*PinjamanAman,TanggalPembayaran,TanggalMulaiPinjaman), TanggalMulaiPinjaman)","v":"2019-07-18"},{"$f":"IFERROR(IF(PinjamanBelumDibayar*PinjamanAman,NilaiPinjaman,\"\"), \"\")","v":""},{"$f":"IFERROR(IF(PinjamanBelumDibayar*PinjamanAman,AngsuranBulanan,0), 0)","v":{"v":0,"d":"Rp0.00"}},{"$f":"IFERROR(IF(PinjamanBelumDibayar*PinjamanAman,Pinjaman_Pokok,0), 0)","v":{"v":0,"d":"Rp0.00"}},{"$f":"IFERROR(IF(PinjamanBelumDibayar*PinjamanAman,JmlBunga,0), 0)","v":{"v":0,"d":"Rp0.00"}},{"$f":"IFERROR(IF(PinjamanBelumDibayar*PinjamanAman,SaldoAkhir,0), 0)","v":{"v":0,"d":"Rp0.00"}}]
[null,{"$f":"IFERROR(IF(PinjamanBelumDibayar*PinjamanAman,NomorPembayaran,\"\"), \"\")","v":""},{"$f":"IFERROR(IF(PinjamanBelumDibayar*PinjamanAman,TanggalPembayaran,TanggalMulaiPinjaman), TanggalMulaiPinjaman)","v":"2019-07-18"},{"$f":"IFERROR(IF(PinjamanBelumDibayar*PinjamanAman,NilaiPinjaman,\"\"), \"\")","v":""},{"$f":"IFERROR(IF(PinjamanBelumDibayar*PinjamanAman,AngsuranBulanan,0), 0)","v":{"v":0,"d":"Rp0.00"}},{"$f":"IFERROR(IF(PinjamanBelumDibayar*PinjamanAman,Pinjaman_Pokok,0), 0)","v":{"v":0,"d":"Rp0.00"}},{"$f":"IFERROR(IF(PinjamanBelumDibayar*PinjamanAman,JmlBunga,0), 0)","v":{"v":0,"d":"Rp0.00"}},{"$f":"IFERROR(IF(PinjamanBelumDibayar*PinjamanAman,SaldoAkhir,0), 0)","v":{"v":0,"d":"Rp0.00"}}]
[null,{"$f":"IFERROR(IF(PinjamanBelumDibayar*PinjamanAman,NomorPembayaran,\"\"), \"\")","v":""},{"$f":"IFERROR(IF(PinjamanBelumDibayar*PinjamanAman,TanggalPembayaran,TanggalMulaiPinjaman), TanggalMulaiPinjaman)","v":"2019-07-18"},{"$f":"IFERROR(IF(PinjamanBelumDibayar*PinjamanAman,NilaiPinjaman,\"\"), \"\")","v":""},{"$f":"IFERROR(IF(PinjamanBelumDibayar*PinjamanAman,AngsuranBulanan,0), 0)","v":{"v":0,"d":"Rp0.00"}},{"$f":"IFERROR(IF(PinjamanBelumDibayar*PinjamanAman,Pinjaman_Pokok,0), 0)","v":{"v":0,"d":"Rp0.00"}},{"$f":"IFERROR(IF(PinjamanBelumDibayar*PinjamanAman,JmlBunga,0), 0)","v":{"v":0,"d":"Rp0.00"}},{"$f":"IFERROR(IF(PinjamanBelumDibayar*PinjamanAman,SaldoAkhir,0), 0)","v":{"v":0,"d":"Rp0.00"}}]
[null,{"$f":"IFERROR(IF(PinjamanBelumDibayar*PinjamanAman,NomorPembayaran,\"\"), \"\")","v":""},{"$f":"IFERROR(IF(PinjamanBelumDibayar*PinjamanAman,TanggalPembayaran,TanggalMulaiPinjaman), TanggalMulaiPinjaman)","v":"2019-07-18"},{"$f":"IFERROR(IF(PinjamanBelumDibayar*PinjamanAman,NilaiPinjaman,\"\"), \"\")","v":""},{"$f":"IFERROR(IF(PinjamanBelumDibayar*PinjamanAman,AngsuranBulanan,0), 0)","v":{"v":0,"d":"Rp0.00"}},{"$f":"IFERROR(IF(PinjamanBelumDibayar*PinjamanAman,Pinjaman_Pokok,0), 0)","v":{"v":0,"d":"Rp0.00"}},{"$f":"IFERROR(IF(PinjamanBelumDibayar*PinjamanAman,JmlBunga,0), 0)","v":{"v":0,"d":"Rp0.00"}},{"$f":"IFERROR(IF(PinjamanBelumDibayar*PinjamanAman,SaldoAkhir,0), 0)","v":{"v":0,"d":"Rp0.00"}}]
[null,{"$f":"IFERROR(IF(PinjamanBelumDibayar*PinjamanAman,NomorPembayaran,\"\"), \"\")","v":""},{"$f":"IFERROR(IF(PinjamanBelumDibayar*PinjamanAman,TanggalPembayaran,TanggalMulaiPinjaman), TanggalMulaiPinjaman)","v":"2019-07-18"},{"$f":"IFERROR(IF(PinjamanBelumDibayar*PinjamanAman,NilaiPinjaman,\"\"), \"\")","v":""},{"$f":"IFERROR(IF(PinjamanBelumDibayar*PinjamanAman,AngsuranBulanan,0), 0)","v":{"v":0,"d":"Rp0.00"}},{"$f":"IFERROR(IF(PinjamanBelumDibayar*PinjamanAman,Pinjaman_Pokok,0), 0)","v":{"v":0,"d":"Rp0.00"}},{"$f":"IFERROR(IF(PinjamanBelumDibayar*PinjamanAman,JmlBunga,0), 0)","v":{"v":0,"d":"Rp0.00"}},{"$f":"IFERROR(IF(PinjamanBelumDibayar*PinjamanAman,SaldoAkhir,0), 0)","v":{"v":0,"d":"Rp0.00"}}]
[null,{"$f":"IFERROR(IF(PinjamanBelumDibayar*PinjamanAman,NomorPembayaran,\"\"), \"\")","v":""},{"$f":"IFERROR(IF(PinjamanBelumDibayar*PinjamanAman,TanggalPembayaran,TanggalMulaiPinjaman), TanggalMulaiPinjaman)","v":"2019-07-18"},{"$f":"IFERROR(IF(PinjamanBelumDibayar*PinjamanAman,NilaiPinjaman,\"\"), \"\")","v":""},{"$f":"IFERROR(IF(PinjamanBelumDibayar*PinjamanAman,AngsuranBulanan,0), 0)","v":{"v":0,"d":"Rp0.00"}},{"$f":"IFERROR(IF(PinjamanBelumDibayar*PinjamanAman,Pinjaman_Pokok,0), 0)","v":{"v":0,"d":"Rp0.00"}},{"$f":"IFERROR(IF(PinjamanBelumDibayar*PinjamanAman,JmlBunga,0), 0)","v":{"v":0,"d":"Rp0.00"}},{"$f":"IFERROR(IF(PinjamanBelumDibayar*PinjamanAman,SaldoAkhir,0), 0)","v":{"v":0,"d":"Rp0.00"}}]
[null,{"$f":"IFERROR(IF(PinjamanBelumDibayar*PinjamanAman,NomorPembayaran,\"\"), \"\")","v":""},{"$f":"IFERROR(IF(PinjamanBelumDibayar*PinjamanAman,TanggalPembayaran,TanggalMulaiPinjaman), TanggalMulaiPinjaman)","v":"2019-07-18"},{"$f":"IFERROR(IF(PinjamanBelumDibayar*PinjamanAman,NilaiPinjaman,\"\"), \"\")","v":""},{"$f":"IFERROR(IF(PinjamanBelumDibayar*PinjamanAman,AngsuranBulanan,0), 0)","v":{"v":0,"d":"Rp0.00"}},{"$f":"IFERROR(IF(PinjamanBelumDibayar*PinjamanAman,Pinjaman_Pokok,0), 0)","v":{"v":0,"d":"Rp0.00"}},{"$f":"IFERROR(IF(PinjamanBelumDibayar*PinjamanAman,JmlBunga,0), 0)","v":{"v":0,"d":"Rp0.00"}},{"$f":"IFERROR(IF(PinjamanBelumDibayar*PinjamanAman,SaldoAkhir,0), 0)","v":{"v":0,"d":"Rp0.00"}}]
[null,{"$f":"IFERROR(IF(PinjamanBelumDibayar*PinjamanAman,NomorPembayaran,\"\"), \"\")","v":""},{"$f":"IFERROR(IF(PinjamanBelumDibayar*PinjamanAman,TanggalPembayaran,TanggalMulaiPinjaman), TanggalMulaiPinjaman)","v":"2019-07-18"},{"$f":"IFERROR(IF(PinjamanBelumDibayar*PinjamanAman,NilaiPinjaman,\"\"), \"\")","v":""},{"$f":"IFERROR(IF(PinjamanBelumDibayar*PinjamanAman,AngsuranBulanan,0), 0)","v":{"v":0,"d":"Rp0.00"}},{"$f":"IFERROR(IF(PinjamanBelumDibayar*PinjamanAman,Pinjaman_Pokok,0), 0)","v":{"v":0,"d":"Rp0.00"}},{"$f":"IFERROR(IF(PinjamanBelumDibayar*PinjamanAman,JmlBunga,0), 0)","v":{"v":0,"d":"Rp0.00"}},{"$f":"IFERROR(IF(PinjamanBelumDibayar*PinjamanAman,SaldoAkhir,0), 0)","v":{"v":0,"d":"Rp0.00"}}]
[null,{"$f":"IFERROR(IF(PinjamanBelumDibayar*PinjamanAman,NomorPembayaran,\"\"), \"\")","v":""},{"$f":"IFERROR(IF(PinjamanBelumDibayar*PinjamanAman,TanggalPembayaran,TanggalMulaiPinjaman), TanggalMulaiPinjaman)","v":"2019-07-18"},{"$f":"IFERROR(IF(PinjamanBelumDibayar*PinjamanAman,NilaiPinjaman,\"\"), \"\")","v":""},{"$f":"IFERROR(IF(PinjamanBelumDibayar*PinjamanAman,AngsuranBulanan,0), 0)","v":{"v":0,"d":"Rp0.00"}},{"$f":"IFERROR(IF(PinjamanBelumDibayar*PinjamanAman,Pinjaman_Pokok,0), 0)","v":{"v":0,"d":"Rp0.00"}},{"$f":"IFERROR(IF(PinjamanBelumDibayar*PinjamanAman,JmlBunga,0), 0)","v":{"v":0,"d":"Rp0.00"}},{"$f":"IFERROR(IF(PinjamanBelumDibayar*PinjamanAman,SaldoAkhir,0), 0)","v":{"v":0,"d":"Rp0.00"}}]
[null,{"$f":"IFERROR(IF(PinjamanBelumDibayar*PinjamanAman,NomorPembayaran,\"\"), \"\")","v":""},{"$f":"IFERROR(IF(PinjamanBelumDibayar*PinjamanAman,TanggalPembayaran,TanggalMulaiPinjaman), TanggalMulaiPinjaman)","v":"2019-07-18"},{"$f":"IFERROR(IF(PinjamanBelumDibayar*PinjamanAman,NilaiPinjaman,\"\"), \"\")","v":""},{"$f":"IFERROR(IF(PinjamanBelumDibayar*PinjamanAman,AngsuranBulanan,0), 0)","v":{"v":0,"d":"Rp0.00"}},{"$f":"IFERROR(IF(PinjamanBelumDibayar*PinjamanAman,Pinjaman_Pokok,0), 0)","v":{"v":0,"d":"Rp0.00"}},{"$f":"IFERROR(IF(PinjamanBelumDibayar*PinjamanAman,JmlBunga,0), 0)","v":{"v":0,"d":"Rp0.00"}},{"$f":"IFERROR(IF(PinjamanBelumDibayar*PinjamanAman,SaldoAkhir,0), 0)","v":{"v":0,"d":"Rp0.00"}}]
[null,{"$f":"IFERROR(IF(PinjamanBelumDibayar*PinjamanAman,NomorPembayaran,\"\"), \"\")","v":""},{"$f":"IFERROR(IF(PinjamanBelumDibayar*PinjamanAman,TanggalPembayaran,TanggalMulaiPinjaman), TanggalMulaiPinjaman)","v":"2019-07-18"},{"$f":"IFERROR(IF(PinjamanBelumDibayar*PinjamanAman,NilaiPinjaman,\"\"), \"\")","v":""},{"$f":"IFERROR(IF(PinjamanBelumDibayar*PinjamanAman,AngsuranBulanan,0), 0)","v":{"v":0,"d":"Rp0.00"}},{"$f":"IFERROR(IF(PinjamanBelumDibayar*PinjamanAman,Pinjaman_Pokok,0), 0)","v":{"v":0,"d":"Rp0.00"}},{"$f":"IFERROR(IF(PinjamanBelumDibayar*PinjamanAman,JmlBunga,0), 0)","v":{"v":0,"d":"Rp0.00"}},{"$f":"IFERROR(IF(PinjamanBelumDibayar*PinjamanAman,SaldoAkhir,0), 0)","v":{"v":0,"d":"Rp0.00"}}]
[null,{"$f":"IFERROR(IF(PinjamanBelumDibayar*PinjamanAman,NomorPembayaran,\"\"), \"\")","v":""},{"$f":"IFERROR(IF(PinjamanBelumDibayar*PinjamanAman,TanggalPembayaran,TanggalMulaiPinjaman), TanggalMulaiPinjaman)","v":"2019-07-18"},{"$f":"IFERROR(IF(PinjamanBelumDibayar*PinjamanAman,NilaiPinjaman,\"\"), \"\")","v":""},{"$f":"IFERROR(IF(PinjamanBelumDibayar*PinjamanAman,AngsuranBulanan,0), 0)","v":{"v":0,"d":"Rp0.00"}},{"$f":"IFERROR(IF(PinjamanBelumDibayar*PinjamanAman,Pinjaman_Pokok,0), 0)","v":{"v":0,"d":"Rp0.00"}},{"$f":"IFERROR(IF(PinjamanBelumDibayar*PinjamanAman,JmlBunga,0), 0)","v":{"v":0,"d":"Rp0.00"}},{"$f":"IFERROR(IF(PinjamanBelumDibayar*PinjamanAman,SaldoAkhir,0), 0)","v":{"v":0,"d":"Rp0.00"}}]
[null,{"$f":"IFERROR(IF(PinjamanBelumDibayar*PinjamanAman,NomorPembayaran,\"\"), \"\")","v":""},{"$f":"IFERROR(IF(PinjamanBelumDibayar*PinjamanAman,TanggalPembayaran,TanggalMulaiPinjaman), TanggalMulaiPinjaman)","v":"2019-07-18"},{"$f":"IFERROR(IF(PinjamanBelumDibayar*PinjamanAman,NilaiPinjaman,\"\"), \"\")","v":""},{"$f":"IFERROR(IF(PinjamanBelumDibayar*PinjamanAman,AngsuranBulanan,0), 0)","v":{"v":0,"d":"Rp0.00"}},{"$f":"IFERROR(IF(PinjamanBelumDibayar*PinjamanAman,Pinjaman_Pokok,0), 0)","v":{"v":0,"d":"Rp0.00"}},{"$f":"IFERROR(IF(PinjamanBelumDibayar*PinjamanAman,JmlBunga,0), 0)","v":{"v":0,"d":"Rp0.00"}},{"$f":"IFERROR(IF(PinjamanBelumDibayar*PinjamanAman,SaldoAkhir,0), 0)","v":{"v":0,"d":"Rp0.00"}}]
[null,{"$f":"IFERROR(IF(PinjamanBelumDibayar*PinjamanAman,NomorPembayaran,\"\"), \"\")","v":""},{"$f":"IFERROR(IF(PinjamanBelumDibayar*PinjamanAman,TanggalPembayaran,TanggalMulaiPinjaman), TanggalMulaiPinjaman)","v":"2019-07-18"},{"$f":"IFERROR(IF(PinjamanBelumDibayar*PinjamanAman,NilaiPinjaman,\"\"), \"\")","v":""},{"$f":"IFERROR(IF(PinjamanBelumDibayar*PinjamanAman,AngsuranBulanan,0), 0)","v":{"v":0,"d":"Rp0.00"}},{"$f":"IFERROR(IF(PinjamanBelumDibayar*PinjamanAman,Pinjaman_Pokok,0), 0)","v":{"v":0,"d":"Rp0.00"}},{"$f":"IFERROR(IF(PinjamanBelumDibayar*PinjamanAman,JmlBunga,0), 0)","v":{"v":0,"d":"Rp0.00"}},{"$f":"IFERROR(IF(PinjamanBelumDibayar*PinjamanAman,SaldoAkhir,0), 0)","v":{"v":0,"d":"Rp0.00"}}]
[null,{"$f":"IFERROR(IF(PinjamanBelumDibayar*PinjamanAman,NomorPembayaran,\"\"), \"\")","v":""},{"$f":"IFERROR(IF(PinjamanBelumDibayar*PinjamanAman,TanggalPembayaran,TanggalMulaiPinjaman), TanggalMulaiPinjaman)","v":"2019-07-18"},{"$f":"IFERROR(IF(PinjamanBelumDibayar*PinjamanAman,NilaiPinjaman,\"\"), \"\")","v":""},{"$f":"IFERROR(IF(PinjamanBelumDibayar*PinjamanAman,AngsuranBulanan,0), 0)","v":{"v":0,"d":"Rp0.00"}},{"$f":"IFERROR(IF(PinjamanBelumDibayar*PinjamanAman,Pinjaman_Pokok,0), 0)","v":{"v":0,"d":"Rp0.00"}},{"$f":"IFERROR(IF(PinjamanBelumDibayar*PinjamanAman,JmlBunga,0), 0)","v":{"v":0,"d":"Rp0.00"}},{"$f":"IFERROR(IF(PinjamanBelumDibayar*PinjamanAman,SaldoAkhir,0), 0)","v":{"v":0,"d":"Rp0.00"}}]
[null,{"$f":"IFERROR(IF(PinjamanBelumDibayar*PinjamanAman,NomorPembayaran,\"\"), \"\")","v":""},{"$f":"IFERROR(IF(PinjamanBelumDibayar*PinjamanAman,TanggalPembayaran,TanggalMulaiPinjaman), TanggalMulaiPinjaman)","v":"2019-07-18"},{"$f":"IFERROR(IF(PinjamanBelumDibayar*PinjamanAman,NilaiPinjaman,\"\"), \"\")","v":""},{"$f":"IFERROR(IF(PinjamanBelumDibayar*PinjamanAman,AngsuranBulanan,0), 0)","v":{"v":0,"d":"Rp0.00"}},{"$f":"IFERROR(IF(PinjamanBelumDibayar*PinjamanAman,Pinjaman_Pokok,0), 0)","v":{"v":0,"d":"Rp0.00"}},{"$f":"IFERROR(IF(PinjamanBelumDibayar*PinjamanAman,JmlBunga,0), 0)","v":{"v":0,"d":"Rp0.00"}},{"$f":"IFERROR(IF(PinjamanBelumDibayar*PinjamanAman,SaldoAkhir,0), 0)","v":{"v":0,"d":"Rp0.00"}}]
[null,{"$f":"IFERROR(IF(PinjamanBelumDibayar*PinjamanAman,NomorPembayaran,\"\"), \"\")","v":""},{"$f":"IFERROR(IF(PinjamanBelumDibayar*PinjamanAman,TanggalPembayaran,TanggalMulaiPinjaman), TanggalMulaiPinjaman)","v":"2019-07-18"},{"$f":"IFERROR(IF(PinjamanBelumDibayar*PinjamanAman,NilaiPinjaman,\"\"), \"\")","v":""},{"$f":"IFERROR(IF(PinjamanBelumDibayar*PinjamanAman,AngsuranBulanan,0), 0)","v":{"v":0,"d":"Rp0.00"}},{"$f":"IFERROR(IF(PinjamanBelumDibayar*PinjamanAman,Pinjaman_Pokok,0), 0)","v":{"v":0,"d":"Rp0.00"}},{"$f":"IFERROR(IF(PinjamanBelumDibayar*PinjamanAman,JmlBunga,0), 0)","v":{"v":0,"d":"Rp0.00"}},{"$f":"IFERROR(IF(PinjamanBelumDibayar*PinjamanAman,SaldoAkhir,0), 0)","v":{"v":0,"d":"Rp0.00"}}]
[null,{"$f":"IFERROR(IF(PinjamanBelumDibayar*PinjamanAman,NomorPembayaran,\"\"), \"\")","v":""},{"$f":"IFERROR(IF(PinjamanBelumDibayar*PinjamanAman,TanggalPembayaran,TanggalMulaiPinjaman), TanggalMulaiPinjaman)","v":"2019-07-18"},{"$f":"IFERROR(IF(PinjamanBelumDibayar*PinjamanAman,NilaiPinjaman,\"\"), \"\")","v":""},{"$f":"IFERROR(IF(PinjamanBelumDibayar*PinjamanAman,AngsuranBulanan,0), 0)","v":{"v":0,"d":"Rp0.00"}},{"$f":"IFERROR(IF(PinjamanBelumDibayar*PinjamanAman,Pinjaman_Pokok,0), 0)","v":{"v":0,"d":"Rp0.00"}},{"$f":"IFERROR(IF(PinjamanBelumDibayar*PinjamanAman,JmlBunga,0), 0)","v":{"v":0,"d":"Rp0.00"}},{"$f":"IFERROR(IF(PinjamanBelumDibayar*PinjamanAman,SaldoAkhir,0), 0)","v":{"v":0,"d":"Rp0.00"}}]
[null,{"$f":"IFERROR(IF(PinjamanBelumDibayar*PinjamanAman,NomorPembayaran,\"\"), \"\")","v":""},{"$f":"IFERROR(IF(PinjamanBelumDibayar*PinjamanAman,TanggalPembayaran,TanggalMulaiPinjaman), TanggalMulaiPinjaman)","v":"2019-07-18"},{"$f":"IFERROR(IF(PinjamanBelumDibayar*PinjamanAman,NilaiPinjaman,\"\"), \"\")","v":""},{"$f":"IFERROR(IF(PinjamanBelumDibayar*PinjamanAman,AngsuranBulanan,0), 0)","v":{"v":0,"d":"Rp0.00"}},{"$f":"IFERROR(IF(PinjamanBelumDibayar*PinjamanAman,Pinjaman_Pokok,0), 0)","v":{"v":0,"d":"Rp0.00"}},{"$f":"IFERROR(IF(PinjamanBelumDibayar*PinjamanAman,JmlBunga,0), 0)","v":{"v":0,"d":"Rp0.00"}},{"$f":"IFERROR(IF(PinjamanBelumDibayar*PinjamanAman,SaldoAkhir,0), 0)","v":{"v":0,"d":"Rp0.00"}}]
[null,{"$f":"IFERROR(IF(PinjamanBelumDibayar*PinjamanAman,NomorPembayaran,\"\"), \"\")","v":""},{"$f":"IFERROR(IF(PinjamanBelumDibayar*PinjamanAman,TanggalPembayaran,TanggalMulaiPinjaman), TanggalMulaiPinjaman)","v":"2019-07-18"},{"$f":"IFERROR(IF(PinjamanBelumDibayar*PinjamanAman,NilaiPinjaman,\"\"), \"\")","v":""},{"$f":"IFERROR(IF(PinjamanBelumDibayar*PinjamanAman,AngsuranBulanan,0), 0)","v":{"v":0,"d":"Rp0.00"}},{"$f":"IFERROR(IF(PinjamanBelumDibayar*PinjamanAman,Pinjaman_Pokok,0), 0)","v":{"v":0,"d":"Rp0.00"}},{"$f":"IFERROR(IF(PinjamanBelumDibayar*PinjamanAman,JmlBunga,0), 0)","v":{"v":0,"d":"Rp0.00"}},{"$f":"IFERROR(IF(PinjamanBelumDibayar*PinjamanAman,SaldoAkhir,0), 0)","v":{"v":0,"d":"Rp0.00"}}]
[null,{"$f":"IFERROR(IF(PinjamanBelumDibayar*PinjamanAman,NomorPembayaran,\"\"), \"\")","v":""},{"$f":"IFERROR(IF(PinjamanBelumDibayar*PinjamanAman,TanggalPembayaran,TanggalMulaiPinjaman), TanggalMulaiPinjaman)","v":"2019-07-18"},{"$f":"IFERROR(IF(PinjamanBelumDibayar*PinjamanAman,NilaiPinjaman,\"\"), \"\")","v":""},{"$f":"IFERROR(IF(PinjamanBelumDibayar*PinjamanAman,AngsuranBulanan,0), 0)","v":{"v":0,"d":"Rp0.00"}},{"$f":"IFERROR(IF(PinjamanBelumDibayar*PinjamanAman,Pinjaman_Pokok,0), 0)","v":{"v":0,"d":"Rp0.00"}},{"$f":"IFERROR(IF(PinjamanBelumDibayar*PinjamanAman,JmlBunga,0), 0)","v":{"v":0,"d":"Rp0.00"}},{"$f":"IFERROR(IF(PinjamanBelumDibayar*PinjamanAman,SaldoAkhir,0), 0)","v":{"v":0,"d":"Rp0.00"}}]
[null,{"$f":"IFERROR(IF(PinjamanBelumDibayar*PinjamanAman,NomorPembayaran,\"\"), \"\")","v":""},{"$f":"IFERROR(IF(PinjamanBelumDibayar*PinjamanAman,TanggalPembayaran,TanggalMulaiPinjaman), TanggalMulaiPinjaman)","v":"2019-07-18"},{"$f":"IFERROR(IF(PinjamanBelumDibayar*PinjamanAman,NilaiPinjaman,\"\"), \"\")","v":""},{"$f":"IFERROR(IF(PinjamanBelumDibayar*PinjamanAman,AngsuranBulanan,0), 0)","v":{"v":0,"d":"Rp0.00"}},{"$f":"IFERROR(IF(PinjamanBelumDibayar*PinjamanAman,Pinjaman_Pokok,0), 0)","v":{"v":0,"d":"Rp0.00"}},{"$f":"IFERROR(IF(PinjamanBelumDibayar*PinjamanAman,JmlBunga,0), 0)","v":{"v":0,"d":"Rp0.00"}},{"$f":"IFERROR(IF(PinjamanBelumDibayar*PinjamanAman,SaldoAkhir,0), 0)","v":{"v":0,"d":"Rp0.00"}}]
[null,{"$f":"IFERROR(IF(PinjamanBelumDibayar*PinjamanAman,NomorPembayaran,\"\"), \"\")","v":""},{"$f":"IFERROR(IF(PinjamanBelumDibayar*PinjamanAman,TanggalPembayaran,TanggalMulaiPinjaman), TanggalMulaiPinjaman)","v":"2019-07-18"},{"$f":"IFERROR(IF(PinjamanBelumDibayar*PinjamanAman,NilaiPinjaman,\"\"), \"\")","v":""},{"$f":"IFERROR(IF(PinjamanBelumDibayar*PinjamanAman,AngsuranBulanan,0), 0)","v":{"v":0,"d":"Rp0.00"}},{"$f":"IFERROR(IF(PinjamanBelumDibayar*PinjamanAman,Pinjaman_Pokok,0), 0)","v":{"v":0,"d":"Rp0.00"}},{"$f":"IFERROR(IF(PinjamanBelumDibayar*PinjamanAman,JmlBunga,0), 0)","v":{"v":0,"d":"Rp0.00"}},{"$f":"IFERROR(IF(PinjamanBelumDibayar*PinjamanAman,SaldoAkhir,0), 0)","v":{"v":0,"d":"Rp0.00"}}]
[null,{"$f":"IFERROR(IF(PinjamanBelumDibayar*PinjamanAman,NomorPembayaran,\"\"), \"\")","v":""},{"$f":"IFERROR(IF(PinjamanBelumDibayar*PinjamanAman,TanggalPembayaran,TanggalMulaiPinjaman), TanggalMulaiPinjaman)","v":"2019-07-18"},{"$f":"IFERROR(IF(PinjamanBelumDibayar*PinjamanAman,NilaiPinjaman,\"\"), \"\")","v":""},{"$f":"IFERROR(IF(PinjamanBelumDibayar*PinjamanAman,AngsuranBulanan,0), 0)","v":{"v":0,"d":"Rp0.00"}},{"$f":"IFERROR(IF(PinjamanBelumDibayar*PinjamanAman,Pinjaman_Pokok,0), 0)","v":{"v":0,"d":"Rp0.00"}},{"$f":"IFERROR(IF(PinjamanBelumDibayar*PinjamanAman,JmlBunga,0), 0)","v":{"v":0,"d":"Rp0.00"}},{"$f":"IFERROR(IF(PinjamanBelumDibayar*PinjamanAman,SaldoAkhir,0), 0)","v":{"v":0,"d":"Rp0.00"}}]
[null,{"$f":"IFERROR(IF(PinjamanBelumDibayar*PinjamanAman,NomorPembayaran,\"\"), \"\")","v":""},{"$f":"IFERROR(IF(PinjamanBelumDibayar*PinjamanAman,TanggalPembayaran,TanggalMulaiPinjaman), TanggalMulaiPinjaman)","v":"2019-07-18"},{"$f":"IFERROR(IF(PinjamanBelumDibayar*PinjamanAman,NilaiPinjaman,\"\"), \"\")","v":""},{"$f":"IFERROR(IF(PinjamanBelumDibayar*PinjamanAman,AngsuranBulanan,0), 0)","v":{"v":0,"d":"Rp0.00"}},{"$f":"IFERROR(IF(PinjamanBelumDibayar*PinjamanAman,Pinjaman_Pokok,0), 0)","v":{"v":0,"d":"Rp0.00"}},{"$f":"IFERROR(IF(PinjamanBelumDibayar*PinjamanAman,JmlBunga,0), 0)","v":{"v":0,"d":"Rp0.00"}},{"$f":"IFERROR(IF(PinjamanBelumDibayar*PinjamanAman,SaldoAkhir,0), 0)","v":{"v":0,"d":"Rp0.00"}}]
[null,{"$f":"IFERROR(IF(PinjamanBelumDibayar*PinjamanAman,NomorPembayaran,\"\"), \"\")","v":""},{"$f":"IFERROR(IF(PinjamanBelumDibayar*PinjamanAman,TanggalPembayaran,TanggalMulaiPinjaman), TanggalMulaiPinjaman)","v":"2019-07-18"},{"$f":"IFERROR(IF(PinjamanBelumDibayar*PinjamanAman,NilaiPinjaman,\"\"), \"\")","v":""},{"$f":"IFERROR(IF(PinjamanBelumDibayar*PinjamanAman,AngsuranBulanan,0), 0)","v":{"v":0,"d":"Rp0.00"}},{"$f":"IFERROR(IF(PinjamanBelumDibayar*PinjamanAman,Pinjaman_Pokok,0), 0)","v":{"v":0,"d":"Rp0.00"}},{"$f":"IFERROR(IF(PinjamanBelumDibayar*PinjamanAman,JmlBunga,0), 0)","v":{"v":0,"d":"Rp0.00"}},{"$f":"IFERROR(IF(PinjamanBelumDibayar*PinjamanAman,SaldoAkhir,0), 0)","v":{"v":0,"d":"Rp0.00"}}]
[null,{"$f":"IFERROR(IF(PinjamanBelumDibayar*PinjamanAman,NomorPembayaran,\"\"), \"\")","v":""},{"$f":"IFERROR(IF(PinjamanBelumDibayar*PinjamanAman,TanggalPembayaran,TanggalMulaiPinjaman), TanggalMulaiPinjaman)","v":"2019-07-18"},{"$f":"IFERROR(IF(PinjamanBelumDibayar*PinjamanAman,NilaiPinjaman,\"\"), \"\")","v":""},{"$f":"IFERROR(IF(PinjamanBelumDibayar*PinjamanAman,AngsuranBulanan,0), 0)","v":{"v":0,"d":"Rp0.00"}},{"$f":"IFERROR(IF(PinjamanBelumDibayar*PinjamanAman,Pinjaman_Pokok,0), 0)","v":{"v":0,"d":"Rp0.00"}},{"$f":"IFERROR(IF(PinjamanBelumDibayar*PinjamanAman,JmlBunga,0), 0)","v":{"v":0,"d":"Rp0.00"}},{"$f":"IFERROR(IF(PinjamanBelumDibayar*PinjamanAman,SaldoAkhir,0), 0)","v":{"v":0,"d":"Rp0.00"}}]
[null,{"$f":"IFERROR(IF(PinjamanBelumDibayar*PinjamanAman,NomorPembayaran,\"\"), \"\")","v":""},{"$f":"IFERROR(IF(PinjamanBelumDibayar*PinjamanAman,TanggalPembayaran,TanggalMulaiPinjaman), TanggalMulaiPinjaman)","v":"2019-07-18"},{"$f":"IFERROR(IF(PinjamanBelumDibayar*PinjamanAman,NilaiPinjaman,\"\"), \"\")","v":""},{"$f":"IFERROR(IF(PinjamanBelumDibayar*PinjamanAman,AngsuranBulanan,0), 0)","v":{"v":0,"d":"Rp0.00"}},{"$f":"IFERROR(IF(PinjamanBelumDibayar*PinjamanAman,Pinjaman_Pokok,0), 0)","v":{"v":0,"d":"Rp0.00"}},{"$f":"IFERROR(IF(PinjamanBelumDibayar*PinjamanAman,JmlBunga,0), 0)","v":{"v":0,"d":"Rp0.00"}},{"$f":"IFERROR(IF(PinjamanBelumDibayar*PinjamanAman,SaldoAkhir,0), 0)","v":{"v":0,"d":"Rp0.00"}}]
[null,{"$f":"IFERROR(IF(PinjamanBelumDibayar*PinjamanAman,NomorPembayaran,\"\"), \"\")","v":""},{"$f":"IFERROR(IF(PinjamanBelumDibayar*PinjamanAman,TanggalPembayaran,TanggalMulaiPinjaman), TanggalMulaiPinjaman)","v":"2019-07-18"},{"$f":"IFERROR(IF(PinjamanBelumDibayar*PinjamanAman,NilaiPinjaman,\"\"), \"\")","v":""},{"$f":"IFERROR(IF(PinjamanBelumDibayar*PinjamanAman,AngsuranBulanan,0), 0)","v":{"v":0,"d":"Rp0.00"}},{"$f":"IFERROR(IF(PinjamanBelumDibayar*PinjamanAman,Pinjaman_Pokok,0), 0)","v":{"v":0,"d":"Rp0.00"}},{"$f":"IFERROR(IF(PinjamanBelumDibayar*PinjamanAman,JmlBunga,0), 0)","v":{"v":0,"d":"Rp0.00"}},{"$f":"IFERROR(IF(PinjamanBelumDibayar*PinjamanAman,SaldoAkhir,0), 0)","v":{"v":0,"d":"Rp0.00"}}]
[null,{"$f":"IFERROR(IF(PinjamanBelumDibayar*PinjamanAman,NomorPembayaran,\"\"), \"\")","v":""},{"$f":"IFERROR(IF(PinjamanBelumDibayar*PinjamanAman,TanggalPembayaran,TanggalMulaiPinjaman), TanggalMulaiPinjaman)","v":"2019-07-18"},{"$f":"IFERROR(IF(PinjamanBelumDibayar*PinjamanAman,NilaiPinjaman,\"\"), \"\")","v":""},{"$f":"IFERROR(IF(PinjamanBelumDibayar*PinjamanAman,AngsuranBulanan,0), 0)","v":{"v":0,"d":"Rp0.00"}},{"$f":"IFERROR(IF(PinjamanBelumDibayar*PinjamanAman,Pinjaman_Pokok,0), 0)","v":{"v":0,"d":"Rp0.00"}},{"$f":"IFERROR(IF(PinjamanBelumDibayar*PinjamanAman,JmlBunga,0), 0)","v":{"v":0,"d":"Rp0.00"}},{"$f":"IFERROR(IF(PinjamanBelumDibayar*PinjamanAman,SaldoAkhir,0), 0)","v":{"v":0,"d":"Rp0.00"}}]
[null,{"$f":"IFERROR(IF(PinjamanBelumDibayar*PinjamanAman,NomorPembayaran,\"\"), \"\")","v":""},{"$f":"IFERROR(IF(PinjamanBelumDibayar*PinjamanAman,TanggalPembayaran,TanggalMulaiPinjaman), TanggalMulaiPinjaman)","v":"2019-07-18"},{"$f":"IFERROR(IF(PinjamanBelumDibayar*PinjamanAman,NilaiPinjaman,\"\"), \"\")","v":""},{"$f":"IFERROR(IF(PinjamanBelumDibayar*PinjamanAman,AngsuranBulanan,0), 0)","v":{"v":0,"d":"Rp0.00"}},{"$f":"IFERROR(IF(PinjamanBelumDibayar*PinjamanAman,Pinjaman_Pokok,0), 0)","v":{"v":0,"d":"Rp0.00"}},{"$f":"IFERROR(IF(PinjamanBelumDibayar*PinjamanAman,JmlBunga,0), 0)","v":{"v":0,"d":"Rp0.00"}},{"$f":"IFERROR(IF(PinjamanBelumDibayar*PinjamanAman,SaldoAkhir,0), 0)","v":{"v":0,"d":"Rp0.00"}}]
[null,{"$f":"IFERROR(IF(PinjamanBelumDibayar*PinjamanAman,NomorPembayaran,\"\"), \"\")","v":""},{"$f":"IFERROR(IF(PinjamanBelumDibayar*PinjamanAman,TanggalPembayaran,TanggalMulaiPinjaman), TanggalMulaiPinjaman)","v":"2019-07-18"},{"$f":"IFERROR(IF(PinjamanBelumDibayar*PinjamanAman,NilaiPinjaman,\"\"), \"\")","v":""},{"$f":"IFERROR(IF(PinjamanBelumDibayar*PinjamanAman,AngsuranBulanan,0), 0)","v":{"v":0,"d":"Rp0.00"}},{"$f":"IFERROR(IF(PinjamanBelumDibayar*PinjamanAman,Pinjaman_Pokok,0), 0)","v":{"v":0,"d":"Rp0.00"}},{"$f":"IFERROR(IF(PinjamanBelumDibayar*PinjamanAman,JmlBunga,0), 0)","v":{"v":0,"d":"Rp0.00"}},{"$f":"IFERROR(IF(PinjamanBelumDibayar*PinjamanAman,SaldoAkhir,0), 0)","v":{"v":0,"d":"Rp0.00"}}]
[null,{"$f":"IFERROR(IF(PinjamanBelumDibayar*PinjamanAman,NomorPembayaran,\"\"), \"\")","v":""},{"$f":"IFERROR(IF(PinjamanBelumDibayar*PinjamanAman,TanggalPembayaran,TanggalMulaiPinjaman), TanggalMulaiPinjaman)","v":"2019-07-18"},{"$f":"IFERROR(IF(PinjamanBelumDibayar*PinjamanAman,NilaiPinjaman,\"\"), \"\")","v":""},{"$f":"IFERROR(IF(PinjamanBelumDibayar*PinjamanAman,AngsuranBulanan,0), 0)","v":{"v":0,"d":"Rp0.00"}},{"$f":"IFERROR(IF(PinjamanBelumDibayar*PinjamanAman,Pinjaman_Pokok,0), 0)","v":{"v":0,"d":"Rp0.00"}},{"$f":"IFERROR(IF(PinjamanBelumDibayar*PinjamanAman,JmlBunga,0), 0)","v":{"v":0,"d":"Rp0.00"}},{"$f":"IFERROR(IF(PinjamanBelumDibayar*PinjamanAman,SaldoAkhir,0), 0)","v":{"v":0,"d":"Rp0.00"}}]
[null,{"$f":"IFERROR(IF(PinjamanBelumDibayar*PinjamanAman,NomorPembayaran,\"\"), \"\")","v":""},{"$f":"IFERROR(IF(PinjamanBelumDibayar*PinjamanAman,TanggalPembayaran,TanggalMulaiPinjaman), TanggalMulaiPinjaman)","v":"2019-07-18"},{"$f":"IFERROR(IF(PinjamanBelumDibayar*PinjamanAman,NilaiPinjaman,\"\"), \"\")","v":""},{"$f":"IFERROR(IF(PinjamanBelumDibayar*PinjamanAman,AngsuranBulanan,0), 0)","v":{"v":0,"d":"Rp0.00"}},{"$f":"IFERROR(IF(PinjamanBelumDibayar*PinjamanAman,Pinjaman_Pokok,0), 0)","v":{"v":0,"d":"Rp0.00"}},{"$f":"IFERROR(IF(PinjamanBelumDibayar*PinjamanAman,JmlBunga,0), 0)","v":{"v":0,"d":"Rp0.00"}},{"$f":"IFERROR(IF(PinjamanBelumDibayar*PinjamanAman,SaldoAkhir,0), 0)","v":{"v":0,"d":"Rp0.00"}}]
[null,{"$f":"IFERROR(IF(PinjamanBelumDibayar*PinjamanAman,NomorPembayaran,\"\"), \"\")","v":""},{"$f":"IFERROR(IF(PinjamanBelumDibayar*PinjamanAman,TanggalPembayaran,TanggalMulaiPinjaman), TanggalMulaiPinjaman)","v":"2019-07-18"},{"$f":"IFERROR(IF(PinjamanBelumDibayar*PinjamanAman,NilaiPinjaman,\"\"), \"\")","v":""},{"$f":"IFERROR(IF(PinjamanBelumDibayar*PinjamanAman,AngsuranBulanan,0), 0)","v":{"v":0,"d":"Rp0.00"}},{"$f":"IFERROR(IF(PinjamanBelumDibayar*PinjamanAman,Pinjaman_Pokok,0), 0)","v":{"v":0,"d":"Rp0.00"}},{"$f":"IFERROR(IF(PinjamanBelumDibayar*PinjamanAman,JmlBunga,0), 0)","v":{"v":0,"d":"Rp0.00"}},{"$f":"IFERROR(IF(PinjamanBelumDibayar*PinjamanAman,SaldoAkhir,0), 0)","v":{"v":0,"d":"Rp0.00"}}]
[null,{"$f":"IFERROR(IF(PinjamanBelumDibayar*PinjamanAman,NomorPembayaran,\"\"), \"\")","v":""},{"$f":"IFERROR(IF(PinjamanBelumDibayar*PinjamanAman,TanggalPembayaran,TanggalMulaiPinjaman), TanggalMulaiPinjaman)","v":"2019-07-18"},{"$f":"IFERROR(IF(PinjamanBelumDibayar*PinjamanAman,NilaiPinjaman,\"\"), \"\")","v":""},{"$f":"IFERROR(IF(PinjamanBelumDibayar*PinjamanAman,AngsuranBulanan,0), 0)","v":{"v":0,"d":"Rp0.00"}},{"$f":"IFERROR(IF(PinjamanBelumDibayar*PinjamanAman,Pinjaman_Pokok,0), 0)","v":{"v":0,"d":"Rp0.00"}},{"$f":"IFERROR(IF(PinjamanBelumDibayar*PinjamanAman,JmlBunga,0), 0)","v":{"v":0,"d":"Rp0.00"}},{"$f":"IFERROR(IF(PinjamanBelumDibayar*PinjamanAman,SaldoAkhir,0), 0)","v":{"v":0,"d":"Rp0.00"}}]
[null,{"$f":"IFERROR(IF(PinjamanBelumDibayar*PinjamanAman,NomorPembayaran,\"\"), \"\")","v":""},{"$f":"IFERROR(IF(PinjamanBelumDibayar*PinjamanAman,TanggalPembayaran,TanggalMulaiPinjaman), TanggalMulaiPinjaman)","v":"2019-07-18"},{"$f":"IFERROR(IF(PinjamanBelumDibayar*PinjamanAman,NilaiPinjaman,\"\"), \"\")","v":""},{"$f":"IFERROR(IF(PinjamanBelumDibayar*PinjamanAman,AngsuranBulanan,0), 0)","v":{"v":0,"d":"Rp0.00"}},{"$f":"IFERROR(IF(PinjamanBelumDibayar*PinjamanAman,Pinjaman_Pokok,0), 0)","v":{"v":0,"d":"Rp0.00"}},{"$f":"IFERROR(IF(PinjamanBelumDibayar*PinjamanAman,JmlBunga,0), 0)","v":{"v":0,"d":"Rp0.00"}},{"$f":"IFERROR(IF(PinjamanBelumDibayar*PinjamanAman,SaldoAkhir,0), 0)","v":{"v":0,"d":"Rp0.00"}}]
[null,{"$f":"IFERROR(IF(PinjamanBelumDibayar*PinjamanAman,NomorPembayaran,\"\"), \"\")","v":""},{"$f":"IFERROR(IF(PinjamanBelumDibayar*PinjamanAman,TanggalPembayaran,TanggalMulaiPinjaman), TanggalMulaiPinjaman)","v":"2019-07-18"},{"$f":"IFERROR(IF(PinjamanBelumDibayar*PinjamanAman,NilaiPinjaman,\"\"), \"\")","v":""},{"$f":"IFERROR(IF(PinjamanBelumDibayar*PinjamanAman,AngsuranBulanan,0), 0)","v":{"v":0,"d":"Rp0.00"}},{"$f":"IFERROR(IF(PinjamanBelumDibayar*PinjamanAman,Pinjaman_Pokok,0), 0)","v":{"v":0,"d":"Rp0.00"}},{"$f":"IFERROR(IF(PinjamanBelumDibayar*PinjamanAman,JmlBunga,0), 0)","v":{"v":0,"d":"Rp0.00"}},{"$f":"IFERROR(IF(PinjamanBelumDibayar*PinjamanAman,SaldoAkhir,0), 0)","v":{"v":0,"d":"Rp0.00"}}]
[null,{"$f":"IFERROR(IF(PinjamanBelumDibayar*PinjamanAman,NomorPembayaran,\"\"), \"\")","v":""},{"$f":"IFERROR(IF(PinjamanBelumDibayar*PinjamanAman,TanggalPembayaran,TanggalMulaiPinjaman), TanggalMulaiPinjaman)","v":"2019-07-18"},{"$f":"IFERROR(IF(PinjamanBelumDibayar*PinjamanAman,NilaiPinjaman,\"\"), \"\")","v":""},{"$f":"IFERROR(IF(PinjamanBelumDibayar*PinjamanAman,AngsuranBulanan,0), 0)","v":{"v":0,"d":"Rp0.00"}},{"$f":"IFERROR(IF(PinjamanBelumDibayar*PinjamanAman,Pinjaman_Pokok,0), 0)","v":{"v":0,"d":"Rp0.00"}},{"$f":"IFERROR(IF(PinjamanBelumDibayar*PinjamanAman,JmlBunga,0), 0)","v":{"v":0,"d":"Rp0.00"}},{"$f":"IFERROR(IF(PinjamanBelumDibayar*PinjamanAman,SaldoAkhir,0), 0)","v":{"v":0,"d":"Rp0.00"}}]
[null,{"$f":"IFERROR(IF(PinjamanBelumDibayar*PinjamanAman,NomorPembayaran,\"\"), \"\")","v":""},{"$f":"IFERROR(IF(PinjamanBelumDibayar*PinjamanAman,TanggalPembayaran,TanggalMulaiPinjaman), TanggalMulaiPinjaman)","v":"2019-07-18"},{"$f":"IFERROR(IF(PinjamanBelumDibayar*PinjamanAman,NilaiPinjaman,\"\"), \"\")","v":""},{"$f":"IFERROR(IF(PinjamanBelumDibayar*PinjamanAman,AngsuranBulanan,0), 0)","v":{"v":0,"d":"Rp0.00"}},{"$f":"IFERROR(IF(PinjamanBelumDibayar*PinjamanAman,Pinjaman_Pokok,0), 0)","v":{"v":0,"d":"Rp0.00"}},{"$f":"IFERROR(IF(PinjamanBelumDibayar*PinjamanAman,JmlBunga,0), 0)","v":{"v":0,"d":"Rp0.00"}},{"$f":"IFERROR(IF(PinjamanBelumDibayar*PinjamanAman,SaldoAkhir,0), 0)","v":{"v":0,"d":"Rp0.00"}}]
[null,{"$f":"IFERROR(IF(PinjamanBelumDibayar*PinjamanAman,NomorPembayaran,\"\"), \"\")","v":""},{"$f":"IFERROR(IF(PinjamanBelumDibayar*PinjamanAman,TanggalPembayaran,TanggalMulaiPinjaman), TanggalMulaiPinjaman)","v":"2019-07-18"},{"$f":"IFERROR(IF(PinjamanBelumDibayar*PinjamanAman,NilaiPinjaman,\"\"), \"\")","v":""},{"$f":"IFERROR(IF(PinjamanBelumDibayar*PinjamanAman,AngsuranBulanan,0), 0)","v":{"v":0,"d":"Rp0.00"}},{"$f":"IFERROR(IF(PinjamanBelumDibayar*PinjamanAman,Pinjaman_Pokok,0), 0)","v":{"v":0,"d":"Rp0.00"}},{"$f":"IFERROR(IF(PinjamanBelumDibayar*PinjamanAman,JmlBunga,0), 0)","v":{"v":0,"d":"Rp0.00"}},{"$f":"IFERROR(IF(PinjamanBelumDibayar*PinjamanAman,SaldoAkhir,0), 0)","v":{"v":0,"d":"Rp0.00"}}]
[null,{"$f":"IFERROR(IF(PinjamanBelumDibayar*PinjamanAman,NomorPembayaran,\"\"), \"\")","v":""},{"$f":"IFERROR(IF(PinjamanBelumDibayar*PinjamanAman,TanggalPembayaran,TanggalMulaiPinjaman), TanggalMulaiPinjaman)","v":"2019-07-18"},{"$f":"IFERROR(IF(PinjamanBelumDibayar*PinjamanAman,NilaiPinjaman,\"\"), \"\")","v":""},{"$f":"IFERROR(IF(PinjamanBelumDibayar*PinjamanAman,AngsuranBulanan,0), 0)","v":{"v":0,"d":"Rp0.00"}},{"$f":"IFERROR(IF(PinjamanBelumDibayar*PinjamanAman,Pinjaman_Pokok,0), 0)","v":{"v":0,"d":"Rp0.00"}},{"$f":"IFERROR(IF(PinjamanBelumDibayar*PinjamanAman,JmlBunga,0), 0)","v":{"v":0,"d":"Rp0.00"}},{"$f":"IFERROR(IF(PinjamanBelumDibayar*PinjamanAman,SaldoAkhir,0), 0)","v":{"v":0,"d":"Rp0.00"}}]
[null,{"$f":"IFERROR(IF(PinjamanBelumDibayar*PinjamanAman,NomorPembayaran,\"\"), \"\")","v":""},{"$f":"IFERROR(IF(PinjamanBelumDibayar*PinjamanAman,TanggalPembayaran,TanggalMulaiPinjaman), TanggalMulaiPinjaman)","v":"2019-07-18"},{"$f":"IFERROR(IF(PinjamanBelumDibayar*PinjamanAman,NilaiPinjaman,\"\"), \"\")","v":""},{"$f":"IFERROR(IF(PinjamanBelumDibayar*PinjamanAman,AngsuranBulanan,0), 0)","v":{"v":0,"d":"Rp0.00"}},{"$f":"IFERROR(IF(PinjamanBelumDibayar*PinjamanAman,Pinjaman_Pokok,0), 0)","v":{"v":0,"d":"Rp0.00"}},{"$f":"IFERROR(IF(PinjamanBelumDibayar*PinjamanAman,JmlBunga,0), 0)","v":{"v":0,"d":"Rp0.00"}},{"$f":"IFERROR(IF(PinjamanBelumDibayar*PinjamanAman,SaldoAkhir,0), 0)","v":{"v":0,"d":"Rp0.00"}}]
[null,{"$f":"IFERROR(IF(PinjamanBelumDibayar*PinjamanAman,NomorPembayaran,\"\"), \"\")","v":""},{"$f":"IFERROR(IF(PinjamanBelumDibayar*PinjamanAman,TanggalPembayaran,TanggalMulaiPinjaman), TanggalMulaiPinjaman)","v":"2019-07-18"},{"$f":"IFERROR(IF(PinjamanBelumDibayar*PinjamanAman,NilaiPinjaman,\"\"), \"\")","v":""},{"$f":"IFERROR(IF(PinjamanBelumDibayar*PinjamanAman,AngsuranBulanan,0), 0)","v":{"v":0,"d":"Rp0.00"}},{"$f":"IFERROR(IF(PinjamanBelumDibayar*PinjamanAman,Pinjaman_Pokok,0), 0)","v":{"v":0,"d":"Rp0.00"}},{"$f":"IFERROR(IF(PinjamanBelumDibayar*PinjamanAman,JmlBunga,0), 0)","v":{"v":0,"d":"Rp0.00"}},{"$f":"IFERROR(IF(PinjamanBelumDibayar*PinjamanAman,SaldoAkhir,0), 0)","v":{"v":0,"d":"Rp0.00"}}]
[null,{"$f":"IFERROR(IF(PinjamanBelumDibayar*PinjamanAman,NomorPembayaran,\"\"), \"\")","v":""},{"$f":"IFERROR(IF(PinjamanBelumDibayar*PinjamanAman,TanggalPembayaran,TanggalMulaiPinjaman), TanggalMulaiPinjaman)","v":"2019-07-18"},{"$f":"IFERROR(IF(PinjamanBelumDibayar*PinjamanAman,NilaiPinjaman,\"\"), \"\")","v":""},{"$f":"IFERROR(IF(PinjamanBelumDibayar*PinjamanAman,AngsuranBulanan,0), 0)","v":{"v":0,"d":"Rp0.00"}},{"$f":"IFERROR(IF(PinjamanBelumDibayar*PinjamanAman,Pinjaman_Pokok,0), 0)","v":{"v":0,"d":"Rp0.00"}},{"$f":"IFERROR(IF(PinjamanBelumDibayar*PinjamanAman,JmlBunga,0), 0)","v":{"v":0,"d":"Rp0.00"}},{"$f":"IFERROR(IF(PinjamanBelumDibayar*PinjamanAman,SaldoAkhir,0), 0)","v":{"v":0,"d":"Rp0.00"}}]
[null,{"$f":"IFERROR(IF(PinjamanBelumDibayar*PinjamanAman,NomorPembayaran,\"\"), \"\")","v":""},{"$f":"IFERROR(IF(PinjamanBelumDibayar*PinjamanAman,TanggalPembayaran,TanggalMulaiPinjaman), TanggalMulaiPinjaman)","v":"2019-07-18"},{"$f":"IFERROR(IF(PinjamanBelumDibayar*PinjamanAman,NilaiPinjaman,\"\"), \"\")","v":""},{"$f":"IFERROR(IF(PinjamanBelumDibayar*PinjamanAman,AngsuranBulanan,0), 0)","v":{"v":0,"d":"Rp0.00"}},{"$f":"IFERROR(IF(PinjamanBelumDibayar*PinjamanAman,Pinjaman_Pokok,0), 0)","v":{"v":0,"d":"Rp0.00"}},{"$f":"IFERROR(IF(PinjamanBelumDibayar*PinjamanAman,JmlBunga,0), 0)","v":{"v":0,"d":"Rp0.00"}},{"$f":"IFERROR(IF(PinjamanBelumDibayar*PinjamanAman,SaldoAkhir,0), 0)","v":{"v":0,"d":"Rp0.00"}}]
[null,{"$f":"IFERROR(IF(PinjamanBelumDibayar*PinjamanAman,NomorPembayaran,\"\"), \"\")","v":""},{"$f":"IFERROR(IF(PinjamanBelumDibayar*PinjamanAman,TanggalPembayaran,TanggalMulaiPinjaman), TanggalMulaiPinjaman)","v":"2019-07-18"},{"$f":"IFERROR(IF(PinjamanBelumDibayar*PinjamanAman,NilaiPinjaman,\"\"), \"\")","v":""},{"$f":"IFERROR(IF(PinjamanBelumDibayar*PinjamanAman,AngsuranBulanan,0), 0)","v":{"v":0,"d":"Rp0.00"}},{"$f":"IFERROR(IF(PinjamanBelumDibayar*PinjamanAman,Pinjaman_Pokok,0), 0)","v":{"v":0,"d":"Rp0.00"}},{"$f":"IFERROR(IF(PinjamanBelumDibayar*PinjamanAman,JmlBunga,0), 0)","v":{"v":0,"d":"Rp0.00"}},{"$f":"IFERROR(IF(PinjamanBelumDibayar*PinjamanAman,SaldoAkhir,0), 0)","v":{"v":0,"d":"Rp0.00"}}]
[null,{"$f":"IFERROR(IF(PinjamanBelumDibayar*PinjamanAman,NomorPembayaran,\"\"), \"\")","v":""},{"$f":"IFERROR(IF(PinjamanBelumDibayar*PinjamanAman,TanggalPembayaran,TanggalMulaiPinjaman), TanggalMulaiPinjaman)","v":"2019-07-18"},{"$f":"IFERROR(IF(PinjamanBelumDibayar*PinjamanAman,NilaiPinjaman,\"\"), \"\")","v":""},{"$f":"IFERROR(IF(PinjamanBelumDibayar*PinjamanAman,AngsuranBulanan,0), 0)","v":{"v":0,"d":"Rp0.00"}},{"$f":"IFERROR(IF(PinjamanBelumDibayar*PinjamanAman,Pinjaman_Pokok,0), 0)","v":{"v":0,"d":"Rp0.00"}},{"$f":"IFERROR(IF(PinjamanBelumDibayar*PinjamanAman,JmlBunga,0), 0)","v":{"v":0,"d":"Rp0.00"}},{"$f":"IFERROR(IF(PinjamanBelumDibayar*PinjamanAman,SaldoAkhir,0), 0)","v":{"v":0,"d":"Rp0.00"}}]
[null,{"$f":"IFERROR(IF(PinjamanBelumDibayar*PinjamanAman,NomorPembayaran,\"\"), \"\")","v":""},{"$f":"IFERROR(IF(PinjamanBelumDibayar*PinjamanAman,TanggalPembayaran,TanggalMulaiPinjaman), TanggalMulaiPinjaman)","v":"2019-07-18"},{"$f":"IFERROR(IF(PinjamanBelumDibayar*PinjamanAman,NilaiPinjaman,\"\"), \"\")","v":""},{"$f":"IFERROR(IF(PinjamanBelumDibayar*PinjamanAman,AngsuranBulanan,0), 0)","v":{"v":0,"d":"Rp0.00"}},{"$f":"IFERROR(IF(PinjamanBelumDibayar*PinjamanAman,Pinjaman_Pokok,0), 0)","v":{"v":0,"d":"Rp0.00"}},{"$f":"IFERROR(IF(PinjamanBelumDibayar*PinjamanAman,JmlBunga,0), 0)","v":{"v":0,"d":"Rp0.00"}},{"$f":"IFERROR(IF(PinjamanBelumDibayar*PinjamanAman,SaldoAkhir,0), 0)","v":{"v":0,"d":"Rp0.00"}}]
[null,{"$f":"IFERROR(IF(PinjamanBelumDibayar*PinjamanAman,NomorPembayaran,\"\"), \"\")","v":""},{"$f":"IFERROR(IF(PinjamanBelumDibayar*PinjamanAman,TanggalPembayaran,TanggalMulaiPinjaman), TanggalMulaiPinjaman)","v":"2019-07-18"},{"$f":"IFERROR(IF(PinjamanBelumDibayar*PinjamanAman,NilaiPinjaman,\"\"), \"\")","v":""},{"$f":"IFERROR(IF(PinjamanBelumDibayar*PinjamanAman,AngsuranBulanan,0), 0)","v":{"v":0,"d":"Rp0.00"}},{"$f":"IFERROR(IF(PinjamanBelumDibayar*PinjamanAman,Pinjaman_Pokok,0), 0)","v":{"v":0,"d":"Rp0.00"}},{"$f":"IFERROR(IF(PinjamanBelumDibayar*PinjamanAman,JmlBunga,0), 0)","v":{"v":0,"d":"Rp0.00"}},{"$f":"IFERROR(IF(PinjamanBelumDibayar*PinjamanAman,SaldoAkhir,0), 0)","v":{"v":0,"d":"Rp0.00"}}]
[null,{"$f":"IFERROR(IF(PinjamanBelumDibayar*PinjamanAman,NomorPembayaran,\"\"), \"\")","v":""},{"$f":"IFERROR(IF(PinjamanBelumDibayar*PinjamanAman,TanggalPembayaran,TanggalMulaiPinjaman), TanggalMulaiPinjaman)","v":"2019-07-18"},{"$f":"IFERROR(IF(PinjamanBelumDibayar*PinjamanAman,NilaiPinjaman,\"\"), \"\")","v":""},{"$f":"IFERROR(IF(PinjamanBelumDibayar*PinjamanAman,AngsuranBulanan,0), 0)","v":{"v":0,"d":"Rp0.00"}},{"$f":"IFERROR(IF(PinjamanBelumDibayar*PinjamanAman,Pinjaman_Pokok,0), 0)","v":{"v":0,"d":"Rp0.00"}},{"$f":"IFERROR(IF(PinjamanBelumDibayar*PinjamanAman,JmlBunga,0), 0)","v":{"v":0,"d":"Rp0.00"}},{"$f":"IFERROR(IF(PinjamanBelumDibayar*PinjamanAman,SaldoAkhir,0), 0)","v":{"v":0,"d":"Rp0.00"}}]
[null,{"$f":"IFERROR(IF(PinjamanBelumDibayar*PinjamanAman,NomorPembayaran,\"\"), \"\")","v":""},{"$f":"IFERROR(IF(PinjamanBelumDibayar*PinjamanAman,TanggalPembayaran,TanggalMulaiPinjaman), TanggalMulaiPinjaman)","v":"2019-07-18"},{"$f":"IFERROR(IF(PinjamanBelumDibayar*PinjamanAman,NilaiPinjaman,\"\"), \"\")","v":""},{"$f":"IFERROR(IF(PinjamanBelumDibayar*PinjamanAman,AngsuranBulanan,0), 0)","v":{"v":0,"d":"Rp0.00"}},{"$f":"IFERROR(IF(PinjamanBelumDibayar*PinjamanAman,Pinjaman_Pokok,0), 0)","v":{"v":0,"d":"Rp0.00"}},{"$f":"IFERROR(IF(PinjamanBelumDibayar*PinjamanAman,JmlBunga,0), 0)","v":{"v":0,"d":"Rp0.00"}},{"$f":"IFERROR(IF(PinjamanBelumDibayar*PinjamanAman,SaldoAkhir,0), 0)","v":{"v":0,"d":"Rp0.00"}}]
[null,{"$f":"IFERROR(IF(PinjamanBelumDibayar*PinjamanAman,NomorPembayaran,\"\"), \"\")","v":""},{"$f":"IFERROR(IF(PinjamanBelumDibayar*PinjamanAman,TanggalPembayaran,TanggalMulaiPinjaman), TanggalMulaiPinjaman)","v":"2019-07-18"},{"$f":"IFERROR(IF(PinjamanBelumDibayar*PinjamanAman,NilaiPinjaman,\"\"), \"\")","v":""},{"$f":"IFERROR(IF(PinjamanBelumDibayar*PinjamanAman,AngsuranBulanan,0), 0)","v":{"v":0,"d":"Rp0.00"}},{"$f":"IFERROR(IF(PinjamanBelumDibayar*PinjamanAman,Pinjaman_Pokok,0), 0)","v":{"v":0,"d":"Rp0.00"}},{"$f":"IFERROR(IF(PinjamanBelumDibayar*PinjamanAman,JmlBunga,0), 0)","v":{"v":0,"d":"Rp0.00"}},{"$f":"IFERROR(IF(PinjamanBelumDibayar*PinjamanAman,SaldoAkhir,0), 0)","v":{"v":0,"d":"Rp0.00"}}]
[null,{"$f":"IFERROR(IF(PinjamanBelumDibayar*PinjamanAman,NomorPembayaran,\"\"), \"\")","v":""},{"$f":"IFERROR(IF(PinjamanBelumDibayar*PinjamanAman,TanggalPembayaran,TanggalMulaiPinjaman), TanggalMulaiPinjaman)","v":"2019-07-18"},{"$f":"IFERROR(IF(PinjamanBelumDibayar*PinjamanAman,NilaiPinjaman,\"\"), \"\")","v":""},{"$f":"IFERROR(IF(PinjamanBelumDibayar*PinjamanAman,AngsuranBulanan,0), 0)","v":{"v":0,"d":"Rp0.00"}},{"$f":"IFERROR(IF(PinjamanBelumDibayar*PinjamanAman,Pinjaman_Pokok,0), 0)","v":{"v":0,"d":"Rp0.00"}},{"$f":"IFERROR(IF(PinjamanBelumDibayar*PinjamanAman,JmlBunga,0), 0)","v":{"v":0,"d":"Rp0.00"}},{"$f":"IFERROR(IF(PinjamanBelumDibayar*PinjamanAman,SaldoAkhir,0), 0)","v":{"v":0,"d":"Rp0.00"}}]
[null,{"$f":"IFERROR(IF(PinjamanBelumDibayar*PinjamanAman,NomorPembayaran,\"\"), \"\")","v":""},{"$f":"IFERROR(IF(PinjamanBelumDibayar*PinjamanAman,TanggalPembayaran,TanggalMulaiPinjaman), TanggalMulaiPinjaman)","v":"2019-07-18"},{"$f":"IFERROR(IF(PinjamanBelumDibayar*PinjamanAman,NilaiPinjaman,\"\"), \"\")","v":""},{"$f":"IFERROR(IF(PinjamanBelumDibayar*PinjamanAman,AngsuranBulanan,0), 0)","v":{"v":0,"d":"Rp0.00"}},{"$f":"IFERROR(IF(PinjamanBelumDibayar*PinjamanAman,Pinjaman_Pokok,0), 0)","v":{"v":0,"d":"Rp0.00"}},{"$f":"IFERROR(IF(PinjamanBelumDibayar*PinjamanAman,JmlBunga,0), 0)","v":{"v":0,"d":"Rp0.00"}},{"$f":"IFERROR(IF(PinjamanBelumDibayar*PinjamanAman,SaldoAkhir,0), 0)","v":{"v":0,"d":"Rp0.00"}}]
[null,{"$f":"IFERROR(IF(PinjamanBelumDibayar*PinjamanAman,NomorPembayaran,\"\"), \"\")","v":""},{"$f":"IFERROR(IF(PinjamanBelumDibayar*PinjamanAman,TanggalPembayaran,TanggalMulaiPinjaman), TanggalMulaiPinjaman)","v":"2019-07-18"},{"$f":"IFERROR(IF(PinjamanBelumDibayar*PinjamanAman,NilaiPinjaman,\"\"), \"\")","v":""},{"$f":"IFERROR(IF(PinjamanBelumDibayar*PinjamanAman,AngsuranBulanan,0), 0)","v":{"v":0,"d":"Rp0.00"}},{"$f":"IFERROR(IF(PinjamanBelumDibayar*PinjamanAman,Pinjaman_Pokok,0), 0)","v":{"v":0,"d":"Rp0.00"}},{"$f":"IFERROR(IF(PinjamanBelumDibayar*PinjamanAman,JmlBunga,0), 0)","v":{"v":0,"d":"Rp0.00"}},{"$f":"IFERROR(IF(PinjamanBelumDibayar*PinjamanAman,SaldoAkhir,0), 0)","v":{"v":0,"d":"Rp0.00"}}]
[null,{"$f":"IFERROR(IF(PinjamanBelumDibayar*PinjamanAman,NomorPembayaran,\"\"), \"\")","v":""},{"$f":"IFERROR(IF(PinjamanBelumDibayar*PinjamanAman,TanggalPembayaran,TanggalMulaiPinjaman), TanggalMulaiPinjaman)","v":"2019-07-18"},{"$f":"IFERROR(IF(PinjamanBelumDibayar*PinjamanAman,NilaiPinjaman,\"\"), \"\")","v":""},{"$f":"IFERROR(IF(PinjamanBelumDibayar*PinjamanAman,AngsuranBulanan,0), 0)","v":{"v":0,"d":"Rp0.00"}},{"$f":"IFERROR(IF(PinjamanBelumDibayar*PinjamanAman,Pinjaman_Pokok,0), 0)","v":{"v":0,"d":"Rp0.00"}},{"$f":"IFERROR(IF(PinjamanBelumDibayar*PinjamanAman,JmlBunga,0), 0)","v":{"v":0,"d":"Rp0.00"}},{"$f":"IFERROR(IF(PinjamanBelumDibayar*PinjamanAman,SaldoAkhir,0), 0)","v":{"v":0,"d":"Rp0.00"}}]
[null,{"$f":"IFERROR(IF(PinjamanBelumDibayar*PinjamanAman,NomorPembayaran,\"\"), \"\")","v":""},{"$f":"IFERROR(IF(PinjamanBelumDibayar*PinjamanAman,TanggalPembayaran,TanggalMulaiPinjaman), TanggalMulaiPinjaman)","v":"2019-07-18"},{"$f":"IFERROR(IF(PinjamanBelumDibayar*PinjamanAman,NilaiPinjaman,\"\"), \"\")","v":""},{"$f":"IFERROR(IF(PinjamanBelumDibayar*PinjamanAman,AngsuranBulanan,0), 0)","v":{"v":0,"d":"Rp0.00"}},{"$f":"IFERROR(IF(PinjamanBelumDibayar*PinjamanAman,Pinjaman_Pokok,0), 0)","v":{"v":0,"d":"Rp0.00"}},{"$f":"IFERROR(IF(PinjamanBelumDibayar*PinjamanAman,JmlBunga,0), 0)","v":{"v":0,"d":"Rp0.00"}},{"$f":"IFERROR(IF(PinjamanBelumDibayar*PinjamanAman,SaldoAkhir,0), 0)","v":{"v":0,"d":"Rp0.00"}}]
[null,{"$f":"IFERROR(IF(PinjamanBelumDibayar*PinjamanAman,NomorPembayaran,\"\"), \"\")","v":""},{"$f":"IFERROR(IF(PinjamanBelumDibayar*PinjamanAman,TanggalPembayaran,TanggalMulaiPinjaman), TanggalMulaiPinjaman)","v":"2019-07-18"},{"$f":"IFERROR(IF(PinjamanBelumDibayar*PinjamanAman,NilaiPinjaman,\"\"), \"\")","v":""},{"$f":"IFERROR(IF(PinjamanBelumDibayar*PinjamanAman,AngsuranBulanan,0), 0)","v":{"v":0,"d":"Rp0.00"}},{"$f":"IFERROR(IF(PinjamanBelumDibayar*PinjamanAman,Pinjaman_Pokok,0), 0)","v":{"v":0,"d":"Rp0.00"}},{"$f":"IFERROR(IF(PinjamanBelumDibayar*PinjamanAman,JmlBunga,0), 0)","v":{"v":0,"d":"Rp0.00"}},{"$f":"IFERROR(IF(PinjamanBelumDibayar*PinjamanAman,SaldoAkhir,0), 0)","v":{"v":0,"d":"Rp0.00"}}]
[null,{"$f":"IFERROR(IF(PinjamanBelumDibayar*PinjamanAman,NomorPembayaran,\"\"), \"\")","v":""},{"$f":"IFERROR(IF(PinjamanBelumDibayar*PinjamanAman,TanggalPembayaran,TanggalMulaiPinjaman), TanggalMulaiPinjaman)","v":"2019-07-18"},{"$f":"IFERROR(IF(PinjamanBelumDibayar*PinjamanAman,NilaiPinjaman,\"\"), \"\")","v":""},{"$f":"IFERROR(IF(PinjamanBelumDibayar*PinjamanAman,AngsuranBulanan,0), 0)","v":{"v":0,"d":"Rp0.00"}},{"$f":"IFERROR(IF(PinjamanBelumDibayar*PinjamanAman,Pinjaman_Pokok,0), 0)","v":{"v":0,"d":"Rp0.00"}},{"$f":"IFERROR(IF(PinjamanBelumDibayar*PinjamanAman,JmlBunga,0), 0)","v":{"v":0,"d":"Rp0.00"}},{"$f":"IFERROR(IF(PinjamanBelumDibayar*PinjamanAman,SaldoAkhir,0), 0)","v":{"v":0,"d":"Rp0.00"}}]
[null,{"$f":"IFERROR(IF(PinjamanBelumDibayar*PinjamanAman,NomorPembayaran,\"\"), \"\")","v":""},{"$f":"IFERROR(IF(PinjamanBelumDibayar*PinjamanAman,TanggalPembayaran,TanggalMulaiPinjaman), TanggalMulaiPinjaman)","v":"2019-07-18"},{"$f":"IFERROR(IF(PinjamanBelumDibayar*PinjamanAman,NilaiPinjaman,\"\"), \"\")","v":""},{"$f":"IFERROR(IF(PinjamanBelumDibayar*PinjamanAman,AngsuranBulanan,0), 0)","v":{"v":0,"d":"Rp0.00"}},{"$f":"IFERROR(IF(PinjamanBelumDibayar*PinjamanAman,Pinjaman_Pokok,0), 0)","v":{"v":0,"d":"Rp0.00"}},{"$f":"IFERROR(IF(PinjamanBelumDibayar*PinjamanAman,JmlBunga,0), 0)","v":{"v":0,"d":"Rp0.00"}},{"$f":"IFERROR(IF(PinjamanBelumDibayar*PinjamanAman,SaldoAkhir,0), 0)","v":{"v":0,"d":"Rp0.00"}}]
[null,{"$f":"IFERROR(IF(PinjamanBelumDibayar*PinjamanAman,NomorPembayaran,\"\"), \"\")","v":""},{"$f":"IFERROR(IF(PinjamanBelumDibayar*PinjamanAman,TanggalPembayaran,TanggalMulaiPinjaman), TanggalMulaiPinjaman)","v":"2019-07-18"},{"$f":"IFERROR(IF(PinjamanBelumDibayar*PinjamanAman,NilaiPinjaman,\"\"), \"\")","v":""},{"$f":"IFERROR(IF(PinjamanBelumDibayar*PinjamanAman,AngsuranBulanan,0), 0)","v":{"v":0,"d":"Rp0.00"}},{"$f":"IFERROR(IF(PinjamanBelumDibayar*PinjamanAman,Pinjaman_Pokok,0), 0)","v":{"v":0,"d":"Rp0.00"}},{"$f":"IFERROR(IF(PinjamanBelumDibayar*PinjamanAman,JmlBunga,0), 0)","v":{"v":0,"d":"Rp0.00"}},{"$f":"IFERROR(IF(PinjamanBelumDibayar*PinjamanAman,SaldoAkhir,0), 0)","v":{"v":0,"d":"Rp0.00"}}]
[null,{"$f":"IFERROR(IF(PinjamanBelumDibayar*PinjamanAman,NomorPembayaran,\"\"), \"\")","v":""},{"$f":"IFERROR(IF(PinjamanBelumDibayar*PinjamanAman,TanggalPembayaran,TanggalMulaiPinjaman), TanggalMulaiPinjaman)","v":"2019-07-18"},{"$f":"IFERROR(IF(PinjamanBelumDibayar*PinjamanAman,NilaiPinjaman,\"\"), \"\")","v":""},{"$f":"IFERROR(IF(PinjamanBelumDibayar*PinjamanAman,AngsuranBulanan,0), 0)","v":{"v":0,"d":"Rp0.00"}},{"$f":"IFERROR(IF(PinjamanBelumDibayar*PinjamanAman,Pinjaman_Pokok,0), 0)","v":{"v":0,"d":"Rp0.00"}},{"$f":"IFERROR(IF(PinjamanBelumDibayar*PinjamanAman,JmlBunga,0), 0)","v":{"v":0,"d":"Rp0.00"}},{"$f":"IFERROR(IF(PinjamanBelumDibayar*PinjamanAman,SaldoAkhir,0), 0)","v":{"v":0,"d":"Rp0.00"}}]
[null,{"$f":"IFERROR(IF(PinjamanBelumDibayar*PinjamanAman,NomorPembayaran,\"\"), \"\")","v":""},{"$f":"IFERROR(IF(PinjamanBelumDibayar*PinjamanAman,TanggalPembayaran,TanggalMulaiPinjaman), TanggalMulaiPinjaman)","v":"2019-07-18"},{"$f":"IFERROR(IF(PinjamanBelumDibayar*PinjamanAman,NilaiPinjaman,\"\"), \"\")","v":""},{"$f":"IFERROR(IF(PinjamanBelumDibayar*PinjamanAman,AngsuranBulanan,0), 0)","v":{"v":0,"d":"Rp0.00"}},{"$f":"IFERROR(IF(PinjamanBelumDibayar*PinjamanAman,Pinjaman_Pokok,0), 0)","v":{"v":0,"d":"Rp0.00"}},{"$f":"IFERROR(IF(PinjamanBelumDibayar*PinjamanAman,JmlBunga,0), 0)","v":{"v":0,"d":"Rp0.00"}},{"$f":"IFERROR(IF(PinjamanBelumDibayar*PinjamanAman,SaldoAkhir,0), 0)","v":{"v":0,"d":"Rp0.00"}}]
[null,{"$f":"IFERROR(IF(PinjamanBelumDibayar*PinjamanAman,NomorPembayaran,\"\"), \"\")","v":""},{"$f":"IFERROR(IF(PinjamanBelumDibayar*PinjamanAman,TanggalPembayaran,TanggalMulaiPinjaman), TanggalMulaiPinjaman)","v":"2019-07-18"},{"$f":"IFERROR(IF(PinjamanBelumDibayar*PinjamanAman,NilaiPinjaman,\"\"), \"\")","v":""},{"$f":"IFERROR(IF(PinjamanBelumDibayar*PinjamanAman,AngsuranBulanan,0), 0)","v":{"v":0,"d":"Rp0.00"}},{"$f":"IFERROR(IF(PinjamanBelumDibayar*PinjamanAman,Pinjaman_Pokok,0), 0)","v":{"v":0,"d":"Rp0.00"}},{"$f":"IFERROR(IF(PinjamanBelumDibayar*PinjamanAman,JmlBunga,0), 0)","v":{"v":0,"d":"Rp0.00"}},{"$f":"IFERROR(IF(PinjamanBelumDibayar*PinjamanAman,SaldoAkhir,0), 0)","v":{"v":0,"d":"Rp0.00"}}]
[null,{"$f":"IFERROR(IF(PinjamanBelumDibayar*PinjamanAman,NomorPembayaran,\"\"), \"\")","v":""},{"$f":"IFERROR(IF(PinjamanBelumDibayar*PinjamanAman,TanggalPembayaran,TanggalMulaiPinjaman), TanggalMulaiPinjaman)","v":"2019-07-18"},{"$f":"IFERROR(IF(PinjamanBelumDibayar*PinjamanAman,NilaiPinjaman,\"\"), \"\")","v":""},{"$f":"IFERROR(IF(PinjamanBelumDibayar*PinjamanAman,AngsuranBulanan,0), 0)","v":{"v":0,"d":"Rp0.00"}},{"$f":"IFERROR(IF(PinjamanBelumDibayar*PinjamanAman,Pinjaman_Pokok,0), 0)","v":{"v":0,"d":"Rp0.00"}},{"$f":"IFERROR(IF(PinjamanBelumDibayar*PinjamanAman,JmlBunga,0), 0)","v":{"v":0,"d":"Rp0.00"}},{"$f":"IFERROR(IF(PinjamanBelumDibayar*PinjamanAman,SaldoAkhir,0), 0)","v":{"v":0,"d":"Rp0.00"}}]
[null,{"$f":"IFERROR(IF(PinjamanBelumDibayar*PinjamanAman,NomorPembayaran,\"\"), \"\")","v":""},{"$f":"IFERROR(IF(PinjamanBelumDibayar*PinjamanAman,TanggalPembayaran,TanggalMulaiPinjaman), TanggalMulaiPinjaman)","v":"2019-07-18"},{"$f":"IFERROR(IF(PinjamanBelumDibayar*PinjamanAman,NilaiPinjaman,\"\"), \"\")","v":""},{"$f":"IFERROR(IF(PinjamanBelumDibayar*PinjamanAman,AngsuranBulanan,0), 0)","v":{"v":0,"d":"Rp0.00"}},{"$f":"IFERROR(IF(PinjamanBelumDibayar*PinjamanAman,Pinjaman_Pokok,0), 0)","v":{"v":0,"d":"Rp0.00"}},{"$f":"IFERROR(IF(PinjamanBelumDibayar*PinjamanAman,JmlBunga,0), 0)","v":{"v":0,"d":"Rp0.00"}},{"$f":"IFERROR(IF(PinjamanBelumDibayar*PinjamanAman,SaldoAkhir,0), 0)","v":{"v":0,"d":"Rp0.00"}}]
[null,{"$f":"IFERROR(IF(PinjamanBelumDibayar*PinjamanAman,NomorPembayaran,\"\"), \"\")","v":""},{"$f":"IFERROR(IF(PinjamanBelumDibayar*PinjamanAman,TanggalPembayaran,TanggalMulaiPinjaman), TanggalMulaiPinjaman)","v":"2019-07-18"},{"$f":"IFERROR(IF(PinjamanBelumDibayar*PinjamanAman,NilaiPinjaman,\"\"), \"\")","v":""},{"$f":"IFERROR(IF(PinjamanBelumDibayar*PinjamanAman,AngsuranBulanan,0), 0)","v":{"v":0,"d":"Rp0.00"}},{"$f":"IFERROR(IF(PinjamanBelumDibayar*PinjamanAman,Pinjaman_Pokok,0), 0)","v":{"v":0,"d":"Rp0.00"}},{"$f":"IFERROR(IF(PinjamanBelumDibayar*PinjamanAman,JmlBunga,0), 0)","v":{"v":0,"d":"Rp0.00"}},{"$f":"IFERROR(IF(PinjamanBelumDibayar*PinjamanAman,SaldoAkhir,0), 0)","v":{"v":0,"d":"Rp0.00"}}]
[null,{"$f":"IFERROR(IF(PinjamanBelumDibayar*PinjamanAman,NomorPembayaran,\"\"), \"\")","v":""},{"$f":"IFERROR(IF(PinjamanBelumDibayar*PinjamanAman,TanggalPembayaran,TanggalMulaiPinjaman), TanggalMulaiPinjaman)","v":"2019-07-18"},{"$f":"IFERROR(IF(PinjamanBelumDibayar*PinjamanAman,NilaiPinjaman,\"\"), \"\")","v":""},{"$f":"IFERROR(IF(PinjamanBelumDibayar*PinjamanAman,AngsuranBulanan,0), 0)","v":{"v":0,"d":"Rp0.00"}},{"$f":"IFERROR(IF(PinjamanBelumDibayar*PinjamanAman,Pinjaman_Pokok,0), 0)","v":{"v":0,"d":"Rp0.00"}},{"$f":"IFERROR(IF(PinjamanBelumDibayar*PinjamanAman,JmlBunga,0), 0)","v":{"v":0,"d":"Rp0.00"}},{"$f":"IFERROR(IF(PinjamanBelumDibayar*PinjamanAman,SaldoAkhir,0), 0)","v":{"v":0,"d":"Rp0.00"}}]
[null,{"$f":"IFERROR(IF(PinjamanBelumDibayar*PinjamanAman,NomorPembayaran,\"\"), \"\")","v":""},{"$f":"IFERROR(IF(PinjamanBelumDibayar*PinjamanAman,TanggalPembayaran,TanggalMulaiPinjaman), TanggalMulaiPinjaman)","v":"2019-07-18"},{"$f":"IFERROR(IF(PinjamanBelumDibayar*PinjamanAman,NilaiPinjaman,\"\"), \"\")","v":""},{"$f":"IFERROR(IF(PinjamanBelumDibayar*PinjamanAman,AngsuranBulanan,0), 0)","v":{"v":0,"d":"Rp0.00"}},{"$f":"IFERROR(IF(PinjamanBelumDibayar*PinjamanAman,Pinjaman_Pokok,0), 0)","v":{"v":0,"d":"Rp0.00"}},{"$f":"IFERROR(IF(PinjamanBelumDibayar*PinjamanAman,JmlBunga,0), 0)","v":{"v":0,"d":"Rp0.00"}},{"$f":"IFERROR(IF(PinjamanBelumDibayar*PinjamanAman,SaldoAkhir,0), 0)","v":{"v":0,"d":"Rp0.00"}}]
[null,{"$f":"IFERROR(IF(PinjamanBelumDibayar*PinjamanAman,NomorPembayaran,\"\"), \"\")","v":""},{"$f":"IFERROR(IF(PinjamanBelumDibayar*PinjamanAman,TanggalPembayaran,TanggalMulaiPinjaman), TanggalMulaiPinjaman)","v":"2019-07-18"},{"$f":"IFERROR(IF(PinjamanBelumDibayar*PinjamanAman,NilaiPinjaman,\"\"), \"\")","v":""},{"$f":"IFERROR(IF(PinjamanBelumDibayar*PinjamanAman,AngsuranBulanan,0), 0)","v":{"v":0,"d":"Rp0.00"}},{"$f":"IFERROR(IF(PinjamanBelumDibayar*PinjamanAman,Pinjaman_Pokok,0), 0)","v":{"v":0,"d":"Rp0.00"}},{"$f":"IFERROR(IF(PinjamanBelumDibayar*PinjamanAman,JmlBunga,0), 0)","v":{"v":0,"d":"Rp0.00"}},{"$f":"IFERROR(IF(PinjamanBelumDibayar*PinjamanAman,SaldoAkhir,0), 0)","v":{"v":0,"d":"Rp0.00"}}]
[null,{"$f":"IFERROR(IF(PinjamanBelumDibayar*PinjamanAman,NomorPembayaran,\"\"), \"\")","v":""},{"$f":"IFERROR(IF(PinjamanBelumDibayar*PinjamanAman,TanggalPembayaran,TanggalMulaiPinjaman), TanggalMulaiPinjaman)","v":"2019-07-18"},{"$f":"IFERROR(IF(PinjamanBelumDibayar*PinjamanAman,NilaiPinjaman,\"\"), \"\")","v":""},{"$f":"IFERROR(IF(PinjamanBelumDibayar*PinjamanAman,AngsuranBulanan,0), 0)","v":{"v":0,"d":"Rp0.00"}},{"$f":"IFERROR(IF(PinjamanBelumDibayar*PinjamanAman,Pinjaman_Pokok,0), 0)","v":{"v":0,"d":"Rp0.00"}},{"$f":"IFERROR(IF(PinjamanBelumDibayar*PinjamanAman,JmlBunga,0), 0)","v":{"v":0,"d":"Rp0.00"}},{"$f":"IFERROR(IF(PinjamanBelumDibayar*PinjamanAman,SaldoAkhir,0), 0)","v":{"v":0,"d":"Rp0.00"}}]
[null,{"$f":"IFERROR(IF(PinjamanBelumDibayar*PinjamanAman,NomorPembayaran,\"\"), \"\")","v":""},{"$f":"IFERROR(IF(PinjamanBelumDibayar*PinjamanAman,TanggalPembayaran,TanggalMulaiPinjaman), TanggalMulaiPinjaman)","v":"2019-07-18"},{"$f":"IFERROR(IF(PinjamanBelumDibayar*PinjamanAman,NilaiPinjaman,\"\"), \"\")","v":""},{"$f":"IFERROR(IF(PinjamanBelumDibayar*PinjamanAman,AngsuranBulanan,0), 0)","v":{"v":0,"d":"Rp0.00"}},{"$f":"IFERROR(IF(PinjamanBelumDibayar*PinjamanAman,Pinjaman_Pokok,0), 0)","v":{"v":0,"d":"Rp0.00"}},{"$f":"IFERROR(IF(PinjamanBelumDibayar*PinjamanAman,JmlBunga,0), 0)","v":{"v":0,"d":"Rp0.00"}},{"$f":"IFERROR(IF(PinjamanBelumDibayar*PinjamanAman,SaldoAkhir,0), 0)","v":{"v":0,"d":"Rp0.00"}}]
[null,{"$f":"IFERROR(IF(PinjamanBelumDibayar*PinjamanAman,NomorPembayaran,\"\"), \"\")","v":""},{"$f":"IFERROR(IF(PinjamanBelumDibayar*PinjamanAman,TanggalPembayaran,TanggalMulaiPinjaman), TanggalMulaiPinjaman)","v":"2019-07-18"},{"$f":"IFERROR(IF(PinjamanBelumDibayar*PinjamanAman,NilaiPinjaman,\"\"), \"\")","v":""},{"$f":"IFERROR(IF(PinjamanBelumDibayar*PinjamanAman,AngsuranBulanan,0), 0)","v":{"v":0,"d":"Rp0.00"}},{"$f":"IFERROR(IF(PinjamanBelumDibayar*PinjamanAman,Pinjaman_Pokok,0), 0)","v":{"v":0,"d":"Rp0.00"}},{"$f":"IFERROR(IF(PinjamanBelumDibayar*PinjamanAman,JmlBunga,0), 0)","v":{"v":0,"d":"Rp0.00"}},{"$f":"IFERROR(IF(PinjamanBelumDibayar*PinjamanAman,SaldoAkhir,0), 0)","v":{"v":0,"d":"Rp0.00"}}]
[null,{"$f":"IFERROR(IF(PinjamanBelumDibayar*PinjamanAman,NomorPembayaran,\"\"), \"\")","v":""},{"$f":"IFERROR(IF(PinjamanBelumDibayar*PinjamanAman,TanggalPembayaran,TanggalMulaiPinjaman), TanggalMulaiPinjaman)","v":"2019-07-18"},{"$f":"IFERROR(IF(PinjamanBelumDibayar*PinjamanAman,NilaiPinjaman,\"\"), \"\")","v":""},{"$f":"IFERROR(IF(PinjamanBelumDibayar*PinjamanAman,AngsuranBulanan,0), 0)","v":{"v":0,"d":"Rp0.00"}},{"$f":"IFERROR(IF(PinjamanBelumDibayar*PinjamanAman,Pinjaman_Pokok,0), 0)","v":{"v":0,"d":"Rp0.00"}},{"$f":"IFERROR(IF(PinjamanBelumDibayar*PinjamanAman,JmlBunga,0), 0)","v":{"v":0,"d":"Rp0.00"}},{"$f":"IFERROR(IF(PinjamanBelumDibayar*PinjamanAman,SaldoAkhir,0), 0)","v":{"v":0,"d":"Rp0.00"}}]
[null,{"$f":"IFERROR(IF(PinjamanBelumDibayar*PinjamanAman,NomorPembayaran,\"\"), \"\")","v":""},{"$f":"IFERROR(IF(PinjamanBelumDibayar*PinjamanAman,TanggalPembayaran,TanggalMulaiPinjaman), TanggalMulaiPinjaman)","v":"2019-07-18"},{"$f":"IFERROR(IF(PinjamanBelumDibayar*PinjamanAman,NilaiPinjaman,\"\"), \"\")","v":""},{"$f":"IFERROR(IF(PinjamanBelumDibayar*PinjamanAman,AngsuranBulanan,0), 0)","v":{"v":0,"d":"Rp0.00"}},{"$f":"IFERROR(IF(PinjamanBelumDibayar*PinjamanAman,Pinjaman_Pokok,0), 0)","v":{"v":0,"d":"Rp0.00"}},{"$f":"IFERROR(IF(PinjamanBelumDibayar*PinjamanAman,JmlBunga,0), 0)","v":{"v":0,"d":"Rp0.00"}},{"$f":"IFERROR(IF(PinjamanBelumDibayar*PinjamanAman,SaldoAkhir,0), 0)","v":{"v":0,"d":"Rp0.00"}}]
[null,{"$f":"IFERROR(IF(PinjamanBelumDibayar*PinjamanAman,NomorPembayaran,\"\"), \"\")","v":""},{"$f":"IFERROR(IF(PinjamanBelumDibayar*PinjamanAman,TanggalPembayaran,TanggalMulaiPinjaman), TanggalMulaiPinjaman)","v":"2019-07-18"},{"$f":"IFERROR(IF(PinjamanBelumDibayar*PinjamanAman,NilaiPinjaman,\"\"), \"\")","v":""},{"$f":"IFERROR(IF(PinjamanBelumDibayar*PinjamanAman,AngsuranBulanan,0), 0)","v":{"v":0,"d":"Rp0.00"}},{"$f":"IFERROR(IF(PinjamanBelumDibayar*PinjamanAman,Pinjaman_Pokok,0), 0)","v":{"v":0,"d":"Rp0.00"}},{"$f":"IFERROR(IF(PinjamanBelumDibayar*PinjamanAman,JmlBunga,0), 0)","v":{"v":0,"d":"Rp0.00"}},{"$f":"IFERROR(IF(PinjamanBelumDibayar*PinjamanAman,SaldoAkhir,0), 0)","v":{"v":0,"d":"Rp0.00"}}]
[null,{"$f":"IFERROR(IF(PinjamanBelumDibayar*PinjamanAman,NomorPembayaran,\"\"), \"\")","v":""},{"$f":"IFERROR(IF(PinjamanBelumDibayar*PinjamanAman,TanggalPembayaran,TanggalMulaiPinjaman), TanggalMulaiPinjaman)","v":"2019-07-18"},{"$f":"IFERROR(IF(PinjamanBelumDibayar*PinjamanAman,NilaiPinjaman,\"\"), \"\")","v":""},{"$f":"IFERROR(IF(PinjamanBelumDibayar*PinjamanAman,AngsuranBulanan,0), 0)","v":{"v":0,"d":"Rp0.00"}},{"$f":"IFERROR(IF(PinjamanBelumDibayar*PinjamanAman,Pinjaman_Pokok,0), 0)","v":{"v":0,"d":"Rp0.00"}},{"$f":"IFERROR(IF(PinjamanBelumDibayar*PinjamanAman,JmlBunga,0), 0)","v":{"v":0,"d":"Rp0.00"}},{"$f":"IFERROR(IF(PinjamanBelumDibayar*PinjamanAman,SaldoAkhir,0), 0)","v":{"v":0,"d":"Rp0.00"}}]
[null,{"$f":"IFERROR(IF(PinjamanBelumDibayar*PinjamanAman,NomorPembayaran,\"\"), \"\")","v":""},{"$f":"IFERROR(IF(PinjamanBelumDibayar*PinjamanAman,TanggalPembayaran,TanggalMulaiPinjaman), TanggalMulaiPinjaman)","v":"2019-07-18"},{"$f":"IFERROR(IF(PinjamanBelumDibayar*PinjamanAman,NilaiPinjaman,\"\"), \"\")","v":""},{"$f":"IFERROR(IF(PinjamanBelumDibayar*PinjamanAman,AngsuranBulanan,0), 0)","v":{"v":0,"d":"Rp0.00"}},{"$f":"IFERROR(IF(PinjamanBelumDibayar*PinjamanAman,Pinjaman_Pokok,0), 0)","v":{"v":0,"d":"Rp0.00"}},{"$f":"IFERROR(IF(PinjamanBelumDibayar*PinjamanAman,JmlBunga,0), 0)","v":{"v":0,"d":"Rp0.00"}},{"$f":"IFERROR(IF(PinjamanBelumDibayar*PinjamanAman,SaldoAkhir,0), 0)","v":{"v":0,"d":"Rp0.00"}}]
[null,{"$f":"IFERROR(IF(PinjamanBelumDibayar*PinjamanAman,NomorPembayaran,\"\"), \"\")","v":""},{"$f":"IFERROR(IF(PinjamanBelumDibayar*PinjamanAman,TanggalPembayaran,TanggalMulaiPinjaman), TanggalMulaiPinjaman)","v":"2019-07-18"},{"$f":"IFERROR(IF(PinjamanBelumDibayar*PinjamanAman,NilaiPinjaman,\"\"), \"\")","v":""},{"$f":"IFERROR(IF(PinjamanBelumDibayar*PinjamanAman,AngsuranBulanan,0), 0)","v":{"v":0,"d":"Rp0.00"}},{"$f":"IFERROR(IF(PinjamanBelumDibayar*PinjamanAman,Pinjaman_Pokok,0), 0)","v":{"v":0,"d":"Rp0.00"}},{"$f":"IFERROR(IF(PinjamanBelumDibayar*PinjamanAman,JmlBunga,0), 0)","v":{"v":0,"d":"Rp0.00"}},{"$f":"IFERROR(IF(PinjamanBelumDibayar*PinjamanAman,SaldoAkhir,0), 0)","v":{"v":0,"d":"Rp0.00"}}]
[null,{"$f":"IFERROR(IF(PinjamanBelumDibayar*PinjamanAman,NomorPembayaran,\"\"), \"\")","v":""},{"$f":"IFERROR(IF(PinjamanBelumDibayar*PinjamanAman,TanggalPembayaran,TanggalMulaiPinjaman), TanggalMulaiPinjaman)","v":"2019-07-18"},{"$f":"IFERROR(IF(PinjamanBelumDibayar*PinjamanAman,NilaiPinjaman,\"\"), \"\")","v":""},{"$f":"IFERROR(IF(PinjamanBelumDibayar*PinjamanAman,AngsuranBulanan,0), 0)","v":{"v":0,"d":"Rp0.00"}},{"$f":"IFERROR(IF(PinjamanBelumDibayar*PinjamanAman,Pinjaman_Pokok,0), 0)","v":{"v":0,"d":"Rp0.00"}},{"$f":"IFERROR(IF(PinjamanBelumDibayar*PinjamanAman,JmlBunga,0), 0)","v":{"v":0,"d":"Rp0.00"}},{"$f":"IFERROR(IF(PinjamanBelumDibayar*PinjamanAman,SaldoAkhir,0), 0)","v":{"v":0,"d":"Rp0.00"}}]
[null,{"$f":"IFERROR(IF(PinjamanBelumDibayar*PinjamanAman,NomorPembayaran,\"\"), \"\")","v":""},{"$f":"IFERROR(IF(PinjamanBelumDibayar*PinjamanAman,TanggalPembayaran,TanggalMulaiPinjaman), TanggalMulaiPinjaman)","v":"2019-07-18"},{"$f":"IFERROR(IF(PinjamanBelumDibayar*PinjamanAman,NilaiPinjaman,\"\"), \"\")","v":""},{"$f":"IFERROR(IF(PinjamanBelumDibayar*PinjamanAman,AngsuranBulanan,0), 0)","v":{"v":0,"d":"Rp0.00"}},{"$f":"IFERROR(IF(PinjamanBelumDibayar*PinjamanAman,Pinjaman_Pokok,0), 0)","v":{"v":0,"d":"Rp0.00"}},{"$f":"IFERROR(IF(PinjamanBelumDibayar*PinjamanAman,JmlBunga,0), 0)","v":{"v":0,"d":"Rp0.00"}},{"$f":"IFERROR(IF(PinjamanBelumDibayar*PinjamanAman,SaldoAkhir,0), 0)","v":{"v":0,"d":"Rp0.00"}}]
[null,{"$f":"IFERROR(IF(PinjamanBelumDibayar*PinjamanAman,NomorPembayaran,\"\"), \"\")","v":""},{"$f":"IFERROR(IF(PinjamanBelumDibayar*PinjamanAman,TanggalPembayaran,TanggalMulaiPinjaman), TanggalMulaiPinjaman)","v":"2019-07-18"},{"$f":"IFERROR(IF(PinjamanBelumDibayar*PinjamanAman,NilaiPinjaman,\"\"), \"\")","v":""},{"$f":"IFERROR(IF(PinjamanBelumDibayar*PinjamanAman,AngsuranBulanan,0), 0)","v":{"v":0,"d":"Rp0.00"}},{"$f":"IFERROR(IF(PinjamanBelumDibayar*PinjamanAman,Pinjaman_Pokok,0), 0)","v":{"v":0,"d":"Rp0.00"}},{"$f":"IFERROR(IF(PinjamanBelumDibayar*PinjamanAman,JmlBunga,0), 0)","v":{"v":0,"d":"Rp0.00"}},{"$f":"IFERROR(IF(PinjamanBelumDibayar*PinjamanAman,SaldoAkhir,0), 0)","v":{"v":0,"d":"Rp0.00"}}]
[null,{"$f":"IFERROR(IF(PinjamanBelumDibayar*PinjamanAman,NomorPembayaran,\"\"), \"\")","v":""},{"$f":"IFERROR(IF(PinjamanBelumDibayar*PinjamanAman,TanggalPembayaran,TanggalMulaiPinjaman), TanggalMulaiPinjaman)","v":"2019-07-18"},{"$f":"IFERROR(IF(PinjamanBelumDibayar*PinjamanAman,NilaiPinjaman,\"\"), \"\")","v":""},{"$f":"IFERROR(IF(PinjamanBelumDibayar*PinjamanAman,AngsuranBulanan,0), 0)","v":{"v":0,"d":"Rp0.00"}},{"$f":"IFERROR(IF(PinjamanBelumDibayar*PinjamanAman,Pinjaman_Pokok,0), 0)","v":{"v":0,"d":"Rp0.00"}},{"$f":"IFERROR(IF(PinjamanBelumDibayar*PinjamanAman,JmlBunga,0), 0)","v":{"v":0,"d":"Rp0.00"}},{"$f":"IFERROR(IF(PinjamanBelumDibayar*PinjamanAman,SaldoAkhir,0), 0)","v":{"v":0,"d":"Rp0.00"}}]
[null,{"$f":"IFERROR(IF(PinjamanBelumDibayar*PinjamanAman,NomorPembayaran,\"\"), \"\")","v":""},{"$f":"IFERROR(IF(PinjamanBelumDibayar*PinjamanAman,TanggalPembayaran,TanggalMulaiPinjaman), TanggalMulaiPinjaman)","v":"2019-07-18"},{"$f":"IFERROR(IF(PinjamanBelumDibayar*PinjamanAman,NilaiPinjaman,\"\"), \"\")","v":""},{"$f":"IFERROR(IF(PinjamanBelumDibayar*PinjamanAman,AngsuranBulanan,0), 0)","v":{"v":0,"d":"Rp0.00"}},{"$f":"IFERROR(IF(PinjamanBelumDibayar*PinjamanAman,Pinjaman_Pokok,0), 0)","v":{"v":0,"d":"Rp0.00"}},{"$f":"IFERROR(IF(PinjamanBelumDibayar*PinjamanAman,JmlBunga,0), 0)","v":{"v":0,"d":"Rp0.00"}},{"$f":"IFERROR(IF(PinjamanBelumDibayar*PinjamanAman,SaldoAkhir,0), 0)","v":{"v":0,"d":"Rp0.00"}}]
[null,{"$f":"IFERROR(IF(PinjamanBelumDibayar*PinjamanAman,NomorPembayaran,\"\"), \"\")","v":""},{"$f":"IFERROR(IF(PinjamanBelumDibayar*PinjamanAman,TanggalPembayaran,TanggalMulaiPinjaman), TanggalMulaiPinjaman)","v":"2019-07-18"},{"$f":"IFERROR(IF(PinjamanBelumDibayar*PinjamanAman,NilaiPinjaman,\"\"), \"\")","v":""},{"$f":"IFERROR(IF(PinjamanBelumDibayar*PinjamanAman,AngsuranBulanan,0), 0)","v":{"v":0,"d":"Rp0.00"}},{"$f":"IFERROR(IF(PinjamanBelumDibayar*PinjamanAman,Pinjaman_Pokok,0), 0)","v":{"v":0,"d":"Rp0.00"}},{"$f":"IFERROR(IF(PinjamanBelumDibayar*PinjamanAman,JmlBunga,0), 0)","v":{"v":0,"d":"Rp0.00"}},{"$f":"IFERROR(IF(PinjamanBelumDibayar*PinjamanAman,SaldoAkhir,0), 0)","v":{"v":0,"d":"Rp0.00"}}]
[null,{"$f":"IFERROR(IF(PinjamanBelumDibayar*PinjamanAman,NomorPembayaran,\"\"), \"\")","v":""},{"$f":"IFERROR(IF(PinjamanBelumDibayar*PinjamanAman,TanggalPembayaran,TanggalMulaiPinjaman), TanggalMulaiPinjaman)","v":"2019-07-18"},{"$f":"IFERROR(IF(PinjamanBelumDibayar*PinjamanAman,NilaiPinjaman,\"\"), \"\")","v":""},{"$f":"IFERROR(IF(PinjamanBelumDibayar*PinjamanAman,AngsuranBulanan,0), 0)","v":{"v":0,"d":"Rp0.00"}},{"$f":"IFERROR(IF(PinjamanBelumDibayar*PinjamanAman,Pinjaman_Pokok,0), 0)","v":{"v":0,"d":"Rp0.00"}},{"$f":"IFERROR(IF(PinjamanBelumDibayar*PinjamanAman,JmlBunga,0), 0)","v":{"v":0,"d":"Rp0.00"}},{"$f":"IFERROR(IF(PinjamanBelumDibayar*PinjamanAman,SaldoAkhir,0), 0)","v":{"v":0,"d":"Rp0.00"}}]
[null,{"$f":"IFERROR(IF(PinjamanBelumDibayar*PinjamanAman,NomorPembayaran,\"\"), \"\")","v":""},{"$f":"IFERROR(IF(PinjamanBelumDibayar*PinjamanAman,TanggalPembayaran,TanggalMulaiPinjaman), TanggalMulaiPinjaman)","v":"2019-07-18"},{"$f":"IFERROR(IF(PinjamanBelumDibayar*PinjamanAman,NilaiPinjaman,\"\"), \"\")","v":""},{"$f":"IFERROR(IF(PinjamanBelumDibayar*PinjamanAman,AngsuranBulanan,0), 0)","v":{"v":0,"d":"Rp0.00"}},{"$f":"IFERROR(IF(PinjamanBelumDibayar*PinjamanAman,Pinjaman_Pokok,0), 0)","v":{"v":0,"d":"Rp0.00"}},{"$f":"IFERROR(IF(PinjamanBelumDibayar*PinjamanAman,JmlBunga,0), 0)","v":{"v":0,"d":"Rp0.00"}},{"$f":"IFERROR(IF(PinjamanBelumDibayar*PinjamanAman,SaldoAkhir,0), 0)","v":{"v":0,"d":"Rp0.00"}}]
[null,{"$f":"IFERROR(IF(PinjamanBelumDibayar*PinjamanAman,NomorPembayaran,\"\"), \"\")","v":""},{"$f":"IFERROR(IF(PinjamanBelumDibayar*PinjamanAman,TanggalPembayaran,TanggalMulaiPinjaman), TanggalMulaiPinjaman)","v":"2019-07-18"},{"$f":"IFERROR(IF(PinjamanBelumDibayar*PinjamanAman,NilaiPinjaman,\"\"), \"\")","v":""},{"$f":"IFERROR(IF(PinjamanBelumDibayar*PinjamanAman,AngsuranBulanan,0), 0)","v":{"v":0,"d":"Rp0.00"}},{"$f":"IFERROR(IF(PinjamanBelumDibayar*PinjamanAman,Pinjaman_Pokok,0), 0)","v":{"v":0,"d":"Rp0.00"}},{"$f":"IFERROR(IF(PinjamanBelumDibayar*PinjamanAman,JmlBunga,0), 0)","v":{"v":0,"d":"Rp0.00"}},{"$f":"IFERROR(IF(PinjamanBelumDibayar*PinjamanAman,SaldoAkhir,0), 0)","v":{"v":0,"d":"Rp0.00"}}]
[null,{"$f":"IFERROR(IF(PinjamanBelumDibayar*PinjamanAman,NomorPembayaran,\"\"), \"\")","v":""},{"$f":"IFERROR(IF(PinjamanBelumDibayar*PinjamanAman,TanggalPembayaran,TanggalMulaiPinjaman), TanggalMulaiPinjaman)","v":"2019-07-18"},{"$f":"IFERROR(IF(PinjamanBelumDibayar*PinjamanAman,NilaiPinjaman,\"\"), \"\")","v":""},{"$f":"IFERROR(IF(PinjamanBelumDibayar*PinjamanAman,AngsuranBulanan,0), 0)","v":{"v":0,"d":"Rp0.00"}},{"$f":"IFERROR(IF(PinjamanBelumDibayar*PinjamanAman,Pinjaman_Pokok,0), 0)","v":{"v":0,"d":"Rp0.00"}},{"$f":"IFERROR(IF(PinjamanBelumDibayar*PinjamanAman,JmlBunga,0), 0)","v":{"v":0,"d":"Rp0.00"}},{"$f":"IFERROR(IF(PinjamanBelumDibayar*PinjamanAman,SaldoAkhir,0), 0)","v":{"v":0,"d":"Rp0.00"}}]
[null,{"$f":"IFERROR(IF(PinjamanBelumDibayar*PinjamanAman,NomorPembayaran,\"\"), \"\")","v":""},{"$f":"IFERROR(IF(PinjamanBelumDibayar*PinjamanAman,TanggalPembayaran,TanggalMulaiPinjaman), TanggalMulaiPinjaman)","v":"2019-07-18"},{"$f":"IFERROR(IF(PinjamanBelumDibayar*PinjamanAman,NilaiPinjaman,\"\"), \"\")","v":""},{"$f":"IFERROR(IF(PinjamanBelumDibayar*PinjamanAman,AngsuranBulanan,0), 0)","v":{"v":0,"d":"Rp0.00"}},{"$f":"IFERROR(IF(PinjamanBelumDibayar*PinjamanAman,Pinjaman_Pokok,0), 0)","v":{"v":0,"d":"Rp0.00"}},{"$f":"IFERROR(IF(PinjamanBelumDibayar*PinjamanAman,JmlBunga,0), 0)","v":{"v":0,"d":"Rp0.00"}},{"$f":"IFERROR(IF(PinjamanBelumDibayar*PinjamanAman,SaldoAkhir,0), 0)","v":{"v":0,"d":"Rp0.00"}}]
[null,{"$f":"IFERROR(IF(PinjamanBelumDibayar*PinjamanAman,NomorPembayaran,\"\"), \"\")","v":""},{"$f":"IFERROR(IF(PinjamanBelumDibayar*PinjamanAman,TanggalPembayaran,TanggalMulaiPinjaman), TanggalMulaiPinjaman)","v":"2019-07-18"},{"$f":"IFERROR(IF(PinjamanBelumDibayar*PinjamanAman,NilaiPinjaman,\"\"), \"\")","v":""},{"$f":"IFERROR(IF(PinjamanBelumDibayar*PinjamanAman,AngsuranBulanan,0), 0)","v":{"v":0,"d":"Rp0.00"}},{"$f":"IFERROR(IF(PinjamanBelumDibayar*PinjamanAman,Pinjaman_Pokok,0), 0)","v":{"v":0,"d":"Rp0.00"}},{"$f":"IFERROR(IF(PinjamanBelumDibayar*PinjamanAman,JmlBunga,0), 0)","v":{"v":0,"d":"Rp0.00"}},{"$f":"IFERROR(IF(PinjamanBelumDibayar*PinjamanAman,SaldoAkhir,0), 0)","v":{"v":0,"d":"Rp0.00"}}]
[null,{"$f":"IFERROR(IF(PinjamanBelumDibayar*PinjamanAman,NomorPembayaran,\"\"), \"\")","v":""},{"$f":"IFERROR(IF(PinjamanBelumDibayar*PinjamanAman,TanggalPembayaran,TanggalMulaiPinjaman), TanggalMulaiPinjaman)","v":"2019-07-18"},{"$f":"IFERROR(IF(PinjamanBelumDibayar*PinjamanAman,NilaiPinjaman,\"\"), \"\")","v":""},{"$f":"IFERROR(IF(PinjamanBelumDibayar*PinjamanAman,AngsuranBulanan,0), 0)","v":{"v":0,"d":"Rp0.00"}},{"$f":"IFERROR(IF(PinjamanBelumDibayar*PinjamanAman,Pinjaman_Pokok,0), 0)","v":{"v":0,"d":"Rp0.00"}},{"$f":"IFERROR(IF(PinjamanBelumDibayar*PinjamanAman,JmlBunga,0), 0)","v":{"v":0,"d":"Rp0.00"}},{"$f":"IFERROR(IF(PinjamanBelumDibayar*PinjamanAman,SaldoAkhir,0), 0)","v":{"v":0,"d":"Rp0.00"}}]
[null,{"$f":"IFERROR(IF(PinjamanBelumDibayar*PinjamanAman,NomorPembayaran,\"\"), \"\")","v":""},{"$f":"IFERROR(IF(PinjamanBelumDibayar*PinjamanAman,TanggalPembayaran,TanggalMulaiPinjaman), TanggalMulaiPinjaman)","v":"2019-07-18"},{"$f":"IFERROR(IF(PinjamanBelumDibayar*PinjamanAman,NilaiPinjaman,\"\"), \"\")","v":""},{"$f":"IFERROR(IF(PinjamanBelumDibayar*PinjamanAman,AngsuranBulanan,0), 0)","v":{"v":0,"d":"Rp0.00"}},{"$f":"IFERROR(IF(PinjamanBelumDibayar*PinjamanAman,Pinjaman_Pokok,0), 0)","v":{"v":0,"d":"Rp0.00"}},{"$f":"IFERROR(IF(PinjamanBelumDibayar*PinjamanAman,JmlBunga,0), 0)","v":{"v":0,"d":"Rp0.00"}},{"$f":"IFERROR(IF(PinjamanBelumDibayar*PinjamanAman,SaldoAkhir,0), 0)","v":{"v":0,"d":"Rp0.00"}}]
[null,{"$f":"IFERROR(IF(PinjamanBelumDibayar*PinjamanAman,NomorPembayaran,\"\"), \"\")","v":""},{"$f":"IFERROR(IF(PinjamanBelumDibayar*PinjamanAman,TanggalPembayaran,TanggalMulaiPinjaman), TanggalMulaiPinjaman)","v":"2019-07-18"},{"$f":"IFERROR(IF(PinjamanBelumDibayar*PinjamanAman,NilaiPinjaman,\"\"), \"\")","v":""},{"$f":"IFERROR(IF(PinjamanBelumDibayar*PinjamanAman,AngsuranBulanan,0), 0)","v":{"v":0,"d":"Rp0.00"}},{"$f":"IFERROR(IF(PinjamanBelumDibayar*PinjamanAman,Pinjaman_Pokok,0), 0)","v":{"v":0,"d":"Rp0.00"}},{"$f":"IFERROR(IF(PinjamanBelumDibayar*PinjamanAman,JmlBunga,0), 0)","v":{"v":0,"d":"Rp0.00"}},{"$f":"IFERROR(IF(PinjamanBelumDibayar*PinjamanAman,SaldoAkhir,0), 0)","v":{"v":0,"d":"Rp0.00"}}]
[null,{"$f":"IFERROR(IF(PinjamanBelumDibayar*PinjamanAman,NomorPembayaran,\"\"), \"\")","v":""},{"$f":"IFERROR(IF(PinjamanBelumDibayar*PinjamanAman,TanggalPembayaran,TanggalMulaiPinjaman), TanggalMulaiPinjaman)","v":"2019-07-18"},{"$f":"IFERROR(IF(PinjamanBelumDibayar*PinjamanAman,NilaiPinjaman,\"\"), \"\")","v":""},{"$f":"IFERROR(IF(PinjamanBelumDibayar*PinjamanAman,AngsuranBulanan,0), 0)","v":{"v":0,"d":"Rp0.00"}},{"$f":"IFERROR(IF(PinjamanBelumDibayar*PinjamanAman,Pinjaman_Pokok,0), 0)","v":{"v":0,"d":"Rp0.00"}},{"$f":"IFERROR(IF(PinjamanBelumDibayar*PinjamanAman,JmlBunga,0), 0)","v":{"v":0,"d":"Rp0.00"}},{"$f":"IFERROR(IF(PinjamanBelumDibayar*PinjamanAman,SaldoAkhir,0), 0)","v":{"v":0,"d":"Rp0.00"}}]
[null,{"$f":"IFERROR(IF(PinjamanBelumDibayar*PinjamanAman,NomorPembayaran,\"\"), \"\")","v":""},{"$f":"IFERROR(IF(PinjamanBelumDibayar*PinjamanAman,TanggalPembayaran,TanggalMulaiPinjaman), TanggalMulaiPinjaman)","v":"2019-07-18"},{"$f":"IFERROR(IF(PinjamanBelumDibayar*PinjamanAman,NilaiPinjaman,\"\"), \"\")","v":""},{"$f":"IFERROR(IF(PinjamanBelumDibayar*PinjamanAman,AngsuranBulanan,0), 0)","v":{"v":0,"d":"Rp0.00"}},{"$f":"IFERROR(IF(PinjamanBelumDibayar*PinjamanAman,Pinjaman_Pokok,0), 0)","v":{"v":0,"d":"Rp0.00"}},{"$f":"IFERROR(IF(PinjamanBelumDibayar*PinjamanAman,JmlBunga,0), 0)","v":{"v":0,"d":"Rp0.00"}},{"$f":"IFERROR(IF(PinjamanBelumDibayar*PinjamanAman,SaldoAkhir,0), 0)","v":{"v":0,"d":"Rp0.00"}}]
[null,{"$f":"IFERROR(IF(PinjamanBelumDibayar*PinjamanAman,NomorPembayaran,\"\"), \"\")","v":""},{"$f":"IFERROR(IF(PinjamanBelumDibayar*PinjamanAman,TanggalPembayaran,TanggalMulaiPinjaman), TanggalMulaiPinjaman)","v":"2019-07-18"},{"$f":"IFERROR(IF(PinjamanBelumDibayar*PinjamanAman,NilaiPinjaman,\"\"), \"\")","v":""},{"$f":"IFERROR(IF(PinjamanBelumDibayar*PinjamanAman,AngsuranBulanan,0), 0)","v":{"v":0,"d":"Rp0.00"}},{"$f":"IFERROR(IF(PinjamanBelumDibayar*PinjamanAman,Pinjaman_Pokok,0), 0)","v":{"v":0,"d":"Rp0.00"}},{"$f":"IFERROR(IF(PinjamanBelumDibayar*PinjamanAman,JmlBunga,0), 0)","v":{"v":0,"d":"Rp0.00"}},{"$f":"IFERROR(IF(PinjamanBelumDibayar*PinjamanAman,SaldoAkhir,0), 0)","v":{"v":0,"d":"Rp0.00"}}]
[null,{"$f":"IFERROR(IF(PinjamanBelumDibayar*PinjamanAman,NomorPembayaran,\"\"), \"\")","v":""},{"$f":"IFERROR(IF(PinjamanBelumDibayar*PinjamanAman,TanggalPembayaran,TanggalMulaiPinjaman), TanggalMulaiPinjaman)","v":"2019-07-18"},{"$f":"IFERROR(IF(PinjamanBelumDibayar*PinjamanAman,NilaiPinjaman,\"\"), \"\")","v":""},{"$f":"IFERROR(IF(PinjamanBelumDibayar*PinjamanAman,AngsuranBulanan,0), 0)","v":{"v":0,"d":"Rp0.00"}},{"$f":"IFERROR(IF(PinjamanBelumDibayar*PinjamanAman,Pinjaman_Pokok,0), 0)","v":{"v":0,"d":"Rp0.00"}},{"$f":"IFERROR(IF(PinjamanBelumDibayar*PinjamanAman,JmlBunga,0), 0)","v":{"v":0,"d":"Rp0.00"}},{"$f":"IFERROR(IF(PinjamanBelumDibayar*PinjamanAman,SaldoAkhir,0), 0)","v":{"v":0,"d":"Rp0.00"}}]
[null,{"$f":"IFERROR(IF(PinjamanBelumDibayar*PinjamanAman,NomorPembayaran,\"\"), \"\")","v":""},{"$f":"IFERROR(IF(PinjamanBelumDibayar*PinjamanAman,TanggalPembayaran,TanggalMulaiPinjaman), TanggalMulaiPinjaman)","v":"2019-07-18"},{"$f":"IFERROR(IF(PinjamanBelumDibayar*PinjamanAman,NilaiPinjaman,\"\"), \"\")","v":""},{"$f":"IFERROR(IF(PinjamanBelumDibayar*PinjamanAman,AngsuranBulanan,0), 0)","v":{"v":0,"d":"Rp0.00"}},{"$f":"IFERROR(IF(PinjamanBelumDibayar*PinjamanAman,Pinjaman_Pokok,0), 0)","v":{"v":0,"d":"Rp0.00"}},{"$f":"IFERROR(IF(PinjamanBelumDibayar*PinjamanAman,JmlBunga,0), 0)","v":{"v":0,"d":"Rp0.00"}},{"$f":"IFERROR(IF(PinjamanBelumDibayar*PinjamanAman,SaldoAkhir,0), 0)","v":{"v":0,"d":"Rp0.00"}}]
[null,{"$f":"IFERROR(IF(PinjamanBelumDibayar*PinjamanAman,NomorPembayaran,\"\"), \"\")","v":""},{"$f":"IFERROR(IF(PinjamanBelumDibayar*PinjamanAman,TanggalPembayaran,TanggalMulaiPinjaman), TanggalMulaiPinjaman)","v":"2019-07-18"},{"$f":"IFERROR(IF(PinjamanBelumDibayar*PinjamanAman,NilaiPinjaman,\"\"), \"\")","v":""},{"$f":"IFERROR(IF(PinjamanBelumDibayar*PinjamanAman,AngsuranBulanan,0), 0)","v":{"v":0,"d":"Rp0.00"}},{"$f":"IFERROR(IF(PinjamanBelumDibayar*PinjamanAman,Pinjaman_Pokok,0), 0)","v":{"v":0,"d":"Rp0.00"}},{"$f":"IFERROR(IF(PinjamanBelumDibayar*PinjamanAman,JmlBunga,0), 0)","v":{"v":0,"d":"Rp0.00"}},{"$f":"IFERROR(IF(PinjamanBelumDibayar*PinjamanAman,SaldoAkhir,0), 0)","v":{"v":0,"d":"Rp0.00"}}]
[null,{"$f":"IFERROR(IF(PinjamanBelumDibayar*PinjamanAman,NomorPembayaran,\"\"), \"\")","v":""},{"$f":"IFERROR(IF(PinjamanBelumDibayar*PinjamanAman,TanggalPembayaran,TanggalMulaiPinjaman), TanggalMulaiPinjaman)","v":"2019-07-18"},{"$f":"IFERROR(IF(PinjamanBelumDibayar*PinjamanAman,NilaiPinjaman,\"\"), \"\")","v":""},{"$f":"IFERROR(IF(PinjamanBelumDibayar*PinjamanAman,AngsuranBulanan,0), 0)","v":{"v":0,"d":"Rp0.00"}},{"$f":"IFERROR(IF(PinjamanBelumDibayar*PinjamanAman,Pinjaman_Pokok,0), 0)","v":{"v":0,"d":"Rp0.00"}},{"$f":"IFERROR(IF(PinjamanBelumDibayar*PinjamanAman,JmlBunga,0), 0)","v":{"v":0,"d":"Rp0.00"}},{"$f":"IFERROR(IF(PinjamanBelumDibayar*PinjamanAman,SaldoAkhir,0), 0)","v":{"v":0,"d":"Rp0.00"}}]
[null,{"$f":"IFERROR(IF(PinjamanBelumDibayar*PinjamanAman,NomorPembayaran,\"\"), \"\")","v":""},{"$f":"IFERROR(IF(PinjamanBelumDibayar*PinjamanAman,TanggalPembayaran,TanggalMulaiPinjaman), TanggalMulaiPinjaman)","v":"2019-07-18"},{"$f":"IFERROR(IF(PinjamanBelumDibayar*PinjamanAman,NilaiPinjaman,\"\"), \"\")","v":""},{"$f":"IFERROR(IF(PinjamanBelumDibayar*PinjamanAman,AngsuranBulanan,0), 0)","v":{"v":0,"d":"Rp0.00"}},{"$f":"IFERROR(IF(PinjamanBelumDibayar*PinjamanAman,Pinjaman_Pokok,0), 0)","v":{"v":0,"d":"Rp0.00"}},{"$f":"IFERROR(IF(PinjamanBelumDibayar*PinjamanAman,JmlBunga,0), 0)","v":{"v":0,"d":"Rp0.00"}},{"$f":"IFERROR(IF(PinjamanBelumDibayar*PinjamanAman,SaldoAkhir,0), 0)","v":{"v":0,"d":"Rp0.00"}}]
[null,{"$f":"IFERROR(IF(PinjamanBelumDibayar*PinjamanAman,NomorPembayaran,\"\"), \"\")","v":""},{"$f":"IFERROR(IF(PinjamanBelumDibayar*PinjamanAman,TanggalPembayaran,TanggalMulaiPinjaman), TanggalMulaiPinjaman)","v":"2019-07-18"},{"$f":"IFERROR(IF(PinjamanBelumDibayar*PinjamanAman,NilaiPinjaman,\"\"), \"\")","v":""},{"$f":"IFERROR(IF(PinjamanBelumDibayar*PinjamanAman,AngsuranBulanan,0), 0)","v":{"v":0,"d":"Rp0.00"}},{"$f":"IFERROR(IF(PinjamanBelumDibayar*PinjamanAman,Pinjaman_Pokok,0), 0)","v":{"v":0,"d":"Rp0.00"}},{"$f":"IFERROR(IF(PinjamanBelumDibayar*PinjamanAman,JmlBunga,0), 0)","v":{"v":0,"d":"Rp0.00"}},{"$f":"IFERROR(IF(PinjamanBelumDibayar*PinjamanAman,SaldoAkhir,0), 0)","v":{"v":0,"d":"Rp0.00"}}]
[null,{"$f":"IFERROR(IF(PinjamanBelumDibayar*PinjamanAman,NomorPembayaran,\"\"), \"\")","v":""},{"$f":"IFERROR(IF(PinjamanBelumDibayar*PinjamanAman,TanggalPembayaran,TanggalMulaiPinjaman), TanggalMulaiPinjaman)","v":"2019-07-18"},{"$f":"IFERROR(IF(PinjamanBelumDibayar*PinjamanAman,NilaiPinjaman,\"\"), \"\")","v":""},{"$f":"IFERROR(IF(PinjamanBelumDibayar*PinjamanAman,AngsuranBulanan,0), 0)","v":{"v":0,"d":"Rp0.00"}},{"$f":"IFERROR(IF(PinjamanBelumDibayar*PinjamanAman,Pinjaman_Pokok,0), 0)","v":{"v":0,"d":"Rp0.00"}},{"$f":"IFERROR(IF(PinjamanBelumDibayar*PinjamanAman,JmlBunga,0), 0)","v":{"v":0,"d":"Rp0.00"}},{"$f":"IFERROR(IF(PinjamanBelumDibayar*PinjamanAman,SaldoAkhir,0), 0)","v":{"v":0,"d":"Rp0.00"}}]
[null,{"$f":"IFERROR(IF(PinjamanBelumDibayar*PinjamanAman,NomorPembayaran,\"\"), \"\")","v":""},{"$f":"IFERROR(IF(PinjamanBelumDibayar*PinjamanAman,TanggalPembayaran,TanggalMulaiPinjaman), TanggalMulaiPinjaman)","v":"2019-07-18"},{"$f":"IFERROR(IF(PinjamanBelumDibayar*PinjamanAman,NilaiPinjaman,\"\"), \"\")","v":""},{"$f":"IFERROR(IF(PinjamanBelumDibayar*PinjamanAman,AngsuranBulanan,0), 0)","v":{"v":0,"d":"Rp0.00"}},{"$f":"IFERROR(IF(PinjamanBelumDibayar*PinjamanAman,Pinjaman_Pokok,0), 0)","v":{"v":0,"d":"Rp0.00"}},{"$f":"IFERROR(IF(PinjamanBelumDibayar*PinjamanAman,JmlBunga,0), 0)","v":{"v":0,"d":"Rp0.00"}},{"$f":"IFERROR(IF(PinjamanBelumDibayar*PinjamanAman,SaldoAkhir,0), 0)","v":{"v":0,"d":"Rp0.00"}}]
[null,{"$f":"IFERROR(IF(PinjamanBelumDibayar*PinjamanAman,NomorPembayaran,\"\"), \"\")","v":""},{"$f":"IFERROR(IF(PinjamanBelumDibayar*PinjamanAman,TanggalPembayaran,TanggalMulaiPinjaman), TanggalMulaiPinjaman)","v":"2019-07-18"},{"$f":"IFERROR(IF(PinjamanBelumDibayar*PinjamanAman,NilaiPinjaman,\"\"), \"\")","v":""},{"$f":"IFERROR(IF(PinjamanBelumDibayar*PinjamanAman,AngsuranBulanan,0), 0)","v":{"v":0,"d":"Rp0.00"}},{"$f":"IFERROR(IF(PinjamanBelumDibayar*PinjamanAman,Pinjaman_Pokok,0), 0)","v":{"v":0,"d":"Rp0.00"}},{"$f":"IFERROR(IF(PinjamanBelumDibayar*PinjamanAman,JmlBunga,0), 0)","v":{"v":0,"d":"Rp0.00"}},{"$f":"IFERROR(IF(PinjamanBelumDibayar*PinjamanAman,SaldoAkhir,0), 0)","v":{"v":0,"d":"Rp0.00"}}]
[null,{"$f":"IFERROR(IF(PinjamanBelumDibayar*PinjamanAman,NomorPembayaran,\"\"), \"\")","v":""},{"$f":"IFERROR(IF(PinjamanBelumDibayar*PinjamanAman,TanggalPembayaran,TanggalMulaiPinjaman), TanggalMulaiPinjaman)","v":"2019-07-18"},{"$f":"IFERROR(IF(PinjamanBelumDibayar*PinjamanAman,NilaiPinjaman,\"\"), \"\")","v":""},{"$f":"IFERROR(IF(PinjamanBelumDibayar*PinjamanAman,AngsuranBulanan,0), 0)","v":{"v":0,"d":"Rp0.00"}},{"$f":"IFERROR(IF(PinjamanBelumDibayar*PinjamanAman,Pinjaman_Pokok,0), 0)","v":{"v":0,"d":"Rp0.00"}},{"$f":"IFERROR(IF(PinjamanBelumDibayar*PinjamanAman,JmlBunga,0), 0)","v":{"v":0,"d":"Rp0.00"}},{"$f":"IFERROR(IF(PinjamanBelumDibayar*PinjamanAman,SaldoAkhir,0), 0)","v":{"v":0,"d":"Rp0.00"}}]
[null,{"$f":"IFERROR(IF(PinjamanBelumDibayar*PinjamanAman,NomorPembayaran,\"\"), \"\")","v":""},{"$f":"IFERROR(IF(PinjamanBelumDibayar*PinjamanAman,TanggalPembayaran,TanggalMulaiPinjaman), TanggalMulaiPinjaman)","v":"2019-07-18"},{"$f":"IFERROR(IF(PinjamanBelumDibayar*PinjamanAman,NilaiPinjaman,\"\"), \"\")","v":""},{"$f":"IFERROR(IF(PinjamanBelumDibayar*PinjamanAman,AngsuranBulanan,0), 0)","v":{"v":0,"d":"Rp0.00"}},{"$f":"IFERROR(IF(PinjamanBelumDibayar*PinjamanAman,Pinjaman_Pokok,0), 0)","v":{"v":0,"d":"Rp0.00"}},{"$f":"IFERROR(IF(PinjamanBelumDibayar*PinjamanAman,JmlBunga,0), 0)","v":{"v":0,"d":"Rp0.00"}},{"$f":"IFERROR(IF(PinjamanBelumDibayar*PinjamanAman,SaldoAkhir,0), 0)","v":{"v":0,"d":"Rp0.00"}}]
[null,{"$f":"IFERROR(IF(PinjamanBelumDibayar*PinjamanAman,NomorPembayaran,\"\"), \"\")","v":""},{"$f":"IFERROR(IF(PinjamanBelumDibayar*PinjamanAman,TanggalPembayaran,TanggalMulaiPinjaman), TanggalMulaiPinjaman)","v":"2019-07-18"},{"$f":"IFERROR(IF(PinjamanBelumDibayar*PinjamanAman,NilaiPinjaman,\"\"), \"\")","v":""},{"$f":"IFERROR(IF(PinjamanBelumDibayar*PinjamanAman,AngsuranBulanan,0), 0)","v":{"v":0,"d":"Rp0.00"}},{"$f":"IFERROR(IF(PinjamanBelumDibayar*PinjamanAman,Pinjaman_Pokok,0), 0)","v":{"v":0,"d":"Rp0.00"}},{"$f":"IFERROR(IF(PinjamanBelumDibayar*PinjamanAman,JmlBunga,0), 0)","v":{"v":0,"d":"Rp0.00"}},{"$f":"IFERROR(IF(PinjamanBelumDibayar*PinjamanAman,SaldoAkhir,0), 0)","v":{"v":0,"d":"Rp0.00"}}]
[null,{"$f":"IFERROR(IF(PinjamanBelumDibayar*PinjamanAman,NomorPembayaran,\"\"), \"\")","v":""},{"$f":"IFERROR(IF(PinjamanBelumDibayar*PinjamanAman,TanggalPembayaran,TanggalMulaiPinjaman), TanggalMulaiPinjaman)","v":"2019-07-18"},{"$f":"IFERROR(IF(PinjamanBelumDibayar*PinjamanAman,NilaiPinjaman,\"\"), \"\")","v":""},{"$f":"IFERROR(IF(PinjamanBelumDibayar*PinjamanAman,AngsuranBulanan,0), 0)","v":{"v":0,"d":"Rp0.00"}},{"$f":"IFERROR(IF(PinjamanBelumDibayar*PinjamanAman,Pinjaman_Pokok,0), 0)","v":{"v":0,"d":"Rp0.00"}},{"$f":"IFERROR(IF(PinjamanBelumDibayar*PinjamanAman,JmlBunga,0), 0)","v":{"v":0,"d":"Rp0.00"}},{"$f":"IFERROR(IF(PinjamanBelumDibayar*PinjamanAman,SaldoAkhir,0), 0)","v":{"v":0,"d":"Rp0.00"}}]
[null,{"$f":"IFERROR(IF(PinjamanBelumDibayar*PinjamanAman,NomorPembayaran,\"\"), \"\")","v":""},{"$f":"IFERROR(IF(PinjamanBelumDibayar*PinjamanAman,TanggalPembayaran,TanggalMulaiPinjaman), TanggalMulaiPinjaman)","v":"2019-07-18"},{"$f":"IFERROR(IF(PinjamanBelumDibayar*PinjamanAman,NilaiPinjaman,\"\"), \"\")","v":""},{"$f":"IFERROR(IF(PinjamanBelumDibayar*PinjamanAman,AngsuranBulanan,0), 0)","v":{"v":0,"d":"Rp0.00"}},{"$f":"IFERROR(IF(PinjamanBelumDibayar*PinjamanAman,Pinjaman_Pokok,0), 0)","v":{"v":0,"d":"Rp0.00"}},{"$f":"IFERROR(IF(PinjamanBelumDibayar*PinjamanAman,JmlBunga,0), 0)","v":{"v":0,"d":"Rp0.00"}},{"$f":"IFERROR(IF(PinjamanBelumDibayar*PinjamanAman,SaldoAkhir,0), 0)","v":{"v":0,"d":"Rp0.00"}}]
[null,{"$f":"IFERROR(IF(PinjamanBelumDibayar*PinjamanAman,NomorPembayaran,\"\"), \"\")","v":""},{"$f":"IFERROR(IF(PinjamanBelumDibayar*PinjamanAman,TanggalPembayaran,TanggalMulaiPinjaman), TanggalMulaiPinjaman)","v":"2019-07-18"},{"$f":"IFERROR(IF(PinjamanBelumDibayar*PinjamanAman,NilaiPinjaman,\"\"), \"\")","v":""},{"$f":"IFERROR(IF(PinjamanBelumDibayar*PinjamanAman,AngsuranBulanan,0), 0)","v":{"v":0,"d":"Rp0.00"}},{"$f":"IFERROR(IF(PinjamanBelumDibayar*PinjamanAman,Pinjaman_Pokok,0), 0)","v":{"v":0,"d":"Rp0.00"}},{"$f":"IFERROR(IF(PinjamanBelumDibayar*PinjamanAman,JmlBunga,0), 0)","v":{"v":0,"d":"Rp0.00"}},{"$f":"IFERROR(IF(PinjamanBelumDibayar*PinjamanAman,SaldoAkhir,0), 0)","v":{"v":0,"d":"Rp0.00"}}]
[null,{"$f":"IFERROR(IF(PinjamanBelumDibayar*PinjamanAman,NomorPembayaran,\"\"), \"\")","v":""},{"$f":"IFERROR(IF(PinjamanBelumDibayar*PinjamanAman,TanggalPembayaran,TanggalMulaiPinjaman), TanggalMulaiPinjaman)","v":"2019-07-18"},{"$f":"IFERROR(IF(PinjamanBelumDibayar*PinjamanAman,NilaiPinjaman,\"\"), \"\")","v":""},{"$f":"IFERROR(IF(PinjamanBelumDibayar*PinjamanAman,AngsuranBulanan,0), 0)","v":{"v":0,"d":"Rp0.00"}},{"$f":"IFERROR(IF(PinjamanBelumDibayar*PinjamanAman,Pinjaman_Pokok,0), 0)","v":{"v":0,"d":"Rp0.00"}},{"$f":"IFERROR(IF(PinjamanBelumDibayar*PinjamanAman,JmlBunga,0), 0)","v":{"v":0,"d":"Rp0.00"}},{"$f":"IFERROR(IF(PinjamanBelumDibayar*PinjamanAman,SaldoAkhir,0), 0)","v":{"v":0,"d":"Rp0.00"}}]
[null,{"$f":"IFERROR(IF(PinjamanBelumDibayar*PinjamanAman,NomorPembayaran,\"\"), \"\")","v":""},{"$f":"IFERROR(IF(PinjamanBelumDibayar*PinjamanAman,TanggalPembayaran,TanggalMulaiPinjaman), TanggalMulaiPinjaman)","v":"2019-07-18"},{"$f":"IFERROR(IF(PinjamanBelumDibayar*PinjamanAman,NilaiPinjaman,\"\"), \"\")","v":""},{"$f":"IFERROR(IF(PinjamanBelumDibayar*PinjamanAman,AngsuranBulanan,0), 0)","v":{"v":0,"d":"Rp0.00"}},{"$f":"IFERROR(IF(PinjamanBelumDibayar*PinjamanAman,Pinjaman_Pokok,0), 0)","v":{"v":0,"d":"Rp0.00"}},{"$f":"IFERROR(IF(PinjamanBelumDibayar*PinjamanAman,JmlBunga,0), 0)","v":{"v":0,"d":"Rp0.00"}},{"$f":"IFERROR(IF(PinjamanBelumDibayar*PinjamanAman,SaldoAkhir,0), 0)","v":{"v":0,"d":"Rp0.00"}}]
[null,{"$f":"IFERROR(IF(PinjamanBelumDibayar*PinjamanAman,NomorPembayaran,\"\"), \"\")","v":""},{"$f":"IFERROR(IF(PinjamanBelumDibayar*PinjamanAman,TanggalPembayaran,TanggalMulaiPinjaman), TanggalMulaiPinjaman)","v":"2019-07-18"},{"$f":"IFERROR(IF(PinjamanBelumDibayar*PinjamanAman,NilaiPinjaman,\"\"), \"\")","v":""},{"$f":"IFERROR(IF(PinjamanBelumDibayar*PinjamanAman,AngsuranBulanan,0), 0)","v":{"v":0,"d":"Rp0.00"}},{"$f":"IFERROR(IF(PinjamanBelumDibayar*PinjamanAman,Pinjaman_Pokok,0), 0)","v":{"v":0,"d":"Rp0.00"}},{"$f":"IFERROR(IF(PinjamanBelumDibayar*PinjamanAman,JmlBunga,0), 0)","v":{"v":0,"d":"Rp0.00"}},{"$f":"IFERROR(IF(PinjamanBelumDibayar*PinjamanAman,SaldoAkhir,0), 0)","v":{"v":0,"d":"Rp0.00"}}]
[null,{"$f":"IFERROR(IF(PinjamanBelumDibayar*PinjamanAman,NomorPembayaran,\"\"), \"\")","v":""},{"$f":"IFERROR(IF(PinjamanBelumDibayar*PinjamanAman,TanggalPembayaran,TanggalMulaiPinjaman), TanggalMulaiPinjaman)","v":"2019-07-18"},{"$f":"IFERROR(IF(PinjamanBelumDibayar*PinjamanAman,NilaiPinjaman,\"\"), \"\")","v":""},{"$f":"IFERROR(IF(PinjamanBelumDibayar*PinjamanAman,AngsuranBulanan,0), 0)","v":{"v":0,"d":"Rp0.00"}},{"$f":"IFERROR(IF(PinjamanBelumDibayar*PinjamanAman,Pinjaman_Pokok,0), 0)","v":{"v":0,"d":"Rp0.00"}},{"$f":"IFERROR(IF(PinjamanBelumDibayar*PinjamanAman,JmlBunga,0), 0)","v":{"v":0,"d":"Rp0.00"}},{"$f":"IFERROR(IF(PinjamanBelumDibayar*PinjamanAman,SaldoAkhir,0), 0)","v":{"v":0,"d":"Rp0.00"}}]
[null,{"$f":"IFERROR(IF(PinjamanBelumDibayar*PinjamanAman,NomorPembayaran,\"\"), \"\")","v":""},{"$f":"IFERROR(IF(PinjamanBelumDibayar*PinjamanAman,TanggalPembayaran,TanggalMulaiPinjaman), TanggalMulaiPinjaman)","v":"2019-07-18"},{"$f":"IFERROR(IF(PinjamanBelumDibayar*PinjamanAman,NilaiPinjaman,\"\"), \"\")","v":""},{"$f":"IFERROR(IF(PinjamanBelumDibayar*PinjamanAman,AngsuranBulanan,0), 0)","v":{"v":0,"d":"Rp0.00"}},{"$f":"IFERROR(IF(PinjamanBelumDibayar*PinjamanAman,Pinjaman_Pokok,0), 0)","v":{"v":0,"d":"Rp0.00"}},{"$f":"IFERROR(IF(PinjamanBelumDibayar*PinjamanAman,JmlBunga,0), 0)","v":{"v":0,"d":"Rp0.00"}},{"$f":"IFERROR(IF(PinjamanBelumDibayar*PinjamanAman,SaldoAkhir,0), 0)","v":{"v":0,"d":"Rp0.00"}}]
[null,{"$f":"IFERROR(IF(PinjamanBelumDibayar*PinjamanAman,NomorPembayaran,\"\"), \"\")","v":""},{"$f":"IFERROR(IF(PinjamanBelumDibayar*PinjamanAman,TanggalPembayaran,TanggalMulaiPinjaman), TanggalMulaiPinjaman)","v":"2019-07-18"},{"$f":"IFERROR(IF(PinjamanBelumDibayar*PinjamanAman,NilaiPinjaman,\"\"), \"\")","v":""},{"$f":"IFERROR(IF(PinjamanBelumDibayar*PinjamanAman,AngsuranBulanan,0), 0)","v":{"v":0,"d":"Rp0.00"}},{"$f":"IFERROR(IF(PinjamanBelumDibayar*PinjamanAman,Pinjaman_Pokok,0), 0)","v":{"v":0,"d":"Rp0.00"}},{"$f":"IFERROR(IF(PinjamanBelumDibayar*PinjamanAman,JmlBunga,0), 0)","v":{"v":0,"d":"Rp0.00"}},{"$f":"IFERROR(IF(PinjamanBelumDibayar*PinjamanAman,SaldoAkhir,0), 0)","v":{"v":0,"d":"Rp0.00"}}]
[null,{"$f":"IFERROR(IF(PinjamanBelumDibayar*PinjamanAman,NomorPembayaran,\"\"), \"\")","v":""},{"$f":"IFERROR(IF(PinjamanBelumDibayar*PinjamanAman,TanggalPembayaran,TanggalMulaiPinjaman), TanggalMulaiPinjaman)","v":"2019-07-18"},{"$f":"IFERROR(IF(PinjamanBelumDibayar*PinjamanAman,NilaiPinjaman,\"\"), \"\")","v":""},{"$f":"IFERROR(IF(PinjamanBelumDibayar*PinjamanAman,AngsuranBulanan,0), 0)","v":{"v":0,"d":"Rp0.00"}},{"$f":"IFERROR(IF(PinjamanBelumDibayar*PinjamanAman,Pinjaman_Pokok,0), 0)","v":{"v":0,"d":"Rp0.00"}},{"$f":"IFERROR(IF(PinjamanBelumDibayar*PinjamanAman,JmlBunga,0), 0)","v":{"v":0,"d":"Rp0.00"}},{"$f":"IFERROR(IF(PinjamanBelumDibayar*PinjamanAman,SaldoAkhir,0), 0)","v":{"v":0,"d":"Rp0.00"}}]
[null,{"$f":"IFERROR(IF(PinjamanBelumDibayar*PinjamanAman,NomorPembayaran,\"\"), \"\")","v":""},{"$f":"IFERROR(IF(PinjamanBelumDibayar*PinjamanAman,TanggalPembayaran,TanggalMulaiPinjaman), TanggalMulaiPinjaman)","v":"2019-07-18"},{"$f":"IFERROR(IF(PinjamanBelumDibayar*PinjamanAman,NilaiPinjaman,\"\"), \"\")","v":""},{"$f":"IFERROR(IF(PinjamanBelumDibayar*PinjamanAman,AngsuranBulanan,0), 0)","v":{"v":0,"d":"Rp0.00"}},{"$f":"IFERROR(IF(PinjamanBelumDibayar*PinjamanAman,Pinjaman_Pokok,0), 0)","v":{"v":0,"d":"Rp0.00"}},{"$f":"IFERROR(IF(PinjamanBelumDibayar*PinjamanAman,JmlBunga,0), 0)","v":{"v":0,"d":"Rp0.00"}},{"$f":"IFERROR(IF(PinjamanBelumDibayar*PinjamanAman,SaldoAkhir,0), 0)","v":{"v":0,"d":"Rp0.00"}}]
[null,{"$f":"IFERROR(IF(PinjamanBelumDibayar*PinjamanAman,NomorPembayaran,\"\"), \"\")","v":""},{"$f":"IFERROR(IF(PinjamanBelumDibayar*PinjamanAman,TanggalPembayaran,TanggalMulaiPinjaman), TanggalMulaiPinjaman)","v":"2019-07-18"},{"$f":"IFERROR(IF(PinjamanBelumDibayar*PinjamanAman,NilaiPinjaman,\"\"), \"\")","v":""},{"$f":"IFERROR(IF(PinjamanBelumDibayar*PinjamanAman,AngsuranBulanan,0), 0)","v":{"v":0,"d":"Rp0.00"}},{"$f":"IFERROR(IF(PinjamanBelumDibayar*PinjamanAman,Pinjaman_Pokok,0), 0)","v":{"v":0,"d":"Rp0.00"}},{"$f":"IFERROR(IF(PinjamanBelumDibayar*PinjamanAman,JmlBunga,0), 0)","v":{"v":0,"d":"Rp0.00"}},{"$f":"IFERROR(IF(PinjamanBelumDibayar*PinjamanAman,SaldoAkhir,0), 0)","v":{"v":0,"d":"Rp0.00"}}]
[null,{"$f":"IFERROR(IF(PinjamanBelumDibayar*PinjamanAman,NomorPembayaran,\"\"), \"\")","v":""},{"$f":"IFERROR(IF(PinjamanBelumDibayar*PinjamanAman,TanggalPembayaran,TanggalMulaiPinjaman), TanggalMulaiPinjaman)","v":"2019-07-18"},{"$f":"IFERROR(IF(PinjamanBelumDibayar*PinjamanAman,NilaiPinjaman,\"\"), \"\")","v":""},{"$f":"IFERROR(IF(PinjamanBelumDibayar*PinjamanAman,AngsuranBulanan,0), 0)","v":{"v":0,"d":"Rp0.00"}},{"$f":"IFERROR(IF(PinjamanBelumDibayar*PinjamanAman,Pinjaman_Pokok,0), 0)","v":{"v":0,"d":"Rp0.00"}},{"$f":"IFERROR(IF(PinjamanBelumDibayar*PinjamanAman,JmlBunga,0), 0)","v":{"v":0,"d":"Rp0.00"}},{"$f":"IFERROR(IF(PinjamanBelumDibayar*PinjamanAman,SaldoAkhir,0), 0)","v":{"v":0,"d":"Rp0.00"}}]
[null,{"$f":"IFERROR(IF(PinjamanBelumDibayar*PinjamanAman,NomorPembayaran,\"\"), \"\")","v":""},{"$f":"IFERROR(IF(PinjamanBelumDibayar*PinjamanAman,TanggalPembayaran,TanggalMulaiPinjaman), TanggalMulaiPinjaman)","v":"2019-07-18"},{"$f":"IFERROR(IF(PinjamanBelumDibayar*PinjamanAman,NilaiPinjaman,\"\"), \"\")","v":""},{"$f":"IFERROR(IF(PinjamanBelumDibayar*PinjamanAman,AngsuranBulanan,0), 0)","v":{"v":0,"d":"Rp0.00"}},{"$f":"IFERROR(IF(PinjamanBelumDibayar*PinjamanAman,Pinjaman_Pokok,0), 0)","v":{"v":0,"d":"Rp0.00"}},{"$f":"IFERROR(IF(PinjamanBelumDibayar*PinjamanAman,JmlBunga,0), 0)","v":{"v":0,"d":"Rp0.00"}},{"$f":"IFERROR(IF(PinjamanBelumDibayar*PinjamanAman,SaldoAkhir,0), 0)","v":{"v":0,"d":"Rp0.00"}}]
[null,{"$f":"IFERROR(IF(PinjamanBelumDibayar*PinjamanAman,NomorPembayaran,\"\"), \"\")","v":""},{"$f":"IFERROR(IF(PinjamanBelumDibayar*PinjamanAman,TanggalPembayaran,TanggalMulaiPinjaman), TanggalMulaiPinjaman)","v":"2019-07-18"},{"$f":"IFERROR(IF(PinjamanBelumDibayar*PinjamanAman,NilaiPinjaman,\"\"), \"\")","v":""},{"$f":"IFERROR(IF(PinjamanBelumDibayar*PinjamanAman,AngsuranBulanan,0), 0)","v":{"v":0,"d":"Rp0.00"}},{"$f":"IFERROR(IF(PinjamanBelumDibayar*PinjamanAman,Pinjaman_Pokok,0), 0)","v":{"v":0,"d":"Rp0.00"}},{"$f":"IFERROR(IF(PinjamanBelumDibayar*PinjamanAman,JmlBunga,0), 0)","v":{"v":0,"d":"Rp0.00"}},{"$f":"IFERROR(IF(PinjamanBelumDibayar*PinjamanAman,SaldoAkhir,0), 0)","v":{"v":0,"d":"Rp0.00"}}]
[null,{"$f":"IFERROR(IF(PinjamanBelumDibayar*PinjamanAman,NomorPembayaran,\"\"), \"\")","v":""},{"$f":"IFERROR(IF(PinjamanBelumDibayar*PinjamanAman,TanggalPembayaran,TanggalMulaiPinjaman), TanggalMulaiPinjaman)","v":"2019-07-18"},{"$f":"IFERROR(IF(PinjamanBelumDibayar*PinjamanAman,NilaiPinjaman,\"\"), \"\")","v":""},{"$f":"IFERROR(IF(PinjamanBelumDibayar*PinjamanAman,AngsuranBulanan,0), 0)","v":{"v":0,"d":"Rp0.00"}},{"$f":"IFERROR(IF(PinjamanBelumDibayar*PinjamanAman,Pinjaman_Pokok,0), 0)","v":{"v":0,"d":"Rp0.00"}},{"$f":"IFERROR(IF(PinjamanBelumDibayar*PinjamanAman,JmlBunga,0), 0)","v":{"v":0,"d":"Rp0.00"}},{"$f":"IFERROR(IF(PinjamanBelumDibayar*PinjamanAman,SaldoAkhir,0), 0)","v":{"v":0,"d":"Rp0.00"}}]
[null,{"$f":"IFERROR(IF(PinjamanBelumDibayar*PinjamanAman,NomorPembayaran,\"\"), \"\")","v":""},{"$f":"IFERROR(IF(PinjamanBelumDibayar*PinjamanAman,TanggalPembayaran,TanggalMulaiPinjaman), TanggalMulaiPinjaman)","v":"2019-07-18"},{"$f":"IFERROR(IF(PinjamanBelumDibayar*PinjamanAman,NilaiPinjaman,\"\"), \"\")","v":""},{"$f":"IFERROR(IF(PinjamanBelumDibayar*PinjamanAman,AngsuranBulanan,0), 0)","v":{"v":0,"d":"Rp0.00"}},{"$f":"IFERROR(IF(PinjamanBelumDibayar*PinjamanAman,Pinjaman_Pokok,0), 0)","v":{"v":0,"d":"Rp0.00"}},{"$f":"IFERROR(IF(PinjamanBelumDibayar*PinjamanAman,JmlBunga,0), 0)","v":{"v":0,"d":"Rp0.00"}},{"$f":"IFERROR(IF(PinjamanBelumDibayar*PinjamanAman,SaldoAkhir,0), 0)","v":{"v":0,"d":"Rp0.00"}}]
[null,{"$f":"IFERROR(IF(PinjamanBelumDibayar*PinjamanAman,NomorPembayaran,\"\"), \"\")","v":""},{"$f":"IFERROR(IF(PinjamanBelumDibayar*PinjamanAman,TanggalPembayaran,TanggalMulaiPinjaman), TanggalMulaiPinjaman)","v":"2019-07-18"},{"$f":"IFERROR(IF(PinjamanBelumDibayar*PinjamanAman,NilaiPinjaman,\"\"), \"\")","v":""},{"$f":"IFERROR(IF(PinjamanBelumDibayar*PinjamanAman,AngsuranBulanan,0), 0)","v":{"v":0,"d":"Rp0.00"}},{"$f":"IFERROR(IF(PinjamanBelumDibayar*PinjamanAman,Pinjaman_Pokok,0), 0)","v":{"v":0,"d":"Rp0.00"}},{"$f":"IFERROR(IF(PinjamanBelumDibayar*PinjamanAman,JmlBunga,0), 0)","v":{"v":0,"d":"Rp0.00"}},{"$f":"IFERROR(IF(PinjamanBelumDibayar*PinjamanAman,SaldoAkhir,0), 0)","v":{"v":0,"d":"Rp0.00"}}]
[null,{"$f":"IFERROR(IF(PinjamanBelumDibayar*PinjamanAman,NomorPembayaran,\"\"), \"\")","v":""},{"$f":"IFERROR(IF(PinjamanBelumDibayar*PinjamanAman,TanggalPembayaran,TanggalMulaiPinjaman), TanggalMulaiPinjaman)","v":"2019-07-18"},{"$f":"IFERROR(IF(PinjamanBelumDibayar*PinjamanAman,NilaiPinjaman,\"\"), \"\")","v":""},{"$f":"IFERROR(IF(PinjamanBelumDibayar*PinjamanAman,AngsuranBulanan,0), 0)","v":{"v":0,"d":"Rp0.00"}},{"$f":"IFERROR(IF(PinjamanBelumDibayar*PinjamanAman,Pinjaman_Pokok,0), 0)","v":{"v":0,"d":"Rp0.00"}},{"$f":"IFERROR(IF(PinjamanBelumDibayar*PinjamanAman,JmlBunga,0), 0)","v":{"v":0,"d":"Rp0.00"}},{"$f":"IFERROR(IF(PinjamanBelumDibayar*PinjamanAman,SaldoAkhir,0), 0)","v":{"v":0,"d":"Rp0.00"}}]
[null,{"$f":"IFERROR(IF(PinjamanBelumDibayar*PinjamanAman,NomorPembayaran,\"\"), \"\")","v":""},{"$f":"IFERROR(IF(PinjamanBelumDibayar*PinjamanAman,TanggalPembayaran,TanggalMulaiPinjaman), TanggalMulaiPinjaman)","v":"2019-07-18"},{"$f":"IFERROR(IF(PinjamanBelumDibayar*PinjamanAman,NilaiPinjaman,\"\"), \"\")","v":""},{"$f":"IFERROR(IF(PinjamanBelumDibayar*PinjamanAman,AngsuranBulanan,0), 0)","v":{"v":0,"d":"Rp0.00"}},{"$f":"IFERROR(IF(PinjamanBelumDibayar*PinjamanAman,Pinjaman_Pokok,0), 0)","v":{"v":0,"d":"Rp0.00"}},{"$f":"IFERROR(IF(PinjamanBelumDibayar*PinjamanAman,JmlBunga,0), 0)","v":{"v":0,"d":"Rp0.00"}},{"$f":"IFERROR(IF(PinjamanBelumDibayar*PinjamanAman,SaldoAkhir,0), 0)","v":{"v":0,"d":"Rp0.00"}}]
[null,{"$f":"IFERROR(IF(PinjamanBelumDibayar*PinjamanAman,NomorPembayaran,\"\"), \"\")","v":""},{"$f":"IFERROR(IF(PinjamanBelumDibayar*PinjamanAman,TanggalPembayaran,TanggalMulaiPinjaman), TanggalMulaiPinjaman)","v":"2019-07-18"},{"$f":"IFERROR(IF(PinjamanBelumDibayar*PinjamanAman,NilaiPinjaman,\"\"), \"\")","v":""},{"$f":"IFERROR(IF(PinjamanBelumDibayar*PinjamanAman,AngsuranBulanan,0), 0)","v":{"v":0,"d":"Rp0.00"}},{"$f":"IFERROR(IF(PinjamanBelumDibayar*PinjamanAman,Pinjaman_Pokok,0), 0)","v":{"v":0,"d":"Rp0.00"}},{"$f":"IFERROR(IF(PinjamanBelumDibayar*PinjamanAman,JmlBunga,0), 0)","v":{"v":0,"d":"Rp0.00"}},{"$f":"IFERROR(IF(PinjamanBelumDibayar*PinjamanAman,SaldoAkhir,0), 0)","v":{"v":0,"d":"Rp0.00"}}]
[null,{"$f":"IFERROR(IF(PinjamanBelumDibayar*PinjamanAman,NomorPembayaran,\"\"), \"\")","v":""},{"$f":"IFERROR(IF(PinjamanBelumDibayar*PinjamanAman,TanggalPembayaran,TanggalMulaiPinjaman), TanggalMulaiPinjaman)","v":"2019-07-18"},{"$f":"IFERROR(IF(PinjamanBelumDibayar*PinjamanAman,NilaiPinjaman,\"\"), \"\")","v":""},{"$f":"IFERROR(IF(PinjamanBelumDibayar*PinjamanAman,AngsuranBulanan,0), 0)","v":{"v":0,"d":"Rp0.00"}},{"$f":"IFERROR(IF(PinjamanBelumDibayar*PinjamanAman,Pinjaman_Pokok,0), 0)","v":{"v":0,"d":"Rp0.00"}},{"$f":"IFERROR(IF(PinjamanBelumDibayar*PinjamanAman,JmlBunga,0), 0)","v":{"v":0,"d":"Rp0.00"}},{"$f":"IFERROR(IF(PinjamanBelumDibayar*PinjamanAman,SaldoAkhir,0), 0)","v":{"v":0,"d":"Rp0.00"}}]
[null,{"$f":"IFERROR(IF(PinjamanBelumDibayar*PinjamanAman,NomorPembayaran,\"\"), \"\")","v":""},{"$f":"IFERROR(IF(PinjamanBelumDibayar*PinjamanAman,TanggalPembayaran,TanggalMulaiPinjaman), TanggalMulaiPinjaman)","v":"2019-07-18"},{"$f":"IFERROR(IF(PinjamanBelumDibayar*PinjamanAman,NilaiPinjaman,\"\"), \"\")","v":""},{"$f":"IFERROR(IF(PinjamanBelumDibayar*PinjamanAman,AngsuranBulanan,0), 0)","v":{"v":0,"d":"Rp0.00"}},{"$f":"IFERROR(IF(PinjamanBelumDibayar*PinjamanAman,Pinjaman_Pokok,0), 0)","v":{"v":0,"d":"Rp0.00"}},{"$f":"IFERROR(IF(PinjamanBelumDibayar*PinjamanAman,JmlBunga,0), 0)","v":{"v":0,"d":"Rp0.00"}},{"$f":"IFERROR(IF(PinjamanBelumDibayar*PinjamanAman,SaldoAkhir,0), 0)","v":{"v":0,"d":"Rp0.00"}}]
[null,{"$f":"IFERROR(IF(PinjamanBelumDibayar*PinjamanAman,NomorPembayaran,\"\"), \"\")","v":""},{"$f":"IFERROR(IF(PinjamanBelumDibayar*PinjamanAman,TanggalPembayaran,TanggalMulaiPinjaman), TanggalMulaiPinjaman)","v":"2019-07-18"},{"$f":"IFERROR(IF(PinjamanBelumDibayar*PinjamanAman,NilaiPinjaman,\"\"), \"\")","v":""},{"$f":"IFERROR(IF(PinjamanBelumDibayar*PinjamanAman,AngsuranBulanan,0), 0)","v":{"v":0,"d":"Rp0.00"}},{"$f":"IFERROR(IF(PinjamanBelumDibayar*PinjamanAman,Pinjaman_Pokok,0), 0)","v":{"v":0,"d":"Rp0.00"}},{"$f":"IFERROR(IF(PinjamanBelumDibayar*PinjamanAman,JmlBunga,0), 0)","v":{"v":0,"d":"Rp0.00"}},{"$f":"IFERROR(IF(PinjamanBelumDibayar*PinjamanAman,SaldoAkhir,0), 0)","v":{"v":0,"d":"Rp0.00"}}]
[null,{"$f":"IFERROR(IF(PinjamanBelumDibayar*PinjamanAman,NomorPembayaran,\"\"), \"\")","v":""},{"$f":"IFERROR(IF(PinjamanBelumDibayar*PinjamanAman,TanggalPembayaran,TanggalMulaiPinjaman), TanggalMulaiPinjaman)","v":"2019-07-18"},{"$f":"IFERROR(IF(PinjamanBelumDibayar*PinjamanAman,NilaiPinjaman,\"\"), \"\")","v":""},{"$f":"IFERROR(IF(PinjamanBelumDibayar*PinjamanAman,AngsuranBulanan,0), 0)","v":{"v":0,"d":"Rp0.00"}},{"$f":"IFERROR(IF(PinjamanBelumDibayar*PinjamanAman,Pinjaman_Pokok,0), 0)","v":{"v":0,"d":"Rp0.00"}},{"$f":"IFERROR(IF(PinjamanBelumDibayar*PinjamanAman,JmlBunga,0), 0)","v":{"v":0,"d":"Rp0.00"}},{"$f":"IFERROR(IF(PinjamanBelumDibayar*PinjamanAman,SaldoAkhir,0), 0)","v":{"v":0,"d":"Rp0.00"}}]
[null,{"$f":"IFERROR(IF(PinjamanBelumDibayar*PinjamanAman,NomorPembayaran,\"\"), \"\")","v":""},{"$f":"IFERROR(IF(PinjamanBelumDibayar*PinjamanAman,TanggalPembayaran,TanggalMulaiPinjaman), TanggalMulaiPinjaman)","v":"2019-07-18"},{"$f":"IFERROR(IF(PinjamanBelumDibayar*PinjamanAman,NilaiPinjaman,\"\"), \"\")","v":""},{"$f":"IFERROR(IF(PinjamanBelumDibayar*PinjamanAman,AngsuranBulanan,0), 0)","v":{"v":0,"d":"Rp0.00"}},{"$f":"IFERROR(IF(PinjamanBelumDibayar*PinjamanAman,Pinjaman_Pokok,0), 0)","v":{"v":0,"d":"Rp0.00"}},{"$f":"IFERROR(IF(PinjamanBelumDibayar*PinjamanAman,JmlBunga,0), 0)","v":{"v":0,"d":"Rp0.00"}},{"$f":"IFERROR(IF(PinjamanBelumDibayar*PinjamanAman,SaldoAkhir,0), 0)","v":{"v":0,"d":"Rp0.00"}}]
[null,{"$f":"IFERROR(IF(PinjamanBelumDibayar*PinjamanAman,NomorPembayaran,\"\"), \"\")","v":""},{"$f":"IFERROR(IF(PinjamanBelumDibayar*PinjamanAman,TanggalPembayaran,TanggalMulaiPinjaman), TanggalMulaiPinjaman)","v":"2019-07-18"},{"$f":"IFERROR(IF(PinjamanBelumDibayar*PinjamanAman,NilaiPinjaman,\"\"), \"\")","v":""},{"$f":"IFERROR(IF(PinjamanBelumDibayar*PinjamanAman,AngsuranBulanan,0), 0)","v":{"v":0,"d":"Rp0.00"}},{"$f":"IFERROR(IF(PinjamanBelumDibayar*PinjamanAman,Pinjaman_Pokok,0), 0)","v":{"v":0,"d":"Rp0.00"}},{"$f":"IFERROR(IF(PinjamanBelumDibayar*PinjamanAman,JmlBunga,0), 0)","v":{"v":0,"d":"Rp0.00"}},{"$f":"IFERROR(IF(PinjamanBelumDibayar*PinjamanAman,SaldoAkhir,0), 0)","v":{"v":0,"d":"Rp0.00"}}]
[null,{"$f":"IFERROR(IF(PinjamanBelumDibayar*PinjamanAman,NomorPembayaran,\"\"), \"\")","v":""},{"$f":"IFERROR(IF(PinjamanBelumDibayar*PinjamanAman,TanggalPembayaran,TanggalMulaiPinjaman), TanggalMulaiPinjaman)","v":"2019-07-18"},{"$f":"IFERROR(IF(PinjamanBelumDibayar*PinjamanAman,NilaiPinjaman,\"\"), \"\")","v":""},{"$f":"IFERROR(IF(PinjamanBelumDibayar*PinjamanAman,AngsuranBulanan,0), 0)","v":{"v":0,"d":"Rp0.00"}},{"$f":"IFERROR(IF(PinjamanBelumDibayar*PinjamanAman,Pinjaman_Pokok,0), 0)","v":{"v":0,"d":"Rp0.00"}},{"$f":"IFERROR(IF(PinjamanBelumDibayar*PinjamanAman,JmlBunga,0), 0)","v":{"v":0,"d":"Rp0.00"}},{"$f":"IFERROR(IF(PinjamanBelumDibayar*PinjamanAman,SaldoAkhir,0), 0)","v":{"v":0,"d":"Rp0.00"}}]
[null,{"$f":"IFERROR(IF(PinjamanBelumDibayar*PinjamanAman,NomorPembayaran,\"\"), \"\")","v":""},{"$f":"IFERROR(IF(PinjamanBelumDibayar*PinjamanAman,TanggalPembayaran,TanggalMulaiPinjaman), TanggalMulaiPinjaman)","v":"2019-07-18"},{"$f":"IFERROR(IF(PinjamanBelumDibayar*PinjamanAman,NilaiPinjaman,\"\"), \"\")","v":""},{"$f":"IFERROR(IF(PinjamanBelumDibayar*PinjamanAman,AngsuranBulanan,0), 0)","v":{"v":0,"d":"Rp0.00"}},{"$f":"IFERROR(IF(PinjamanBelumDibayar*PinjamanAman,Pinjaman_Pokok,0), 0)","v":{"v":0,"d":"Rp0.00"}},{"$f":"IFERROR(IF(PinjamanBelumDibayar*PinjamanAman,JmlBunga,0), 0)","v":{"v":0,"d":"Rp0.00"}},{"$f":"IFERROR(IF(PinjamanBelumDibayar*PinjamanAman,SaldoAkhir,0), 0)","v":{"v":0,"d":"Rp0.00"}}]
[null,{"$f":"IFERROR(IF(PinjamanBelumDibayar*PinjamanAman,NomorPembayaran,\"\"), \"\")","v":""},{"$f":"IFERROR(IF(PinjamanBelumDibayar*PinjamanAman,TanggalPembayaran,TanggalMulaiPinjaman), TanggalMulaiPinjaman)","v":"2019-07-18"},{"$f":"IFERROR(IF(PinjamanBelumDibayar*PinjamanAman,NilaiPinjaman,\"\"), \"\")","v":""},{"$f":"IFERROR(IF(PinjamanBelumDibayar*PinjamanAman,AngsuranBulanan,0), 0)","v":{"v":0,"d":"Rp0.00"}},{"$f":"IFERROR(IF(PinjamanBelumDibayar*PinjamanAman,Pinjaman_Pokok,0), 0)","v":{"v":0,"d":"Rp0.00"}},{"$f":"IFERROR(IF(PinjamanBelumDibayar*PinjamanAman,JmlBunga,0), 0)","v":{"v":0,"d":"Rp0.00"}},{"$f":"IFERROR(IF(PinjamanBelumDibayar*PinjamanAman,SaldoAkhir,0), 0)","v":{"v":0,"d":"Rp0.00"}}]
[null,{"$f":"IFERROR(IF(PinjamanBelumDibayar*PinjamanAman,NomorPembayaran,\"\"), \"\")","v":""},{"$f":"IFERROR(IF(PinjamanBelumDibayar*PinjamanAman,TanggalPembayaran,TanggalMulaiPinjaman), TanggalMulaiPinjaman)","v":"2019-07-18"},{"$f":"IFERROR(IF(PinjamanBelumDibayar*PinjamanAman,NilaiPinjaman,\"\"), \"\")","v":""},{"$f":"IFERROR(IF(PinjamanBelumDibayar*PinjamanAman,AngsuranBulanan,0), 0)","v":{"v":0,"d":"Rp0.00"}},{"$f":"IFERROR(IF(PinjamanBelumDibayar*PinjamanAman,Pinjaman_Pokok,0), 0)","v":{"v":0,"d":"Rp0.00"}},{"$f":"IFERROR(IF(PinjamanBelumDibayar*PinjamanAman,JmlBunga,0), 0)","v":{"v":0,"d":"Rp0.00"}},{"$f":"IFERROR(IF(PinjamanBelumDibayar*PinjamanAman,SaldoAkhir,0), 0)","v":{"v":0,"d":"Rp0.00"}}]
[null,{"$f":"IFERROR(IF(PinjamanBelumDibayar*PinjamanAman,NomorPembayaran,\"\"), \"\")","v":""},{"$f":"IFERROR(IF(PinjamanBelumDibayar*PinjamanAman,TanggalPembayaran,TanggalMulaiPinjaman), TanggalMulaiPinjaman)","v":"2019-07-18"},{"$f":"IFERROR(IF(PinjamanBelumDibayar*PinjamanAman,NilaiPinjaman,\"\"), \"\")","v":""},{"$f":"IFERROR(IF(PinjamanBelumDibayar*PinjamanAman,AngsuranBulanan,0), 0)","v":{"v":0,"d":"Rp0.00"}},{"$f":"IFERROR(IF(PinjamanBelumDibayar*PinjamanAman,Pinjaman_Pokok,0), 0)","v":{"v":0,"d":"Rp0.00"}},{"$f":"IFERROR(IF(PinjamanBelumDibayar*PinjamanAman,JmlBunga,0), 0)","v":{"v":0,"d":"Rp0.00"}},{"$f":"IFERROR(IF(PinjamanBelumDibayar*PinjamanAman,SaldoAkhir,0), 0)","v":{"v":0,"d":"Rp0.00"}}]
[null,{"$f":"IFERROR(IF(PinjamanBelumDibayar*PinjamanAman,NomorPembayaran,\"\"), \"\")","v":""},{"$f":"IFERROR(IF(PinjamanBelumDibayar*PinjamanAman,TanggalPembayaran,TanggalMulaiPinjaman), TanggalMulaiPinjaman)","v":"2019-07-18"},{"$f":"IFERROR(IF(PinjamanBelumDibayar*PinjamanAman,NilaiPinjaman,\"\"), \"\")","v":""},{"$f":"IFERROR(IF(PinjamanBelumDibayar*PinjamanAman,AngsuranBulanan,0), 0)","v":{"v":0,"d":"Rp0.00"}},{"$f":"IFERROR(IF(PinjamanBelumDibayar*PinjamanAman,Pinjaman_Pokok,0), 0)","v":{"v":0,"d":"Rp0.00"}},{"$f":"IFERROR(IF(PinjamanBelumDibayar*PinjamanAman,JmlBunga,0), 0)","v":{"v":0,"d":"Rp0.00"}},{"$f":"IFERROR(IF(PinjamanBelumDibayar*PinjamanAman,SaldoAkhir,0), 0)","v":{"v":0,"d":"Rp0.00"}}]
[null,{"$f":"IFERROR(IF(PinjamanBelumDibayar*PinjamanAman,NomorPembayaran,\"\"), \"\")","v":""},{"$f":"IFERROR(IF(PinjamanBelumDibayar*PinjamanAman,TanggalPembayaran,TanggalMulaiPinjaman), TanggalMulaiPinjaman)","v":"2019-07-18"},{"$f":"IFERROR(IF(PinjamanBelumDibayar*PinjamanAman,NilaiPinjaman,\"\"), \"\")","v":""},{"$f":"IFERROR(IF(PinjamanBelumDibayar*PinjamanAman,AngsuranBulanan,0), 0)","v":{"v":0,"d":"Rp0.00"}},{"$f":"IFERROR(IF(PinjamanBelumDibayar*PinjamanAman,Pinjaman_Pokok,0), 0)","v":{"v":0,"d":"Rp0.00"}},{"$f":"IFERROR(IF(PinjamanBelumDibayar*PinjamanAman,JmlBunga,0), 0)","v":{"v":0,"d":"Rp0.00"}},{"$f":"IFERROR(IF(PinjamanBelumDibayar*PinjamanAman,SaldoAkhir,0), 0)","v":{"v":0,"d":"Rp0.00"}}]
[null,{"$f":"IFERROR(IF(PinjamanBelumDibayar*PinjamanAman,NomorPembayaran,\"\"), \"\")","v":""},{"$f":"IFERROR(IF(PinjamanBelumDibayar*PinjamanAman,TanggalPembayaran,TanggalMulaiPinjaman), TanggalMulaiPinjaman)","v":"2019-07-18"},{"$f":"IFERROR(IF(PinjamanBelumDibayar*PinjamanAman,NilaiPinjaman,\"\"), \"\")","v":""},{"$f":"IFERROR(IF(PinjamanBelumDibayar*PinjamanAman,AngsuranBulanan,0), 0)","v":{"v":0,"d":"Rp0.00"}},{"$f":"IFERROR(IF(PinjamanBelumDibayar*PinjamanAman,Pinjaman_Pokok,0), 0)","v":{"v":0,"d":"Rp0.00"}},{"$f":"IFERROR(IF(PinjamanBelumDibayar*PinjamanAman,JmlBunga,0), 0)","v":{"v":0,"d":"Rp0.00"}},{"$f":"IFERROR(IF(PinjamanBelumDibayar*PinjamanAman,SaldoAkhir,0), 0)","v":{"v":0,"d":"Rp0.00"}}]
[null,{"$f":"IFERROR(IF(PinjamanBelumDibayar*PinjamanAman,NomorPembayaran,\"\"), \"\")","v":""},{"$f":"IFERROR(IF(PinjamanBelumDibayar*PinjamanAman,TanggalPembayaran,TanggalMulaiPinjaman), TanggalMulaiPinjaman)","v":"2019-07-18"},{"$f":"IFERROR(IF(PinjamanBelumDibayar*PinjamanAman,NilaiPinjaman,\"\"), \"\")","v":""},{"$f":"IFERROR(IF(PinjamanBelumDibayar*PinjamanAman,AngsuranBulanan,0), 0)","v":{"v":0,"d":"Rp0.00"}},{"$f":"IFERROR(IF(PinjamanBelumDibayar*PinjamanAman,Pinjaman_Pokok,0), 0)","v":{"v":0,"d":"Rp0.00"}},{"$f":"IFERROR(IF(PinjamanBelumDibayar*PinjamanAman,JmlBunga,0), 0)","v":{"v":0,"d":"Rp0.00"}},{"$f":"IFERROR(IF(PinjamanBelumDibayar*PinjamanAman,SaldoAkhir,0), 0)","v":{"v":0,"d":"Rp0.00"}}]
[null,{"$f":"IFERROR(IF(PinjamanBelumDibayar*PinjamanAman,NomorPembayaran,\"\"), \"\")","v":""},{"$f":"IFERROR(IF(PinjamanBelumDibayar*PinjamanAman,TanggalPembayaran,TanggalMulaiPinjaman), TanggalMulaiPinjaman)","v":"2019-07-18"},{"$f":"IFERROR(IF(PinjamanBelumDibayar*PinjamanAman,NilaiPinjaman,\"\"), \"\")","v":""},{"$f":"IFERROR(IF(PinjamanBelumDibayar*PinjamanAman,AngsuranBulanan,0), 0)","v":{"v":0,"d":"Rp0.00"}},{"$f":"IFERROR(IF(PinjamanBelumDibayar*PinjamanAman,Pinjaman_Pokok,0), 0)","v":{"v":0,"d":"Rp0.00"}},{"$f":"IFERROR(IF(PinjamanBelumDibayar*PinjamanAman,JmlBunga,0), 0)","v":{"v":0,"d":"Rp0.00"}},{"$f":"IFERROR(IF(PinjamanBelumDibayar*PinjamanAman,SaldoAkhir,0), 0)","v":{"v":0,"d":"Rp0.00"}}]
[null,{"$f":"IFERROR(IF(PinjamanBelumDibayar*PinjamanAman,NomorPembayaran,\"\"), \"\")","v":""},{"$f":"IFERROR(IF(PinjamanBelumDibayar*PinjamanAman,TanggalPembayaran,TanggalMulaiPinjaman), TanggalMulaiPinjaman)","v":"2019-07-18"},{"$f":"IFERROR(IF(PinjamanBelumDibayar*PinjamanAman,NilaiPinjaman,\"\"), \"\")","v":""},{"$f":"IFERROR(IF(PinjamanBelumDibayar*PinjamanAman,AngsuranBulanan,0), 0)","v":{"v":0,"d":"Rp0.00"}},{"$f":"IFERROR(IF(PinjamanBelumDibayar*PinjamanAman,Pinjaman_Pokok,0), 0)","v":{"v":0,"d":"Rp0.00"}},{"$f":"IFERROR(IF(PinjamanBelumDibayar*PinjamanAman,JmlBunga,0), 0)","v":{"v":0,"d":"Rp0.00"}},{"$f":"IFERROR(IF(PinjamanBelumDibayar*PinjamanAman,SaldoAkhir,0), 0)","v":{"v":0,"d":"Rp0.00"}}]
[null,{"$f":"IFERROR(IF(PinjamanBelumDibayar*PinjamanAman,NomorPembayaran,\"\"), \"\")","v":""},{"$f":"IFERROR(IF(PinjamanBelumDibayar*PinjamanAman,TanggalPembayaran,TanggalMulaiPinjaman), TanggalMulaiPinjaman)","v":"2019-07-18"},{"$f":"IFERROR(IF(PinjamanBelumDibayar*PinjamanAman,NilaiPinjaman,\"\"), \"\")","v":""},{"$f":"IFERROR(IF(PinjamanBelumDibayar*PinjamanAman,AngsuranBulanan,0), 0)","v":{"v":0,"d":"Rp0.00"}},{"$f":"IFERROR(IF(PinjamanBelumDibayar*PinjamanAman,Pinjaman_Pokok,0), 0)","v":{"v":0,"d":"Rp0.00"}},{"$f":"IFERROR(IF(PinjamanBelumDibayar*PinjamanAman,JmlBunga,0), 0)","v":{"v":0,"d":"Rp0.00"}},{"$f":"IFERROR(IF(PinjamanBelumDibayar*PinjamanAman,SaldoAkhir,0), 0)","v":{"v":0,"d":"Rp0.00"}}]
[null,{"$f":"IFERROR(IF(PinjamanBelumDibayar*PinjamanAman,NomorPembayaran,\"\"), \"\")","v":""},{"$f":"IFERROR(IF(PinjamanBelumDibayar*PinjamanAman,TanggalPembayaran,TanggalMulaiPinjaman), TanggalMulaiPinjaman)","v":"2019-07-18"},{"$f":"IFERROR(IF(PinjamanBelumDibayar*PinjamanAman,NilaiPinjaman,\"\"), \"\")","v":""},{"$f":"IFERROR(IF(PinjamanBelumDibayar*PinjamanAman,AngsuranBulanan,0), 0)","v":{"v":0,"d":"Rp0.00"}},{"$f":"IFERROR(IF(PinjamanBelumDibayar*PinjamanAman,Pinjaman_Pokok,0), 0)","v":{"v":0,"d":"Rp0.00"}},{"$f":"IFERROR(IF(PinjamanBelumDibayar*PinjamanAman,JmlBunga,0), 0)","v":{"v":0,"d":"Rp0.00"}},{"$f":"IFERROR(IF(PinjamanBelumDibayar*PinjamanAman,SaldoAkhir,0), 0)","v":{"v":0,"d":"Rp0.00"}}]
[null,{"$f":"IFERROR(IF(PinjamanBelumDibayar*PinjamanAman,NomorPembayaran,\"\"), \"\")","v":""},{"$f":"IFERROR(IF(PinjamanBelumDibayar*PinjamanAman,TanggalPembayaran,TanggalMulaiPinjaman), TanggalMulaiPinjaman)","v":"2019-07-18"},{"$f":"IFERROR(IF(PinjamanBelumDibayar*PinjamanAman,NilaiPinjaman,\"\"), \"\")","v":""},{"$f":"IFERROR(IF(PinjamanBelumDibayar*PinjamanAman,AngsuranBulanan,0), 0)","v":{"v":0,"d":"Rp0.00"}},{"$f":"IFERROR(IF(PinjamanBelumDibayar*PinjamanAman,Pinjaman_Pokok,0), 0)","v":{"v":0,"d":"Rp0.00"}},{"$f":"IFERROR(IF(PinjamanBelumDibayar*PinjamanAman,JmlBunga,0), 0)","v":{"v":0,"d":"Rp0.00"}},{"$f":"IFERROR(IF(PinjamanBelumDibayar*PinjamanAman,SaldoAkhir,0), 0)","v":{"v":0,"d":"Rp0.00"}}]
[null,{"$f":"IFERROR(IF(PinjamanBelumDibayar*PinjamanAman,NomorPembayaran,\"\"), \"\")","v":""},{"$f":"IFERROR(IF(PinjamanBelumDibayar*PinjamanAman,TanggalPembayaran,TanggalMulaiPinjaman), TanggalMulaiPinjaman)","v":"2019-07-18"},{"$f":"IFERROR(IF(PinjamanBelumDibayar*PinjamanAman,NilaiPinjaman,\"\"), \"\")","v":""},{"$f":"IFERROR(IF(PinjamanBelumDibayar*PinjamanAman,AngsuranBulanan,0), 0)","v":{"v":0,"d":"Rp0.00"}},{"$f":"IFERROR(IF(PinjamanBelumDibayar*PinjamanAman,Pinjaman_Pokok,0), 0)","v":{"v":0,"d":"Rp0.00"}},{"$f":"IFERROR(IF(PinjamanBelumDibayar*PinjamanAman,JmlBunga,0), 0)","v":{"v":0,"d":"Rp0.00"}},{"$f":"IFERROR(IF(PinjamanBelumDibayar*PinjamanAman,SaldoAkhir,0), 0)","v":{"v":0,"d":"Rp0.00"}}]
[null,{"$f":"IFERROR(IF(PinjamanBelumDibayar*PinjamanAman,NomorPembayaran,\"\"), \"\")","v":""},{"$f":"IFERROR(IF(PinjamanBelumDibayar*PinjamanAman,TanggalPembayaran,TanggalMulaiPinjaman), TanggalMulaiPinjaman)","v":"2019-07-18"},{"$f":"IFERROR(IF(PinjamanBelumDibayar*PinjamanAman,NilaiPinjaman,\"\"), \"\")","v":""},{"$f":"IFERROR(IF(PinjamanBelumDibayar*PinjamanAman,AngsuranBulanan,0), 0)","v":{"v":0,"d":"Rp0.00"}},{"$f":"IFERROR(IF(PinjamanBelumDibayar*PinjamanAman,Pinjaman_Pokok,0), 0)","v":{"v":0,"d":"Rp0.00"}},{"$f":"IFERROR(IF(PinjamanBelumDibayar*PinjamanAman,JmlBunga,0), 0)","v":{"v":0,"d":"Rp0.00"}},{"$f":"IFERROR(IF(PinjamanBelumDibayar*PinjamanAman,SaldoAkhir,0), 0)","v":{"v":0,"d":"Rp0.00"}}]
[null,{"$f":"IFERROR(IF(PinjamanBelumDibayar*PinjamanAman,NomorPembayaran,\"\"), \"\")","v":""},{"$f":"IFERROR(IF(PinjamanBelumDibayar*PinjamanAman,TanggalPembayaran,TanggalMulaiPinjaman), TanggalMulaiPinjaman)","v":"2019-07-18"},{"$f":"IFERROR(IF(PinjamanBelumDibayar*PinjamanAman,NilaiPinjaman,\"\"), \"\")","v":""},{"$f":"IFERROR(IF(PinjamanBelumDibayar*PinjamanAman,AngsuranBulanan,0), 0)","v":{"v":0,"d":"Rp0.00"}},{"$f":"IFERROR(IF(PinjamanBelumDibayar*PinjamanAman,Pinjaman_Pokok,0), 0)","v":{"v":0,"d":"Rp0.00"}},{"$f":"IFERROR(IF(PinjamanBelumDibayar*PinjamanAman,JmlBunga,0), 0)","v":{"v":0,"d":"Rp0.00"}},{"$f":"IFERROR(IF(PinjamanBelumDibayar*PinjamanAman,SaldoAkhir,0), 0)","v":{"v":0,"d":"Rp0.00"}}]
[null,{"$f":"IFERROR(IF(PinjamanBelumDibayar*PinjamanAman,NomorPembayaran,\"\"), \"\")","v":""},{"$f":"IFERROR(IF(PinjamanBelumDibayar*PinjamanAman,TanggalPembayaran,TanggalMulaiPinjaman), TanggalMulaiPinjaman)","v":"2019-07-18"},{"$f":"IFERROR(IF(PinjamanBelumDibayar*PinjamanAman,NilaiPinjaman,\"\"), \"\")","v":""},{"$f":"IFERROR(IF(PinjamanBelumDibayar*PinjamanAman,AngsuranBulanan,0), 0)","v":{"v":0,"d":"Rp0.00"}},{"$f":"IFERROR(IF(PinjamanBelumDibayar*PinjamanAman,Pinjaman_Pokok,0), 0)","v":{"v":0,"d":"Rp0.00"}},{"$f":"IFERROR(IF(PinjamanBelumDibayar*PinjamanAman,JmlBunga,0), 0)","v":{"v":0,"d":"Rp0.00"}},{"$f":"IFERROR(IF(PinjamanBelumDibayar*PinjamanAman,SaldoAkhir,0), 0)","v":{"v":0,"d":"Rp0.00"}}]
[null,{"$f":"IFERROR(IF(PinjamanBelumDibayar*PinjamanAman,NomorPembayaran,\"\"), \"\")","v":""},{"$f":"IFERROR(IF(PinjamanBelumDibayar*PinjamanAman,TanggalPembayaran,TanggalMulaiPinjaman), TanggalMulaiPinjaman)","v":"2019-07-18"},{"$f":"IFERROR(IF(PinjamanBelumDibayar*PinjamanAman,NilaiPinjaman,\"\"), \"\")","v":""},{"$f":"IFERROR(IF(PinjamanBelumDibayar*PinjamanAman,AngsuranBulanan,0), 0)","v":{"v":0,"d":"Rp0.00"}},{"$f":"IFERROR(IF(PinjamanBelumDibayar*PinjamanAman,Pinjaman_Pokok,0), 0)","v":{"v":0,"d":"Rp0.00"}},{"$f":"IFERROR(IF(PinjamanBelumDibayar*PinjamanAman,JmlBunga,0), 0)","v":{"v":0,"d":"Rp0.00"}},{"$f":"IFERROR(IF(PinjamanBelumDibayar*PinjamanAman,SaldoAkhir,0), 0)","v":{"v":0,"d":"Rp0.00"}}]
[null,{"$f":"IFERROR(IF(PinjamanBelumDibayar*PinjamanAman,NomorPembayaran,\"\"), \"\")","v":""},{"$f":"IFERROR(IF(PinjamanBelumDibayar*PinjamanAman,TanggalPembayaran,TanggalMulaiPinjaman), TanggalMulaiPinjaman)","v":"2019-07-18"},{"$f":"IFERROR(IF(PinjamanBelumDibayar*PinjamanAman,NilaiPinjaman,\"\"), \"\")","v":""},{"$f":"IFERROR(IF(PinjamanBelumDibayar*PinjamanAman,AngsuranBulanan,0), 0)","v":{"v":0,"d":"Rp0.00"}},{"$f":"IFERROR(IF(PinjamanBelumDibayar*PinjamanAman,Pinjaman_Pokok,0), 0)","v":{"v":0,"d":"Rp0.00"}},{"$f":"IFERROR(IF(PinjamanBelumDibayar*PinjamanAman,JmlBunga,0), 0)","v":{"v":0,"d":"Rp0.00"}},{"$f":"IFERROR(IF(PinjamanBelumDibayar*PinjamanAman,SaldoAkhir,0), 0)","v":{"v":0,"d":"Rp0.00"}}]
[null,{"$f":"IFERROR(IF(PinjamanBelumDibayar*PinjamanAman,NomorPembayaran,\"\"), \"\")","v":""},{"$f":"IFERROR(IF(PinjamanBelumDibayar*PinjamanAman,TanggalPembayaran,TanggalMulaiPinjaman), TanggalMulaiPinjaman)","v":"2019-07-18"},{"$f":"IFERROR(IF(PinjamanBelumDibayar*PinjamanAman,NilaiPinjaman,\"\"), \"\")","v":""},{"$f":"IFERROR(IF(PinjamanBelumDibayar*PinjamanAman,AngsuranBulanan,0), 0)","v":{"v":0,"d":"Rp0.00"}},{"$f":"IFERROR(IF(PinjamanBelumDibayar*PinjamanAman,Pinjaman_Pokok,0), 0)","v":{"v":0,"d":"Rp0.00"}},{"$f":"IFERROR(IF(PinjamanBelumDibayar*PinjamanAman,JmlBunga,0), 0)","v":{"v":0,"d":"Rp0.00"}},{"$f":"IFERROR(IF(PinjamanBelumDibayar*PinjamanAman,SaldoAkhir,0), 0)","v":{"v":0,"d":"Rp0.00"}}]
[null,{"$f":"IFERROR(IF(PinjamanBelumDibayar*PinjamanAman,NomorPembayaran,\"\"), \"\")","v":""},{"$f":"IFERROR(IF(PinjamanBelumDibayar*PinjamanAman,TanggalPembayaran,TanggalMulaiPinjaman), TanggalMulaiPinjaman)","v":"2019-07-18"},{"$f":"IFERROR(IF(PinjamanBelumDibayar*PinjamanAman,NilaiPinjaman,\"\"), \"\")","v":""},{"$f":"IFERROR(IF(PinjamanBelumDibayar*PinjamanAman,AngsuranBulanan,0), 0)","v":{"v":0,"d":"Rp0.00"}},{"$f":"IFERROR(IF(PinjamanBelumDibayar*PinjamanAman,Pinjaman_Pokok,0), 0)","v":{"v":0,"d":"Rp0.00"}},{"$f":"IFERROR(IF(PinjamanBelumDibayar*PinjamanAman,JmlBunga,0), 0)","v":{"v":0,"d":"Rp0.00"}},{"$f":"IFERROR(IF(PinjamanBelumDibayar*PinjamanAman,SaldoAkhir,0), 0)","v":{"v":0,"d":"Rp0.00"}}]
[null,{"$f":"IFERROR(IF(PinjamanBelumDibayar*PinjamanAman,NomorPembayaran,\"\"), \"\")","v":""},{"$f":"IFERROR(IF(PinjamanBelumDibayar*PinjamanAman,TanggalPembayaran,TanggalMulaiPinjaman), TanggalMulaiPinjaman)","v":"2019-07-18"},{"$f":"IFERROR(IF(PinjamanBelumDibayar*PinjamanAman,NilaiPinjaman,\"\"), \"\")","v":""},{"$f":"IFERROR(IF(PinjamanBelumDibayar*PinjamanAman,AngsuranBulanan,0), 0)","v":{"v":0,"d":"Rp0.00"}},{"$f":"IFERROR(IF(PinjamanBelumDibayar*PinjamanAman,Pinjaman_Pokok,0), 0)","v":{"v":0,"d":"Rp0.00"}},{"$f":"IFERROR(IF(PinjamanBelumDibayar*PinjamanAman,JmlBunga,0), 0)","v":{"v":0,"d":"Rp0.00"}},{"$f":"IFERROR(IF(PinjamanBelumDibayar*PinjamanAman,SaldoAkhir,0), 0)","v":{"v":0,"d":"Rp0.00"}}]
[null,{"$f":"IFERROR(IF(PinjamanBelumDibayar*PinjamanAman,NomorPembayaran,\"\"), \"\")","v":""},{"$f":"IFERROR(IF(PinjamanBelumDibayar*PinjamanAman,TanggalPembayaran,TanggalMulaiPinjaman), TanggalMulaiPinjaman)","v":"2019-07-18"},{"$f":"IFERROR(IF(PinjamanBelumDibayar*PinjamanAman,NilaiPinjaman,\"\"), \"\")","v":""},{"$f":"IFERROR(IF(PinjamanBelumDibayar*PinjamanAman,AngsuranBulanan,0), 0)","v":{"v":0,"d":"Rp0.00"}},{"$f":"IFERROR(IF(PinjamanBelumDibayar*PinjamanAman,Pinjaman_Pokok,0), 0)","v":{"v":0,"d":"Rp0.00"}},{"$f":"IFERROR(IF(PinjamanBelumDibayar*PinjamanAman,JmlBunga,0), 0)","v":{"v":0,"d":"Rp0.00"}},{"$f":"IFERROR(IF(PinjamanBelumDibayar*PinjamanAman,SaldoAkhir,0), 0)","v":{"v":0,"d":"Rp0.00"}}]
[null,{"$f":"IFERROR(IF(PinjamanBelumDibayar*PinjamanAman,NomorPembayaran,\"\"), \"\")","v":""},{"$f":"IFERROR(IF(PinjamanBelumDibayar*PinjamanAman,TanggalPembayaran,TanggalMulaiPinjaman), TanggalMulaiPinjaman)","v":"2019-07-18"},{"$f":"IFERROR(IF(PinjamanBelumDibayar*PinjamanAman,NilaiPinjaman,\"\"), \"\")","v":""},{"$f":"IFERROR(IF(PinjamanBelumDibayar*PinjamanAman,AngsuranBulanan,0), 0)","v":{"v":0,"d":"Rp0.00"}},{"$f":"IFERROR(IF(PinjamanBelumDibayar*PinjamanAman,Pinjaman_Pokok,0), 0)","v":{"v":0,"d":"Rp0.00"}},{"$f":"IFERROR(IF(PinjamanBelumDibayar*PinjamanAman,JmlBunga,0), 0)","v":{"v":0,"d":"Rp0.00"}},{"$f":"IFERROR(IF(PinjamanBelumDibayar*PinjamanAman,SaldoAkhir,0), 0)","v":{"v":0,"d":"Rp0.00"}}]
[null,{"$f":"IFERROR(IF(PinjamanBelumDibayar*PinjamanAman,NomorPembayaran,\"\"), \"\")","v":""},{"$f":"IFERROR(IF(PinjamanBelumDibayar*PinjamanAman,TanggalPembayaran,TanggalMulaiPinjaman), TanggalMulaiPinjaman)","v":"2019-07-18"},{"$f":"IFERROR(IF(PinjamanBelumDibayar*PinjamanAman,NilaiPinjaman,\"\"), \"\")","v":""},{"$f":"IFERROR(IF(PinjamanBelumDibayar*PinjamanAman,AngsuranBulanan,0), 0)","v":{"v":0,"d":"Rp0.00"}},{"$f":"IFERROR(IF(PinjamanBelumDibayar*PinjamanAman,Pinjaman_Pokok,0), 0)","v":{"v":0,"d":"Rp0.00"}},{"$f":"IFERROR(IF(PinjamanBelumDibayar*PinjamanAman,JmlBunga,0), 0)","v":{"v":0,"d":"Rp0.00"}},{"$f":"IFERROR(IF(PinjamanBelumDibayar*PinjamanAman,SaldoAkhir,0), 0)","v":{"v":0,"d":"Rp0.00"}}]
[null,{"$f":"IFERROR(IF(PinjamanBelumDibayar*PinjamanAman,NomorPembayaran,\"\"), \"\")","v":""},{"$f":"IFERROR(IF(PinjamanBelumDibayar*PinjamanAman,TanggalPembayaran,TanggalMulaiPinjaman), TanggalMulaiPinjaman)","v":"2019-07-18"},{"$f":"IFERROR(IF(PinjamanBelumDibayar*PinjamanAman,NilaiPinjaman,\"\"), \"\")","v":""},{"$f":"IFERROR(IF(PinjamanBelumDibayar*PinjamanAman,AngsuranBulanan,0), 0)","v":{"v":0,"d":"Rp0.00"}},{"$f":"IFERROR(IF(PinjamanBelumDibayar*PinjamanAman,Pinjaman_Pokok,0), 0)","v":{"v":0,"d":"Rp0.00"}},{"$f":"IFERROR(IF(PinjamanBelumDibayar*PinjamanAman,JmlBunga,0), 0)","v":{"v":0,"d":"Rp0.00"}},{"$f":"IFERROR(IF(PinjamanBelumDibayar*PinjamanAman,SaldoAkhir,0), 0)","v":{"v":0,"d":"Rp0.00"}}]
[null,{"$f":"IFERROR(IF(PinjamanBelumDibayar*PinjamanAman,NomorPembayaran,\"\"), \"\")","v":""},{"$f":"IFERROR(IF(PinjamanBelumDibayar*PinjamanAman,TanggalPembayaran,TanggalMulaiPinjaman), TanggalMulaiPinjaman)","v":"2019-07-18"},{"$f":"IFERROR(IF(PinjamanBelumDibayar*PinjamanAman,NilaiPinjaman,\"\"), \"\")","v":""},{"$f":"IFERROR(IF(PinjamanBelumDibayar*PinjamanAman,AngsuranBulanan,0), 0)","v":{"v":0,"d":"Rp0.00"}},{"$f":"IFERROR(IF(PinjamanBelumDibayar*PinjamanAman,Pinjaman_Pokok,0), 0)","v":{"v":0,"d":"Rp0.00"}},{"$f":"IFERROR(IF(PinjamanBelumDibayar*PinjamanAman,JmlBunga,0), 0)","v":{"v":0,"d":"Rp0.00"}},{"$f":"IFERROR(IF(PinjamanBelumDibayar*PinjamanAman,SaldoAkhir,0), 0)","v":{"v":0,"d":"Rp0.00"}}]
[null,{"$f":"IFERROR(IF(PinjamanBelumDibayar*PinjamanAman,NomorPembayaran,\"\"), \"\")","v":""},{"$f":"IFERROR(IF(PinjamanBelumDibayar*PinjamanAman,TanggalPembayaran,TanggalMulaiPinjaman), TanggalMulaiPinjaman)","v":"2019-07-18"},{"$f":"IFERROR(IF(PinjamanBelumDibayar*PinjamanAman,NilaiPinjaman,\"\"), \"\")","v":""},{"$f":"IFERROR(IF(PinjamanBelumDibayar*PinjamanAman,AngsuranBulanan,0), 0)","v":{"v":0,"d":"Rp0.00"}},{"$f":"IFERROR(IF(PinjamanBelumDibayar*PinjamanAman,Pinjaman_Pokok,0), 0)","v":{"v":0,"d":"Rp0.00"}},{"$f":"IFERROR(IF(PinjamanBelumDibayar*PinjamanAman,JmlBunga,0), 0)","v":{"v":0,"d":"Rp0.00"}},{"$f":"IFERROR(IF(PinjamanBelumDibayar*PinjamanAman,SaldoAkhir,0), 0)","v":{"v":0,"d":"Rp0.00"}}]
[null,{"$f":"IFERROR(IF(PinjamanBelumDibayar*PinjamanAman,NomorPembayaran,\"\"), \"\")","v":""},{"$f":"IFERROR(IF(PinjamanBelumDibayar*PinjamanAman,TanggalPembayaran,TanggalMulaiPinjaman), TanggalMulaiPinjaman)","v":"2019-07-18"},{"$f":"IFERROR(IF(PinjamanBelumDibayar*PinjamanAman,NilaiPinjaman,\"\"), \"\")","v":""},{"$f":"IFERROR(IF(PinjamanBelumDibayar*PinjamanAman,AngsuranBulanan,0), 0)","v":{"v":0,"d":"Rp0.00"}},{"$f":"IFERROR(IF(PinjamanBelumDibayar*PinjamanAman,Pinjaman_Pokok,0), 0)","v":{"v":0,"d":"Rp0.00"}},{"$f":"IFERROR(IF(PinjamanBelumDibayar*PinjamanAman,JmlBunga,0), 0)","v":{"v":0,"d":"Rp0.00"}},{"$f":"IFERROR(IF(PinjamanBelumDibayar*PinjamanAman,SaldoAkhir,0), 0)","v":{"v":0,"d":"Rp0.00"}}]
[null,{"$f":"IFERROR(IF(PinjamanBelumDibayar*PinjamanAman,NomorPembayaran,\"\"), \"\")","v":""},{"$f":"IFERROR(IF(PinjamanBelumDibayar*PinjamanAman,TanggalPembayaran,TanggalMulaiPinjaman), TanggalMulaiPinjaman)","v":"2019-07-18"},{"$f":"IFERROR(IF(PinjamanBelumDibayar*PinjamanAman,NilaiPinjaman,\"\"), \"\")","v":""},{"$f":"IFERROR(IF(PinjamanBelumDibayar*PinjamanAman,AngsuranBulanan,0), 0)","v":{"v":0,"d":"Rp0.00"}},{"$f":"IFERROR(IF(PinjamanBelumDibayar*PinjamanAman,Pinjaman_Pokok,0), 0)","v":{"v":0,"d":"Rp0.00"}},{"$f":"IFERROR(IF(PinjamanBelumDibayar*PinjamanAman,JmlBunga,0), 0)","v":{"v":0,"d":"Rp0.00"}},{"$f":"IFERROR(IF(PinjamanBelumDibayar*PinjamanAman,SaldoAkhir,0), 0)","v":{"v":0,"d":"Rp0.00"}}]
[null,{"$f":"IFERROR(IF(PinjamanBelumDibayar*PinjamanAman,NomorPembayaran,\"\"), \"\")","v":""},{"$f":"IFERROR(IF(PinjamanBelumDibayar*PinjamanAman,TanggalPembayaran,TanggalMulaiPinjaman), TanggalMulaiPinjaman)","v":"2019-07-18"},{"$f":"IFERROR(IF(PinjamanBelumDibayar*PinjamanAman,NilaiPinjaman,\"\"), \"\")","v":""},{"$f":"IFERROR(IF(PinjamanBelumDibayar*PinjamanAman,AngsuranBulanan,0), 0)","v":{"v":0,"d":"Rp0.00"}},{"$f":"IFERROR(IF(PinjamanBelumDibayar*PinjamanAman,Pinjaman_Pokok,0), 0)","v":{"v":0,"d":"Rp0.00"}},{"$f":"IFERROR(IF(PinjamanBelumDibayar*PinjamanAman,JmlBunga,0), 0)","v":{"v":0,"d":"Rp0.00"}},{"$f":"IFERROR(IF(PinjamanBelumDibayar*PinjamanAman,SaldoAkhir,0), 0)","v":{"v":0,"d":"Rp0.00"}}]
[null,{"$f":"IFERROR(IF(PinjamanBelumDibayar*PinjamanAman,NomorPembayaran,\"\"), \"\")","v":""},{"$f":"IFERROR(IF(PinjamanBelumDibayar*PinjamanAman,TanggalPembayaran,TanggalMulaiPinjaman), TanggalMulaiPinjaman)","v":"2019-07-18"},{"$f":"IFERROR(IF(PinjamanBelumDibayar*PinjamanAman,NilaiPinjaman,\"\"), \"\")","v":""},{"$f":"IFERROR(IF(PinjamanBelumDibayar*PinjamanAman,AngsuranBulanan,0), 0)","v":{"v":0,"d":"Rp0.00"}},{"$f":"IFERROR(IF(PinjamanBelumDibayar*PinjamanAman,Pinjaman_Pokok,0), 0)","v":{"v":0,"d":"Rp0.00"}},{"$f":"IFERROR(IF(PinjamanBelumDibayar*PinjamanAman,JmlBunga,0), 0)","v":{"v":0,"d":"Rp0.00"}},{"$f":"IFERROR(IF(PinjamanBelumDibayar*PinjamanAman,SaldoAkhir,0), 0)","v":{"v":0,"d":"Rp0.00"}}]
[null,{"$f":"IFERROR(IF(PinjamanBelumDibayar*PinjamanAman,NomorPembayaran,\"\"), \"\")","v":""},{"$f":"IFERROR(IF(PinjamanBelumDibayar*PinjamanAman,TanggalPembayaran,TanggalMulaiPinjaman), TanggalMulaiPinjaman)","v":"2019-07-18"},{"$f":"IFERROR(IF(PinjamanBelumDibayar*PinjamanAman,NilaiPinjaman,\"\"), \"\")","v":""},{"$f":"IFERROR(IF(PinjamanBelumDibayar*PinjamanAman,AngsuranBulanan,0), 0)","v":{"v":0,"d":"Rp0.00"}},{"$f":"IFERROR(IF(PinjamanBelumDibayar*PinjamanAman,Pinjaman_Pokok,0), 0)","v":{"v":0,"d":"Rp0.00"}},{"$f":"IFERROR(IF(PinjamanBelumDibayar*PinjamanAman,JmlBunga,0), 0)","v":{"v":0,"d":"Rp0.00"}},{"$f":"IFERROR(IF(PinjamanBelumDibayar*PinjamanAman,SaldoAkhir,0), 0)","v":{"v":0,"d":"Rp0.00"}}]
[null,{"$f":"IFERROR(IF(PinjamanBelumDibayar*PinjamanAman,NomorPembayaran,\"\"), \"\")","v":""},{"$f":"IFERROR(IF(PinjamanBelumDibayar*PinjamanAman,TanggalPembayaran,TanggalMulaiPinjaman), TanggalMulaiPinjaman)","v":"2019-07-18"},{"$f":"IFERROR(IF(PinjamanBelumDibayar*PinjamanAman,NilaiPinjaman,\"\"), \"\")","v":""},{"$f":"IFERROR(IF(PinjamanBelumDibayar*PinjamanAman,AngsuranBulanan,0), 0)","v":{"v":0,"d":"Rp0.00"}},{"$f":"IFERROR(IF(PinjamanBelumDibayar*PinjamanAman,Pinjaman_Pokok,0), 0)","v":{"v":0,"d":"Rp0.00"}},{"$f":"IFERROR(IF(PinjamanBelumDibayar*PinjamanAman,JmlBunga,0), 0)","v":{"v":0,"d":"Rp0.00"}},{"$f":"IFERROR(IF(PinjamanBelumDibayar*PinjamanAman,SaldoAkhir,0), 0)","v":{"v":0,"d":"Rp0.00"}}]
[null,{"$f":"IFERROR(IF(PinjamanBelumDibayar*PinjamanAman,NomorPembayaran,\"\"), \"\")","v":""},{"$f":"IFERROR(IF(PinjamanBelumDibayar*PinjamanAman,TanggalPembayaran,TanggalMulaiPinjaman), TanggalMulaiPinjaman)","v":"2019-07-18"},{"$f":"IFERROR(IF(PinjamanBelumDibayar*PinjamanAman,NilaiPinjaman,\"\"), \"\")","v":""},{"$f":"IFERROR(IF(PinjamanBelumDibayar*PinjamanAman,AngsuranBulanan,0), 0)","v":{"v":0,"d":"Rp0.00"}},{"$f":"IFERROR(IF(PinjamanBelumDibayar*PinjamanAman,Pinjaman_Pokok,0), 0)","v":{"v":0,"d":"Rp0.00"}},{"$f":"IFERROR(IF(PinjamanBelumDibayar*PinjamanAman,JmlBunga,0), 0)","v":{"v":0,"d":"Rp0.00"}},{"$f":"IFERROR(IF(PinjamanBelumDibayar*PinjamanAman,SaldoAkhir,0), 0)","v":{"v":0,"d":"Rp0.00"}}]
[null,{"$f":"IFERROR(IF(PinjamanBelumDibayar*PinjamanAman,NomorPembayaran,\"\"), \"\")","v":""},{"$f":"IFERROR(IF(PinjamanBelumDibayar*PinjamanAman,TanggalPembayaran,TanggalMulaiPinjaman), TanggalMulaiPinjaman)","v":"2019-07-18"},{"$f":"IFERROR(IF(PinjamanBelumDibayar*PinjamanAman,NilaiPinjaman,\"\"), \"\")","v":""},{"$f":"IFERROR(IF(PinjamanBelumDibayar*PinjamanAman,AngsuranBulanan,0), 0)","v":{"v":0,"d":"Rp0.00"}},{"$f":"IFERROR(IF(PinjamanBelumDibayar*PinjamanAman,Pinjaman_Pokok,0), 0)","v":{"v":0,"d":"Rp0.00"}},{"$f":"IFERROR(IF(PinjamanBelumDibayar*PinjamanAman,JmlBunga,0), 0)","v":{"v":0,"d":"Rp0.00"}},{"$f":"IFERROR(IF(PinjamanBelumDibayar*PinjamanAman,SaldoAkhir,0), 0)","v":{"v":0,"d":"Rp0.00"}}]
[null,{"$f":"IFERROR(IF(PinjamanBelumDibayar*PinjamanAman,NomorPembayaran,\"\"), \"\")","v":""},{"$f":"IFERROR(IF(PinjamanBelumDibayar*PinjamanAman,TanggalPembayaran,TanggalMulaiPinjaman), TanggalMulaiPinjaman)","v":"2019-07-18"},{"$f":"IFERROR(IF(PinjamanBelumDibayar*PinjamanAman,NilaiPinjaman,\"\"), \"\")","v":""},{"$f":"IFERROR(IF(PinjamanBelumDibayar*PinjamanAman,AngsuranBulanan,0), 0)","v":{"v":0,"d":"Rp0.00"}},{"$f":"IFERROR(IF(PinjamanBelumDibayar*PinjamanAman,Pinjaman_Pokok,0), 0)","v":{"v":0,"d":"Rp0.00"}},{"$f":"IFERROR(IF(PinjamanBelumDibayar*PinjamanAman,JmlBunga,0), 0)","v":{"v":0,"d":"Rp0.00"}},{"$f":"IFERROR(IF(PinjamanBelumDibayar*PinjamanAman,SaldoAkhir,0), 0)","v":{"v":0,"d":"Rp0.00"}}]
[null,{"$f":"IFERROR(IF(PinjamanBelumDibayar*PinjamanAman,NomorPembayaran,\"\"), \"\")","v":""},{"$f":"IFERROR(IF(PinjamanBelumDibayar*PinjamanAman,TanggalPembayaran,TanggalMulaiPinjaman), TanggalMulaiPinjaman)","v":"2019-07-18"},{"$f":"IFERROR(IF(PinjamanBelumDibayar*PinjamanAman,NilaiPinjaman,\"\"), \"\")","v":""},{"$f":"IFERROR(IF(PinjamanBelumDibayar*PinjamanAman,AngsuranBulanan,0), 0)","v":{"v":0,"d":"Rp0.00"}},{"$f":"IFERROR(IF(PinjamanBelumDibayar*PinjamanAman,Pinjaman_Pokok,0), 0)","v":{"v":0,"d":"Rp0.00"}},{"$f":"IFERROR(IF(PinjamanBelumDibayar*PinjamanAman,JmlBunga,0), 0)","v":{"v":0,"d":"Rp0.00"}},{"$f":"IFERROR(IF(PinjamanBelumDibayar*PinjamanAman,SaldoAkhir,0), 0)","v":{"v":0,"d":"Rp0.00"}}]
[null,{"$f":"IFERROR(IF(PinjamanBelumDibayar*PinjamanAman,NomorPembayaran,\"\"), \"\")","v":""},{"$f":"IFERROR(IF(PinjamanBelumDibayar*PinjamanAman,TanggalPembayaran,TanggalMulaiPinjaman), TanggalMulaiPinjaman)","v":"2019-07-18"},{"$f":"IFERROR(IF(PinjamanBelumDibayar*PinjamanAman,NilaiPinjaman,\"\"), \"\")","v":""},{"$f":"IFERROR(IF(PinjamanBelumDibayar*PinjamanAman,AngsuranBulanan,0), 0)","v":{"v":0,"d":"Rp0.00"}},{"$f":"IFERROR(IF(PinjamanBelumDibayar*PinjamanAman,Pinjaman_Pokok,0), 0)","v":{"v":0,"d":"Rp0.00"}},{"$f":"IFERROR(IF(PinjamanBelumDibayar*PinjamanAman,JmlBunga,0), 0)","v":{"v":0,"d":"Rp0.00"}},{"$f":"IFERROR(IF(PinjamanBelumDibayar*PinjamanAman,SaldoAkhir,0), 0)","v":{"v":0,"d":"Rp0.00"}}]
[null,{"$f":"IFERROR(IF(PinjamanBelumDibayar*PinjamanAman,NomorPembayaran,\"\"), \"\")","v":""},{"$f":"IFERROR(IF(PinjamanBelumDibayar*PinjamanAman,TanggalPembayaran,TanggalMulaiPinjaman), TanggalMulaiPinjaman)","v":"2019-07-18"},{"$f":"IFERROR(IF(PinjamanBelumDibayar*PinjamanAman,NilaiPinjaman,\"\"), \"\")","v":""},{"$f":"IFERROR(IF(PinjamanBelumDibayar*PinjamanAman,AngsuranBulanan,0), 0)","v":{"v":0,"d":"Rp0.00"}},{"$f":"IFERROR(IF(PinjamanBelumDibayar*PinjamanAman,Pinjaman_Pokok,0), 0)","v":{"v":0,"d":"Rp0.00"}},{"$f":"IFERROR(IF(PinjamanBelumDibayar*PinjamanAman,JmlBunga,0), 0)","v":{"v":0,"d":"Rp0.00"}},{"$f":"IFERROR(IF(PinjamanBelumDibayar*PinjamanAman,SaldoAkhir,0), 0)","v":{"v":0,"d":"Rp0.00"}}]
[null,{"$f":"IFERROR(IF(PinjamanBelumDibayar*PinjamanAman,NomorPembayaran,\"\"), \"\")","v":""},{"$f":"IFERROR(IF(PinjamanBelumDibayar*PinjamanAman,TanggalPembayaran,TanggalMulaiPinjaman), TanggalMulaiPinjaman)","v":"2019-07-18"},{"$f":"IFERROR(IF(PinjamanBelumDibayar*PinjamanAman,NilaiPinjaman,\"\"), \"\")","v":""},{"$f":"IFERROR(IF(PinjamanBelumDibayar*PinjamanAman,AngsuranBulanan,0), 0)","v":{"v":0,"d":"Rp0.00"}},{"$f":"IFERROR(IF(PinjamanBelumDibayar*PinjamanAman,Pinjaman_Pokok,0), 0)","v":{"v":0,"d":"Rp0.00"}},{"$f":"IFERROR(IF(PinjamanBelumDibayar*PinjamanAman,JmlBunga,0), 0)","v":{"v":0,"d":"Rp0.00"}},{"$f":"IFERROR(IF(PinjamanBelumDibayar*PinjamanAman,SaldoAkhir,0), 0)","v":{"v":0,"d":"Rp0.00"}}]
[null,{"$f":"IFERROR(IF(PinjamanBelumDibayar*PinjamanAman,NomorPembayaran,\"\"), \"\")","v":""},{"$f":"IFERROR(IF(PinjamanBelumDibayar*PinjamanAman,TanggalPembayaran,TanggalMulaiPinjaman), TanggalMulaiPinjaman)","v":"2019-07-18"},{"$f":"IFERROR(IF(PinjamanBelumDibayar*PinjamanAman,NilaiPinjaman,\"\"), \"\")","v":""},{"$f":"IFERROR(IF(PinjamanBelumDibayar*PinjamanAman,AngsuranBulanan,0), 0)","v":{"v":0,"d":"Rp0.00"}},{"$f":"IFERROR(IF(PinjamanBelumDibayar*PinjamanAman,Pinjaman_Pokok,0), 0)","v":{"v":0,"d":"Rp0.00"}},{"$f":"IFERROR(IF(PinjamanBelumDibayar*PinjamanAman,JmlBunga,0), 0)","v":{"v":0,"d":"Rp0.00"}},{"$f":"IFERROR(IF(PinjamanBelumDibayar*PinjamanAman,SaldoAkhir,0), 0)","v":{"v":0,"d":"Rp0.00"}}]
[null,{"$f":"IFERROR(IF(PinjamanBelumDibayar*PinjamanAman,NomorPembayaran,\"\"), \"\")","v":""},{"$f":"IFERROR(IF(PinjamanBelumDibayar*PinjamanAman,TanggalPembayaran,TanggalMulaiPinjaman), TanggalMulaiPinjaman)","v":"2019-07-18"},{"$f":"IFERROR(IF(PinjamanBelumDibayar*PinjamanAman,NilaiPinjaman,\"\"), \"\")","v":""},{"$f":"IFERROR(IF(PinjamanBelumDibayar*PinjamanAman,AngsuranBulanan,0), 0)","v":{"v":0,"d":"Rp0.00"}},{"$f":"IFERROR(IF(PinjamanBelumDibayar*PinjamanAman,Pinjaman_Pokok,0), 0)","v":{"v":0,"d":"Rp0.00"}},{"$f":"IFERROR(IF(PinjamanBelumDibayar*PinjamanAman,JmlBunga,0), 0)","v":{"v":0,"d":"Rp0.00"}},{"$f":"IFERROR(IF(PinjamanBelumDibayar*PinjamanAman,SaldoAkhir,0), 0)","v":{"v":0,"d":"Rp0.00"}}]
[null,{"$f":"IFERROR(IF(PinjamanBelumDibayar*PinjamanAman,NomorPembayaran,\"\"), \"\")","v":""},{"$f":"IFERROR(IF(PinjamanBelumDibayar*PinjamanAman,TanggalPembayaran,TanggalMulaiPinjaman), TanggalMulaiPinjaman)","v":"2019-07-18"},{"$f":"IFERROR(IF(PinjamanBelumDibayar*PinjamanAman,NilaiPinjaman,\"\"), \"\")","v":""},{"$f":"IFERROR(IF(PinjamanBelumDibayar*PinjamanAman,AngsuranBulanan,0), 0)","v":{"v":0,"d":"Rp0.00"}},{"$f":"IFERROR(IF(PinjamanBelumDibayar*PinjamanAman,Pinjaman_Pokok,0), 0)","v":{"v":0,"d":"Rp0.00"}},{"$f":"IFERROR(IF(PinjamanBelumDibayar*PinjamanAman,JmlBunga,0), 0)","v":{"v":0,"d":"Rp0.00"}},{"$f":"IFERROR(IF(PinjamanBelumDibayar*PinjamanAman,SaldoAkhir,0), 0)","v":{"v":0,"d":"Rp0.00"}}]
[null,{"$f":"IFERROR(IF(PinjamanBelumDibayar*PinjamanAman,NomorPembayaran,\"\"), \"\")","v":""},{"$f":"IFERROR(IF(PinjamanBelumDibayar*PinjamanAman,TanggalPembayaran,TanggalMulaiPinjaman), TanggalMulaiPinjaman)","v":"2019-07-18"},{"$f":"IFERROR(IF(PinjamanBelumDibayar*PinjamanAman,NilaiPinjaman,\"\"), \"\")","v":""},{"$f":"IFERROR(IF(PinjamanBelumDibayar*PinjamanAman,AngsuranBulanan,0), 0)","v":{"v":0,"d":"Rp0.00"}},{"$f":"IFERROR(IF(PinjamanBelumDibayar*PinjamanAman,Pinjaman_Pokok,0), 0)","v":{"v":0,"d":"Rp0.00"}},{"$f":"IFERROR(IF(PinjamanBelumDibayar*PinjamanAman,JmlBunga,0), 0)","v":{"v":0,"d":"Rp0.00"}},{"$f":"IFERROR(IF(PinjamanBelumDibayar*PinjamanAman,SaldoAkhir,0), 0)","v":{"v":0,"d":"Rp0.00"}}]
[null,{"$f":"IFERROR(IF(PinjamanBelumDibayar*PinjamanAman,NomorPembayaran,\"\"), \"\")","v":""},{"$f":"IFERROR(IF(PinjamanBelumDibayar*PinjamanAman,TanggalPembayaran,TanggalMulaiPinjaman), TanggalMulaiPinjaman)","v":"2019-07-18"},{"$f":"IFERROR(IF(PinjamanBelumDibayar*PinjamanAman,NilaiPinjaman,\"\"), \"\")","v":""},{"$f":"IFERROR(IF(PinjamanBelumDibayar*PinjamanAman,AngsuranBulanan,0), 0)","v":{"v":0,"d":"Rp0.00"}},{"$f":"IFERROR(IF(PinjamanBelumDibayar*PinjamanAman,Pinjaman_Pokok,0), 0)","v":{"v":0,"d":"Rp0.00"}},{"$f":"IFERROR(IF(PinjamanBelumDibayar*PinjamanAman,JmlBunga,0), 0)","v":{"v":0,"d":"Rp0.00"}},{"$f":"IFERROR(IF(PinjamanBelumDibayar*PinjamanAman,SaldoAkhir,0), 0)","v":{"v":0,"d":"Rp0.00"}}]
[null,{"$f":"IFERROR(IF(PinjamanBelumDibayar*PinjamanAman,NomorPembayaran,\"\"), \"\")","v":""},{"$f":"IFERROR(IF(PinjamanBelumDibayar*PinjamanAman,TanggalPembayaran,TanggalMulaiPinjaman), TanggalMulaiPinjaman)","v":"2019-07-18"},{"$f":"IFERROR(IF(PinjamanBelumDibayar*PinjamanAman,NilaiPinjaman,\"\"), \"\")","v":""},{"$f":"IFERROR(IF(PinjamanBelumDibayar*PinjamanAman,AngsuranBulanan,0), 0)","v":{"v":0,"d":"Rp0.00"}},{"$f":"IFERROR(IF(PinjamanBelumDibayar*PinjamanAman,Pinjaman_Pokok,0), 0)","v":{"v":0,"d":"Rp0.00"}},{"$f":"IFERROR(IF(PinjamanBelumDibayar*PinjamanAman,JmlBunga,0), 0)","v":{"v":0,"d":"Rp0.00"}},{"$f":"IFERROR(IF(PinjamanBelumDibayar*PinjamanAman,SaldoAkhir,0), 0)","v":{"v":0,"d":"Rp0.00"}}]
[null,{"$f":"IFERROR(IF(PinjamanBelumDibayar*PinjamanAman,NomorPembayaran,\"\"), \"\")","v":""},{"$f":"IFERROR(IF(PinjamanBelumDibayar*PinjamanAman,TanggalPembayaran,TanggalMulaiPinjaman), TanggalMulaiPinjaman)","v":"2019-07-18"},{"$f":"IFERROR(IF(PinjamanBelumDibayar*PinjamanAman,NilaiPinjaman,\"\"), \"\")","v":""},{"$f":"IFERROR(IF(PinjamanBelumDibayar*PinjamanAman,AngsuranBulanan,0), 0)","v":{"v":0,"d":"Rp0.00"}},{"$f":"IFERROR(IF(PinjamanBelumDibayar*PinjamanAman,Pinjaman_Pokok,0), 0)","v":{"v":0,"d":"Rp0.00"}},{"$f":"IFERROR(IF(PinjamanBelumDibayar*PinjamanAman,JmlBunga,0), 0)","v":{"v":0,"d":"Rp0.00"}},{"$f":"IFERROR(IF(PinjamanBelumDibayar*PinjamanAman,SaldoAkhir,0), 0)","v":{"v":0,"d":"Rp0.00"}}]
[null,{"$f":"IFERROR(IF(PinjamanBelumDibayar*PinjamanAman,NomorPembayaran,\"\"), \"\")","v":""},{"$f":"IFERROR(IF(PinjamanBelumDibayar*PinjamanAman,TanggalPembayaran,TanggalMulaiPinjaman), TanggalMulaiPinjaman)","v":"2019-07-18"},{"$f":"IFERROR(IF(PinjamanBelumDibayar*PinjamanAman,NilaiPinjaman,\"\"), \"\")","v":""},{"$f":"IFERROR(IF(PinjamanBelumDibayar*PinjamanAman,AngsuranBulanan,0), 0)","v":{"v":0,"d":"Rp0.00"}},{"$f":"IFERROR(IF(PinjamanBelumDibayar*PinjamanAman,Pinjaman_Pokok,0), 0)","v":{"v":0,"d":"Rp0.00"}},{"$f":"IFERROR(IF(PinjamanBelumDibayar*PinjamanAman,JmlBunga,0), 0)","v":{"v":0,"d":"Rp0.00"}},{"$f":"IFERROR(IF(PinjamanBelumDibayar*PinjamanAman,SaldoAkhir,0), 0)","v":{"v":0,"d":"Rp0.00"}}]
[null,{"$f":"IFERROR(IF(PinjamanBelumDibayar*PinjamanAman,NomorPembayaran,\"\"), \"\")","v":""},{"$f":"IFERROR(IF(PinjamanBelumDibayar*PinjamanAman,TanggalPembayaran,TanggalMulaiPinjaman), TanggalMulaiPinjaman)","v":"2019-07-18"},{"$f":"IFERROR(IF(PinjamanBelumDibayar*PinjamanAman,NilaiPinjaman,\"\"), \"\")","v":""},{"$f":"IFERROR(IF(PinjamanBelumDibayar*PinjamanAman,AngsuranBulanan,0), 0)","v":{"v":0,"d":"Rp0.00"}},{"$f":"IFERROR(IF(PinjamanBelumDibayar*PinjamanAman,Pinjaman_Pokok,0), 0)","v":{"v":0,"d":"Rp0.00"}},{"$f":"IFERROR(IF(PinjamanBelumDibayar*PinjamanAman,JmlBunga,0), 0)","v":{"v":0,"d":"Rp0.00"}},{"$f":"IFERROR(IF(PinjamanBelumDibayar*PinjamanAman,SaldoAkhir,0), 0)","v":{"v":0,"d":"Rp0.00"}}]
[null,{"$f":"IFERROR(IF(PinjamanBelumDibayar*PinjamanAman,NomorPembayaran,\"\"), \"\")","v":""},{"$f":"IFERROR(IF(PinjamanBelumDibayar*PinjamanAman,TanggalPembayaran,TanggalMulaiPinjaman), TanggalMulaiPinjaman)","v":"2019-07-18"},{"$f":"IFERROR(IF(PinjamanBelumDibayar*PinjamanAman,NilaiPinjaman,\"\"), \"\")","v":""},{"$f":"IFERROR(IF(PinjamanBelumDibayar*PinjamanAman,AngsuranBulanan,0), 0)","v":{"v":0,"d":"Rp0.00"}},{"$f":"IFERROR(IF(PinjamanBelumDibayar*PinjamanAman,Pinjaman_Pokok,0), 0)","v":{"v":0,"d":"Rp0.00"}},{"$f":"IFERROR(IF(PinjamanBelumDibayar*PinjamanAman,JmlBunga,0), 0)","v":{"v":0,"d":"Rp0.00"}},{"$f":"IFERROR(IF(PinjamanBelumDibayar*PinjamanAman,SaldoAkhir,0), 0)","v":{"v":0,"d":"Rp0.00"}}]